Workbook

Sheet Présentation
B5: LA STRATÉGIE EN BREF
B24: RÉSULTATS MOYENS POUR L'ENSEMBLE DU QUÉBEC EN 2021
A50: * | B50: Distribution : 58 L/pers/d de réduction par rapprot à 2015, soit une réduction de 10,1 %
B51: EPR : 520 des 648 réseaux avec un IFI inférieur à 4, soit 80,2 %
B52: Consommation résidentielle : 274 des 531 municipalités respectent leur objectif personnalisé, soit 51,6 %
B53: RVD : 622 des 648 audits ont un RVD de plus de 50%, soit 96,0 %

Sheet Évolution
DL3: =SUM('État & Plan d''action'!$S$6:$S$1113,'État & Plan d''action'!$U$6:$U$1113,'État & Plan d''action'!$AC$6:$AC$1113,'État & Plan d''action'!$AE$6:$AE$1113,'État & Plan d''action'!$AM$6:$AM$1113,'État & Plan d''action'!$AO$6:$AO$1113,'État & Plan d''action'!$AW$6:$AW$1113,'État & Plan d''action'!$AY$6:$AY$1113,'État & Plan d''action'!$BG$6:$BG$1113,'État & Plan d''action'!$BI$6:$BI$1113,'État & Plan d''action'!$BQ$6:$BQ$1113,'État & Plan d''action'!$BS$6:$BS$1113,'État & Plan d''action'!$CA$6:$CA$1113,'État & Plan d''action'!$CC$6:$CC$1113,'État & Plan d''action'!$CK$6:$CK$1113,'État & Plan d''action'!$CM$6:$CM$1113,'État & Plan d''action'!$CU$6:$CU$1113,'État & Plan d''action'!$CW$6:$CW$1113)/SUM('Données par municipalité'!$N$6:$N$1113) -> 1.336846266 | DM3: =SUM('État & Plan d''action'!$S$6:$S$1113,'État & Plan d''action'!$U$6:$U$1113,'État & Plan d''action'!$AD$6:$AD$1113,'État & Plan d''action'!$AF$6:$AF$1113,'État & Plan d''action'!$AN$6:$AN$1113,'État & Plan d''action'!$AP$6:$AP$1113,'État & Plan d''action'!$AX$6:$AX$1113,'État & Plan d''action'!$AZ$6:$AZ$1113,'État & Plan d''action'!$BH$6:$BH$1113,'État & Plan d''action'!$BJ$6:$BJ$1113,'État & Plan d''action'!$BR$6:$BR$1113,'État & Plan d''action'!$BT$6:$BT$1113,'État & Plan d''action'!$CB$6:$CB$1113,'État & Plan d''action'!$CD$6:$CD$1113,'État & Plan d''action'!$CL$6:$CL$1113,'État & Plan d''action'!$CN$6:$CN$1113,'État & Plan d''action'!$CV$6:$CV$1113,'État & Plan d''action'!$CX$6:$CX$1113)/SUM('Données par municipalité'!$N$6:$N$1113) -> 1.355861523
C4: Choisir dans la liste déroulante une municipalité et défiler la page pour voir les indicateurs ou cliquer directement sur l'indicateur ou le tableau.
C5: Choisir une municipalité : | I5: Choisir un indicateur : | M5: Choisir un tableau : | BS5: 1 | BT5: 2 | BU5: 3 | BV5: 4 | BW5: 5 | BX5: 6 | BY5: 7 | BZ5: 8 | CA5: 9 | CB5: 10 | CC5: 11 | CD5: 12 | CE5: 13 | CF5: 14 | CG5: 15 | CH5: 16 | CI5: 17 | CJ5: 18 | CK5: 19 | CL5: 20 | CM5: 21 | CN5: 22 | CO5: 23 | CP5: 24 | CQ5: 25 | CR5: 26 | CS5: 27 | CT5: 28 | CU5: 29 | CV5: 30 | CW5: 31 | CX5: 32 | CY5: 33 | CZ5: 34 | DA5: 35 | DB5: 36 | DC5: 37 | DD5: 38 | DE5: 39 | DF5: 40 | DG5: 41 | DH5: 42 | DI5: 43 | DJ5: 44 | DK5: 45 | DL5: 46 | DM5: 47 | DN5: 48 | DO5: 49 | DP5: 50 | DQ5: 51 | DR5: 52 | DS5: 53 | DT5: 54 | DU5: 55 | DV5: 56 | DW5: 57 | DX5: 58 | DY5: 59 | DZ5: 60 | EA5: 61 | EB5: 62 | EC5: 63 | ED5: 64 | EE5: 65 | EF5: 66 | EG5: 67 | EH5: 68 | EI5: 69 | EJ5: 70 | EK5: 71 | EL5: 72 | EM5: 73 | EN5: 74 | EO5: 75 | EP5: 76 | EQ5: 77 | ER5: 78 | ES5: 79 | ET5: 80 | EU5: 81 | EV5: 82 | EW5: 83 | EX5: 84 | EY5: 85 | EZ5: 86 | FA5: 87 | FB5: 88 | FC5: 89 | FD5: 90 | FE5: 91 | FF5: 92 | FG5: 93 | FH5: 94 | FI5: 95 | FJ5: 96 | FK5: 97 | FL5: 98 | FM5: 99 | FN5: 100 | FO5: 101 | FP5: 102 | FQ5: 103 | FR5: 104 | FS5: 105 | FT5: 106 | FU5: 107 | FV5: 108 | FW5: 109 | FX5: 110 | FY5: 111 | FZ5: 112
C6: TOUT LE QUÉBEC | I6: → Quantité d'eau distribuée | M6: → Résultats par région administrative | BV6: Municipalité exemptées? | CG6: Bilan approuvé? | CR6: Quantité d'eau distribuée | DC6: % équivalent du réseau ausculté | DO6: nombre de fuites réparées | DV6: Conduite | DW6: Public | DX6: Privé | DY6: Conduite | DZ6: Public | EA6: Privé | EB6: Conduite | EC6: Public | ED6: Privé | EH6: Consommation résidentielle | EL6: IFI | EP6: Conduite | EQ6: Public | ER6: Privé | ES6: Conduite | ET6: Public | EU6: Privé | EV6: Conduite | EW6: Public | EX6: Privé | EY6: Conduite | EZ6: Public | FA6: Privé | FB6: Option 1 | FC6: Option 2 | FD6: Option 3 | FE6: Option 4 | FF6: Option 5 | FG6: Option 1 | FH6: Option 2 | FI6: Option 3 | FJ6: Option 4 | FK6: Option 5 | FL6: Option 1 | FM6: Option 2 | FN6: Option 3 | FO6: Option 4 | FP6: Option 5 | FQ6: Option 1 | FR6: Option 2 | FS6: Option 3 | FT6: Option 4 | FU6: Option 5 | FV6: RVD | FW6: RVD | FZ6: Décret de population
I7: → Consommation résidentielle | M7: → Résultats par classe de population | BQ7: Ont participé depuis 2011 | BR7: Ont participé depuis 2018 | BV7: 2011 | BW7: 2012 | BX7: 2013 | BY7: 2014 | BZ7: 2015 | CA7: 2016 | CB7: 2017 | CC7: 2018 | CD7: 2019 | CE7: 2020 | CF7: 2021 | CG7: 2011 | CH7: 2012 | CI7: 2013 | CJ7: 2014 | CK7: 2015 | CL7: 2016 | CM7: 2017 | CN7: 2018 | CO7: 2019 | CP7: 2020 | CQ7: 2021 | CR7: 2011 | CS7: 2012 | CT7: 2013 | CU7: 2014 | CV7: 2015 | CW7: 2016 | CX7: 2017 | CY7: 2018 | CZ7: 2019 | DA7: 2020 | DB7: 2021 | DC7: 2011 | DD7: 2012 | DE7: 2013 | DF7: 2014 | DG7: 2015 | DH7: 2016 | DI7: 2017 | DJ7: 2018 | DK7: 2019 | DL7: 2020 | DM7: 2021 | DN7: 2022 (prévu) | DO7: 2011 | DP7: 2012 | DQ7: 2013 | DR7: 2014 | DS7: 2015 | DT7: 2016 | DU7: 2017 | DV7: 2018 | DW7: 2018 | DX7: 2018 | DY7: 2019 | DZ7: 2019 | EA7: 2019 | EB7: 2020 | EC7: 2020 | ED7: 2020 | EE7: 2021 | EF7: 2021 | EG7: 2021 | EH7: 2018 | EI7: 2019 | EJ7: 2020 | EK7: 2021 | EL7: 2018 | EM7: 2019 | EN7: 2020 | EO7: 2021 | EP7: 2018 | EQ7: 2018 | ER7: 2018 | ES7: 2019 | ET7: 2019 | EU7: 2019 | EV7: 2020 | EW7: 2020 | EX7: 2020 | EY7: 2021 | EZ7: 2021 | FA7: 2021 | FB7: 2018 | FC7: 2018 | FD7: 2018 | FE7: 2018 | FF7: 2018 | FG7: 2019 | FH7: 2019 | FI7: 2019 | FJ7: 2019 | FK7: 2019 | FL7: 2020 | FM7: 2020 | FN7: 2020 | FO7: 2020 | FP7: 2020 | FQ7: 2021 | FR7: 2021 | FS7: 2021 | FT7: 2021 | FU7: 2021 | FV7: 2018 | FW7: 2019 | FX7: 2020 | FY7: 2021 | FZ7: 2020
I8: → Indice de fuites dans les infrastructures | BQ8: =SUM(BQ9:BQ1116) -> 866 | BR8: =SUM(BR9:BR1116) -> 757 | BS8: xxx | BT8: TOUT LE QUÉBEC | CR8: 620.2056373 | CS8: 612.340892 | CT8: 596.0865808 | CU8: 589.1008665 | CV8: 573.3776759 | CW8: 550.8217594 | CX8: 529.5924 | CY8: 536.3201867 | CZ8: 524.5080028 | DA8: 520.6271874 | DB8: =SUM('Données par municipalité'!P6:P1113)*1000000/365/SUM('Données par municipalité'!M6:M1113) -> 515.2730751 | DC8: Non disponible | DD8: 0.54 | DE8: 0.56 | DF8: 0.74 | DG8: 0.78 | DH8: 0.85 | DI8: 0.9019886698 | DJ8: 0.8807061573 | DK8: 1.014154605 | DL8: 1.160524319 | DM8: =SUM('État & Plan d''action'!$S$6:$S$1113,'État & Plan d''action'!$U$6:$U$1113,'État & Plan d''action'!$AC$6:$AC$1113,'État & Plan d''action'!$AE$6:$AE$1113,'État & Plan d''action'!$AM$6:$AM$1113,'État & Plan d''action'!$AO$6:$AO$1113,'État & Plan d''action'!$AW$6:$AW$1113,'État & Plan d''action'!$AY$6:$AY$1113,'État & Plan d''action'!$BG$6:$BG$1113,'État & Plan d''action'!$BI$6:$BI$1113,'État & Plan d''action'!$BQ$6:$BQ$1113,'État & Plan d''action'!$BS$6:$BS$1113,'État & Plan d''action'!$CA$6:$CA$1113,'État & Plan d''action'!$CC$6:$CC$1113,'État & Plan d''action'!$CK$6:$CK$1113,'État & Plan d''action'!$CM$6:$CM$1113,'État & Plan d''action'!$CU$6:$CU$1113,'État & Plan d''action'!$CW$6:$CW$1113)/SUM('Données par municipalité'!$N$6:$N$1113) -> 1.336846266 | DN8: =SUM('État & Plan d''action'!$S$6:$S$1113,'État & Plan d''action'!$U$6:$U$1113,'État & Plan d''action'!$AD$6:$AD$1113,'État & Plan d''action'!$AF$6:$AF$1113,'État & Plan d''action'!$AN$6:$AN$1113,'État & Plan d''action'!$AP$6:$AP$1113,'État & Plan d''action'!$AX$6:$AX$1113,'État & Plan d''action'!$AZ$6:$AZ$1113,'État & Plan d''action'!$BH$6:$BH$1113,'État & Plan d''action'!$BJ$6:$BJ$1113,'État & Plan d''action'!$BR$6:$BR$1113,'État & Plan d''action'!$BT$6:$BT$1113,'État & Plan d''action'!$CB$6:$CB$1113,'État & Plan d''action'!$CD$6:$CD$1113,'État & Plan d''action'!$CL$6:$CL$1113,'État & Plan d''action'!$CN$6:$CN$1113,'État & Plan d''action'!$CV$6:$CV$1113,'État & Plan d''action'!$CX$6:$CX$1113)/SUM('Données par municipalité'!$N$6:$N$1113) -> 1.355861523 | DO8: Non disponible | DP8: 9059 | DQ8: 8852 | DR8: 9905 | DS8: 10143 | DT8: 8764 | DU8: 8355 | DV8: 5694 | DW8: 2517 | DX8: 1275 | DY8: 5090 | DZ8: 2667 | EA8: 1457 | EB8: 4468 | EC8: 2585 | ED8: 1354 | EE8: =SUM(EE9:EE1116) -> 4626 | EF8: =SUM(EF9:EF1116) -> 2609 | EG8: =SUM(EG9:EG1116) -> 1346 | EH8: 268.2675218 | EI8: 262.0375957 | EJ8: 276.2706008 | EK8: =SUM('Données par municipalité'!Q6:Q1113)*1000000/365/SUM('Données par municipalité'!M6:M1113) -> 259.5527504 | EL8: 6.035062766 | EM8: 6.592263155 | EN8: 6.292197281 | EO8: =SUM('Données par municipalité'!R6:R1113)/SUM('Données par municipalité'!S6:S1113) -> 6.804760507 | EP8: 5.314423557 | EQ8: 7.082782709 | ER8: 16.66258134 | ES8: 4.562531176 | ET8: 8.038466783 | EU8: 16.58260614 | EV8: 5.001293828 | EW8: 8.708704062 | EX8: 16.47049001 | EY8: =SUMPRODUCT('État & Plan d''action'!DE6:DE1113,'État & Plan d''action'!DI6:DI1113)/SUM('État & Plan d''action'!DE6:DE1113) -> 4.561532063 | EZ8: =SUMPRODUCT('État & Plan d''action'!DF6:DF1113,'État & Plan d''action'!DJ6:DJ1113)/SUM('État & Plan d''action'!DF6:DF1113) -> 8.859333078 | FA8: =SUMPRODUCT('État & Plan d''action'!DG6:DG1113,'État & Plan d''action'!DK6:DK1113)/SUM('État & Plan d''action'!DG6:DG1113) -> 11.92942051 | FB8: 2964.369 | FC8: 30100.8408 | FD8: 4173.908 | FE8: 1559.364 | FF8: 3.5 | FG8: 2964.369 | FH8: 30100.8408 | FI8: 4173.908 | FJ8: 1559.364 | FK8: 3.5 | FL8: 3159.545 | FM8: 35970.78872 | FN8: 10187.00037 | FO8: 903.31 | FP8: 59.9 | FQ8: =SUM('État & Plan d''action'!Q6:Q1113,'État & Plan d''action'!AA6:AA1113,'État & Plan d''action'!AK6:AK1113,'État & Plan d''action'!AU6:AU1113,'État & Plan d''action'!BE6:BE1113,'État & Plan d''action'!BO6:BO1113,'État & Plan d''action'!BY6:BY1113,'État & Plan d''action'!CI6:CI1113,'État & Plan d''action'!CS6:CS1113) -> 2666.9782 | FR8: =SUM('État & Plan d''action'!S6:S1113,'État & Plan d''action'!AC6:AC1113,'État & Plan d''action'!AM6:AM1113,'État & Plan d''action'!AW6:AW1113,'État & Plan d''action'!BG6:BG1113,'État & Plan d''action'!BQ6:BQ1113,'État & Plan d''action'!CA6:CA1113,'État & Plan d''action'!CK6:CK1113,'État & Plan d''action'!CU6:CU1113) -> 43016.70094 | FS8: =SUM('État & Plan d''action'!U6:U1113,'État & Plan d''action'!AE6:AE1113,'État & Plan d''action'!AO6:AO1113,'État & Plan d''action'!AY6:AY1113,'État & Plan d''action'!BI6:BI1113,'État & Plan d''action'!BS6:BS1113,'État & Plan d''action'!CC6:CC1113,'État & Plan d''action'!CK6:CK1113,'État & Plan d''action'!CW6:CW1113) -> 7680.17655 | FT8: =SUM('État & Plan d''action'!W6:W1113,'État & Plan d''action'!AG6:AG1113,'État & Plan d''action'!AQ6:AQ1113,'État & Plan d''action'!BA6:BA1113,'État & Plan d''action'!BK6:BK1113,'État & Plan d''action'!BU6:BU1113,'État & Plan d''action'!CE6:CE1113,'État & Plan d''action'!CM6:CM1113,'État & Plan d''action'!CY6:CY1113) -> 583.1165 | FU8: =SUM('État & Plan d''action'!Y6:Y1113,'État & Plan d''action'!AI6:AI1113,'État & Plan d''action'!AS6:AS1113,'État & Plan d''action'!BC6:BC1113,'État & Plan d''action'!BM6:BM1113,'État & Plan d''action'!BW6:BW1113,'État & Plan d''action'!CG6:CG1113,'État & Plan d''action'!CO6:CO1113,'État & Plan d''action'!DA6:DA1113) -> 4 | FV8: 55.81464743 | FW8: 57.72349908 | FX8: 58.58576664 | FY8: 60.34695882
I9: → Contrôle actif des pertes d'eau | BQ9: =IF(OR(CI9="oui",CH9="oui",CG9="oui",CJ9="oui",CQ9="oui",CP9="oui",CO9="oui",CN9="oui",CM9="oui",CL9="oui",CK9="oui"),1,0) -> 1 | BR9: =IF(OR(CQ9="oui",CP9="oui",CO9="oui",CN9="oui"),1,0) -> 0 | BS9: 46005 | BT9: ABERCORN | BU9: 5 | BV9: non | BW9: non | BX9: non | BY9: non | BZ9: non | CA9: non | CB9: non | CC9: non | CD9: non | CE9: non | CF9: non | CG9: oui | CH9: oui | CI9: oui | CJ9: oui | CK9: non | CL9: non | CM9: non | CN9: non | CO9: non | CP9: non | CQ9: =IF(VLOOKUP(BS9,'Données par municipalité'!$B$6:$E$1113,4,FALSE)="","non","oui") -> non | CR9: 330.1897977 | CS9: 339.4282231 | CT9: 278.0088973 | CU9: 361.1506685 | DB9: =IF(VLOOKUP(BS9,'Données par municipalité'!$B$6:$F$1113,4,FALSE)="","",VLOOKUP(BS9,'Données par municipalité'!$B$6:$F$1113,4,FALSE)) ->  | DC9: Non disponible | DD9: 0 | DE9: 0 | DF9: 0 | DM9: =IFERROR(SUM(VLOOKUP($BS9,'État & Plan d''action'!$B$6:$DB$1113,18,FALSE),VLOOKUP($BS9,'État & Plan d''action'!$B$6:$DB$1113,20,FALSE),VLOOKUP($BS9,'État & Plan d''action'!$B$6:$DB$1113,28,FALSE),VLOOKUP($BS9,'État & Plan d''action'!$B$6:$DB$1113,30,FALSE),VLOOKUP($BS9,'État & Plan d''action'!$B$6:$DB$1113,38,FALSE),VLOOKUP($BS9,'État & Plan d''action'!$B$6:$DB$1113,40,FALSE),VLOOKUP($BS9,'État & Plan d''action'!$B$6:$DB$1113,48,FALSE),VLOOKUP($BS9,'État & Plan d''action'!$B$6:$DB$1113,50,FALSE),VLOOKUP($BS9,'État & Plan d''action'!$B$6:$DB$1113,58,FALSE),VLOOKUP($BS9,'État & Plan d''action'!$B$6:$DB$1113,60,FALSE),VLOOKUP($BS9,'État & Plan d''action'!$B$6:$DB$1113,68,FALSE),VLOOKUP($BS9,'État & Plan d''action'!$B$6:$DB$1113,70,FALSE),VLOOKUP($BS9,'État & Plan d''action'!$B$6:$DB$1113,78,FALSE),VLOOKUP($BS9,'État & Plan d''action'!$B$6:$DB$1113,80,FALSE),VLOOKUP($BS9,'État & Plan d''action'!$B$6:$DB$1113,88,FALSE),VLOOKUP($BS9,'État & Plan d''action'!$B$6:$DB$1113,90,FALSE),VLOOKUP($BS9,'État & Plan d''action'!$B$6:$DB$1113,98,FALSE),VLOOKUP($BS9,'État & Plan d''action'!$B$6:$DB$1113,100,FALSE))/(VLOOKUP($BS9,'Données par municipalité'!$B$4:$N$1113,13,FALSE)),"") ->  | DN9: =IFERROR(SUM(VLOOKUP($BS9,'État & Plan d''action'!$B$6:$DB$1113,19,FALSE),VLOOKUP($BS9,'État & Plan d''action'!$B$6:$DB$1113,21,FALSE),VLOOKUP($BS9,'État & Plan d''action'!$B$6:$DB$1113,29,FALSE),VLOOKUP($BS9,'État & Plan d''action'!$B$6:$DB$1113,31,FALSE),VLOOKUP($BS9,'État & Plan d''action'!$B$6:$DB$1113,39,FALSE),VLOOKUP($BS9,'État & Plan d''action'!$B$6:$DB$1113,41,FALSE),VLOOKUP($BS9,'État & Plan d''action'!$B$6:$DB$1113,49,FALSE),VLOOKUP($BS9,'État & Plan d''action'!$B$6:$DB$1113,51,FALSE),VLOOKUP($BS9,'État & Plan d''action'!$B$6:$DB$1113,59,FALSE),VLOOKUP($BS9,'État & Plan d''action'!$B$6:$DB$1113,61,FALSE),VLOOKUP($BS9,'État & Plan d''action'!$B$6:$DB$1113,69,FALSE),VLOOKUP($BS9,'État & Plan d''action'!$B$6:$DB$1113,71,FALSE),VLOOKUP($BS9,'État & Plan d''action'!$B$6:$DB$1113,79,FALSE),VLOOKUP($BS9,'État & Plan d''action'!$B$6:$DB$1113,81,FALSE),VLOOKUP($BS9,'État & Plan d''action'!$B$6:$DB$1113,89,FALSE),VLOOKUP($BS9,'État & Plan d''action'!$B$6:$DB$1113,91,FALSE),VLOOKUP($BS9,'État & Plan d''action'!$B$6:$DB$1113,99,FALSE),VLOOKUP($BS9,'État & Plan d''action'!$B$6:$DB$1113,101,FALSE))/(VLOOKUP($BS9,'Données par municipalité'!$B$4:$N$1113,13,FALSE)),"") ->  | DO9: Non disponible | DP9: 0 | DQ9: 0 | DR9: 2 | DS9: 0 | EE9: =IF(VLOOKUP($BS9,'État & Plan d''action'!$B$6:$DM$1113,108,FALSE)="","",VLOOKUP($BS9,'État & Plan d''action'!$B$6:$DM$1113,108,FALSE)) ->  | EF9: =IF(VLOOKUP($BS9,'État & Plan d''action'!$B$6:$DM$1113,109,FALSE)="","",VLOOKUP($BS9,'État & Plan d''action'!$B$6:$DM$1113,109,FALSE)) ->  | EG9: =IF(VLOOKUP($BS9,'État & Plan d''action'!$B$6:$DM$1113,110,FALSE)="","",VLOOKUP($BS9,'État & Plan d''action'!$B$6:$DM$1113,110,FALSE)) ->  | EJ9: 0 | EK9: =VLOOKUP($BS9,'Données par municipalité'!$B$6:$F$1113,5,FALSE) -> 0 | EO9: =IF(VLOOKUP(BS9,'Données par municipalité'!$B$6:$U$1113,7,FALSE)="","",VLOOKUP(BS9,'Données par municipalité'!$B$6:$U$1113,7,FALSE)) ->  | EV9: 0 | EW9: 0 | EX9: 0 | EY9: =VLOOKUP($BS9,'État & Plan d''action'!$B$6:$DK$1113,112,FALSE) -> 0 | EZ9: =VLOOKUP($BS9,'État & Plan d''action'!$B$6:$DK$1113,113,FALSE) -> 0 | FA9: =VLOOKUP($BS9,'État & Plan d''action'!$B$6:$DK$1113,114,FALSE) -> 0 | FL9: 0 | FM9: 0 | FN9: 0 | FO9: 0 | FP9: 0 | FQ9: =IFERROR(SUM(VLOOKUP($BS9,'État & Plan d''action'!$B$6:$DB$1113,16,FALSE),VLOOKUP($BS9,'État & Plan d''action'!$B$6:$DB$1113,26,FALSE),VLOOKUP($BS9,'État & Plan d''action'!$B$6:$DB$1113,36,FALSE),VLOOKUP($BS9,'État & Plan d''action'!$B$6:$DB$1113,46,FALSE),VLOOKUP($BS9,'État & Plan d''action'!$B$6:$DB$1113,56,FALSE),VLOOKUP($BS9,'État & Plan d''action'!$B$6:$DB$1113,66,FALSE),VLOOKUP($BS9,'État & Plan d''action'!$B$6:$DB$1113,76,FALSE),VLOOKUP($BS9,'État & Plan d''action'!$B$6:$DB$1113,86,FALSE),VLOOKUP($BS9,'État & Plan d''action'!$B$6:$DB$1113,96,FALSE)),"") -> 0 | FR9: =IFERROR(SUM(VLOOKUP($BS9,'État & Plan d''action'!$B$6:$DB$1113,18,FALSE),VLOOKUP($BS9,'État & Plan d''action'!$B$6:$DB$1113,28,FALSE),VLOOKUP($BS9,'État & Plan d''action'!$B$6:$DB$1113,38,FALSE),VLOOKUP($BS9,'État & Plan d''action'!$B$6:$DB$1113,48,FALSE),VLOOKUP($BS9,'État & Plan d''action'!$B$6:$DB$1113,58,FALSE),VLOOKUP($BS9,'État & Plan d''action'!$B$6:$DB$1113,68,FALSE),VLOOKUP($BS9,'État & Plan d''action'!$B$6:$DB$1113,78,FALSE),VLOOKUP($BS9,'État & Plan d''action'!$B$6:$DB$1113,88,FALSE),VLOOKUP($BS9,'État & Plan d''action'!$B$6:$DB$1113,98,FALSE)),"") -> 0 | FS9: =IFERROR(SUM(VLOOKUP($BS9,'État & Plan d''action'!$B$6:$DB$1113,20,FALSE),VLOOKUP($BS9,'État & Plan d''action'!$B$6:$DB$1113,30,FALSE),VLOOKUP($BS9,'État & Plan d''action'!$B$6:$DB$1113,40,FALSE),VLOOKUP($BS9,'État & Plan d''action'!$B$6:$DB$1113,50,FALSE),VLOOKUP($BS9,'État & Plan d''action'!$B$6:$DB$1113,60,FALSE),VLOOKUP($BS9,'État & Plan d''action'!$B$6:$DB$1113,70,FALSE),VLOOKUP($BS9,'État & Plan d''action'!$B$6:$DB$1113,80,FALSE),VLOOKUP($BS9,'État & Plan d''action'!$B$6:$DB$1113,90,FALSE),VLOOKUP($BS9,'État & Plan d''action'!$B$6:$DB$1113,100,FALSE)),"") -> 0 | FT9: =IFERROR(SUM(VLOOKUP($BS9,'État & Plan d''action'!$B$6:$DB$1113,22,FALSE),VLOOKUP($BS9,'État & Plan d''action'!$B$6:$DB$1113,32,FALSE),VLOOKUP($BS9,'État & Plan d''action'!$B$6:$DB$1113,42,FALSE),VLOOKUP($BS9,'État & Plan d''action'!$B$6:$DB$1113,52,FALSE),VLOOKUP($BS9,'État & Plan d''action'!$B$6:$DB$1113,62,FALSE),VLOOKUP($BS9,'État & Plan d''action'!$B$6:$DB$1113,72,FALSE),VLOOKUP($BS9,'État & Plan d''action'!$B$6:$DB$1113,82,FALSE),VLOOKUP($BS9,'État & Plan d''action'!$B$6:$DB$1113,92,FALSE),VLOOKUP($BS9,'État & Plan d''action'!$B$6:$DB$1113,102,FALSE)),"") -> 0 | FU9: =IFERROR(SUM(VLOOKUP($BS9,'État & Plan d''action'!$B$6:$DB$1113,24,FALSE),VLOOKUP($BS9,'État & Plan d''action'!$B$6:$DB$1113,34,FALSE),VLOOKUP($BS9,'État & Plan d''action'!$B$6:$DB$1113,44,FALSE),VLOOKUP($BS9,'État & Plan d''action'!$B$6:$DB$1113,54,FALSE),VLOOKUP($BS9,'État & Plan d''action'!$B$6:$DB$1113,64,FALSE),VLOOKUP($BS9,'État & Plan d''action'!$B$6:$DB$1113,74,FALSE),VLOOKUP($BS9,'État & Plan d''action'!$B$6:$DB$1113,84,FALSE),VLOOKUP($BS9,'État & Plan d''action'!$B$6:$DB$1113,94,FALSE),VLOOKUP($BS9,'État & Plan d''action'!$B$6:$DB$1113,104,FALSE)),"") -> 0 | FZ9: 359
I10: → Installation des compteurs d'eau | BQ10: =IF(OR(CI10="oui",CH10="oui",CG10="oui",CJ10="oui",CQ10="oui",CP10="oui",CO10="oui",CN10="oui",CM10="oui",CL10="oui",CK10="oui"),1,0) -> 1 | BR10: =IF(OR(CQ10="oui",CP10="oui",CO10="oui",CN10="oui"),1,0) -> 1 | BS10: 48028 | BT10: ACTON VALE | BU10: 16 | BV10: non | BW10: non | BX10: non | BY10: non | BZ10: non | CA10: non | CB10: non | CC10: non | CD10: non | CE10: non | CF10: non | CG10: oui | CH10: oui | CI10: oui | CJ10: oui | CK10: oui | CL10: oui | CM10: oui | CN10: oui | CO10: oui | CP10: oui | CQ10: =IF(VLOOKUP(BS10,'Données par municipalité'!$B$6:$E$1113,4,FALSE)="","non","oui") -> oui | CR10: 897.2204945 | CS10: 776.1723779 | CT10: 725.2448445 | CU10: 806.2090013 | CV10: 446.7434453 | CW10: 448.9974914 | CX10: 513.7650781 | CY10: 505 | CZ10: 458 | DA10: 430 | DB10: =IF(VLOOKUP(BS10,'Données par municipalité'!$B$6:$F$1113,4,FALSE)="","",VLOOKUP(BS10,'Données par municipalité'!$B$6:$F$1113,4,FALSE)) -> 456 | DC10: Non disponible | DD10: 0 | DE10: 0 | DF10: 0 | DG10: 0 | DH10: 0.05 | DI10: 0.05 | DJ10: 0.099909991 | DK10: 1 | DL10: 0 | DM10: =IFERROR(SUM(VLOOKUP($BS10,'État & Plan d''action'!$B$6:$DB$1113,18,FALSE),VLOOKUP($BS10,'État & Plan d''action'!$B$6:$DB$1113,20,FALSE),VLOOKUP($BS10,'État & Plan d''action'!$B$6:$DB$1113,28,FALSE),VLOOKUP($BS10,'État & Plan d''action'!$B$6:$DB$1113,30,FALSE),VLOOKUP($BS10,'État & Plan d''action'!$B$6:$DB$1113,38,FALSE),VLOOKUP($BS10,'État & Plan d''action'!$B$6:$DB$1113,40,FALSE),VLOOKUP($BS10,'État & Plan d''action'!$B$6:$DB$1113,48,FALSE),VLOOKUP($BS10,'État & Plan d''action'!$B$6:$DB$1113,50,FALSE),VLOOKUP($BS10,'État & Plan d''action'!$B$6:$DB$1113,58,FALSE),VLOOKUP($BS10,'État & Plan d''action'!$B$6:$DB$1113,60,FALSE),VLOOKUP($BS10,'État & Plan d''action'!$B$6:$DB$1113,68,FALSE),VLOOKUP($BS10,'État & Plan d''action'!$B$6:$DB$1113,70,FALSE),VLOOKUP($BS10,'État & Plan d''action'!$B$6:$DB$1113,78,FALSE),VLOOKUP($BS10,'État & Plan d''action'!$B$6:$DB$1113,80,FALSE),VLOOKUP($BS10,'État & Plan d''action'!$B$6:$DB$1113,88,FALSE),VLOOKUP($BS10,'État & Plan d''action'!$B$6:$DB$1113,90,FALSE),VLOOKUP($BS10,'État & Plan d''action'!$B$6:$DB$1113,98,FALSE),VLOOKUP($BS10,'État & Plan d''action'!$B$6:$DB$1113,100,FALSE))/(VLOOKUP($BS10,'Données par municipalité'!$B$4:$N$1113,13,FALSE)),"") -> 1 | DN10: =IFERROR(SUM(VLOOKUP($BS10,'État & Plan d''action'!$B$6:$DB$1113,19,FALSE),VLOOKUP($BS10,'État & Plan d''action'!$B$6:$DB$1113,21,FALSE),VLOOKUP($BS10,'État & Plan d''action'!$B$6:$DB$1113,29,FALSE),VLOOKUP($BS10,'État & Plan d''action'!$B$6:$DB$1113,31,FALSE),VLOOKUP($BS10,'État & Plan d''action'!$B$6:$DB$1113,39,FALSE),VLOOKUP($BS10,'État & Plan d''action'!$B$6:$DB$1113,41,FALSE),VLOOKUP($BS10,'État & Plan d''action'!$B$6:$DB$1113,49,FALSE),VLOOKUP($BS10,'État & Plan d''action'!$B$6:$DB$1113,51,FALSE),VLOOKUP($BS10,'État & Plan d''action'!$B$6:$DB$1113,59,FALSE),VLOOKUP($BS10,'État & Plan d''action'!$B$6:$DB$1113,61,FALSE),VLOOKUP($BS10,'État & Plan d''action'!$B$6:$DB$1113,69,FALSE),VLOOKUP($BS10,'État & Plan d''action'!$B$6:$DB$1113,71,FALSE),VLOOKUP($BS10,'État & Plan d''action'!$B$6:$DB$1113,79,FALSE),VLOOKUP($BS10,'État & Plan d''action'!$B$6:$DB$1113,81,FALSE),VLOOKUP($BS10,'État & Plan d''action'!$B$6:$DB$1113,89,FALSE),VLOOKUP($BS10,'État & Plan d''action'!$B$6:$DB$1113,91,FALSE),VLOOKUP($BS10,'État & Plan d''action'!$B$6:$DB$1113,99,FALSE),VLOOKUP($BS10,'État & Plan d''action'!$B$6:$DB$1113,101,FALSE))/(VLOOKUP($BS10,'Données par municipalité'!$B$4:$N$1113,13,FALSE)),"") -> 1 | DO10: Non disponible | DP10: 5 | DQ10: 8 | DR10: 12 | DS10: 11 | DT10: 7 | DU10: 9 | DV10: 4 | DW10: 10 | DX10: 0 | DY10: 1 | DZ10: 2 | EA10: 1 | EB10: 0 | EC10: 2 | ED10: 1 | EE10: =IF(VLOOKUP($BS10,'État & Plan d''action'!$B$6:$DM$1113,108,FALSE)="","",VLOOKUP($BS10,'État & Plan d''action'!$B$6:$DM$1113,108,FALSE)) -> 2 | EF10: =IF(VLOOKUP($BS10,'État & Plan d''action'!$B$6:$DM$1113,109,FALSE)="","",VLOOKUP($BS10,'État & Plan d''action'!$B$6:$DM$1113,109,FALSE)) -> 2 | EG10: =IF(VLOOKUP($BS10,'État & Plan d''action'!$B$6:$DM$1113,110,FALSE)="","",VLOOKUP($BS10,'État & Plan d''action'!$B$6:$DM$1113,110,FALSE)) -> 0 | EH10: 237 | EI10: 233 | EJ10: 155 | EK10: =VLOOKUP($BS10,'Données par municipalité'!$B$6:$F$1113,5,FALSE) -> 151 | EL10: 1.865414102 | EM10: 1.798818675 | EN10: 2.350779186 | EO10: =IF(VLOOKUP(BS10,'Données par municipalité'!$B$6:$U$1113,7,FALSE)="","",VLOOKUP(BS10,'Données par municipalité'!$B$6:$U$1113,7,FALSE)) -> 2.61039683 | EP10: 1 | EQ10: 1 | ER10: 0 | ES10: 1 | ET10: 1 | EU10: 3 | EV10: S.O. | EW10: 1 | EX10: 2 | EY10: =VLOOKUP($BS10,'État & Plan d''action'!$B$6:$DK$1113,112,FALSE) -> 1 | EZ10: =VLOOKUP($BS10,'État & Plan d''action'!$B$6:$DK$1113,113,FALSE) -> 1 | FA10: =VLOOKUP($BS10,'État & Plan d''action'!$B$6:$DK$1113,114,FALSE) ->  | FB10: 0 | FC10: 4.44 | FD10: 0 | FE10: 0 | FF10: 0 | FG10: 0 | FH10: 4.44 | FI10: 0 | FJ10: 0 | FK10: 0 | FL10: 0 | FM10: 0 | FN10: 0 | FO10: 0 | FP10: 0 | FQ10: =IFERROR(SUM(VLOOKUP($BS10,'État & Plan d''action'!$B$6:$DB$1113,16,FALSE),VLOOKUP($BS10,'État & Plan d''action'!$B$6:$DB$1113,26,FALSE),VLOOKUP($BS10,'État & Plan d''action'!$B$6:$DB$1113,36,FALSE),VLOOKUP($BS10,'État & Plan d''action'!$B$6:$DB$1113,46,FALSE),VLOOKUP($BS10,'État & Plan d''action'!$B$6:$DB$1113,56,FALSE),VLOOKUP($BS10,'État & Plan d''action'!$B$6:$DB$1113,66,FALSE),VLOOKUP($BS10,'État & Plan d''action'!$B$6:$DB$1113,76,FALSE),VLOOKUP($BS10,'État & Plan d''action'!$B$6:$DB$1113,86,FALSE),VLOOKUP($BS10,'État & Plan d''action'!$B$6:$DB$1113,96,FALSE)),"") -> 0 | FR10: =IFERROR(SUM(VLOOKUP($BS10,'État & Plan d''action'!$B$6:$DB$1113,18,FALSE),VLOOKUP($BS10,'État & Plan d''action'!$B$6:$DB$1113,28,FALSE),VLOOKUP($BS10,'État & Plan d''action'!$B$6:$DB$1113,38,FALSE),VLOOKUP($BS10,'État & Plan d''action'!$B$6:$DB$1113,48,FALSE),VLOOKUP($BS10,'État & Plan d''action'!$B$6:$DB$1113,58,FALSE),VLOOKUP($BS10,'État & Plan d''action'!$B$6:$DB$1113,68,FALSE),VLOOKUP($BS10,'État & Plan d''action'!$B$6:$DB$1113,78,FALSE),VLOOKUP($BS10,'État & Plan d''action'!$B$6:$DB$1113,88,FALSE),VLOOKUP($BS10,'État & Plan d''action'!$B$6:$DB$1113,98,FALSE)),"") -> 44.44 | FS10: =IFERROR(SUM(VLOOKUP($BS10,'État & Plan d''action'!$B$6:$DB$1113,20,FALSE),VLOOKUP($BS10,'État & Plan d''action'!$B$6:$DB$1113,30,FALSE),VLOOKUP($BS10,'État & Plan d''action'!$B$6:$DB$1113,40,FALSE),VLOOKUP($BS10,'État & Plan d''action'!$B$6:$DB$1113,50,FALSE),VLOOKUP($BS10,'État & Plan d''action'!$B$6:$DB$1113,60,FALSE),VLOOKUP($BS10,'État & Plan d''action'!$B$6:$DB$1113,70,FALSE),VLOOKUP($BS10,'État & Plan d''action'!$B$6:$DB$1113,80,FALSE),VLOOKUP($BS10,'État & Plan d''action'!$B$6:$DB$1113,90,FALSE),VLOOKUP($BS10,'État & Plan d''action'!$B$6:$DB$1113,100,FALSE)),"") -> 0 | FT10: =IFERROR(SUM(VLOOKUP($BS10,'État & Plan d''action'!$B$6:$DB$1113,22,FALSE),VLOOKUP($BS10,'État & Plan d''action'!$B$6:$DB$1113,32,FALSE),VLOOKUP($BS10,'État & Plan d''action'!$B$6:$DB$1113,42,FALSE),VLOOKUP($BS10,'État & Plan d''action'!$B$6:$DB$1113,52,FALSE),VLOOKUP($BS10,'État & Plan d''action'!$B$6:$DB$1113,62,FALSE),VLOOKUP($BS10,'État & Plan d''action'!$B$6:$DB$1113,72,FALSE),VLOOKUP($BS10,'État & Plan d''action'!$B$6:$DB$1113,82,FALSE),VLOOKUP($BS10,'État & Plan d''action'!$B$6:$DB$1113,92,FALSE),VLOOKUP($BS10,'État & Plan d''action'!$B$6:$DB$1113,102,FALSE)),"") -> 0 | FU10: =IFERROR(SUM(VLOOKUP($BS10,'État & Plan d''action'!$B$6:$DB$1113,24,FALSE),VLOOKUP($BS10,'État & Plan d''action'!$B$6:$DB$1113,34,FALSE),VLOOKUP($BS10,'État & Plan d''action'!$B$6:$DB$1113,44,FALSE),VLOOKUP($BS10,'État & Plan d''action'!$B$6:$DB$1113,54,FALSE),VLOOKUP($BS10,'État & Plan d''action'!$B$6:$DB$1113,64,FALSE),VLOOKUP($BS10,'État & Plan d''action'!$B$6:$DB$1113,74,FALSE),VLOOKUP($BS10,'État & Plan d''action'!$B$6:$DB$1113,84,FALSE),VLOOKUP($BS10,'État & Plan d''action'!$B$6:$DB$1113,94,FALSE),VLOOKUP($BS10,'État & Plan d''action'!$B$6:$DB$1113,104,FALSE)),"") -> 0 | FV10: 57 | FW10: 57.84210526 | FX10: 58.07017544 | FY10: 67.87719298 | FZ10: 7790
I11: → Résultat de validité des données | BQ11: 1 | BR11: 1 | BS11: 31056 | BT11: ADSTOCK | BU11: 12 | BV11: non | BW11: non | BX11: non | BY11: non | BZ11: non | CA11: non | CB11: non | CC11: non | CD11: non | CE11: non | CF11: non | CG11: oui | CH11: oui | CI11: oui | CJ11: oui | CK11: oui | CL11: oui | CM11: oui | CN11: oui | CO11: oui | CP11: oui | CQ11: =IF(VLOOKUP(BS11,'Données par municipalité'!$B$6:$E$1113,4,FALSE)="","non","oui") -> oui | CR11: 844.6409854 | CS11: 764.2244209 | CT11: 562.8779567 | CU11: 384.5338299 | CV11: 338.5359951 | CW11: 340.6543113 | CX11: 288.6805926 | CY11: 313 | CZ11: 260 | DA11: 217 | DB11: =IF(VLOOKUP(BS11,'Données par municipalité'!$B$6:$F$1113,4,FALSE)="","",VLOOKUP(BS11,'Données par municipalité'!$B$6:$F$1113,4,FALSE)) -> 202 | DC11: Non disponible | DD11: 0.1 | DE11: 0.05 | DF11: 0.1 | DG11: 0.25 | DH11: 0 | DI11: 0 | DJ11: 0 | DK11: 0 | DL11: 0 | DM11: =IFERROR(SUM(VLOOKUP($BS11,'État & Plan d''action'!$B$6:$DB$1113,18,FALSE),VLOOKUP($BS11,'État & Plan d''action'!$B$6:$DB$1113,20,FALSE),VLOOKUP($BS11,'État & Plan d''action'!$B$6:$DB$1113,28,FALSE),VLOOKUP($BS11,'État & Plan d''action'!$B$6:$DB$1113,30,FALSE),VLOOKUP($BS11,'État & Plan d''action'!$B$6:$DB$1113,38,FALSE),VLOOKUP($BS11,'État & Plan d''action'!$B$6:$DB$1113,40,FALSE),VLOOKUP($BS11,'État & Plan d''action'!$B$6:$DB$1113,48,FALSE),VLOOKUP($BS11,'État & Plan d''action'!$B$6:$DB$1113,50,FALSE),VLOOKUP($BS11,'État & Plan d''action'!$B$6:$DB$1113,58,FALSE),VLOOKUP($BS11,'État & Plan d''action'!$B$6:$DB$1113,60,FALSE),VLOOKUP($BS11,'État & Plan d''action'!$B$6:$DB$1113,68,FALSE),VLOOKUP($BS11,'État & Plan d''action'!$B$6:$DB$1113,70,FALSE),VLOOKUP($BS11,'État & Plan d''action'!$B$6:$DB$1113,78,FALSE),VLOOKUP($BS11,'État & Plan d''action'!$B$6:$DB$1113,80,FALSE),VLOOKUP($BS11,'État & Plan d''action'!$B$6:$DB$1113,88,FALSE),VLOOKUP($BS11,'État & Plan d''action'!$B$6:$DB$1113,90,FALSE),VLOOKUP($BS11,'État & Plan d''action'!$B$6:$DB$1113,98,FALSE),VLOOKUP($BS11,'État & Plan d''action'!$B$6:$DB$1113,100,FALSE))/(VLOOKUP($BS11,'Données par municipalité'!$B$4:$N$1113,13,FALSE)),"") -> 0 | DN11: =IFERROR(SUM(VLOOKUP($BS11,'État & Plan d''action'!$B$6:$DB$1113,19,FALSE),VLOOKUP($BS11,'État & Plan d''action'!$B$6:$DB$1113,21,FALSE),VLOOKUP($BS11,'État & Plan d''action'!$B$6:$DB$1113,29,FALSE),VLOOKUP($BS11,'État & Plan d''action'!$B$6:$DB$1113,31,FALSE),VLOOKUP($BS11,'État & Plan d''action'!$B$6:$DB$1113,39,FALSE),VLOOKUP($BS11,'État & Plan d''action'!$B$6:$DB$1113,41,FALSE),VLOOKUP($BS11,'État & Plan d''action'!$B$6:$DB$1113,49,FALSE),VLOOKUP($BS11,'État & Plan d''action'!$B$6:$DB$1113,51,FALSE),VLOOKUP($BS11,'État & Plan d''action'!$B$6:$DB$1113,59,FALSE),VLOOKUP($BS11,'État & Plan d''action'!$B$6:$DB$1113,61,FALSE),VLOOKUP($BS11,'État & Plan d''action'!$B$6:$DB$1113,69,FALSE),VLOOKUP($BS11,'État & Plan d''action'!$B$6:$DB$1113,71,FALSE),VLOOKUP($BS11,'État & Plan d''action'!$B$6:$DB$1113,79,FALSE),VLOOKUP($BS11,'État & Plan d''action'!$B$6:$DB$1113,81,FALSE),VLOOKUP($BS11,'État & Plan d''action'!$B$6:$DB$1113,89,FALSE),VLOOKUP($BS11,'État & Plan d''action'!$B$6:$DB$1113,91,FALSE),VLOOKUP($BS11,'État & Plan d''action'!$B$6:$DB$1113,99,FALSE),VLOOKUP($BS11,'État & Plan d''action'!$B$6:$DB$1113,101,FALSE))/(VLOOKUP($BS11,'Données par municipalité'!$B$4:$N$1113,13,FALSE)),"") -> 0 | DO11: Non disponible | DP11: 3 | DQ11: 4 | DR11: 4 | DS11: 8 | DT11: 3 | DU11: 2 | DV11: 0 | DW11: 0 | DX11: 0 | DY11: 0 | DZ11: 0 | EA11: 0 | EB11: 0 | EC11: 0 | ED11: 0 | EE11: =IF(VLOOKUP($BS11,'État & Plan d''action'!$B$6:$DM$1113,108,FALSE)="","",VLOOKUP($BS11,'État & Plan d''action'!$B$6:$DM$1113,108,FALSE)) -> 0 | EF11: =IF(VLOOKUP($BS11,'État & Plan d''action'!$B$6:$DM$1113,109,FALSE)="","",VLOOKUP($BS11,'État & Plan d''action'!$B$6:$DM$1113,109,FALSE)) -> 0 | EG11: =IF(VLOOKUP($BS11,'État & Plan d''action'!$B$6:$DM$1113,110,FALSE)="","",VLOOKUP($BS11,'État & Plan d''action'!$B$6:$DM$1113,110,FALSE)) -> 0 | EH11: 169 | EI11: 166 | EJ11: 132 | EK11: =VLOOKUP($BS11,'Données par municipalité'!$B$6:$F$1113,5,FALSE) -> 127 | EL11: 0.5229920083 | EM11: 0.2855159097 | EN11: 0.8998235908 | EO11: =IF(VLOOKUP(BS11,'Données par municipalité'!$B$6:$U$1113,7,FALSE)="","",VLOOKUP(BS11,'Données par municipalité'!$B$6:$U$1113,7,FALSE)) -> 0.7723186234 | EP11: 0 | EQ11: 0 | ER11: 0 | ES11: 0 | ET11: 0 | EU11: 0 | EV11: S.O. | EY11: =VLOOKUP($BS11,'État & Plan d''action'!$B$6:$DK$1113,112,FALSE) -> S.O. | EZ11: =VLOOKUP($BS11,'État & Plan d''action'!$B$6:$DK$1113,113,FALSE) ->  | FA11: =VLOOKUP($BS11,'État & Plan d''action'!$B$6:$DK$1113,114,FALSE) ->  | FB11: 0 | FC11: 0 | FD11: 0 | FE11: 0 | FF11: 0 | FG11: 0 | FH11: 0 | FI11: 0 | FJ11: 0 | FK11: 0 | FL11: 0 | FM11: 0 | FN11: 0 | FO11: 0 | FP11: 0 | FQ11: =IFERROR(SUM(VLOOKUP($BS11,'État & Plan d''action'!$B$6:$DB$1113,16,FALSE),VLOOKUP($BS11,'État & Plan d''action'!$B$6:$DB$1113,26,FALSE),VLOOKUP($BS11,'État & Plan d''action'!$B$6:$DB$1113,36,FALSE),VLOOKUP($BS11,'État & Plan d''action'!$B$6:$DB$1113,46,FALSE),VLOOKUP($BS11,'État & Plan d''action'!$B$6:$DB$1113,56,FALSE),VLOOKUP($BS11,'État & Plan d''action'!$B$6:$DB$1113,66,FALSE),VLOOKUP($BS11,'État & Plan d''action'!$B$6:$DB$1113,76,FALSE),VLOOKUP($BS11,'État & Plan d''action'!$B$6:$DB$1113,86,FALSE),VLOOKUP($BS11,'État & Plan d''action'!$B$6:$DB$1113,96,FALSE)),"") -> 0 | FR11: =IFERROR(SUM(VLOOKUP($BS11,'État & Plan d''action'!$B$6:$DB$1113,18,FALSE),VLOOKUP($BS11,'État & Plan d''action'!$B$6:$DB$1113,28,FALSE),VLOOKUP($BS11,'État & Plan d''action'!$B$6:$DB$1113,38,FALSE),VLOOKUP($BS11,'État & Plan d''action'!$B$6:$DB$1113,48,FALSE),VLOOKUP($BS11,'État & Plan d''action'!$B$6:$DB$1113,58,FALSE),VLOOKUP($BS11,'État & Plan d''action'!$B$6:$DB$1113,68,FALSE),VLOOKUP($BS11,'État & Plan d''action'!$B$6:$DB$1113,78,FALSE),VLOOKUP($BS11,'État & Plan d''action'!$B$6:$DB$1113,88,FALSE),VLOOKUP($BS11,'État & Plan d''action'!$B$6:$DB$1113,98,FALSE)),"") -> 0 | FS11: =IFERROR(SUM(VLOOKUP($BS11,'État & Plan d''action'!$B$6:$DB$1113,20,FALSE),VLOOKUP($BS11,'État & Plan d''action'!$B$6:$DB$1113,30,FALSE),VLOOKUP($BS11,'État & Plan d''action'!$B$6:$DB$1113,40,FALSE),VLOOKUP($BS11,'État & Plan d''action'!$B$6:$DB$1113,50,FALSE),VLOOKUP($BS11,'État & Plan d''action'!$B$6:$DB$1113,60,FALSE),VLOOKUP($BS11,'État & Plan d''action'!$B$6:$DB$1113,70,FALSE),VLOOKUP($BS11,'État & Plan d''action'!$B$6:$DB$1113,80,FALSE),VLOOKUP($BS11,'État & Plan d''action'!$B$6:$DB$1113,90,FALSE),VLOOKUP($BS11,'État & Plan d''action'!$B$6:$DB$1113,100,FALSE)),"") -> 0 | FT11: =IFERROR(SUM(VLOOKUP($BS11,'État & Plan d''action'!$B$6:$DB$1113,22,FALSE),VLOOKUP($BS11,'État & Plan d''action'!$B$6:$DB$1113,32,FALSE),VLOOKUP($BS11,'État & Plan d''action'!$B$6:$DB$1113,42,FALSE),VLOOKUP($BS11,'État & Plan d''action'!$B$6:$DB$1113,52,FALSE),VLOOKUP($BS11,'État & Plan d''action'!$B$6:$DB$1113,62,FALSE),VLOOKUP($BS11,'État & Plan d''action'!$B$6:$DB$1113,72,FALSE),VLOOKUP($BS11,'État & Plan d''action'!$B$6:$DB$1113,82,FALSE),VLOOKUP($BS11,'État & Plan d''action'!$B$6:$DB$1113,92,FALSE),VLOOKUP($BS11,'État & Plan d''action'!$B$6:$DB$1113,102,FALSE)),"") -> 0 | FU11: =IFERROR(SUM(VLOOKUP($BS11,'État & Plan d''action'!$B$6:$DB$1113,24,FALSE),VLOOKUP($BS11,'État & Plan d''action'!$B$6:$DB$1113,34,FALSE),VLOOKUP($BS11,'État & Plan d''action'!$B$6:$DB$1113,44,FALSE),VLOOKUP($BS11,'État & Plan d''action'!$B$6:$DB$1113,54,FALSE),VLOOKUP($BS11,'État & Plan d''action'!$B$6:$DB$1113,64,FALSE),VLOOKUP($BS11,'État & Plan d''action'!$B$6:$DB$1113,74,FALSE),VLOOKUP($BS11,'État & Plan d''action'!$B$6:$DB$1113,84,FALSE),VLOOKUP($BS11,'État & Plan d''action'!$B$6:$DB$1113,94,FALSE),VLOOKUP($BS11,'État & Plan d''action'!$B$6:$DB$1113,104,FALSE)),"") -> 0 | FV11: 69 | FW11: 70.88235294 | FX11: 70.88235294 | FY11: 70.88235294 | FZ11: 2869
B12: QUANTITÉ D'EAU DISTRIBUÉE | I12: → Potentiel d'économie d'eau potable | BQ12: 1 | BR12: 1 | BS12: 98030 | BT12: AGUANISH | BU12: 9 | BV12: non | BW12: non | BX12: non | BY12: non | BZ12: non | CA12: non | CB12: non | CC12: non | CD12: non | CE12: non | CF12: non | CG12: oui | CH12: oui | CI12: non | CJ12: oui | CK12: oui | CL12: oui | CM12: oui | CN12: oui | CO12: oui | CP12: oui | CQ12: =IF(VLOOKUP(BS12,'Données par municipalité'!$B$6:$E$1113,4,FALSE)="","non","oui") -> oui | CR12: 241.616418 | CS12: 241.286792 | CU12: 208.8802799 | CV12: 217.1948415 | CW12: 211.9987925 | CX12: 191.994079 | CY12: 201 | CZ12: 209 | DA12: 229 | DB12: =IF(VLOOKUP(BS12,'Données par municipalité'!$B$6:$F$1113,4,FALSE)="","",VLOOKUP(BS12,'Données par municipalité'!$B$6:$F$1113,4,FALSE)) -> 200 | DC12: Non disponible | DD12: 0 | DF12: 0 | DG12: 0 | DH12: 0 | DI12: 0 | DJ12: 0 | DK12: 0 | DL12: 0 | DM12: =IFERROR(SUM(VLOOKUP($BS12,'État & Plan d''action'!$B$6:$DB$1113,18,FALSE),VLOOKUP($BS12,'État & Plan d''action'!$B$6:$DB$1113,20,FALSE),VLOOKUP($BS12,'État & Plan d''action'!$B$6:$DB$1113,28,FALSE),VLOOKUP($BS12,'État & Plan d''action'!$B$6:$DB$1113,30,FALSE),VLOOKUP($BS12,'État & Plan d''action'!$B$6:$DB$1113,38,FALSE),VLOOKUP($BS12,'État & Plan d''action'!$B$6:$DB$1113,40,FALSE),VLOOKUP($BS12,'État & Plan d''action'!$B$6:$DB$1113,48,FALSE),VLOOKUP($BS12,'État & Plan d''action'!$B$6:$DB$1113,50,FALSE),VLOOKUP($BS12,'État & Plan d''action'!$B$6:$DB$1113,58,FALSE),VLOOKUP($BS12,'État & Plan d''action'!$B$6:$DB$1113,60,FALSE),VLOOKUP($BS12,'État & Plan d''action'!$B$6:$DB$1113,68,FALSE),VLOOKUP($BS12,'État & Plan d''action'!$B$6:$DB$1113,70,FALSE),VLOOKUP($BS12,'État & Plan d''action'!$B$6:$DB$1113,78,FALSE),VLOOKUP($BS12,'État & Plan d''action'!$B$6:$DB$1113,80,FALSE),VLOOKUP($BS12,'État & Plan d''action'!$B$6:$DB$1113,88,FALSE),VLOOKUP($BS12,'État & Plan d''action'!$B$6:$DB$1113,90,FALSE),VLOOKUP($BS12,'État & Plan d''action'!$B$6:$DB$1113,98,FALSE),VLOOKUP($BS12,'État & Plan d''action'!$B$6:$DB$1113,100,FALSE))/(VLOOKUP($BS12,'Données par municipalité'!$B$4:$N$1113,13,FALSE)),"") -> 0 | DN12: =IFERROR(SUM(VLOOKUP($BS12,'État & Plan d''action'!$B$6:$DB$1113,19,FALSE),VLOOKUP($BS12,'État & Plan d''action'!$B$6:$DB$1113,21,FALSE),VLOOKUP($BS12,'État & Plan d''action'!$B$6:$DB$1113,29,FALSE),VLOOKUP($BS12,'État & Plan d''action'!$B$6:$DB$1113,31,FALSE),VLOOKUP($BS12,'État & Plan d''action'!$B$6:$DB$1113,39,FALSE),VLOOKUP($BS12,'État & Plan d''action'!$B$6:$DB$1113,41,FALSE),VLOOKUP($BS12,'État & Plan d''action'!$B$6:$DB$1113,49,FALSE),VLOOKUP($BS12,'État & Plan d''action'!$B$6:$DB$1113,51,FALSE),VLOOKUP($BS12,'État & Plan d''action'!$B$6:$DB$1113,59,FALSE),VLOOKUP($BS12,'État & Plan d''action'!$B$6:$DB$1113,61,FALSE),VLOOKUP($BS12,'État & Plan d''action'!$B$6:$DB$1113,69,FALSE),VLOOKUP($BS12,'État & Plan d''action'!$B$6:$DB$1113,71,FALSE),VLOOKUP($BS12,'État & Plan d''action'!$B$6:$DB$1113,79,FALSE),VLOOKUP($BS12,'État & Plan d''action'!$B$6:$DB$1113,81,FALSE),VLOOKUP($BS12,'État & Plan d''action'!$B$6:$DB$1113,89,FALSE),VLOOKUP($BS12,'État & Plan d''action'!$B$6:$DB$1113,91,FALSE),VLOOKUP($BS12,'État & Plan d''action'!$B$6:$DB$1113,99,FALSE),VLOOKUP($BS12,'État & Plan d''action'!$B$6:$DB$1113,101,FALSE))/(VLOOKUP($BS12,'Données par municipalité'!$B$4:$N$1113,13,FALSE)),"") -> 0 | DO12: Non disponible | DR12: 0 | DS12: 0 | DT12: 1 | DU12: 2 | DV12: 0 | DW12: 0 | DX12: 0 | DY12: 0 | DZ12: 0 | EA12: 0 | EB12: 0 | EC12: 0 | ED12: 0 | EE12: =IF(VLOOKUP($BS12,'État & Plan d''action'!$B$6:$DM$1113,108,FALSE)="","",VLOOKUP($BS12,'État & Plan d''action'!$B$6:$DM$1113,108,FALSE)) -> 0 | EF12: =IF(VLOOKUP($BS12,'État & Plan d''action'!$B$6:$DM$1113,109,FALSE)="","",VLOOKUP($BS12,'État & Plan d''action'!$B$6:$DM$1113,109,FALSE)) -> 0 | EG12: =IF(VLOOKUP($BS12,'État & Plan d''action'!$B$6:$DM$1113,110,FALSE)="","",VLOOKUP($BS12,'État & Plan d''action'!$B$6:$DM$1113,110,FALSE)) -> 0 | EH12: 129 | EI12: 159 | EJ12: 178 | EK12: =VLOOKUP($BS12,'Données par municipalité'!$B$6:$F$1113,5,FALSE) -> 151 | EL12: 0.4793967845 | EM12: 0.3897914759 | EN12: 0.3680803931 | EO12: =IF(VLOOKUP(BS12,'Données par municipalité'!$B$6:$U$1113,7,FALSE)="","",VLOOKUP(BS12,'Données par municipalité'!$B$6:$U$1113,7,FALSE)) -> 0.3670573973 | EP12: 0 | EQ12: 0 | ER12: 0 | ES12: 0 | ET12: 0 | EU12: 0 | EV12: S.O. | EY12: =VLOOKUP($BS12,'État & Plan d''action'!$B$6:$DK$1113,112,FALSE) -> S.O. | EZ12: =VLOOKUP($BS12,'État & Plan d''action'!$B$6:$DK$1113,113,FALSE) ->  | FA12: =VLOOKUP($BS12,'État & Plan d''action'!$B$6:$DK$1113,114,FALSE) ->  | FB12: 0 | FC12: 0 | FD12: 0 | FE12: 0 | FF12: 0 | FG12: 0 | FH12: 0 | FI12: 0 | FJ12: 0 | FK12: 0 | FL12: 10.735 | FM12: 0 | FN12: 0 | FO12: 0 | FP12: 0 | FQ12: =IFERROR(SUM(VLOOKUP($BS12,'État & Plan d''action'!$B$6:$DB$1113,16,FALSE),VLOOKUP($BS12,'État & Plan d''action'!$B$6:$DB$1113,26,FALSE),VLOOKUP($BS12,'État & Plan d''action'!$B$6:$DB$1113,36,FALSE),VLOOKUP($BS12,'État & Plan d''action'!$B$6:$DB$1113,46,FALSE),VLOOKUP($BS12,'État & Plan d''action'!$B$6:$DB$1113,56,FALSE),VLOOKUP($BS12,'État & Plan d''action'!$B$6:$DB$1113,66,FALSE),VLOOKUP($BS12,'État & Plan d''action'!$B$6:$DB$1113,76,FALSE),VLOOKUP($BS12,'État & Plan d''action'!$B$6:$DB$1113,86,FALSE),VLOOKUP($BS12,'État & Plan d''action'!$B$6:$DB$1113,96,FALSE)),"") -> 0 | FR12: =IFERROR(SUM(VLOOKUP($BS12,'État & Plan d''action'!$B$6:$DB$1113,18,FALSE),VLOOKUP($BS12,'État & Plan d''action'!$B$6:$DB$1113,28,FALSE),VLOOKUP($BS12,'État & Plan d''action'!$B$6:$DB$1113,38,FALSE),VLOOKUP($BS12,'État & Plan d''action'!$B$6:$DB$1113,48,FALSE),VLOOKUP($BS12,'État & Plan d''action'!$B$6:$DB$1113,58,FALSE),VLOOKUP($BS12,'État & Plan d''action'!$B$6:$DB$1113,68,FALSE),VLOOKUP($BS12,'État & Plan d''action'!$B$6:$DB$1113,78,FALSE),VLOOKUP($BS12,'État & Plan d''action'!$B$6:$DB$1113,88,FALSE),VLOOKUP($BS12,'État & Plan d''action'!$B$6:$DB$1113,98,FALSE)),"") -> 0 | FS12: =IFERROR(SUM(VLOOKUP($BS12,'État & Plan d''action'!$B$6:$DB$1113,20,FALSE),VLOOKUP($BS12,'État & Plan d''action'!$B$6:$DB$1113,30,FALSE),VLOOKUP($BS12,'État & Plan d''action'!$B$6:$DB$1113,40,FALSE),VLOOKUP($BS12,'État & Plan d''action'!$B$6:$DB$1113,50,FALSE),VLOOKUP($BS12,'État & Plan d''action'!$B$6:$DB$1113,60,FALSE),VLOOKUP($BS12,'État & Plan d''action'!$B$6:$DB$1113,70,FALSE),VLOOKUP($BS12,'État & Plan d''action'!$B$6:$DB$1113,80,FALSE),VLOOKUP($BS12,'État & Plan d''action'!$B$6:$DB$1113,90,FALSE),VLOOKUP($BS12,'État & Plan d''action'!$B$6:$DB$1113,100,FALSE)),"") -> 0 | FT12: =IFERROR(SUM(VLOOKUP($BS12,'État & Plan d''action'!$B$6:$DB$1113,22,FALSE),VLOOKUP($BS12,'État & Plan d''action'!$B$6:$DB$1113,32,FALSE),VLOOKUP($BS12,'État & Plan d''action'!$B$6:$DB$1113,42,FALSE),VLOOKUP($BS12,'État & Plan d''action'!$B$6:$DB$1113,52,FALSE),VLOOKUP($BS12,'État & Plan d''action'!$B$6:$DB$1113,62,FALSE),VLOOKUP($BS12,'État & Plan d''action'!$B$6:$DB$1113,72,FALSE),VLOOKUP($BS12,'État & Plan d''action'!$B$6:$DB$1113,82,FALSE),VLOOKUP($BS12,'État & Plan d''action'!$B$6:$DB$1113,92,FALSE),VLOOKUP($BS12,'État & Plan d''action'!$B$6:$DB$1113,102,FALSE)),"") -> 0 | FU12: =IFERROR(SUM(VLOOKUP($BS12,'État & Plan d''action'!$B$6:$DB$1113,24,FALSE),VLOOKUP($BS12,'État & Plan d''action'!$B$6:$DB$1113,34,FALSE),VLOOKUP($BS12,'État & Plan d''action'!$B$6:$DB$1113,44,FALSE),VLOOKUP($BS12,'État & Plan d''action'!$B$6:$DB$1113,54,FALSE),VLOOKUP($BS12,'État & Plan d''action'!$B$6:$DB$1113,64,FALSE),VLOOKUP($BS12,'État & Plan d''action'!$B$6:$DB$1113,74,FALSE),VLOOKUP($BS12,'État & Plan d''action'!$B$6:$DB$1113,84,FALSE),VLOOKUP($BS12,'État & Plan d''action'!$B$6:$DB$1113,94,FALSE),VLOOKUP($BS12,'État & Plan d''action'!$B$6:$DB$1113,104,FALSE)),"") -> 0 | FV12: 45 | FW12: 59 | FX12: 59 | FY12: 58.02702703 | FZ12: 232
BQ13: 1 | BR13: 1 | BS13: 92030 | BT13: ALBANEL | BU13: 2 | BV13: non | BW13: non | BX13: non | BY13: non | BZ13: non | CA13: non | CB13: non | CC13: non | CD13: non | CE13: non | CF13: non | CG13: oui | CH13: oui | CI13: oui | CJ13: oui | CK13: oui | CL13: non | CM13: oui | CN13: oui | CO13: oui | CP13: oui | CQ13: =IF(VLOOKUP(BS13,'Données par municipalité'!$B$6:$E$1113,4,FALSE)="","non","oui") -> non | CR13: 610.7391767 | CS13: 593.6651584 | CT13: 539.6369485 | CU13: 577.4918348 | CV13: 536.8374188 | CX13: 539 | CY13: 551 | CZ13: 480 | DA13: 365 | DB13: =IF(VLOOKUP(BS13,'Données par municipalité'!$B$6:$F$1113,4,FALSE)="","",VLOOKUP(BS13,'Données par municipalité'!$B$6:$F$1113,4,FALSE)) ->  | DC13: Non disponible | DD13: 0 | DE13: 0.1 | DF13: 0.1 | DG13: 0 | DI13: 0 | DJ13: 0 | DK13: 1 | DL13: 1 | DM13: =IFERROR(SUM(VLOOKUP($BS13,'État & Plan d''action'!$B$6:$DB$1113,18,FALSE),VLOOKUP($BS13,'État & Plan d''action'!$B$6:$DB$1113,20,FALSE),VLOOKUP($BS13,'État & Plan d''action'!$B$6:$DB$1113,28,FALSE),VLOOKUP($BS13,'État & Plan d''action'!$B$6:$DB$1113,30,FALSE),VLOOKUP($BS13,'État & Plan d''action'!$B$6:$DB$1113,38,FALSE),VLOOKUP($BS13,'État & Plan d''action'!$B$6:$DB$1113,40,FALSE),VLOOKUP($BS13,'État & Plan d''action'!$B$6:$DB$1113,48,FALSE),VLOOKUP($BS13,'État & Plan d''action'!$B$6:$DB$1113,50,FALSE),VLOOKUP($BS13,'État & Plan d''action'!$B$6:$DB$1113,58,FALSE),VLOOKUP($BS13,'État & Plan d''action'!$B$6:$DB$1113,60,FALSE),VLOOKUP($BS13,'État & Plan d''action'!$B$6:$DB$1113,68,FALSE),VLOOKUP($BS13,'État & Plan d''action'!$B$6:$DB$1113,70,FALSE),VLOOKUP($BS13,'État & Plan d''action'!$B$6:$DB$1113,78,FALSE),VLOOKUP($BS13,'État & Plan d''action'!$B$6:$DB$1113,80,FALSE),VLOOKUP($BS13,'État & Plan d''action'!$B$6:$DB$1113,88,FALSE),VLOOKUP($BS13,'État & Plan d''action'!$B$6:$DB$1113,90,FALSE),VLOOKUP($BS13,'État & Plan d''action'!$B$6:$DB$1113,98,FALSE),VLOOKUP($BS13,'État & Plan d''action'!$B$6:$DB$1113,100,FALSE))/(VLOOKUP($BS13,'Données par municipalité'!$B$4:$N$1113,13,FALSE)),"") ->  | DN13: =IFERROR(SUM(VLOOKUP($BS13,'État & Plan d''action'!$B$6:$DB$1113,19,FALSE),VLOOKUP($BS13,'État & Plan d''action'!$B$6:$DB$1113,21,FALSE),VLOOKUP($BS13,'État & Plan d''action'!$B$6:$DB$1113,29,FALSE),VLOOKUP($BS13,'État & Plan d''action'!$B$6:$DB$1113,31,FALSE),VLOOKUP($BS13,'État & Plan d''action'!$B$6:$DB$1113,39,FALSE),VLOOKUP($BS13,'État & Plan d''action'!$B$6:$DB$1113,41,FALSE),VLOOKUP($BS13,'État & Plan d''action'!$B$6:$DB$1113,49,FALSE),VLOOKUP($BS13,'État & Plan d''action'!$B$6:$DB$1113,51,FALSE),VLOOKUP($BS13,'État & Plan d''action'!$B$6:$DB$1113,59,FALSE),VLOOKUP($BS13,'État & Plan d''action'!$B$6:$DB$1113,61,FALSE),VLOOKUP($BS13,'État & Plan d''action'!$B$6:$DB$1113,69,FALSE),VLOOKUP($BS13,'État & Plan d''action'!$B$6:$DB$1113,71,FALSE),VLOOKUP($BS13,'État & Plan d''action'!$B$6:$DB$1113,79,FALSE),VLOOKUP($BS13,'État & Plan d''action'!$B$6:$DB$1113,81,FALSE),VLOOKUP($BS13,'État & Plan d''action'!$B$6:$DB$1113,89,FALSE),VLOOKUP($BS13,'État & Plan d''action'!$B$6:$DB$1113,91,FALSE),VLOOKUP($BS13,'État & Plan d''action'!$B$6:$DB$1113,99,FALSE),VLOOKUP($BS13,'État & Plan d''action'!$B$6:$DB$1113,101,FALSE))/(VLOOKUP($BS13,'Données par municipalité'!$B$4:$N$1113,13,FALSE)),"") ->  | DO13: Non disponible | DP13: 14 | DQ13: 25 | DR13: 25 | DS13: 27 | DU13: 2 | DV13: 3 | DW13: 0 | DX13: 1 | DY13: 1 | DZ13: 0 | EA13: 1 | EB13: 1 | EC13: 0 | ED13: 0 | EE13: =IF(VLOOKUP($BS13,'État & Plan d''action'!$B$6:$DM$1113,108,FALSE)="","",VLOOKUP($BS13,'État & Plan d''action'!$B$6:$DM$1113,108,FALSE)) ->  | EF13: =IF(VLOOKUP($BS13,'État & Plan d''action'!$B$6:$DM$1113,109,FALSE)="","",VLOOKUP($BS13,'État & Plan d''action'!$B$6:$DM$1113,109,FALSE)) ->  | EG13: =IF(VLOOKUP($BS13,'État & Plan d''action'!$B$6:$DM$1113,110,FALSE)="","",VLOOKUP($BS13,'État & Plan d''action'!$B$6:$DM$1113,110,FALSE)) ->  | EH13: 455 | EI13: 307 | EJ13: 186 | EK13: =VLOOKUP($BS13,'Données par municipalité'!$B$6:$F$1113,5,FALSE) -> 0 | EL13: 1.879188221 | EM13: 4.3 | EN13: 5.325136444 | EO13: =IF(VLOOKUP(BS13,'Données par municipalité'!$B$6:$U$1113,7,FALSE)="","",VLOOKUP(BS13,'Données par municipalité'!$B$6:$U$1113,7,FALSE)) ->  | EP13: 15 | EQ13: 0 | ER13: 15 | ES13: 30 | ET13: 0 | EU13: 30 | EV13: 14 | EY13: =VLOOKUP($BS13,'État & Plan d''action'!$B$6:$DK$1113,112,FALSE) -> 0 | EZ13: =VLOOKUP($BS13,'État & Plan d''action'!$B$6:$DK$1113,113,FALSE) -> 0 | FA13: =VLOOKUP($BS13,'État & Plan d''action'!$B$6:$DK$1113,114,FALSE) -> 0 | FB13: 0 | FC13: 0 | FD13: 0 | FE13: 0 | FF13: 0 | FG13: 0 | FH13: 0 | FI13: 0 | FJ13: 0 | FK13: 0 | FL13: 0 | FM13: 0 | FN13: 19.817 | FO13: 0 | FP13: 0 | FQ13: =IFERROR(SUM(VLOOKUP($BS13,'État & Plan d''action'!$B$6:$DB$1113,16,FALSE),VLOOKUP($BS13,'État & Plan d''action'!$B$6:$DB$1113,26,FALSE),VLOOKUP($BS13,'État & Plan d''action'!$B$6:$DB$1113,36,FALSE),VLOOKUP($BS13,'État & Plan d''action'!$B$6:$DB$1113,46,FALSE),VLOOKUP($BS13,'État & Plan d''action'!$B$6:$DB$1113,56,FALSE),VLOOKUP($BS13,'État & Plan d''action'!$B$6:$DB$1113,66,FALSE),VLOOKUP($BS13,'État & Plan d''action'!$B$6:$DB$1113,76,FALSE),VLOOKUP($BS13,'État & Plan d''action'!$B$6:$DB$1113,86,FALSE),VLOOKUP($BS13,'État & Plan d''action'!$B$6:$DB$1113,96,FALSE)),"") -> 0 | FR13: =IFERROR(SUM(VLOOKUP($BS13,'État & Plan d''action'!$B$6:$DB$1113,18,FALSE),VLOOKUP($BS13,'État & Plan d''action'!$B$6:$DB$1113,28,FALSE),VLOOKUP($BS13,'État & Plan d''action'!$B$6:$DB$1113,38,FALSE),VLOOKUP($BS13,'État & Plan d''action'!$B$6:$DB$1113,48,FALSE),VLOOKUP($BS13,'État & Plan d''action'!$B$6:$DB$1113,58,FALSE),VLOOKUP($BS13,'État & Plan d''action'!$B$6:$DB$1113,68,FALSE),VLOOKUP($BS13,'État & Plan d''action'!$B$6:$DB$1113,78,FALSE),VLOOKUP($BS13,'État & Plan d''action'!$B$6:$DB$1113,88,FALSE),VLOOKUP($BS13,'État & Plan d''action'!$B$6:$DB$1113,98,FALSE)),"") -> 0 | FS13: =IFERROR(SUM(VLOOKUP($BS13,'État & Plan d''action'!$B$6:$DB$1113,20,FALSE),VLOOKUP($BS13,'État & Plan d''action'!$B$6:$DB$1113,30,FALSE),VLOOKUP($BS13,'État & Plan d''action'!$B$6:$DB$1113,40,FALSE),VLOOKUP($BS13,'État & Plan d''action'!$B$6:$DB$1113,50,FALSE),VLOOKUP($BS13,'État & Plan d''action'!$B$6:$DB$1113,60,FALSE),VLOOKUP($BS13,'État & Plan d''action'!$B$6:$DB$1113,70,FALSE),VLOOKUP($BS13,'État & Plan d''action'!$B$6:$DB$1113,80,FALSE),VLOOKUP($BS13,'État & Plan d''action'!$B$6:$DB$1113,90,FALSE),VLOOKUP($BS13,'État & Plan d''action'!$B$6:$DB$1113,100,FALSE)),"") -> 0 | FT13: =IFERROR(SUM(VLOOKUP($BS13,'État & Plan d''action'!$B$6:$DB$1113,22,FALSE),VLOOKUP($BS13,'État & Plan d''action'!$B$6:$DB$1113,32,FALSE),VLOOKUP($BS13,'État & Plan d''action'!$B$6:$DB$1113,42,FALSE),VLOOKUP($BS13,'État & Plan d''action'!$B$6:$DB$1113,52,FALSE),VLOOKUP($BS13,'État & Plan d''action'!$B$6:$DB$1113,62,FALSE),VLOOKUP($BS13,'État & Plan d''action'!$B$6:$DB$1113,72,FALSE),VLOOKUP($BS13,'État & Plan d''action'!$B$6:$DB$1113,82,FALSE),VLOOKUP($BS13,'État & Plan d''action'!$B$6:$DB$1113,92,FALSE),VLOOKUP($BS13,'État & Plan d''action'!$B$6:$DB$1113,102,FALSE)),"") -> 0 | FU13: =IFERROR(SUM(VLOOKUP($BS13,'État & Plan d''action'!$B$6:$DB$1113,24,FALSE),VLOOKUP($BS13,'État & Plan d''action'!$B$6:$DB$1113,34,FALSE),VLOOKUP($BS13,'État & Plan d''action'!$B$6:$DB$1113,44,FALSE),VLOOKUP($BS13,'État & Plan d''action'!$B$6:$DB$1113,54,FALSE),VLOOKUP($BS13,'État & Plan d''action'!$B$6:$DB$1113,64,FALSE),VLOOKUP($BS13,'État & Plan d''action'!$B$6:$DB$1113,74,FALSE),VLOOKUP($BS13,'État & Plan d''action'!$B$6:$DB$1113,84,FALSE),VLOOKUP($BS13,'État & Plan d''action'!$B$6:$DB$1113,94,FALSE),VLOOKUP($BS13,'État & Plan d''action'!$B$6:$DB$1113,104,FALSE)),"") -> 0 | FV13: 54.21621622 | FW13: 59.89189189 | FX13: 59.78378378 | FZ13: 2258
BQ14: 1 | BR14: 0 | BS14: 7025 | BT14: ALBERTVILLE | BU14: 1 | BV14: oui | BW14: oui | BX14: oui | BY14: oui | BZ14: oui | CA14: oui | CB14: oui | CC14: oui | CD14: oui | CE14: oui | CF14: oui | CG14: oui | CH14: oui | CI14: oui | CJ14: oui | CK14: oui | CL14: non | CM14: non | CN14: non | CO14: non | CP14: non | CQ14: =IF(VLOOKUP(BS14,'Données par municipalité'!$B$6:$E$1113,4,FALSE)="","non","oui") -> non | CR14: 507.8286152 | CS14: 506.4411053 | CT14: 601.5147262 | CU14: 611.3302224 | CV14: 641.425658 | DB14: =IF(VLOOKUP(BS14,'Données par municipalité'!$B$6:$F$1113,4,FALSE)="","",VLOOKUP(BS14,'Données par municipalité'!$B$6:$F$1113,4,FALSE)) ->  | DC14: Non disponible | DE14: 0 | DF14: 0 | DG14: 0 | DM14: =IFERROR(SUM(VLOOKUP($BS14,'État & Plan d''action'!$B$6:$DB$1113,18,FALSE),VLOOKUP($BS14,'État & Plan d''action'!$B$6:$DB$1113,20,FALSE),VLOOKUP($BS14,'État & Plan d''action'!$B$6:$DB$1113,28,FALSE),VLOOKUP($BS14,'État & Plan d''action'!$B$6:$DB$1113,30,FALSE),VLOOKUP($BS14,'État & Plan d''action'!$B$6:$DB$1113,38,FALSE),VLOOKUP($BS14,'État & Plan d''action'!$B$6:$DB$1113,40,FALSE),VLOOKUP($BS14,'État & Plan d''action'!$B$6:$DB$1113,48,FALSE),VLOOKUP($BS14,'État & Plan d''action'!$B$6:$DB$1113,50,FALSE),VLOOKUP($BS14,'État & Plan d''action'!$B$6:$DB$1113,58,FALSE),VLOOKUP($BS14,'État & Plan d''action'!$B$6:$DB$1113,60,FALSE),VLOOKUP($BS14,'État & Plan d''action'!$B$6:$DB$1113,68,FALSE),VLOOKUP($BS14,'État & Plan d''action'!$B$6:$DB$1113,70,FALSE),VLOOKUP($BS14,'État & Plan d''action'!$B$6:$DB$1113,78,FALSE),VLOOKUP($BS14,'État & Plan d''action'!$B$6:$DB$1113,80,FALSE),VLOOKUP($BS14,'État & Plan d''action'!$B$6:$DB$1113,88,FALSE),VLOOKUP($BS14,'État & Plan d''action'!$B$6:$DB$1113,90,FALSE),VLOOKUP($BS14,'État & Plan d''action'!$B$6:$DB$1113,98,FALSE),VLOOKUP($BS14,'État & Plan d''action'!$B$6:$DB$1113,100,FALSE))/(VLOOKUP($BS14,'Données par municipalité'!$B$4:$N$1113,13,FALSE)),"") ->  | DN14: =IFERROR(SUM(VLOOKUP($BS14,'État & Plan d''action'!$B$6:$DB$1113,19,FALSE),VLOOKUP($BS14,'État & Plan d''action'!$B$6:$DB$1113,21,FALSE),VLOOKUP($BS14,'État & Plan d''action'!$B$6:$DB$1113,29,FALSE),VLOOKUP($BS14,'État & Plan d''action'!$B$6:$DB$1113,31,FALSE),VLOOKUP($BS14,'État & Plan d''action'!$B$6:$DB$1113,39,FALSE),VLOOKUP($BS14,'État & Plan d''action'!$B$6:$DB$1113,41,FALSE),VLOOKUP($BS14,'État & Plan d''action'!$B$6:$DB$1113,49,FALSE),VLOOKUP($BS14,'État & Plan d''action'!$B$6:$DB$1113,51,FALSE),VLOOKUP($BS14,'État & Plan d''action'!$B$6:$DB$1113,59,FALSE),VLOOKUP($BS14,'État & Plan d''action'!$B$6:$DB$1113,61,FALSE),VLOOKUP($BS14,'État & Plan d''action'!$B$6:$DB$1113,69,FALSE),VLOOKUP($BS14,'État & Plan d''action'!$B$6:$DB$1113,71,FALSE),VLOOKUP($BS14,'État & Plan d''action'!$B$6:$DB$1113,79,FALSE),VLOOKUP($BS14,'État & Plan d''action'!$B$6:$DB$1113,81,FALSE),VLOOKUP($BS14,'État & Plan d''action'!$B$6:$DB$1113,89,FALSE),VLOOKUP($BS14,'État & Plan d''action'!$B$6:$DB$1113,91,FALSE),VLOOKUP($BS14,'État & Plan d''action'!$B$6:$DB$1113,99,FALSE),VLOOKUP($BS14,'État & Plan d''action'!$B$6:$DB$1113,101,FALSE))/(VLOOKUP($BS14,'Données par municipalité'!$B$4:$N$1113,13,FALSE)),"") ->  | DO14: Non disponible | DP14: 1 | DQ14: 1 | DR14: 4 | DS14: 3 | EE14: =IF(VLOOKUP($BS14,'État & Plan d''action'!$B$6:$DM$1113,108,FALSE)="","",VLOOKUP($BS14,'État & Plan d''action'!$B$6:$DM$1113,108,FALSE)) ->  | EF14: =IF(VLOOKUP($BS14,'État & Plan d''action'!$B$6:$DM$1113,109,FALSE)="","",VLOOKUP($BS14,'État & Plan d''action'!$B$6:$DM$1113,109,FALSE)) ->  | EG14: =IF(VLOOKUP($BS14,'État & Plan d''action'!$B$6:$DM$1113,110,FALSE)="","",VLOOKUP($BS14,'État & Plan d''action'!$B$6:$DM$1113,110,FALSE)) ->  | EJ14: 0 | EK14: =VLOOKUP($BS14,'Données par municipalité'!$B$6:$F$1113,5,FALSE) -> 0 | EO14: =IF(VLOOKUP(BS14,'Données par municipalité'!$B$6:$U$1113,7,FALSE)="","",VLOOKUP(BS14,'Données par municipalité'!$B$6:$U$1113,7,FALSE)) ->  | EV14: 0 | EW14: 0 | EX14: 0 | EY14: =VLOOKUP($BS14,'État & Plan d''action'!$B$6:$DK$1113,112,FALSE) -> 0 | EZ14: =VLOOKUP($BS14,'État & Plan d''action'!$B$6:$DK$1113,113,FALSE) -> 0 | FA14: =VLOOKUP($BS14,'État & Plan d''action'!$B$6:$DK$1113,114,FALSE) -> 0 | FL14: 0 | FM14: 0 | FN14: 0 | FO14: 0 | FP14: 0 | FQ14: =IFERROR(SUM(VLOOKUP($BS14,'État & Plan d''action'!$B$6:$DB$1113,16,FALSE),VLOOKUP($BS14,'État & Plan d''action'!$B$6:$DB$1113,26,FALSE),VLOOKUP($BS14,'État & Plan d''action'!$B$6:$DB$1113,36,FALSE),VLOOKUP($BS14,'État & Plan d''action'!$B$6:$DB$1113,46,FALSE),VLOOKUP($BS14,'État & Plan d''action'!$B$6:$DB$1113,56,FALSE),VLOOKUP($BS14,'État & Plan d''action'!$B$6:$DB$1113,66,FALSE),VLOOKUP($BS14,'État & Plan d''action'!$B$6:$DB$1113,76,FALSE),VLOOKUP($BS14,'État & Plan d''action'!$B$6:$DB$1113,86,FALSE),VLOOKUP($BS14,'État & Plan d''action'!$B$6:$DB$1113,96,FALSE)),"") -> 0 | FR14: =IFERROR(SUM(VLOOKUP($BS14,'État & Plan d''action'!$B$6:$DB$1113,18,FALSE),VLOOKUP($BS14,'État & Plan d''action'!$B$6:$DB$1113,28,FALSE),VLOOKUP($BS14,'État & Plan d''action'!$B$6:$DB$1113,38,FALSE),VLOOKUP($BS14,'État & Plan d''action'!$B$6:$DB$1113,48,FALSE),VLOOKUP($BS14,'État & Plan d''action'!$B$6:$DB$1113,58,FALSE),VLOOKUP($BS14,'État & Plan d''action'!$B$6:$DB$1113,68,FALSE),VLOOKUP($BS14,'État & Plan d''action'!$B$6:$DB$1113,78,FALSE),VLOOKUP($BS14,'État & Plan d''action'!$B$6:$DB$1113,88,FALSE),VLOOKUP($BS14,'État & Plan d''action'!$B$6:$DB$1113,98,FALSE)),"") -> 0 | FS14: =IFERROR(SUM(VLOOKUP($BS14,'État & Plan d''action'!$B$6:$DB$1113,20,FALSE),VLOOKUP($BS14,'État & Plan d''action'!$B$6:$DB$1113,30,FALSE),VLOOKUP($BS14,'État & Plan d''action'!$B$6:$DB$1113,40,FALSE),VLOOKUP($BS14,'État & Plan d''action'!$B$6:$DB$1113,50,FALSE),VLOOKUP($BS14,'État & Plan d''action'!$B$6:$DB$1113,60,FALSE),VLOOKUP($BS14,'État & Plan d''action'!$B$6:$DB$1113,70,FALSE),VLOOKUP($BS14,'État & Plan d''action'!$B$6:$DB$1113,80,FALSE),VLOOKUP($BS14,'État & Plan d''action'!$B$6:$DB$1113,90,FALSE),VLOOKUP($BS14,'État & Plan d''action'!$B$6:$DB$1113,100,FALSE)),"") -> 0 | FT14: =IFERROR(SUM(VLOOKUP($BS14,'État & Plan d''action'!$B$6:$DB$1113,22,FALSE),VLOOKUP($BS14,'État & Plan d''action'!$B$6:$DB$1113,32,FALSE),VLOOKUP($BS14,'État & Plan d''action'!$B$6:$DB$1113,42,FALSE),VLOOKUP($BS14,'État & Plan d''action'!$B$6:$DB$1113,52,FALSE),VLOOKUP($BS14,'État & Plan d''action'!$B$6:$DB$1113,62,FALSE),VLOOKUP($BS14,'État & Plan d''action'!$B$6:$DB$1113,72,FALSE),VLOOKUP($BS14,'État & Plan d''action'!$B$6:$DB$1113,82,FALSE),VLOOKUP($BS14,'État & Plan d''action'!$B$6:$DB$1113,92,FALSE),VLOOKUP($BS14,'État & Plan d''action'!$B$6:$DB$1113,102,FALSE)),"") -> 0 | FU14: =IFERROR(SUM(VLOOKUP($BS14,'État & Plan d''action'!$B$6:$DB$1113,24,FALSE),VLOOKUP($BS14,'État & Plan d''action'!$B$6:$DB$1113,34,FALSE),VLOOKUP($BS14,'État & Plan d''action'!$B$6:$DB$1113,44,FALSE),VLOOKUP($BS14,'État & Plan d''action'!$B$6:$DB$1113,54,FALSE),VLOOKUP($BS14,'État & Plan d''action'!$B$6:$DB$1113,64,FALSE),VLOOKUP($BS14,'État & Plan d''action'!$B$6:$DB$1113,74,FALSE),VLOOKUP($BS14,'État & Plan d''action'!$B$6:$DB$1113,84,FALSE),VLOOKUP($BS14,'État & Plan d''action'!$B$6:$DB$1113,94,FALSE),VLOOKUP($BS14,'État & Plan d''action'!$B$6:$DB$1113,104,FALSE)),"") -> 0 | FZ14: 217
BQ15: 1 | BR15: 0 | BS15: 84050 | BT15: ALLEYN-ET-CAWOOD | BU15: 7 | BV15: oui | BW15: oui | BX15: oui | BY15: oui | BZ15: oui | CA15: oui | CB15: oui | CC15: oui | CD15: oui | CE15: oui | CF15: oui | CG15: oui | CH15: oui | CI15: non | CJ15: oui | CK15: oui | CL15: non | CM15: non | CN15: non | CO15: non | CP15: non | CQ15: =IF(VLOOKUP(BS15,'Données par municipalité'!$B$6:$E$1113,4,FALSE)="","non","oui") -> non | CR15: 719.2898177 | CS15: 719.2898177 | CU15: 553.1288247 | CV15: 500.8312719 | DB15: =IF(VLOOKUP(BS15,'Données par municipalité'!$B$6:$F$1113,4,FALSE)="","",VLOOKUP(BS15,'Données par municipalité'!$B$6:$F$1113,4,FALSE)) ->  | DC15: Non disponible | DF15: 0 | DG15: 0 | DM15: =IFERROR(SUM(VLOOKUP($BS15,'État & Plan d''action'!$B$6:$DB$1113,18,FALSE),VLOOKUP($BS15,'État & Plan d''action'!$B$6:$DB$1113,20,FALSE),VLOOKUP($BS15,'État & Plan d''action'!$B$6:$DB$1113,28,FALSE),VLOOKUP($BS15,'État & Plan d''action'!$B$6:$DB$1113,30,FALSE),VLOOKUP($BS15,'État & Plan d''action'!$B$6:$DB$1113,38,FALSE),VLOOKUP($BS15,'État & Plan d''action'!$B$6:$DB$1113,40,FALSE),VLOOKUP($BS15,'État & Plan d''action'!$B$6:$DB$1113,48,FALSE),VLOOKUP($BS15,'État & Plan d''action'!$B$6:$DB$1113,50,FALSE),VLOOKUP($BS15,'État & Plan d''action'!$B$6:$DB$1113,58,FALSE),VLOOKUP($BS15,'État & Plan d''action'!$B$6:$DB$1113,60,FALSE),VLOOKUP($BS15,'État & Plan d''action'!$B$6:$DB$1113,68,FALSE),VLOOKUP($BS15,'État & Plan d''action'!$B$6:$DB$1113,70,FALSE),VLOOKUP($BS15,'État & Plan d''action'!$B$6:$DB$1113,78,FALSE),VLOOKUP($BS15,'État & Plan d''action'!$B$6:$DB$1113,80,FALSE),VLOOKUP($BS15,'État & Plan d''action'!$B$6:$DB$1113,88,FALSE),VLOOKUP($BS15,'État & Plan d''action'!$B$6:$DB$1113,90,FALSE),VLOOKUP($BS15,'État & Plan d''action'!$B$6:$DB$1113,98,FALSE),VLOOKUP($BS15,'État & Plan d''action'!$B$6:$DB$1113,100,FALSE))/(VLOOKUP($BS15,'Données par municipalité'!$B$4:$N$1113,13,FALSE)),"") ->  | DN15: =IFERROR(SUM(VLOOKUP($BS15,'État & Plan d''action'!$B$6:$DB$1113,19,FALSE),VLOOKUP($BS15,'État & Plan d''action'!$B$6:$DB$1113,21,FALSE),VLOOKUP($BS15,'État & Plan d''action'!$B$6:$DB$1113,29,FALSE),VLOOKUP($BS15,'État & Plan d''action'!$B$6:$DB$1113,31,FALSE),VLOOKUP($BS15,'État & Plan d''action'!$B$6:$DB$1113,39,FALSE),VLOOKUP($BS15,'État & Plan d''action'!$B$6:$DB$1113,41,FALSE),VLOOKUP($BS15,'État & Plan d''action'!$B$6:$DB$1113,49,FALSE),VLOOKUP($BS15,'État & Plan d''action'!$B$6:$DB$1113,51,FALSE),VLOOKUP($BS15,'État & Plan d''action'!$B$6:$DB$1113,59,FALSE),VLOOKUP($BS15,'État & Plan d''action'!$B$6:$DB$1113,61,FALSE),VLOOKUP($BS15,'État & Plan d''action'!$B$6:$DB$1113,69,FALSE),VLOOKUP($BS15,'État & Plan d''action'!$B$6:$DB$1113,71,FALSE),VLOOKUP($BS15,'État & Plan d''action'!$B$6:$DB$1113,79,FALSE),VLOOKUP($BS15,'État & Plan d''action'!$B$6:$DB$1113,81,FALSE),VLOOKUP($BS15,'État & Plan d''action'!$B$6:$DB$1113,89,FALSE),VLOOKUP($BS15,'État & Plan d''action'!$B$6:$DB$1113,91,FALSE),VLOOKUP($BS15,'État & Plan d''action'!$B$6:$DB$1113,99,FALSE),VLOOKUP($BS15,'État & Plan d''action'!$B$6:$DB$1113,101,FALSE))/(VLOOKUP($BS15,'Données par municipalité'!$B$4:$N$1113,13,FALSE)),"") ->  | DO15: Non disponible | DR15: 0 | DS15: 0 | EE15: =IF(VLOOKUP($BS15,'État & Plan d''action'!$B$6:$DM$1113,108,FALSE)="","",VLOOKUP($BS15,'État & Plan d''action'!$B$6:$DM$1113,108,FALSE)) ->  | EF15: =IF(VLOOKUP($BS15,'État & Plan d''action'!$B$6:$DM$1113,109,FALSE)="","",VLOOKUP($BS15,'État & Plan d''action'!$B$6:$DM$1113,109,FALSE)) ->  | EG15: =IF(VLOOKUP($BS15,'État & Plan d''action'!$B$6:$DM$1113,110,FALSE)="","",VLOOKUP($BS15,'État & Plan d''action'!$B$6:$DM$1113,110,FALSE)) ->  | EJ15: 0 | EK15: =VLOOKUP($BS15,'Données par municipalité'!$B$6:$F$1113,5,FALSE) -> 0 | EO15: =IF(VLOOKUP(BS15,'Données par municipalité'!$B$6:$U$1113,7,FALSE)="","",VLOOKUP(BS15,'Données par municipalité'!$B$6:$U$1113,7,FALSE)) ->  | EV15: 0 | EW15: 0 | EX15: 0 | EY15: =VLOOKUP($BS15,'État & Plan d''action'!$B$6:$DK$1113,112,FALSE) -> 0 | EZ15: =VLOOKUP($BS15,'État & Plan d''action'!$B$6:$DK$1113,113,FALSE) -> 0 | FA15: =VLOOKUP($BS15,'État & Plan d''action'!$B$6:$DK$1113,114,FALSE) -> 0 | FL15: 0 | FM15: 0 | FN15: 0 | FO15: 0 | FP15: 0 | FQ15: =IFERROR(SUM(VLOOKUP($BS15,'État & Plan d''action'!$B$6:$DB$1113,16,FALSE),VLOOKUP($BS15,'État & Plan d''action'!$B$6:$DB$1113,26,FALSE),VLOOKUP($BS15,'État & Plan d''action'!$B$6:$DB$1113,36,FALSE),VLOOKUP($BS15,'État & Plan d''action'!$B$6:$DB$1113,46,FALSE),VLOOKUP($BS15,'État & Plan d''action'!$B$6:$DB$1113,56,FALSE),VLOOKUP($BS15,'État & Plan d''action'!$B$6:$DB$1113,66,FALSE),VLOOKUP($BS15,'État & Plan d''action'!$B$6:$DB$1113,76,FALSE),VLOOKUP($BS15,'État & Plan d''action'!$B$6:$DB$1113,86,FALSE),VLOOKUP($BS15,'État & Plan d''action'!$B$6:$DB$1113,96,FALSE)),"") -> 0 | FR15: =IFERROR(SUM(VLOOKUP($BS15,'État & Plan d''action'!$B$6:$DB$1113,18,FALSE),VLOOKUP($BS15,'État & Plan d''action'!$B$6:$DB$1113,28,FALSE),VLOOKUP($BS15,'État & Plan d''action'!$B$6:$DB$1113,38,FALSE),VLOOKUP($BS15,'État & Plan d''action'!$B$6:$DB$1113,48,FALSE),VLOOKUP($BS15,'État & Plan d''action'!$B$6:$DB$1113,58,FALSE),VLOOKUP($BS15,'État & Plan d''action'!$B$6:$DB$1113,68,FALSE),VLOOKUP($BS15,'État & Plan d''action'!$B$6:$DB$1113,78,FALSE),VLOOKUP($BS15,'État & Plan d''action'!$B$6:$DB$1113,88,FALSE),VLOOKUP($BS15,'État & Plan d''action'!$B$6:$DB$1113,98,FALSE)),"") -> 0 | FS15: =IFERROR(SUM(VLOOKUP($BS15,'État & Plan d''action'!$B$6:$DB$1113,20,FALSE),VLOOKUP($BS15,'État & Plan d''action'!$B$6:$DB$1113,30,FALSE),VLOOKUP($BS15,'État & Plan d''action'!$B$6:$DB$1113,40,FALSE),VLOOKUP($BS15,'État & Plan d''action'!$B$6:$DB$1113,50,FALSE),VLOOKUP($BS15,'État & Plan d''action'!$B$6:$DB$1113,60,FALSE),VLOOKUP($BS15,'État & Plan d''action'!$B$6:$DB$1113,70,FALSE),VLOOKUP($BS15,'État & Plan d''action'!$B$6:$DB$1113,80,FALSE),VLOOKUP($BS15,'État & Plan d''action'!$B$6:$DB$1113,90,FALSE),VLOOKUP($BS15,'État & Plan d''action'!$B$6:$DB$1113,100,FALSE)),"") -> 0 | FT15: =IFERROR(SUM(VLOOKUP($BS15,'État & Plan d''action'!$B$6:$DB$1113,22,FALSE),VLOOKUP($BS15,'État & Plan d''action'!$B$6:$DB$1113,32,FALSE),VLOOKUP($BS15,'État & Plan d''action'!$B$6:$DB$1113,42,FALSE),VLOOKUP($BS15,'État & Plan d''action'!$B$6:$DB$1113,52,FALSE),VLOOKUP($BS15,'État & Plan d''action'!$B$6:$DB$1113,62,FALSE),VLOOKUP($BS15,'État & Plan d''action'!$B$6:$DB$1113,72,FALSE),VLOOKUP($BS15,'État & Plan d''action'!$B$6:$DB$1113,82,FALSE),VLOOKUP($BS15,'État & Plan d''action'!$B$6:$DB$1113,92,FALSE),VLOOKUP($BS15,'État & Plan d''action'!$B$6:$DB$1113,102,FALSE)),"") -> 0 | FU15: =IFERROR(SUM(VLOOKUP($BS15,'État & Plan d''action'!$B$6:$DB$1113,24,FALSE),VLOOKUP($BS15,'État & Plan d''action'!$B$6:$DB$1113,34,FALSE),VLOOKUP($BS15,'État & Plan d''action'!$B$6:$DB$1113,44,FALSE),VLOOKUP($BS15,'État & Plan d''action'!$B$6:$DB$1113,54,FALSE),VLOOKUP($BS15,'État & Plan d''action'!$B$6:$DB$1113,64,FALSE),VLOOKUP($BS15,'État & Plan d''action'!$B$6:$DB$1113,74,FALSE),VLOOKUP($BS15,'État & Plan d''action'!$B$6:$DB$1113,84,FALSE),VLOOKUP($BS15,'État & Plan d''action'!$B$6:$DB$1113,94,FALSE),VLOOKUP($BS15,'État & Plan d''action'!$B$6:$DB$1113,104,FALSE)),"") -> 0 | FZ15: 176
BQ16: 1 | BR16: 1 | BS16: 93042 | BT16: ALMA | BU16: 2 | BV16: non | BW16: non | BX16: non | BY16: non | BZ16: non | CA16: non | CB16: non | CC16: non | CD16: non | CE16: non | CF16: non | CG16: oui | CH16: oui | CI16: oui | CJ16: oui | CK16: oui | CL16: oui | CM16: oui | CN16: oui | CO16: oui | CP16: oui | CQ16: =IF(VLOOKUP(BS16,'Données par municipalité'!$B$6:$E$1113,4,FALSE)="","non","oui") -> oui | CR16: 477.2860499 | CS16: 498.0146779 | CT16: 492.1423262 | CU16: 451.5197374 | CV16: 441.8145897 | CW16: 397.905454 | CX16: 392.8088706 | CY16: 399 | CZ16: 399 | DA16: 399 | DB16: =IF(VLOOKUP(BS16,'Données par municipalité'!$B$6:$F$1113,4,FALSE)="","",VLOOKUP(BS16,'Données par municipalité'!$B$6:$F$1113,4,FALSE)) -> 392 | DC16: Non disponible | DD16: 0 | DE16: 0 | DF16: 0 | DG16: 0.25 | DH16: 0.5 | DI16: 0.5 | DJ16: 1 | DK16: 1 | DL16: 1 | DM16: =IFERROR(SUM(VLOOKUP($BS16,'État & Plan d''action'!$B$6:$DB$1113,18,FALSE),VLOOKUP($BS16,'État & Plan d''action'!$B$6:$DB$1113,20,FALSE),VLOOKUP($BS16,'État & Plan d''action'!$B$6:$DB$1113,28,FALSE),VLOOKUP($BS16,'État & Plan d''action'!$B$6:$DB$1113,30,FALSE),VLOOKUP($BS16,'État & Plan d''action'!$B$6:$DB$1113,38,FALSE),VLOOKUP($BS16,'État & Plan d''action'!$B$6:$DB$1113,40,FALSE),VLOOKUP($BS16,'État & Plan d''action'!$B$6:$DB$1113,48,FALSE),VLOOKUP($BS16,'État & Plan d''action'!$B$6:$DB$1113,50,FALSE),VLOOKUP($BS16,'État & Plan d''action'!$B$6:$DB$1113,58,FALSE),VLOOKUP($BS16,'État & Plan d''action'!$B$6:$DB$1113,60,FALSE),VLOOKUP($BS16,'État & Plan d''action'!$B$6:$DB$1113,68,FALSE),VLOOKUP($BS16,'État & Plan d''action'!$B$6:$DB$1113,70,FALSE),VLOOKUP($BS16,'État & Plan d''action'!$B$6:$DB$1113,78,FALSE),VLOOKUP($BS16,'État & Plan d''action'!$B$6:$DB$1113,80,FALSE),VLOOKUP($BS16,'État & Plan d''action'!$B$6:$DB$1113,88,FALSE),VLOOKUP($BS16,'État & Plan d''action'!$B$6:$DB$1113,90,FALSE),VLOOKUP($BS16,'État & Plan d''action'!$B$6:$DB$1113,98,FALSE),VLOOKUP($BS16,'État & Plan d''action'!$B$6:$DB$1113,100,FALSE))/(VLOOKUP($BS16,'Données par municipalité'!$B$4:$N$1113,13,FALSE)),"") -> 0.9966201577 | DN16: =IFERROR(SUM(VLOOKUP($BS16,'État & Plan d''action'!$B$6:$DB$1113,19,FALSE),VLOOKUP($BS16,'État & Plan d''action'!$B$6:$DB$1113,21,FALSE),VLOOKUP($BS16,'État & Plan d''action'!$B$6:$DB$1113,29,FALSE),VLOOKUP($BS16,'État & Plan d''action'!$B$6:$DB$1113,31,FALSE),VLOOKUP($BS16,'État & Plan d''action'!$B$6:$DB$1113,39,FALSE),VLOOKUP($BS16,'État & Plan d''action'!$B$6:$DB$1113,41,FALSE),VLOOKUP($BS16,'État & Plan d''action'!$B$6:$DB$1113,49,FALSE),VLOOKUP($BS16,'État & Plan d''action'!$B$6:$DB$1113,51,FALSE),VLOOKUP($BS16,'État & Plan d''action'!$B$6:$DB$1113,59,FALSE),VLOOKUP($BS16,'État & Plan d''action'!$B$6:$DB$1113,61,FALSE),VLOOKUP($BS16,'État & Plan d''action'!$B$6:$DB$1113,69,FALSE),VLOOKUP($BS16,'État & Plan d''action'!$B$6:$DB$1113,71,FALSE),VLOOKUP($BS16,'État & Plan d''action'!$B$6:$DB$1113,79,FALSE),VLOOKUP($BS16,'État & Plan d''action'!$B$6:$DB$1113,81,FALSE),VLOOKUP($BS16,'État & Plan d''action'!$B$6:$DB$1113,89,FALSE),VLOOKUP($BS16,'État & Plan d''action'!$B$6:$DB$1113,91,FALSE),VLOOKUP($BS16,'État & Plan d''action'!$B$6:$DB$1113,99,FALSE),VLOOKUP($BS16,'État & Plan d''action'!$B$6:$DB$1113,101,FALSE))/(VLOOKUP($BS16,'Données par municipalité'!$B$4:$N$1113,13,FALSE)),"") -> 0.9966201577 | DO16: Non disponible | DR16: 0 | DS16: 0 | DT16: 39 | DU16: 69 | DV16: 34 | DW16: 2 | DX16: 0 | DY16: 56 | DZ16: 0 | EA16: 5 | EB16: 43 | EC16: 0 | ED16: 0 | EE16: =IF(VLOOKUP($BS16,'État & Plan d''action'!$B$6:$DM$1113,108,FALSE)="","",VLOOKUP($BS16,'État & Plan d''action'!$B$6:$DM$1113,108,FALSE)) -> 53 | EF16: =IF(VLOOKUP($BS16,'État & Plan d''action'!$B$6:$DM$1113,109,FALSE)="","",VLOOKUP($BS16,'État & Plan d''action'!$B$6:$DM$1113,109,FALSE)) -> 0 | EG16: =IF(VLOOKUP($BS16,'État & Plan d''action'!$B$6:$DM$1113,110,FALSE)="","",VLOOKUP($BS16,'État & Plan d''action'!$B$6:$DM$1113,110,FALSE)) -> 0 | EH16: 271 | EI16: 246 | EJ16: 237 | EK16: =VLOOKUP($BS16,'Données par municipalité'!$B$6:$F$1113,5,FALSE) -> 231 | EL16: 1.857760683 | EM16: 3.496970914 | EN16: 3.872644467 | EO16: =IF(VLOOKUP(BS16,'Données par municipalité'!$B$6:$U$1113,7,FALSE)="","",VLOOKUP(BS16,'Données par municipalité'!$B$6:$U$1113,7,FALSE)) -> 4.06206949 | EP16: 3 | EQ16: 5 | ER16: 0 | ES16: 2 | ET16: 0 | EU16: 7 | EV16: 3 | EY16: =VLOOKUP($BS16,'État & Plan d''action'!$B$6:$DK$1113,112,FALSE) -> 2 | EZ16: =VLOOKUP($BS16,'État & Plan d''action'!$B$6:$DK$1113,113,FALSE) ->  | FA16: =VLOOKUP($BS16,'État & Plan d''action'!$B$6:$DK$1113,114,FALSE) ->  | FB16: 9.691 | FC16: 253.858 | FD16: 0 | FE16: 0 | FF16: 0 | FG16: 9.691 | FH16: 253.858 | FI16: 0 | FJ16: 0 | FK16: 0 | FL16: 0 | FM16: 0 | FN16: 253.858 | FO16: 0 | FP16: 0 | FQ16: =IFERROR(SUM(VLOOKUP($BS16,'État & Plan d''action'!$B$6:$DB$1113,16,FALSE),VLOOKUP($BS16,'État & Plan d''action'!$B$6:$DB$1113,26,FALSE),VLOOKUP($BS16,'État & Plan d''action'!$B$6:$DB$1113,36,FALSE),VLOOKUP($BS16,'État & Plan d''action'!$B$6:$DB$1113,46,FALSE),VLOOKUP($BS16,'État & Plan d''action'!$B$6:$DB$1113,56,FALSE),VLOOKUP($BS16,'État & Plan d''action'!$B$6:$DB$1113,66,FALSE),VLOOKUP($BS16,'État & Plan d''action'!$B$6:$DB$1113,76,FALSE),VLOOKUP($BS16,'État & Plan d''action'!$B$6:$DB$1113,86,FALSE),VLOOKUP($BS16,'État & Plan d''action'!$B$6:$DB$1113,96,FALSE)),"") -> 150 | FR16: =IFERROR(SUM(VLOOKUP($BS16,'État & Plan d''action'!$B$6:$DB$1113,18,FALSE),VLOOKUP($BS16,'État & Plan d''action'!$B$6:$DB$1113,28,FALSE),VLOOKUP($BS16,'État & Plan d''action'!$B$6:$DB$1113,38,FALSE),VLOOKUP($BS16,'État & Plan d''action'!$B$6:$DB$1113,48,FALSE),VLOOKUP($BS16,'État & Plan d''action'!$B$6:$DB$1113,58,FALSE),VLOOKUP($BS16,'État & Plan d''action'!$B$6:$DB$1113,68,FALSE),VLOOKUP($BS16,'État & Plan d''action'!$B$6:$DB$1113,78,FALSE),VLOOKUP($BS16,'État & Plan d''action'!$B$6:$DB$1113,88,FALSE),VLOOKUP($BS16,'État & Plan d''action'!$B$6:$DB$1113,98,FALSE)),"") -> 253 | FS16: =IFERROR(SUM(VLOOKUP($BS16,'État & Plan d''action'!$B$6:$DB$1113,20,FALSE),VLOOKUP($BS16,'État & Plan d''action'!$B$6:$DB$1113,30,FALSE),VLOOKUP($BS16,'État & Plan d''action'!$B$6:$DB$1113,40,FALSE),VLOOKUP($BS16,'État & Plan d''action'!$B$6:$DB$1113,50,FALSE),VLOOKUP($BS16,'État & Plan d''action'!$B$6:$DB$1113,60,FALSE),VLOOKUP($BS16,'État & Plan d''action'!$B$6:$DB$1113,70,FALSE),VLOOKUP($BS16,'État & Plan d''action'!$B$6:$DB$1113,80,FALSE),VLOOKUP($BS16,'État & Plan d''action'!$B$6:$DB$1113,90,FALSE),VLOOKUP($BS16,'État & Plan d''action'!$B$6:$DB$1113,100,FALSE)),"") -> 0 | FT16: =IFERROR(SUM(VLOOKUP($BS16,'État & Plan d''action'!$B$6:$DB$1113,22,FALSE),VLOOKUP($BS16,'État & Plan d''action'!$B$6:$DB$1113,32,FALSE),VLOOKUP($BS16,'État & Plan d''action'!$B$6:$DB$1113,42,FALSE),VLOOKUP($BS16,'État & Plan d''action'!$B$6:$DB$1113,52,FALSE),VLOOKUP($BS16,'État & Plan d''action'!$B$6:$DB$1113,62,FALSE),VLOOKUP($BS16,'État & Plan d''action'!$B$6:$DB$1113,72,FALSE),VLOOKUP($BS16,'État & Plan d''action'!$B$6:$DB$1113,82,FALSE),VLOOKUP($BS16,'État & Plan d''action'!$B$6:$DB$1113,92,FALSE),VLOOKUP($BS16,'État & Plan d''action'!$B$6:$DB$1113,102,FALSE)),"") -> 0 | FU16: =IFERROR(SUM(VLOOKUP($BS16,'État & Plan d''action'!$B$6:$DB$1113,24,FALSE),VLOOKUP($BS16,'État & Plan d''action'!$B$6:$DB$1113,34,FALSE),VLOOKUP($BS16,'État & Plan d''action'!$B$6:$DB$1113,44,FALSE),VLOOKUP($BS16,'État & Plan d''action'!$B$6:$DB$1113,54,FALSE),VLOOKUP($BS16,'État & Plan d''action'!$B$6:$DB$1113,64,FALSE),VLOOKUP($BS16,'État & Plan d''action'!$B$6:$DB$1113,74,FALSE),VLOOKUP($BS16,'État & Plan d''action'!$B$6:$DB$1113,84,FALSE),VLOOKUP($BS16,'État & Plan d''action'!$B$6:$DB$1113,94,FALSE),VLOOKUP($BS16,'État & Plan d''action'!$B$6:$DB$1113,104,FALSE)),"") -> 0 | FV16: 63 | FW16: 65.02631579 | FX16: 65.02631579 | FY16: 65.02631579 | FZ16: 30915
BQ17: 1 | BR17: 1 | BS17: 78070 | BT17: AMHERST | BU17: 15 | BV17: non | BW17: non | BX17: non | BY17: non | BZ17: non | CA17: non | CB17: non | CC17: non | CD17: non | CE17: non | CF17: non | CG17: oui | CH17: oui | CI17: oui | CJ17: oui | CK17: oui | CL17: oui | CM17: oui | CN17: oui | CO17: oui | CP17: oui | CQ17: =IF(VLOOKUP(BS17,'Données par municipalité'!$B$6:$E$1113,4,FALSE)="","non","oui") -> oui | CR17: 513.8034961 | CS17: 452.2809206 | CT17: 488.7784914 | CU17: 388.621723 | CV17: 337.5527698 | CW17: 208.044993 | CX17: 198.8250239 | CY17: 244 | CZ17: 264 | DA17: 285 | DB17: =IF(VLOOKUP(BS17,'Données par municipalité'!$B$6:$F$1113,4,FALSE)="","",VLOOKUP(BS17,'Données par municipalité'!$B$6:$F$1113,4,FALSE)) -> 297 | DC17: Non disponible | DD17: 0.5 | DE17: 0 | DF17: 0 | DG17: 0 | DH17: 0 | DI17: 0 | DJ17: 0 | DK17: 0 | DL17: 0 | DM17: =IFERROR(SUM(VLOOKUP($BS17,'État & Plan d''action'!$B$6:$DB$1113,18,FALSE),VLOOKUP($BS17,'État & Plan d''action'!$B$6:$DB$1113,20,FALSE),VLOOKUP($BS17,'État & Plan d''action'!$B$6:$DB$1113,28,FALSE),VLOOKUP($BS17,'État & Plan d''action'!$B$6:$DB$1113,30,FALSE),VLOOKUP($BS17,'État & Plan d''action'!$B$6:$DB$1113,38,FALSE),VLOOKUP($BS17,'État & Plan d''action'!$B$6:$DB$1113,40,FALSE),VLOOKUP($BS17,'État & Plan d''action'!$B$6:$DB$1113,48,FALSE),VLOOKUP($BS17,'État & Plan d''action'!$B$6:$DB$1113,50,FALSE),VLOOKUP($BS17,'État & Plan d''action'!$B$6:$DB$1113,58,FALSE),VLOOKUP($BS17,'État & Plan d''action'!$B$6:$DB$1113,60,FALSE),VLOOKUP($BS17,'État & Plan d''action'!$B$6:$DB$1113,68,FALSE),VLOOKUP($BS17,'État & Plan d''action'!$B$6:$DB$1113,70,FALSE),VLOOKUP($BS17,'État & Plan d''action'!$B$6:$DB$1113,78,FALSE),VLOOKUP($BS17,'État & Plan d''action'!$B$6:$DB$1113,80,FALSE),VLOOKUP($BS17,'État & Plan d''action'!$B$6:$DB$1113,88,FALSE),VLOOKUP($BS17,'État & Plan d''action'!$B$6:$DB$1113,90,FALSE),VLOOKUP($BS17,'État & Plan d''action'!$B$6:$DB$1113,98,FALSE),VLOOKUP($BS17,'État & Plan d''action'!$B$6:$DB$1113,100,FALSE))/(VLOOKUP($BS17,'Données par municipalité'!$B$4:$N$1113,13,FALSE)),"") -> 0 | DN17: =IFERROR(SUM(VLOOKUP($BS17,'État & Plan d''action'!$B$6:$DB$1113,19,FALSE),VLOOKUP($BS17,'État & Plan d''action'!$B$6:$DB$1113,21,FALSE),VLOOKUP($BS17,'État & Plan d''action'!$B$6:$DB$1113,29,FALSE),VLOOKUP($BS17,'État & Plan d''action'!$B$6:$DB$1113,31,FALSE),VLOOKUP($BS17,'État & Plan d''action'!$B$6:$DB$1113,39,FALSE),VLOOKUP($BS17,'État & Plan d''action'!$B$6:$DB$1113,41,FALSE),VLOOKUP($BS17,'État & Plan d''action'!$B$6:$DB$1113,49,FALSE),VLOOKUP($BS17,'État & Plan d''action'!$B$6:$DB$1113,51,FALSE),VLOOKUP($BS17,'État & Plan d''action'!$B$6:$DB$1113,59,FALSE),VLOOKUP($BS17,'État & Plan d''action'!$B$6:$DB$1113,61,FALSE),VLOOKUP($BS17,'État & Plan d''action'!$B$6:$DB$1113,69,FALSE),VLOOKUP($BS17,'État & Plan d''action'!$B$6:$DB$1113,71,FALSE),VLOOKUP($BS17,'État & Plan d''action'!$B$6:$DB$1113,79,FALSE),VLOOKUP($BS17,'État & Plan d''action'!$B$6:$DB$1113,81,FALSE),VLOOKUP($BS17,'État & Plan d''action'!$B$6:$DB$1113,89,FALSE),VLOOKUP($BS17,'État & Plan d''action'!$B$6:$DB$1113,91,FALSE),VLOOKUP($BS17,'État & Plan d''action'!$B$6:$DB$1113,99,FALSE),VLOOKUP($BS17,'État & Plan d''action'!$B$6:$DB$1113,101,FALSE))/(VLOOKUP($BS17,'Données par municipalité'!$B$4:$N$1113,13,FALSE)),"") -> 1 | DO17: Non disponible | DP17: 0 | DQ17: 0 | DR17: 1 | DS17: 2 | DT17: 2 | DU17: 0 | DV17: 0 | DW17: 1 | DX17: 1 | DY17: 0 | DZ17: 0 | EA17: 1 | EB17: 0 | EC17: 0 | ED17: 1 | EE17: =IF(VLOOKUP($BS17,'État & Plan d''action'!$B$6:$DM$1113,108,FALSE)="","",VLOOKUP($BS17,'État & Plan d''action'!$B$6:$DM$1113,108,FALSE)) -> 0 | EF17: =IF(VLOOKUP($BS17,'État & Plan d''action'!$B$6:$DM$1113,109,FALSE)="","",VLOOKUP($BS17,'État & Plan d''action'!$B$6:$DM$1113,109,FALSE)) -> 0 | EG17: =IF(VLOOKUP($BS17,'État & Plan d''action'!$B$6:$DM$1113,110,FALSE)="","",VLOOKUP($BS17,'État & Plan d''action'!$B$6:$DM$1113,110,FALSE)) -> 0 | EH17: 158 | EI17: 208 | EJ17: 187 | EK17: =VLOOKUP($BS17,'Données par municipalité'!$B$6:$F$1113,5,FALSE) -> 189 | EL17: 1.980548986 | EM17: 0.952950373 | EN17: 2.302788818 | EO17: =IF(VLOOKUP(BS17,'Données par municipalité'!$B$6:$U$1113,7,FALSE)="","",VLOOKUP(BS17,'Données par municipalité'!$B$6:$U$1113,7,FALSE)) -> 2.394548522 | EP17: 0 | EQ17: 1 | ER17: 7 | ES17: 0 | ET17: 0 | EU17: 1 | EV17: S.O. | EX17: 2 | EY17: =VLOOKUP($BS17,'État & Plan d''action'!$B$6:$DK$1113,112,FALSE) -> S.O. | EZ17: =VLOOKUP($BS17,'État & Plan d''action'!$B$6:$DK$1113,113,FALSE) ->  | FA17: =VLOOKUP($BS17,'État & Plan d''action'!$B$6:$DK$1113,114,FALSE) ->  | FB17: 6.68 | FC17: 0 | FD17: 0 | FE17: 0 | FF17: 0 | FG17: 6.68 | FH17: 0 | FI17: 0 | FJ17: 0 | FK17: 0 | FL17: 0 | FM17: 0 | FN17: 0 | FO17: 0 | FP17: 0 | FQ17: =IFERROR(SUM(VLOOKUP($BS17,'État & Plan d''action'!$B$6:$DB$1113,16,FALSE),VLOOKUP($BS17,'État & Plan d''action'!$B$6:$DB$1113,26,FALSE),VLOOKUP($BS17,'État & Plan d''action'!$B$6:$DB$1113,36,FALSE),VLOOKUP($BS17,'État & Plan d''action'!$B$6:$DB$1113,46,FALSE),VLOOKUP($BS17,'État & Plan d''action'!$B$6:$DB$1113,56,FALSE),VLOOKUP($BS17,'État & Plan d''action'!$B$6:$DB$1113,66,FALSE),VLOOKUP($BS17,'État & Plan d''action'!$B$6:$DB$1113,76,FALSE),VLOOKUP($BS17,'État & Plan d''action'!$B$6:$DB$1113,86,FALSE),VLOOKUP($BS17,'État & Plan d''action'!$B$6:$DB$1113,96,FALSE)),"") -> 6.508 | FR17: =IFERROR(SUM(VLOOKUP($BS17,'État & Plan d''action'!$B$6:$DB$1113,18,FALSE),VLOOKUP($BS17,'État & Plan d''action'!$B$6:$DB$1113,28,FALSE),VLOOKUP($BS17,'État & Plan d''action'!$B$6:$DB$1113,38,FALSE),VLOOKUP($BS17,'État & Plan d''action'!$B$6:$DB$1113,48,FALSE),VLOOKUP($BS17,'État & Plan d''action'!$B$6:$DB$1113,58,FALSE),VLOOKUP($BS17,'État & Plan d''action'!$B$6:$DB$1113,68,FALSE),VLOOKUP($BS17,'État & Plan d''action'!$B$6:$DB$1113,78,FALSE),VLOOKUP($BS17,'État & Plan d''action'!$B$6:$DB$1113,88,FALSE),VLOOKUP($BS17,'État & Plan d''action'!$B$6:$DB$1113,98,FALSE)),"") -> 0 | FS17: =IFERROR(SUM(VLOOKUP($BS17,'État & Plan d''action'!$B$6:$DB$1113,20,FALSE),VLOOKUP($BS17,'État & Plan d''action'!$B$6:$DB$1113,30,FALSE),VLOOKUP($BS17,'État & Plan d''action'!$B$6:$DB$1113,40,FALSE),VLOOKUP($BS17,'État & Plan d''action'!$B$6:$DB$1113,50,FALSE),VLOOKUP($BS17,'État & Plan d''action'!$B$6:$DB$1113,60,FALSE),VLOOKUP($BS17,'État & Plan d''action'!$B$6:$DB$1113,70,FALSE),VLOOKUP($BS17,'État & Plan d''action'!$B$6:$DB$1113,80,FALSE),VLOOKUP($BS17,'État & Plan d''action'!$B$6:$DB$1113,90,FALSE),VLOOKUP($BS17,'État & Plan d''action'!$B$6:$DB$1113,100,FALSE)),"") -> 0 | FT17: =IFERROR(SUM(VLOOKUP($BS17,'État & Plan d''action'!$B$6:$DB$1113,22,FALSE),VLOOKUP($BS17,'État & Plan d''action'!$B$6:$DB$1113,32,FALSE),VLOOKUP($BS17,'État & Plan d''action'!$B$6:$DB$1113,42,FALSE),VLOOKUP($BS17,'État & Plan d''action'!$B$6:$DB$1113,52,FALSE),VLOOKUP($BS17,'État & Plan d''action'!$B$6:$DB$1113,62,FALSE),VLOOKUP($BS17,'État & Plan d''action'!$B$6:$DB$1113,72,FALSE),VLOOKUP($BS17,'État & Plan d''action'!$B$6:$DB$1113,82,FALSE),VLOOKUP($BS17,'État & Plan d''action'!$B$6:$DB$1113,92,FALSE),VLOOKUP($BS17,'État & Plan d''action'!$B$6:$DB$1113,102,FALSE)),"") -> 0 | FU17: =IFERROR(SUM(VLOOKUP($BS17,'État & Plan d''action'!$B$6:$DB$1113,24,FALSE),VLOOKUP($BS17,'État & Plan d''action'!$B$6:$DB$1113,34,FALSE),VLOOKUP($BS17,'État & Plan d''action'!$B$6:$DB$1113,44,FALSE),VLOOKUP($BS17,'État & Plan d''action'!$B$6:$DB$1113,54,FALSE),VLOOKUP($BS17,'État & Plan d''action'!$B$6:$DB$1113,64,FALSE),VLOOKUP($BS17,'État & Plan d''action'!$B$6:$DB$1113,74,FALSE),VLOOKUP($BS17,'État & Plan d''action'!$B$6:$DB$1113,84,FALSE),VLOOKUP($BS17,'État & Plan d''action'!$B$6:$DB$1113,94,FALSE),VLOOKUP($BS17,'État & Plan d''action'!$B$6:$DB$1113,104,FALSE)),"") -> 0 | FV17: 59 | FW17: 57.65116279 | FX17: 58.72972973 | FY17: 58.72972973 | FZ17: 1509
BQ18: 1 | BR18: 1 | BS18: 88055 | BT18: AMOS | BU18: 8 | BV18: non | BW18: non | BX18: non | BY18: non | BZ18: non | CA18: non | CB18: non | CC18: non | CD18: non | CE18: non | CF18: non | CG18: oui | CH18: oui | CI18: oui | CJ18: oui | CK18: oui | CL18: oui | CM18: oui | CN18: oui | CO18: oui | CP18: oui | CQ18: =IF(VLOOKUP(BS18,'Données par municipalité'!$B$6:$E$1113,4,FALSE)="","non","oui") -> oui | CR18: 603.8033952 | CS18: 466.0457248 | CT18: 424.0781628 | CU18: 404.890079 | CV18: 444.8717339 | CW18: 387.976034 | CX18: 367.1509458 | CY18: 429 | CZ18: 480 | DA18: 380 | DB18: =IF(VLOOKUP(BS18,'Données par municipalité'!$B$6:$F$1113,4,FALSE)="","",VLOOKUP(BS18,'Données par municipalité'!$B$6:$F$1113,4,FALSE)) -> 376 | DC18: Non disponible | DD18: 0 | DE18: 0 | DF18: 0 | DG18: 0 | DH18: 0 | DI18: 0 | DJ18: 0 | DK18: 0 | DL18: 0 | DM18: =IFERROR(SUM(VLOOKUP($BS18,'État & Plan d''action'!$B$6:$DB$1113,18,FALSE),VLOOKUP($BS18,'État & Plan d''action'!$B$6:$DB$1113,20,FALSE),VLOOKUP($BS18,'État & Plan d''action'!$B$6:$DB$1113,28,FALSE),VLOOKUP($BS18,'État & Plan d''action'!$B$6:$DB$1113,30,FALSE),VLOOKUP($BS18,'État & Plan d''action'!$B$6:$DB$1113,38,FALSE),VLOOKUP($BS18,'État & Plan d''action'!$B$6:$DB$1113,40,FALSE),VLOOKUP($BS18,'État & Plan d''action'!$B$6:$DB$1113,48,FALSE),VLOOKUP($BS18,'État & Plan d''action'!$B$6:$DB$1113,50,FALSE),VLOOKUP($BS18,'État & Plan d''action'!$B$6:$DB$1113,58,FALSE),VLOOKUP($BS18,'État & Plan d''action'!$B$6:$DB$1113,60,FALSE),VLOOKUP($BS18,'État & Plan d''action'!$B$6:$DB$1113,68,FALSE),VLOOKUP($BS18,'État & Plan d''action'!$B$6:$DB$1113,70,FALSE),VLOOKUP($BS18,'État & Plan d''action'!$B$6:$DB$1113,78,FALSE),VLOOKUP($BS18,'État & Plan d''action'!$B$6:$DB$1113,80,FALSE),VLOOKUP($BS18,'État & Plan d''action'!$B$6:$DB$1113,88,FALSE),VLOOKUP($BS18,'État & Plan d''action'!$B$6:$DB$1113,90,FALSE),VLOOKUP($BS18,'État & Plan d''action'!$B$6:$DB$1113,98,FALSE),VLOOKUP($BS18,'État & Plan d''action'!$B$6:$DB$1113,100,FALSE))/(VLOOKUP($BS18,'Données par municipalité'!$B$4:$N$1113,13,FALSE)),"") -> 0.5 | DN18: =IFERROR(SUM(VLOOKUP($BS18,'État & Plan d''action'!$B$6:$DB$1113,19,FALSE),VLOOKUP($BS18,'État & Plan d''action'!$B$6:$DB$1113,21,FALSE),VLOOKUP($BS18,'État & Plan d''action'!$B$6:$DB$1113,29,FALSE),VLOOKUP($BS18,'État & Plan d''action'!$B$6:$DB$1113,31,FALSE),VLOOKUP($BS18,'État & Plan d''action'!$B$6:$DB$1113,39,FALSE),VLOOKUP($BS18,'État & Plan d''action'!$B$6:$DB$1113,41,FALSE),VLOOKUP($BS18,'État & Plan d''action'!$B$6:$DB$1113,49,FALSE),VLOOKUP($BS18,'État & Plan d''action'!$B$6:$DB$1113,51,FALSE),VLOOKUP($BS18,'État & Plan d''action'!$B$6:$DB$1113,59,FALSE),VLOOKUP($BS18,'État & Plan d''action'!$B$6:$DB$1113,61,FALSE),VLOOKUP($BS18,'État & Plan d''action'!$B$6:$DB$1113,69,FALSE),VLOOKUP($BS18,'État & Plan d''action'!$B$6:$DB$1113,71,FALSE),VLOOKUP($BS18,'État & Plan d''action'!$B$6:$DB$1113,79,FALSE),VLOOKUP($BS18,'État & Plan d''action'!$B$6:$DB$1113,81,FALSE),VLOOKUP($BS18,'État & Plan d''action'!$B$6:$DB$1113,89,FALSE),VLOOKUP($BS18,'État & Plan d''action'!$B$6:$DB$1113,91,FALSE),VLOOKUP($BS18,'État & Plan d''action'!$B$6:$DB$1113,99,FALSE),VLOOKUP($BS18,'État & Plan d''action'!$B$6:$DB$1113,101,FALSE))/(VLOOKUP($BS18,'Données par municipalité'!$B$4:$N$1113,13,FALSE)),"") -> 1 | DO18: Non disponible | DR18: 0 | DS18: 0 | DT18: 8 | DU18: 11 | DV18: 9 | DW18: 3 | DX18: 2 | DY18: 8 | DZ18: 4 | EA18: 3 | EB18: 7 | EC18: 5 | ED18: 2 | EE18: =IF(VLOOKUP($BS18,'État & Plan d''action'!$B$6:$DM$1113,108,FALSE)="","",VLOOKUP($BS18,'État & Plan d''action'!$B$6:$DM$1113,108,FALSE)) -> 17 | EF18: =IF(VLOOKUP($BS18,'État & Plan d''action'!$B$6:$DM$1113,109,FALSE)="","",VLOOKUP($BS18,'État & Plan d''action'!$B$6:$DM$1113,109,FALSE)) -> 2 | EG18: =IF(VLOOKUP($BS18,'État & Plan d''action'!$B$6:$DM$1113,110,FALSE)="","",VLOOKUP($BS18,'État & Plan d''action'!$B$6:$DM$1113,110,FALSE)) -> 1 | EH18: 231 | EI18: 272 | EJ18: 223 | EK18: =VLOOKUP($BS18,'Données par municipalité'!$B$6:$F$1113,5,FALSE) -> 194 | EL18: 0.7647509206 | EM18: 1.898776993 | EN18: 3.148246378 | EO18: =IF(VLOOKUP(BS18,'Données par municipalité'!$B$6:$U$1113,7,FALSE)="","",VLOOKUP(BS18,'Données par municipalité'!$B$6:$U$1113,7,FALSE)) -> 6.246183155 | EP18: 2 | EQ18: 2 | ER18: 2 | ES18: 2 | ET18: 2 | EU18: 2 | EV18: 2 | EW18: 2 | EX18: 2 | EY18: =VLOOKUP($BS18,'État & Plan d''action'!$B$6:$DK$1113,112,FALSE) -> 2 | EZ18: =VLOOKUP($BS18,'État & Plan d''action'!$B$6:$DK$1113,113,FALSE) -> 2 | FA18: =VLOOKUP($BS18,'État & Plan d''action'!$B$6:$DK$1113,114,FALSE) -> 2 | FB18: 0 | FC18: 0 | FD18: 0 | FE18: 0 | FF18: 0 | FG18: 0 | FH18: 0 | FI18: 0 | FJ18: 0 | FK18: 0 | FL18: 0 | FM18: 0 | FN18: 0 | FO18: 0 | FP18: 0 | FQ18: =IFERROR(SUM(VLOOKUP($BS18,'État & Plan d''action'!$B$6:$DB$1113,16,FALSE),VLOOKUP($BS18,'État & Plan d''action'!$B$6:$DB$1113,26,FALSE),VLOOKUP($BS18,'État & Plan d''action'!$B$6:$DB$1113,36,FALSE),VLOOKUP($BS18,'État & Plan d''action'!$B$6:$DB$1113,46,FALSE),VLOOKUP($BS18,'État & Plan d''action'!$B$6:$DB$1113,56,FALSE),VLOOKUP($BS18,'État & Plan d''action'!$B$6:$DB$1113,66,FALSE),VLOOKUP($BS18,'État & Plan d''action'!$B$6:$DB$1113,76,FALSE),VLOOKUP($BS18,'État & Plan d''action'!$B$6:$DB$1113,86,FALSE),VLOOKUP($BS18,'État & Plan d''action'!$B$6:$DB$1113,96,FALSE)),"") -> 0 | FR18: =IFERROR(SUM(VLOOKUP($BS18,'État & Plan d''action'!$B$6:$DB$1113,18,FALSE),VLOOKUP($BS18,'État & Plan d''action'!$B$6:$DB$1113,28,FALSE),VLOOKUP($BS18,'État & Plan d''action'!$B$6:$DB$1113,38,FALSE),VLOOKUP($BS18,'État & Plan d''action'!$B$6:$DB$1113,48,FALSE),VLOOKUP($BS18,'État & Plan d''action'!$B$6:$DB$1113,58,FALSE),VLOOKUP($BS18,'État & Plan d''action'!$B$6:$DB$1113,68,FALSE),VLOOKUP($BS18,'État & Plan d''action'!$B$6:$DB$1113,78,FALSE),VLOOKUP($BS18,'État & Plan d''action'!$B$6:$DB$1113,88,FALSE),VLOOKUP($BS18,'État & Plan d''action'!$B$6:$DB$1113,98,FALSE)),"") -> 0 | FS18: =IFERROR(SUM(VLOOKUP($BS18,'État & Plan d''action'!$B$6:$DB$1113,20,FALSE),VLOOKUP($BS18,'État & Plan d''action'!$B$6:$DB$1113,30,FALSE),VLOOKUP($BS18,'État & Plan d''action'!$B$6:$DB$1113,40,FALSE),VLOOKUP($BS18,'État & Plan d''action'!$B$6:$DB$1113,50,FALSE),VLOOKUP($BS18,'État & Plan d''action'!$B$6:$DB$1113,60,FALSE),VLOOKUP($BS18,'État & Plan d''action'!$B$6:$DB$1113,70,FALSE),VLOOKUP($BS18,'État & Plan d''action'!$B$6:$DB$1113,80,FALSE),VLOOKUP($BS18,'État & Plan d''action'!$B$6:$DB$1113,90,FALSE),VLOOKUP($BS18,'État & Plan d''action'!$B$6:$DB$1113,100,FALSE)),"") -> 51.56 | FT18: =IFERROR(SUM(VLOOKUP($BS18,'État & Plan d''action'!$B$6:$DB$1113,22,FALSE),VLOOKUP($BS18,'État & Plan d''action'!$B$6:$DB$1113,32,FALSE),VLOOKUP($BS18,'État & Plan d''action'!$B$6:$DB$1113,42,FALSE),VLOOKUP($BS18,'État & Plan d''action'!$B$6:$DB$1113,52,FALSE),VLOOKUP($BS18,'État & Plan d''action'!$B$6:$DB$1113,62,FALSE),VLOOKUP($BS18,'État & Plan d''action'!$B$6:$DB$1113,72,FALSE),VLOOKUP($BS18,'État & Plan d''action'!$B$6:$DB$1113,82,FALSE),VLOOKUP($BS18,'État & Plan d''action'!$B$6:$DB$1113,92,FALSE),VLOOKUP($BS18,'État & Plan d''action'!$B$6:$DB$1113,102,FALSE)),"") -> 0 | FU18: =IFERROR(SUM(VLOOKUP($BS18,'État & Plan d''action'!$B$6:$DB$1113,24,FALSE),VLOOKUP($BS18,'État & Plan d''action'!$B$6:$DB$1113,34,FALSE),VLOOKUP($BS18,'État & Plan d''action'!$B$6:$DB$1113,44,FALSE),VLOOKUP($BS18,'État & Plan d''action'!$B$6:$DB$1113,54,FALSE),VLOOKUP($BS18,'État & Plan d''action'!$B$6:$DB$1113,64,FALSE),VLOOKUP($BS18,'État & Plan d''action'!$B$6:$DB$1113,74,FALSE),VLOOKUP($BS18,'État & Plan d''action'!$B$6:$DB$1113,84,FALSE),VLOOKUP($BS18,'État & Plan d''action'!$B$6:$DB$1113,94,FALSE),VLOOKUP($BS18,'État & Plan d''action'!$B$6:$DB$1113,104,FALSE)),"") -> 0 | FV18: 53 | FW18: 63.30631386 | FX18: 61.85363432 | FY18: 58.82608563 | FZ18: 12721
BQ19: 1 | BR19: 1 | BS19: 7047 | BT19: AMQUI | BU19: 1 | BV19: non | BW19: non | BX19: non | BY19: non | BZ19: non | CA19: non | CB19: non | CC19: non | CD19: non | CE19: non | CF19: non | CG19: oui | CH19: non | CI19: non | CJ19: non | CK19: non | CL19: oui | CM19: oui | CN19: non | CO19: oui | CP19: oui | CQ19: =IF(VLOOKUP(BS19,'Données par municipalité'!$B$6:$E$1113,4,FALSE)="","non","oui") -> non | CR19: 199.2656648 | CW19: 508.6403646 | CX19: 523.4754104 | CZ19: 623 | DA19: 560 | DB19: =IF(VLOOKUP(BS19,'Données par municipalité'!$B$6:$F$1113,4,FALSE)="","",VLOOKUP(BS19,'Données par municipalité'!$B$6:$F$1113,4,FALSE)) ->  | DC19: Non disponible | DH19: 0 | DI19: 0 | DK19: 0.2611022546 | DL19: 1 | DM19: =IFERROR(SUM(VLOOKUP($BS19,'État & Plan d''action'!$B$6:$DB$1113,18,FALSE),VLOOKUP($BS19,'État & Plan d''action'!$B$6:$DB$1113,20,FALSE),VLOOKUP($BS19,'État & Plan d''action'!$B$6:$DB$1113,28,FALSE),VLOOKUP($BS19,'État & Plan d''action'!$B$6:$DB$1113,30,FALSE),VLOOKUP($BS19,'État & Plan d''action'!$B$6:$DB$1113,38,FALSE),VLOOKUP($BS19,'État & Plan d''action'!$B$6:$DB$1113,40,FALSE),VLOOKUP($BS19,'État & Plan d''action'!$B$6:$DB$1113,48,FALSE),VLOOKUP($BS19,'État & Plan d''action'!$B$6:$DB$1113,50,FALSE),VLOOKUP($BS19,'État & Plan d''action'!$B$6:$DB$1113,58,FALSE),VLOOKUP($BS19,'État & Plan d''action'!$B$6:$DB$1113,60,FALSE),VLOOKUP($BS19,'État & Plan d''action'!$B$6:$DB$1113,68,FALSE),VLOOKUP($BS19,'État & Plan d''action'!$B$6:$DB$1113,70,FALSE),VLOOKUP($BS19,'État & Plan d''action'!$B$6:$DB$1113,78,FALSE),VLOOKUP($BS19,'État & Plan d''action'!$B$6:$DB$1113,80,FALSE),VLOOKUP($BS19,'État & Plan d''action'!$B$6:$DB$1113,88,FALSE),VLOOKUP($BS19,'État & Plan d''action'!$B$6:$DB$1113,90,FALSE),VLOOKUP($BS19,'État & Plan d''action'!$B$6:$DB$1113,98,FALSE),VLOOKUP($BS19,'État & Plan d''action'!$B$6:$DB$1113,100,FALSE))/(VLOOKUP($BS19,'Données par municipalité'!$B$4:$N$1113,13,FALSE)),"") ->  | DN19: =IFERROR(SUM(VLOOKUP($BS19,'État & Plan d''action'!$B$6:$DB$1113,19,FALSE),VLOOKUP($BS19,'État & Plan d''action'!$B$6:$DB$1113,21,FALSE),VLOOKUP($BS19,'État & Plan d''action'!$B$6:$DB$1113,29,FALSE),VLOOKUP($BS19,'État & Plan d''action'!$B$6:$DB$1113,31,FALSE),VLOOKUP($BS19,'État & Plan d''action'!$B$6:$DB$1113,39,FALSE),VLOOKUP($BS19,'État & Plan d''action'!$B$6:$DB$1113,41,FALSE),VLOOKUP($BS19,'État & Plan d''action'!$B$6:$DB$1113,49,FALSE),VLOOKUP($BS19,'État & Plan d''action'!$B$6:$DB$1113,51,FALSE),VLOOKUP($BS19,'État & Plan d''action'!$B$6:$DB$1113,59,FALSE),VLOOKUP($BS19,'État & Plan d''action'!$B$6:$DB$1113,61,FALSE),VLOOKUP($BS19,'État & Plan d''action'!$B$6:$DB$1113,69,FALSE),VLOOKUP($BS19,'État & Plan d''action'!$B$6:$DB$1113,71,FALSE),VLOOKUP($BS19,'État & Plan d''action'!$B$6:$DB$1113,79,FALSE),VLOOKUP($BS19,'État & Plan d''action'!$B$6:$DB$1113,81,FALSE),VLOOKUP($BS19,'État & Plan d''action'!$B$6:$DB$1113,89,FALSE),VLOOKUP($BS19,'État & Plan d''action'!$B$6:$DB$1113,91,FALSE),VLOOKUP($BS19,'État & Plan d''action'!$B$6:$DB$1113,99,FALSE),VLOOKUP($BS19,'État & Plan d''action'!$B$6:$DB$1113,101,FALSE))/(VLOOKUP($BS19,'Données par municipalité'!$B$4:$N$1113,13,FALSE)),"") ->  | DO19: Non disponible | DR19: 0 | DS19: 0 | DT19: 1 | DU19: 1 | DY19: 3 | DZ19: 0 | EA19: 0 | EB19: 1 | EC19: 0 | ED19: 2 | EE19: =IF(VLOOKUP($BS19,'État & Plan d''action'!$B$6:$DM$1113,108,FALSE)="","",VLOOKUP($BS19,'État & Plan d''action'!$B$6:$DM$1113,108,FALSE)) ->  | EF19: =IF(VLOOKUP($BS19,'État & Plan d''action'!$B$6:$DM$1113,109,FALSE)="","",VLOOKUP($BS19,'État & Plan d''action'!$B$6:$DM$1113,109,FALSE)) ->  | EG19: =IF(VLOOKUP($BS19,'État & Plan d''action'!$B$6:$DM$1113,110,FALSE)="","",VLOOKUP($BS19,'État & Plan d''action'!$B$6:$DM$1113,110,FALSE)) ->  | EI19: 348 | EJ19: 262 | EK19: =VLOOKUP($BS19,'Données par municipalité'!$B$6:$F$1113,5,FALSE) -> 0 | EM19: 9.360205358 | EN19: 8.168554426 | EO19: =IF(VLOOKUP(BS19,'Données par municipalité'!$B$6:$U$1113,7,FALSE)="","",VLOOKUP(BS19,'Données par municipalité'!$B$6:$U$1113,7,FALSE)) ->  | ES19: 2 | ET19: 0 | EU19: 0 | EV19: 2 | EX19: 2 | EY19: =VLOOKUP($BS19,'État & Plan d''action'!$B$6:$DK$1113,112,FALSE) -> 0 | EZ19: =VLOOKUP($BS19,'État & Plan d''action'!$B$6:$DK$1113,113,FALSE) -> 0 | FA19: =VLOOKUP($BS19,'État & Plan d''action'!$B$6:$DK$1113,114,FALSE) -> 0 | FL19: 0 | FM19: 0 | FN19: 43.91 | FO19: 0 | FP19: 0 | FQ19: =IFERROR(SUM(VLOOKUP($BS19,'État & Plan d''action'!$B$6:$DB$1113,16,FALSE),VLOOKUP($BS19,'État & Plan d''action'!$B$6:$DB$1113,26,FALSE),VLOOKUP($BS19,'État & Plan d''action'!$B$6:$DB$1113,36,FALSE),VLOOKUP($BS19,'État & Plan d''action'!$B$6:$DB$1113,46,FALSE),VLOOKUP($BS19,'État & Plan d''action'!$B$6:$DB$1113,56,FALSE),VLOOKUP($BS19,'État & Plan d''action'!$B$6:$DB$1113,66,FALSE),VLOOKUP($BS19,'État & Plan d''action'!$B$6:$DB$1113,76,FALSE),VLOOKUP($BS19,'État & Plan d''action'!$B$6:$DB$1113,86,FALSE),VLOOKUP($BS19,'État & Plan d''action'!$B$6:$DB$1113,96,FALSE)),"") -> 0 | FR19: =IFERROR(SUM(VLOOKUP($BS19,'État & Plan d''action'!$B$6:$DB$1113,18,FALSE),VLOOKUP($BS19,'État & Plan d''action'!$B$6:$DB$1113,28,FALSE),VLOOKUP($BS19,'État & Plan d''action'!$B$6:$DB$1113,38,FALSE),VLOOKUP($BS19,'État & Plan d''action'!$B$6:$DB$1113,48,FALSE),VLOOKUP($BS19,'État & Plan d''action'!$B$6:$DB$1113,58,FALSE),VLOOKUP($BS19,'État & Plan d''action'!$B$6:$DB$1113,68,FALSE),VLOOKUP($BS19,'État & Plan d''action'!$B$6:$DB$1113,78,FALSE),VLOOKUP($BS19,'État & Plan d''action'!$B$6:$DB$1113,88,FALSE),VLOOKUP($BS19,'État & Plan d''action'!$B$6:$DB$1113,98,FALSE)),"") -> 0 | FS19: =IFERROR(SUM(VLOOKUP($BS19,'État & Plan d''action'!$B$6:$DB$1113,20,FALSE),VLOOKUP($BS19,'État & Plan d''action'!$B$6:$DB$1113,30,FALSE),VLOOKUP($BS19,'État & Plan d''action'!$B$6:$DB$1113,40,FALSE),VLOOKUP($BS19,'État & Plan d''action'!$B$6:$DB$1113,50,FALSE),VLOOKUP($BS19,'État & Plan d''action'!$B$6:$DB$1113,60,FALSE),VLOOKUP($BS19,'État & Plan d''action'!$B$6:$DB$1113,70,FALSE),VLOOKUP($BS19,'État & Plan d''action'!$B$6:$DB$1113,80,FALSE),VLOOKUP($BS19,'État & Plan d''action'!$B$6:$DB$1113,90,FALSE),VLOOKUP($BS19,'État & Plan d''action'!$B$6:$DB$1113,100,FALSE)),"") -> 0 | FT19: =IFERROR(SUM(VLOOKUP($BS19,'État & Plan d''action'!$B$6:$DB$1113,22,FALSE),VLOOKUP($BS19,'État & Plan d''action'!$B$6:$DB$1113,32,FALSE),VLOOKUP($BS19,'État & Plan d''action'!$B$6:$DB$1113,42,FALSE),VLOOKUP($BS19,'État & Plan d''action'!$B$6:$DB$1113,52,FALSE),VLOOKUP($BS19,'État & Plan d''action'!$B$6:$DB$1113,62,FALSE),VLOOKUP($BS19,'État & Plan d''action'!$B$6:$DB$1113,72,FALSE),VLOOKUP($BS19,'État & Plan d''action'!$B$6:$DB$1113,82,FALSE),VLOOKUP($BS19,'État & Plan d''action'!$B$6:$DB$1113,92,FALSE),VLOOKUP($BS19,'État & Plan d''action'!$B$6:$DB$1113,102,FALSE)),"") -> 0 | FU19: =IFERROR(SUM(VLOOKUP($BS19,'État & Plan d''action'!$B$6:$DB$1113,24,FALSE),VLOOKUP($BS19,'État & Plan d''action'!$B$6:$DB$1113,34,FALSE),VLOOKUP($BS19,'État & Plan d''action'!$B$6:$DB$1113,44,FALSE),VLOOKUP($BS19,'État & Plan d''action'!$B$6:$DB$1113,54,FALSE),VLOOKUP($BS19,'État & Plan d''action'!$B$6:$DB$1113,64,FALSE),VLOOKUP($BS19,'État & Plan d''action'!$B$6:$DB$1113,74,FALSE),VLOOKUP($BS19,'État & Plan d''action'!$B$6:$DB$1113,84,FALSE),VLOOKUP($BS19,'État & Plan d''action'!$B$6:$DB$1113,94,FALSE),VLOOKUP($BS19,'État & Plan d''action'!$B$6:$DB$1113,104,FALSE)),"") -> 0 | FW19: 53.91836735 | FX19: 52.15686275 | FZ19: 6119
BQ20: 1 | BR20: 1 | BS20: 55008 | BT20: ANGE-GARDIEN | BU20: 16 | BV20: non | BW20: non | BX20: non | BY20: non | BZ20: non | CA20: non | CB20: non | CC20: non | CD20: non | CE20: non | CF20: non | CG20: oui | CH20: oui | CI20: non | CJ20: oui | CK20: oui | CL20: oui | CM20: oui | CN20: oui | CO20: oui | CP20: oui | CQ20: =IF(VLOOKUP(BS20,'Données par municipalité'!$B$6:$E$1113,4,FALSE)="","non","oui") -> oui | CR20: 1137.74979 | CS20: 1119.014689 | CU20: 1089.114684 | CV20: 1111.09821 | CW20: 1094.921913 | CX20: 1050.443598 | CY20: 1012 | CZ20: 1037 | DA20: 828 | DB20: =IF(VLOOKUP(BS20,'Données par municipalité'!$B$6:$F$1113,4,FALSE)="","",VLOOKUP(BS20,'Données par municipalité'!$B$6:$F$1113,4,FALSE)) -> 712 | DC20: Non disponible | DD20: 0 | DF20: 0 | DG20: 0 | DH20: 0 | DI20: 0 | DJ20: 0 | DK20: 0 | DL20: 0.9883694203 | DM20: =IFERROR(SUM(VLOOKUP($BS20,'État & Plan d''action'!$B$6:$DB$1113,18,FALSE),VLOOKUP($BS20,'État & Plan d''action'!$B$6:$DB$1113,20,FALSE),VLOOKUP($BS20,'État & Plan d''action'!$B$6:$DB$1113,28,FALSE),VLOOKUP($BS20,'État & Plan d''action'!$B$6:$DB$1113,30,FALSE),VLOOKUP($BS20,'État & Plan d''action'!$B$6:$DB$1113,38,FALSE),VLOOKUP($BS20,'État & Plan d''action'!$B$6:$DB$1113,40,FALSE),VLOOKUP($BS20,'État & Plan d''action'!$B$6:$DB$1113,48,FALSE),VLOOKUP($BS20,'État & Plan d''action'!$B$6:$DB$1113,50,FALSE),VLOOKUP($BS20,'État & Plan d''action'!$B$6:$DB$1113,58,FALSE),VLOOKUP($BS20,'État & Plan d''action'!$B$6:$DB$1113,60,FALSE),VLOOKUP($BS20,'État & Plan d''action'!$B$6:$DB$1113,68,FALSE),VLOOKUP($BS20,'État & Plan d''action'!$B$6:$DB$1113,70,FALSE),VLOOKUP($BS20,'État & Plan d''action'!$B$6:$DB$1113,78,FALSE),VLOOKUP($BS20,'État & Plan d''action'!$B$6:$DB$1113,80,FALSE),VLOOKUP($BS20,'État & Plan d''action'!$B$6:$DB$1113,88,FALSE),VLOOKUP($BS20,'État & Plan d''action'!$B$6:$DB$1113,90,FALSE),VLOOKUP($BS20,'État & Plan d''action'!$B$6:$DB$1113,98,FALSE),VLOOKUP($BS20,'État & Plan d''action'!$B$6:$DB$1113,100,FALSE))/(VLOOKUP($BS20,'Données par municipalité'!$B$4:$N$1113,13,FALSE)),"") -> 1 | DN20: =IFERROR(SUM(VLOOKUP($BS20,'État & Plan d''action'!$B$6:$DB$1113,19,FALSE),VLOOKUP($BS20,'État & Plan d''action'!$B$6:$DB$1113,21,FALSE),VLOOKUP($BS20,'État & Plan d''action'!$B$6:$DB$1113,29,FALSE),VLOOKUP($BS20,'État & Plan d''action'!$B$6:$DB$1113,31,FALSE),VLOOKUP($BS20,'État & Plan d''action'!$B$6:$DB$1113,39,FALSE),VLOOKUP($BS20,'État & Plan d''action'!$B$6:$DB$1113,41,FALSE),VLOOKUP($BS20,'État & Plan d''action'!$B$6:$DB$1113,49,FALSE),VLOOKUP($BS20,'État & Plan d''action'!$B$6:$DB$1113,51,FALSE),VLOOKUP($BS20,'État & Plan d''action'!$B$6:$DB$1113,59,FALSE),VLOOKUP($BS20,'État & Plan d''action'!$B$6:$DB$1113,61,FALSE),VLOOKUP($BS20,'État & Plan d''action'!$B$6:$DB$1113,69,FALSE),VLOOKUP($BS20,'État & Plan d''action'!$B$6:$DB$1113,71,FALSE),VLOOKUP($BS20,'État & Plan d''action'!$B$6:$DB$1113,79,FALSE),VLOOKUP($BS20,'État & Plan d''action'!$B$6:$DB$1113,81,FALSE),VLOOKUP($BS20,'État & Plan d''action'!$B$6:$DB$1113,89,FALSE),VLOOKUP($BS20,'État & Plan d''action'!$B$6:$DB$1113,91,FALSE),VLOOKUP($BS20,'État & Plan d''action'!$B$6:$DB$1113,99,FALSE),VLOOKUP($BS20,'État & Plan d''action'!$B$6:$DB$1113,101,FALSE))/(VLOOKUP($BS20,'Données par municipalité'!$B$4:$N$1113,13,FALSE)),"") -> 1 | DO20: Non disponible | DP20: 1 | DR20: 4 | DS20: 3 | DT20: 2 | DU20: 3 | DV20: 1 | DW20: 0 | DX20: 1 | DY20: 1 | DZ20: 0 | EA20: 0 | EB20: 0 | EC20: 0 | ED20: 0 | EE20: =IF(VLOOKUP($BS20,'État & Plan d''action'!$B$6:$DM$1113,108,FALSE)="","",VLOOKUP($BS20,'État & Plan d''action'!$B$6:$DM$1113,108,FALSE)) -> 1 | EF20: =IF(VLOOKUP($BS20,'État & Plan d''action'!$B$6:$DM$1113,109,FALSE)="","",VLOOKUP($BS20,'État & Plan d''action'!$B$6:$DM$1113,109,FALSE)) -> 0 | EG20: =IF(VLOOKUP($BS20,'État & Plan d''action'!$B$6:$DM$1113,110,FALSE)="","",VLOOKUP($BS20,'État & Plan d''action'!$B$6:$DM$1113,110,FALSE)) -> 0 | EH20: 301 | EI20: 295 | EJ20: 251 | EK20: =VLOOKUP($BS20,'Données par municipalité'!$B$6:$F$1113,5,FALSE) -> 230 | EL20: 3.549182122 | EM20: 3.682871692 | EN20: 3.644070082 | EO20: =IF(VLOOKUP(BS20,'Données par municipalité'!$B$6:$U$1113,7,FALSE)="","",VLOOKUP(BS20,'Données par municipalité'!$B$6:$U$1113,7,FALSE)) -> 2.045629406 | EP20: 1 | EQ20: 0 | ER20: 1 | ES20: 1 | ET20: 0 | EU20: 0 | EV20: S.O. | EY20: =VLOOKUP($BS20,'État & Plan d''action'!$B$6:$DK$1113,112,FALSE) -> 5 | EZ20: =VLOOKUP($BS20,'État & Plan d''action'!$B$6:$DK$1113,113,FALSE) ->  | FA20: =VLOOKUP($BS20,'État & Plan d''action'!$B$6:$DK$1113,114,FALSE) ->  | FB20: 0 | FC20: 0 | FD20: 0 | FE20: 0 | FF20: 0 | FG20: 0 | FH20: 0 | FI20: 0 | FJ20: 0 | FK20: 0 | FL20: 0 | FM20: 0 | FN20: 21.5 | FO20: 21.5 | FP20: 0 | FQ20: =IFERROR(SUM(VLOOKUP($BS20,'État & Plan d''action'!$B$6:$DB$1113,16,FALSE),VLOOKUP($BS20,'État & Plan d''action'!$B$6:$DB$1113,26,FALSE),VLOOKUP($BS20,'État & Plan d''action'!$B$6:$DB$1113,36,FALSE),VLOOKUP($BS20,'État & Plan d''action'!$B$6:$DB$1113,46,FALSE),VLOOKUP($BS20,'État & Plan d''action'!$B$6:$DB$1113,56,FALSE),VLOOKUP($BS20,'État & Plan d''action'!$B$6:$DB$1113,66,FALSE),VLOOKUP($BS20,'État & Plan d''action'!$B$6:$DB$1113,76,FALSE),VLOOKUP($BS20,'État & Plan d''action'!$B$6:$DB$1113,86,FALSE),VLOOKUP($BS20,'État & Plan d''action'!$B$6:$DB$1113,96,FALSE)),"") -> 0 | FR20: =IFERROR(SUM(VLOOKUP($BS20,'État & Plan d''action'!$B$6:$DB$1113,18,FALSE),VLOOKUP($BS20,'État & Plan d''action'!$B$6:$DB$1113,28,FALSE),VLOOKUP($BS20,'État & Plan d''action'!$B$6:$DB$1113,38,FALSE),VLOOKUP($BS20,'État & Plan d''action'!$B$6:$DB$1113,48,FALSE),VLOOKUP($BS20,'État & Plan d''action'!$B$6:$DB$1113,58,FALSE),VLOOKUP($BS20,'État & Plan d''action'!$B$6:$DB$1113,68,FALSE),VLOOKUP($BS20,'État & Plan d''action'!$B$6:$DB$1113,78,FALSE),VLOOKUP($BS20,'État & Plan d''action'!$B$6:$DB$1113,88,FALSE),VLOOKUP($BS20,'État & Plan d''action'!$B$6:$DB$1113,98,FALSE)),"") -> 0 | FS20: =IFERROR(SUM(VLOOKUP($BS20,'État & Plan d''action'!$B$6:$DB$1113,20,FALSE),VLOOKUP($BS20,'État & Plan d''action'!$B$6:$DB$1113,30,FALSE),VLOOKUP($BS20,'État & Plan d''action'!$B$6:$DB$1113,40,FALSE),VLOOKUP($BS20,'État & Plan d''action'!$B$6:$DB$1113,50,FALSE),VLOOKUP($BS20,'État & Plan d''action'!$B$6:$DB$1113,60,FALSE),VLOOKUP($BS20,'État & Plan d''action'!$B$6:$DB$1113,70,FALSE),VLOOKUP($BS20,'État & Plan d''action'!$B$6:$DB$1113,80,FALSE),VLOOKUP($BS20,'État & Plan d''action'!$B$6:$DB$1113,90,FALSE),VLOOKUP($BS20,'État & Plan d''action'!$B$6:$DB$1113,100,FALSE)),"") -> 21.753 | FT20: =IFERROR(SUM(VLOOKUP($BS20,'État & Plan d''action'!$B$6:$DB$1113,22,FALSE),VLOOKUP($BS20,'État & Plan d''action'!$B$6:$DB$1113,32,FALSE),VLOOKUP($BS20,'État & Plan d''action'!$B$6:$DB$1113,42,FALSE),VLOOKUP($BS20,'État & Plan d''action'!$B$6:$DB$1113,52,FALSE),VLOOKUP($BS20,'État & Plan d''action'!$B$6:$DB$1113,62,FALSE),VLOOKUP($BS20,'État & Plan d''action'!$B$6:$DB$1113,72,FALSE),VLOOKUP($BS20,'État & Plan d''action'!$B$6:$DB$1113,82,FALSE),VLOOKUP($BS20,'État & Plan d''action'!$B$6:$DB$1113,92,FALSE),VLOOKUP($BS20,'État & Plan d''action'!$B$6:$DB$1113,102,FALSE)),"") -> 21.753 | FU20: =IFERROR(SUM(VLOOKUP($BS20,'État & Plan d''action'!$B$6:$DB$1113,24,FALSE),VLOOKUP($BS20,'État & Plan d''action'!$B$6:$DB$1113,34,FALSE),VLOOKUP($BS20,'État & Plan d''action'!$B$6:$DB$1113,44,FALSE),VLOOKUP($BS20,'État & Plan d''action'!$B$6:$DB$1113,54,FALSE),VLOOKUP($BS20,'État & Plan d''action'!$B$6:$DB$1113,64,FALSE),VLOOKUP($BS20,'État & Plan d''action'!$B$6:$DB$1113,74,FALSE),VLOOKUP($BS20,'État & Plan d''action'!$B$6:$DB$1113,84,FALSE),VLOOKUP($BS20,'État & Plan d''action'!$B$6:$DB$1113,94,FALSE),VLOOKUP($BS20,'État & Plan d''action'!$B$6:$DB$1113,104,FALSE)),"") -> 0 | FV20: 75 | FW20: 74.83333333 | FX20: 75.34313725 | FY20: 71.82133055 | FZ20: 2862
W21: Évolution 2011 à 2020 | BQ21: 1 | BR21: 1 | BS21: 19037 | BT21: ARMAGH | BU21: 12 | BV21: non | BW21: non | BX21: non | BY21: non | BZ21: non | CA21: non | CB21: non | CC21: non | CD21: non | CE21: non | CF21: non | CG21: oui | CH21: oui | CI21: oui | CJ21: oui | CK21: oui | CL21: oui | CM21: oui | CN21: oui | CO21: oui | CP21: oui | CQ21: =IF(VLOOKUP(BS21,'Données par municipalité'!$B$6:$E$1113,4,FALSE)="","non","oui") -> oui | CR21: 330.8893256 | CS21: 345.0339 | CT21: 354.1952055 | CU21: 340.1820078 | CV21: 352.1497042 | CW21: 360.5236351 | CX21: 336.1624897 | CY21: 290 | CZ21: 309 | DA21: 320 | DB21: =IF(VLOOKUP(BS21,'Données par municipalité'!$B$6:$F$1113,4,FALSE)="","",VLOOKUP(BS21,'Données par municipalité'!$B$6:$F$1113,4,FALSE)) -> 292 | DC21: Non disponible | DD21: 0 | DE21: 1 | DF21: 1 | DG21: 0 | DH21: 0 | DI21: 0 | DJ21: 0 | DK21: 0 | DL21: 1 | DM21: =IFERROR(SUM(VLOOKUP($BS21,'État & Plan d''action'!$B$6:$DB$1113,18,FALSE),VLOOKUP($BS21,'État & Plan d''action'!$B$6:$DB$1113,20,FALSE),VLOOKUP($BS21,'État & Plan d''action'!$B$6:$DB$1113,28,FALSE),VLOOKUP($BS21,'État & Plan d''action'!$B$6:$DB$1113,30,FALSE),VLOOKUP($BS21,'État & Plan d''action'!$B$6:$DB$1113,38,FALSE),VLOOKUP($BS21,'État & Plan d''action'!$B$6:$DB$1113,40,FALSE),VLOOKUP($BS21,'État & Plan d''action'!$B$6:$DB$1113,48,FALSE),VLOOKUP($BS21,'État & Plan d''action'!$B$6:$DB$1113,50,FALSE),VLOOKUP($BS21,'État & Plan d''action'!$B$6:$DB$1113,58,FALSE),VLOOKUP($BS21,'État & Plan d''action'!$B$6:$DB$1113,60,FALSE),VLOOKUP($BS21,'État & Plan d''action'!$B$6:$DB$1113,68,FALSE),VLOOKUP($BS21,'État & Plan d''action'!$B$6:$DB$1113,70,FALSE),VLOOKUP($BS21,'État & Plan d''action'!$B$6:$DB$1113,78,FALSE),VLOOKUP($BS21,'État & Plan d''action'!$B$6:$DB$1113,80,FALSE),VLOOKUP($BS21,'État & Plan d''action'!$B$6:$DB$1113,88,FALSE),VLOOKUP($BS21,'État & Plan d''action'!$B$6:$DB$1113,90,FALSE),VLOOKUP($BS21,'État & Plan d''action'!$B$6:$DB$1113,98,FALSE),VLOOKUP($BS21,'État & Plan d''action'!$B$6:$DB$1113,100,FALSE))/(VLOOKUP($BS21,'Données par municipalité'!$B$4:$N$1113,13,FALSE)),"") -> 0 | DN21: =IFERROR(SUM(VLOOKUP($BS21,'État & Plan d''action'!$B$6:$DB$1113,19,FALSE),VLOOKUP($BS21,'État & Plan d''action'!$B$6:$DB$1113,21,FALSE),VLOOKUP($BS21,'État & Plan d''action'!$B$6:$DB$1113,29,FALSE),VLOOKUP($BS21,'État & Plan d''action'!$B$6:$DB$1113,31,FALSE),VLOOKUP($BS21,'État & Plan d''action'!$B$6:$DB$1113,39,FALSE),VLOOKUP($BS21,'État & Plan d''action'!$B$6:$DB$1113,41,FALSE),VLOOKUP($BS21,'État & Plan d''action'!$B$6:$DB$1113,49,FALSE),VLOOKUP($BS21,'État & Plan d''action'!$B$6:$DB$1113,51,FALSE),VLOOKUP($BS21,'État & Plan d''action'!$B$6:$DB$1113,59,FALSE),VLOOKUP($BS21,'État & Plan d''action'!$B$6:$DB$1113,61,FALSE),VLOOKUP($BS21,'État & Plan d''action'!$B$6:$DB$1113,69,FALSE),VLOOKUP($BS21,'État & Plan d''action'!$B$6:$DB$1113,71,FALSE),VLOOKUP($BS21,'État & Plan d''action'!$B$6:$DB$1113,79,FALSE),VLOOKUP($BS21,'État & Plan d''action'!$B$6:$DB$1113,81,FALSE),VLOOKUP($BS21,'État & Plan d''action'!$B$6:$DB$1113,89,FALSE),VLOOKUP($BS21,'État & Plan d''action'!$B$6:$DB$1113,91,FALSE),VLOOKUP($BS21,'État & Plan d''action'!$B$6:$DB$1113,99,FALSE),VLOOKUP($BS21,'État & Plan d''action'!$B$6:$DB$1113,101,FALSE))/(VLOOKUP($BS21,'Données par municipalité'!$B$4:$N$1113,13,FALSE)),"") -> 1 | DO21: Non disponible | DP21: 0 | DQ21: 0 | DR21: 2 | DS21: 3 | DT21: 2 | DU21: 0 | DV21: 0 | DW21: 0 | DX21: 0 | DY21: 2 | DZ21: 0 | EA21: 0 | EB21: 0 | EC21: 0 | ED21: 0 | EE21: =IF(VLOOKUP($BS21,'État & Plan d''action'!$B$6:$DM$1113,108,FALSE)="","",VLOOKUP($BS21,'État & Plan d''action'!$B$6:$DM$1113,108,FALSE)) -> 0 | EF21: =IF(VLOOKUP($BS21,'État & Plan d''action'!$B$6:$DM$1113,109,FALSE)="","",VLOOKUP($BS21,'État & Plan d''action'!$B$6:$DM$1113,109,FALSE)) -> 0 | EG21: =IF(VLOOKUP($BS21,'État & Plan d''action'!$B$6:$DM$1113,110,FALSE)="","",VLOOKUP($BS21,'État & Plan d''action'!$B$6:$DM$1113,110,FALSE)) -> 0 | EH21: 231 | EI21: 220 | EJ21: 251 | EK21: =VLOOKUP($BS21,'Données par municipalité'!$B$6:$F$1113,5,FALSE) -> 204 | EL21: 1.531634013 | EM21: 2.339634992 | EN21: 1.614705018 | EO21: =IF(VLOOKUP(BS21,'Données par municipalité'!$B$6:$U$1113,7,FALSE)="","",VLOOKUP(BS21,'Données par municipalité'!$B$6:$U$1113,7,FALSE)) -> 2.318581457 | EP21: 0 | EQ21: 0 | ER21: 0 | ES21: 1 | ET21: 0 | EU21: 0 | EV21: S.O. | EY21: =VLOOKUP($BS21,'État & Plan d''action'!$B$6:$DK$1113,112,FALSE) -> S.O. | EZ21: =VLOOKUP($BS21,'État & Plan d''action'!$B$6:$DK$1113,113,FALSE) ->  | FA21: =VLOOKUP($BS21,'État & Plan d''action'!$B$6:$DK$1113,114,FALSE) ->  | FB21: 0 | FC21: 0 | FD21: 0 | FE21: 0 | FF21: 0 | FG21: 0 | FH21: 0 | FI21: 0 | FJ21: 0 | FK21: 0 | FL21: 0 | FM21: 0 | FN21: 9.151 | FO21: 0 | FP21: 0 | FQ21: =IFERROR(SUM(VLOOKUP($BS21,'État & Plan d''action'!$B$6:$DB$1113,16,FALSE),VLOOKUP($BS21,'État & Plan d''action'!$B$6:$DB$1113,26,FALSE),VLOOKUP($BS21,'État & Plan d''action'!$B$6:$DB$1113,36,FALSE),VLOOKUP($BS21,'État & Plan d''action'!$B$6:$DB$1113,46,FALSE),VLOOKUP($BS21,'État & Plan d''action'!$B$6:$DB$1113,56,FALSE),VLOOKUP($BS21,'État & Plan d''action'!$B$6:$DB$1113,66,FALSE),VLOOKUP($BS21,'État & Plan d''action'!$B$6:$DB$1113,76,FALSE),VLOOKUP($BS21,'État & Plan d''action'!$B$6:$DB$1113,86,FALSE),VLOOKUP($BS21,'État & Plan d''action'!$B$6:$DB$1113,96,FALSE)),"") -> 0 | FR21: =IFERROR(SUM(VLOOKUP($BS21,'État & Plan d''action'!$B$6:$DB$1113,18,FALSE),VLOOKUP($BS21,'État & Plan d''action'!$B$6:$DB$1113,28,FALSE),VLOOKUP($BS21,'État & Plan d''action'!$B$6:$DB$1113,38,FALSE),VLOOKUP($BS21,'État & Plan d''action'!$B$6:$DB$1113,48,FALSE),VLOOKUP($BS21,'État & Plan d''action'!$B$6:$DB$1113,58,FALSE),VLOOKUP($BS21,'État & Plan d''action'!$B$6:$DB$1113,68,FALSE),VLOOKUP($BS21,'État & Plan d''action'!$B$6:$DB$1113,78,FALSE),VLOOKUP($BS21,'État & Plan d''action'!$B$6:$DB$1113,88,FALSE),VLOOKUP($BS21,'État & Plan d''action'!$B$6:$DB$1113,98,FALSE)),"") -> 0 | FS21: =IFERROR(SUM(VLOOKUP($BS21,'État & Plan d''action'!$B$6:$DB$1113,20,FALSE),VLOOKUP($BS21,'État & Plan d''action'!$B$6:$DB$1113,30,FALSE),VLOOKUP($BS21,'État & Plan d''action'!$B$6:$DB$1113,40,FALSE),VLOOKUP($BS21,'État & Plan d''action'!$B$6:$DB$1113,50,FALSE),VLOOKUP($BS21,'État & Plan d''action'!$B$6:$DB$1113,60,FALSE),VLOOKUP($BS21,'État & Plan d''action'!$B$6:$DB$1113,70,FALSE),VLOOKUP($BS21,'État & Plan d''action'!$B$6:$DB$1113,80,FALSE),VLOOKUP($BS21,'État & Plan d''action'!$B$6:$DB$1113,90,FALSE),VLOOKUP($BS21,'État & Plan d''action'!$B$6:$DB$1113,100,FALSE)),"") -> 0 | FT21: =IFERROR(SUM(VLOOKUP($BS21,'État & Plan d''action'!$B$6:$DB$1113,22,FALSE),VLOOKUP($BS21,'État & Plan d''action'!$B$6:$DB$1113,32,FALSE),VLOOKUP($BS21,'État & Plan d''action'!$B$6:$DB$1113,42,FALSE),VLOOKUP($BS21,'État & Plan d''action'!$B$6:$DB$1113,52,FALSE),VLOOKUP($BS21,'État & Plan d''action'!$B$6:$DB$1113,62,FALSE),VLOOKUP($BS21,'État & Plan d''action'!$B$6:$DB$1113,72,FALSE),VLOOKUP($BS21,'État & Plan d''action'!$B$6:$DB$1113,82,FALSE),VLOOKUP($BS21,'État & Plan d''action'!$B$6:$DB$1113,92,FALSE),VLOOKUP($BS21,'État & Plan d''action'!$B$6:$DB$1113,102,FALSE)),"") -> 0 | FU21: =IFERROR(SUM(VLOOKUP($BS21,'État & Plan d''action'!$B$6:$DB$1113,24,FALSE),VLOOKUP($BS21,'État & Plan d''action'!$B$6:$DB$1113,34,FALSE),VLOOKUP($BS21,'État & Plan d''action'!$B$6:$DB$1113,44,FALSE),VLOOKUP($BS21,'État & Plan d''action'!$B$6:$DB$1113,54,FALSE),VLOOKUP($BS21,'État & Plan d''action'!$B$6:$DB$1113,64,FALSE),VLOOKUP($BS21,'État & Plan d''action'!$B$6:$DB$1113,74,FALSE),VLOOKUP($BS21,'État & Plan d''action'!$B$6:$DB$1113,84,FALSE),VLOOKUP($BS21,'État & Plan d''action'!$B$6:$DB$1113,94,FALSE),VLOOKUP($BS21,'État & Plan d''action'!$B$6:$DB$1113,104,FALSE)),"") -> 0 | FV21: 59.43243243 | FW21: 59 | FX21: 58.72972973 | FY21: 58.72972973 | FZ21: 1468
W22: =NM -> TOUT LE QUÉBEC | X22: Année | BQ22: 1 | BR22: 0 | BS22: 78060 | BT22: ARUNDEL | BU22: 15 | BV22: oui | BW22: oui | BX22: oui | BY22: oui | BZ22: oui | CA22: oui | CB22: oui | CC22: oui | CD22: oui | CE22: oui | CF22: oui | CG22: oui | CH22: oui | CI22: oui | CJ22: oui | CK22: oui | CL22: non | CM22: non | CN22: non | CO22: non | CP22: non | CQ22: =IF(VLOOKUP(BS22,'Données par municipalité'!$B$6:$E$1113,4,FALSE)="","non","oui") -> non | CR22: 293.3242764 | CS22: 312.5293295 | CT22: 304.3610528 | CU22: 307.5832697 | CV22: 495.8325761 | DB22: =IF(VLOOKUP(BS22,'Données par municipalité'!$B$6:$F$1113,4,FALSE)="","",VLOOKUP(BS22,'Données par municipalité'!$B$6:$F$1113,4,FALSE)) ->  | DC22: Non disponible | DE22: 0 | DF22: 0 | DG22: 0 | DM22: =IFERROR(SUM(VLOOKUP($BS22,'État & Plan d''action'!$B$6:$DB$1113,18,FALSE),VLOOKUP($BS22,'État & Plan d''action'!$B$6:$DB$1113,20,FALSE),VLOOKUP($BS22,'État & Plan d''action'!$B$6:$DB$1113,28,FALSE),VLOOKUP($BS22,'État & Plan d''action'!$B$6:$DB$1113,30,FALSE),VLOOKUP($BS22,'État & Plan d''action'!$B$6:$DB$1113,38,FALSE),VLOOKUP($BS22,'État & Plan d''action'!$B$6:$DB$1113,40,FALSE),VLOOKUP($BS22,'État & Plan d''action'!$B$6:$DB$1113,48,FALSE),VLOOKUP($BS22,'État & Plan d''action'!$B$6:$DB$1113,50,FALSE),VLOOKUP($BS22,'État & Plan d''action'!$B$6:$DB$1113,58,FALSE),VLOOKUP($BS22,'État & Plan d''action'!$B$6:$DB$1113,60,FALSE),VLOOKUP($BS22,'État & Plan d''action'!$B$6:$DB$1113,68,FALSE),VLOOKUP($BS22,'État & Plan d''action'!$B$6:$DB$1113,70,FALSE),VLOOKUP($BS22,'État & Plan d''action'!$B$6:$DB$1113,78,FALSE),VLOOKUP($BS22,'État & Plan d''action'!$B$6:$DB$1113,80,FALSE),VLOOKUP($BS22,'État & Plan d''action'!$B$6:$DB$1113,88,FALSE),VLOOKUP($BS22,'État & Plan d''action'!$B$6:$DB$1113,90,FALSE),VLOOKUP($BS22,'État & Plan d''action'!$B$6:$DB$1113,98,FALSE),VLOOKUP($BS22,'État & Plan d''action'!$B$6:$DB$1113,100,FALSE))/(VLOOKUP($BS22,'Données par municipalité'!$B$4:$N$1113,13,FALSE)),"") ->  | DN22: =IFERROR(SUM(VLOOKUP($BS22,'État & Plan d''action'!$B$6:$DB$1113,19,FALSE),VLOOKUP($BS22,'État & Plan d''action'!$B$6:$DB$1113,21,FALSE),VLOOKUP($BS22,'État & Plan d''action'!$B$6:$DB$1113,29,FALSE),VLOOKUP($BS22,'État & Plan d''action'!$B$6:$DB$1113,31,FALSE),VLOOKUP($BS22,'État & Plan d''action'!$B$6:$DB$1113,39,FALSE),VLOOKUP($BS22,'État & Plan d''action'!$B$6:$DB$1113,41,FALSE),VLOOKUP($BS22,'État & Plan d''action'!$B$6:$DB$1113,49,FALSE),VLOOKUP($BS22,'État & Plan d''action'!$B$6:$DB$1113,51,FALSE),VLOOKUP($BS22,'État & Plan d''action'!$B$6:$DB$1113,59,FALSE),VLOOKUP($BS22,'État & Plan d''action'!$B$6:$DB$1113,61,FALSE),VLOOKUP($BS22,'État & Plan d''action'!$B$6:$DB$1113,69,FALSE),VLOOKUP($BS22,'État & Plan d''action'!$B$6:$DB$1113,71,FALSE),VLOOKUP($BS22,'État & Plan d''action'!$B$6:$DB$1113,79,FALSE),VLOOKUP($BS22,'État & Plan d''action'!$B$6:$DB$1113,81,FALSE),VLOOKUP($BS22,'État & Plan d''action'!$B$6:$DB$1113,89,FALSE),VLOOKUP($BS22,'État & Plan d''action'!$B$6:$DB$1113,91,FALSE),VLOOKUP($BS22,'État & Plan d''action'!$B$6:$DB$1113,99,FALSE),VLOOKUP($BS22,'État & Plan d''action'!$B$6:$DB$1113,101,FALSE))/(VLOOKUP($BS22,'Données par municipalité'!$B$4:$N$1113,13,FALSE)),"") ->  | DO22: Non disponible | DR22: 0 | DS22: 0 | EE22: =IF(VLOOKUP($BS22,'État & Plan d''action'!$B$6:$DM$1113,108,FALSE)="","",VLOOKUP($BS22,'État & Plan d''action'!$B$6:$DM$1113,108,FALSE)) ->  | EF22: =IF(VLOOKUP($BS22,'État & Plan d''action'!$B$6:$DM$1113,109,FALSE)="","",VLOOKUP($BS22,'État & Plan d''action'!$B$6:$DM$1113,109,FALSE)) ->  | EG22: =IF(VLOOKUP($BS22,'État & Plan d''action'!$B$6:$DM$1113,110,FALSE)="","",VLOOKUP($BS22,'État & Plan d''action'!$B$6:$DM$1113,110,FALSE)) ->  | EJ22: 0 | EK22: =VLOOKUP($BS22,'Données par municipalité'!$B$6:$F$1113,5,FALSE) -> 0 | EO22: =IF(VLOOKUP(BS22,'Données par municipalité'!$B$6:$U$1113,7,FALSE)="","",VLOOKUP(BS22,'Données par municipalité'!$B$6:$U$1113,7,FALSE)) ->  | EV22: 0 | EW22: 0 | EX22: 0 | EY22: =VLOOKUP($BS22,'État & Plan d''action'!$B$6:$DK$1113,112,FALSE) -> 0 | EZ22: =VLOOKUP($BS22,'État & Plan d''action'!$B$6:$DK$1113,113,FALSE) -> 0 | FA22: =VLOOKUP($BS22,'État & Plan d''action'!$B$6:$DK$1113,114,FALSE) -> 0 | FL22: 0 | FM22: 0 | FN22: 0 | FO22: 0 | FP22: 0 | FQ22: =IFERROR(SUM(VLOOKUP($BS22,'État & Plan d''action'!$B$6:$DB$1113,16,FALSE),VLOOKUP($BS22,'État & Plan d''action'!$B$6:$DB$1113,26,FALSE),VLOOKUP($BS22,'État & Plan d''action'!$B$6:$DB$1113,36,FALSE),VLOOKUP($BS22,'État & Plan d''action'!$B$6:$DB$1113,46,FALSE),VLOOKUP($BS22,'État & Plan d''action'!$B$6:$DB$1113,56,FALSE),VLOOKUP($BS22,'État & Plan d''action'!$B$6:$DB$1113,66,FALSE),VLOOKUP($BS22,'État & Plan d''action'!$B$6:$DB$1113,76,FALSE),VLOOKUP($BS22,'État & Plan d''action'!$B$6:$DB$1113,86,FALSE),VLOOKUP($BS22,'État & Plan d''action'!$B$6:$DB$1113,96,FALSE)),"") -> 0 | FR22: =IFERROR(SUM(VLOOKUP($BS22,'État & Plan d''action'!$B$6:$DB$1113,18,FALSE),VLOOKUP($BS22,'État & Plan d''action'!$B$6:$DB$1113,28,FALSE),VLOOKUP($BS22,'État & Plan d''action'!$B$6:$DB$1113,38,FALSE),VLOOKUP($BS22,'État & Plan d''action'!$B$6:$DB$1113,48,FALSE),VLOOKUP($BS22,'État & Plan d''action'!$B$6:$DB$1113,58,FALSE),VLOOKUP($BS22,'État & Plan d''action'!$B$6:$DB$1113,68,FALSE),VLOOKUP($BS22,'État & Plan d''action'!$B$6:$DB$1113,78,FALSE),VLOOKUP($BS22,'État & Plan d''action'!$B$6:$DB$1113,88,FALSE),VLOOKUP($BS22,'État & Plan d''action'!$B$6:$DB$1113,98,FALSE)),"") -> 0 | FS22: =IFERROR(SUM(VLOOKUP($BS22,'État & Plan d''action'!$B$6:$DB$1113,20,FALSE),VLOOKUP($BS22,'État & Plan d''action'!$B$6:$DB$1113,30,FALSE),VLOOKUP($BS22,'État & Plan d''action'!$B$6:$DB$1113,40,FALSE),VLOOKUP($BS22,'État & Plan d''action'!$B$6:$DB$1113,50,FALSE),VLOOKUP($BS22,'État & Plan d''action'!$B$6:$DB$1113,60,FALSE),VLOOKUP($BS22,'État & Plan d''action'!$B$6:$DB$1113,70,FALSE),VLOOKUP($BS22,'État & Plan d''action'!$B$6:$DB$1113,80,FALSE),VLOOKUP($BS22,'État & Plan d''action'!$B$6:$DB$1113,90,FALSE),VLOOKUP($BS22,'État & Plan d''action'!$B$6:$DB$1113,100,FALSE)),"") -> 0 | FT22: =IFERROR(SUM(VLOOKUP($BS22,'État & Plan d''action'!$B$6:$DB$1113,22,FALSE),VLOOKUP($BS22,'État & Plan d''action'!$B$6:$DB$1113,32,FALSE),VLOOKUP($BS22,'État & Plan d''action'!$B$6:$DB$1113,42,FALSE),VLOOKUP($BS22,'État & Plan d''action'!$B$6:$DB$1113,52,FALSE),VLOOKUP($BS22,'État & Plan d''action'!$B$6:$DB$1113,62,FALSE),VLOOKUP($BS22,'État & Plan d''action'!$B$6:$DB$1113,72,FALSE),VLOOKUP($BS22,'État & Plan d''action'!$B$6:$DB$1113,82,FALSE),VLOOKUP($BS22,'État & Plan d''action'!$B$6:$DB$1113,92,FALSE),VLOOKUP($BS22,'État & Plan d''action'!$B$6:$DB$1113,102,FALSE)),"") -> 0 | FU22: =IFERROR(SUM(VLOOKUP($BS22,'État & Plan d''action'!$B$6:$DB$1113,24,FALSE),VLOOKUP($BS22,'État & Plan d''action'!$B$6:$DB$1113,34,FALSE),VLOOKUP($BS22,'État & Plan d''action'!$B$6:$DB$1113,44,FALSE),VLOOKUP($BS22,'État & Plan d''action'!$B$6:$DB$1113,54,FALSE),VLOOKUP($BS22,'État & Plan d''action'!$B$6:$DB$1113,64,FALSE),VLOOKUP($BS22,'État & Plan d''action'!$B$6:$DB$1113,74,FALSE),VLOOKUP($BS22,'État & Plan d''action'!$B$6:$DB$1113,84,FALSE),VLOOKUP($BS22,'État & Plan d''action'!$B$6:$DB$1113,94,FALSE),VLOOKUP($BS22,'État & Plan d''action'!$B$6:$DB$1113,104,FALSE)),"") -> 0 | FZ22: 577
W23: =IF(W22="TOUT LE QUÉBEC","",INDEX('Données par municipalité'!$B$6:$B$1113,MATCH(W22,'Données par municipalité'!$C$6:$C$1113,0),1)) ->  | X23: 2011 | Y23: 2012 | Z23: 2013 | AA23: 2014 | AB23: 2015 | AC23: 2016 | AD23: 2017 | AE23: 2018 | AF23: 2019 | AG23: 2020 | AH23: 2021 | AI23: Objectifs 2025 | BQ23: 1 | BR23: 1 | BS23: 41055 | BT23: ASCOT CORNER | BU23: 5 | BV23: non | BW23: non | BX23: non | BY23: non | BZ23: non | CA23: non | CB23: non | CC23: non | CD23: non | CE23: non | CF23: non | CG23: oui | CH23: oui | CI23: oui | CJ23: oui | CK23: oui | CL23: oui | CM23: oui | CN23: oui | CO23: oui | CP23: oui | CQ23: =IF(VLOOKUP(BS23,'Données par municipalité'!$B$6:$E$1113,4,FALSE)="","non","oui") -> oui | CR23: 350.7481085 | CS23: 277.3905347 | CT23: 302.3028761 | CU23: 388.5714838 | CV23: 380.0087906 | CW23: 369.9651361 | CX23: 326.0781516 | CY23: 367 | CZ23: 380 | DA23: 348 | DB23: =IF(VLOOKUP(BS23,'Données par municipalité'!$B$6:$F$1113,4,FALSE)="","",VLOOKUP(BS23,'Données par municipalité'!$B$6:$F$1113,4,FALSE)) -> 331 | DC23: Non disponible | DD23: 0 | DE23: 0 | DF23: 0 | DG23: 0 | DH23: 0 | DI23: 1 | DJ23: 0.3596691044 | DK23: 0 | DL23: 1 | DM23: =IFERROR(SUM(VLOOKUP($BS23,'État & Plan d''action'!$B$6:$DB$1113,18,FALSE),VLOOKUP($BS23,'État & Plan d''action'!$B$6:$DB$1113,20,FALSE),VLOOKUP($BS23,'État & Plan d''action'!$B$6:$DB$1113,28,FALSE),VLOOKUP($BS23,'État & Plan d''action'!$B$6:$DB$1113,30,FALSE),VLOOKUP($BS23,'État & Plan d''action'!$B$6:$DB$1113,38,FALSE),VLOOKUP($BS23,'État & Plan d''action'!$B$6:$DB$1113,40,FALSE),VLOOKUP($BS23,'État & Plan d''action'!$B$6:$DB$1113,48,FALSE),VLOOKUP($BS23,'État & Plan d''action'!$B$6:$DB$1113,50,FALSE),VLOOKUP($BS23,'État & Plan d''action'!$B$6:$DB$1113,58,FALSE),VLOOKUP($BS23,'État & Plan d''action'!$B$6:$DB$1113,60,FALSE),VLOOKUP($BS23,'État & Plan d''action'!$B$6:$DB$1113,68,FALSE),VLOOKUP($BS23,'État & Plan d''action'!$B$6:$DB$1113,70,FALSE),VLOOKUP($BS23,'État & Plan d''action'!$B$6:$DB$1113,78,FALSE),VLOOKUP($BS23,'État & Plan d''action'!$B$6:$DB$1113,80,FALSE),VLOOKUP($BS23,'État & Plan d''action'!$B$6:$DB$1113,88,FALSE),VLOOKUP($BS23,'État & Plan d''action'!$B$6:$DB$1113,90,FALSE),VLOOKUP($BS23,'État & Plan d''action'!$B$6:$DB$1113,98,FALSE),VLOOKUP($BS23,'État & Plan d''action'!$B$6:$DB$1113,100,FALSE))/(VLOOKUP($BS23,'Données par municipalité'!$B$4:$N$1113,13,FALSE)),"") -> 1 | DN23: =IFERROR(SUM(VLOOKUP($BS23,'État & Plan d''action'!$B$6:$DB$1113,19,FALSE),VLOOKUP($BS23,'État & Plan d''action'!$B$6:$DB$1113,21,FALSE),VLOOKUP($BS23,'État & Plan d''action'!$B$6:$DB$1113,29,FALSE),VLOOKUP($BS23,'État & Plan d''action'!$B$6:$DB$1113,31,FALSE),VLOOKUP($BS23,'État & Plan d''action'!$B$6:$DB$1113,39,FALSE),VLOOKUP($BS23,'État & Plan d''action'!$B$6:$DB$1113,41,FALSE),VLOOKUP($BS23,'État & Plan d''action'!$B$6:$DB$1113,49,FALSE),VLOOKUP($BS23,'État & Plan d''action'!$B$6:$DB$1113,51,FALSE),VLOOKUP($BS23,'État & Plan d''action'!$B$6:$DB$1113,59,FALSE),VLOOKUP($BS23,'État & Plan d''action'!$B$6:$DB$1113,61,FALSE),VLOOKUP($BS23,'État & Plan d''action'!$B$6:$DB$1113,69,FALSE),VLOOKUP($BS23,'État & Plan d''action'!$B$6:$DB$1113,71,FALSE),VLOOKUP($BS23,'État & Plan d''action'!$B$6:$DB$1113,79,FALSE),VLOOKUP($BS23,'État & Plan d''action'!$B$6:$DB$1113,81,FALSE),VLOOKUP($BS23,'État & Plan d''action'!$B$6:$DB$1113,89,FALSE),VLOOKUP($BS23,'État & Plan d''action'!$B$6:$DB$1113,91,FALSE),VLOOKUP($BS23,'État & Plan d''action'!$B$6:$DB$1113,99,FALSE),VLOOKUP($BS23,'État & Plan d''action'!$B$6:$DB$1113,101,FALSE))/(VLOOKUP($BS23,'Données par municipalité'!$B$4:$N$1113,13,FALSE)),"") -> 1 | DO23: Non disponible | DP23: 0 | DQ23: 1 | DR23: 1 | DS23: 0 | DT23: 0 | DU23: 0 | DV23: 0 | DW23: 0 | DX23: 3 | DY23: 1 | DZ23: 0 | EA23: 0 | EB23: 0 | EC23: 0 | ED23: 2 | EE23: =IF(VLOOKUP($BS23,'État & Plan d''action'!$B$6:$DM$1113,108,FALSE)="","",VLOOKUP($BS23,'État & Plan d''action'!$B$6:$DM$1113,108,FALSE)) -> 0 | EF23: =IF(VLOOKUP($BS23,'État & Plan d''action'!$B$6:$DM$1113,109,FALSE)="","",VLOOKUP($BS23,'État & Plan d''action'!$B$6:$DM$1113,109,FALSE)) -> 0 | EG23: =IF(VLOOKUP($BS23,'État & Plan d''action'!$B$6:$DM$1113,110,FALSE)="","",VLOOKUP($BS23,'État & Plan d''action'!$B$6:$DM$1113,110,FALSE)) -> 2 | EH23: 199 | EI23: 198 | EJ23: 179 | EK23: =VLOOKUP($BS23,'Données par municipalité'!$B$6:$F$1113,5,FALSE) -> 172 | EL23: 2.379077935 | EM23: 2.920473413 | EN23: 3.887833559 | EO23: =IF(VLOOKUP(BS23,'Données par municipalité'!$B$6:$U$1113,7,FALSE)="","",VLOOKUP(BS23,'Données par municipalité'!$B$6:$U$1113,7,FALSE)) -> 3.203097673 | EP23: 1 | EQ23: 0 | ER23: 3 | ES23: 1 | ET23: 0 | EU23: 0 | EV23: S.O. | EX23: 14 | EY23: =VLOOKUP($BS23,'État & Plan d''action'!$B$6:$DK$1113,112,FALSE) -> S.O. | EZ23: =VLOOKUP($BS23,'État & Plan d''action'!$B$6:$DK$1113,113,FALSE) ->  | FA23: =VLOOKUP($BS23,'État & Plan d''action'!$B$6:$DK$1113,114,FALSE) -> 1 | FB23: 8.341 | FC23: 2 | FD23: 1 | FE23: 0 | FF23: 0 | FG23: 8.341 | FH23: 2 | FI23: 1 | FJ23: 0 | FK23: 0 | FL23: 0 | FM23: 0 | FN23: 8.541 | FO23: 0 | FP23: 0 | FQ23: =IFERROR(SUM(VLOOKUP($BS23,'État & Plan d''action'!$B$6:$DB$1113,16,FALSE),VLOOKUP($BS23,'État & Plan d''action'!$B$6:$DB$1113,26,FALSE),VLOOKUP($BS23,'État & Plan d''action'!$B$6:$DB$1113,36,FALSE),VLOOKUP($BS23,'État & Plan d''action'!$B$6:$DB$1113,46,FALSE),VLOOKUP($BS23,'État & Plan d''action'!$B$6:$DB$1113,56,FALSE),VLOOKUP($BS23,'État & Plan d''action'!$B$6:$DB$1113,66,FALSE),VLOOKUP($BS23,'État & Plan d''action'!$B$6:$DB$1113,76,FALSE),VLOOKUP($BS23,'État & Plan d''action'!$B$6:$DB$1113,86,FALSE),VLOOKUP($BS23,'État & Plan d''action'!$B$6:$DB$1113,96,FALSE)),"") -> 0 | FR23: =IFERROR(SUM(VLOOKUP($BS23,'État & Plan d''action'!$B$6:$DB$1113,18,FALSE),VLOOKUP($BS23,'État & Plan d''action'!$B$6:$DB$1113,28,FALSE),VLOOKUP($BS23,'État & Plan d''action'!$B$6:$DB$1113,38,FALSE),VLOOKUP($BS23,'État & Plan d''action'!$B$6:$DB$1113,48,FALSE),VLOOKUP($BS23,'État & Plan d''action'!$B$6:$DB$1113,58,FALSE),VLOOKUP($BS23,'État & Plan d''action'!$B$6:$DB$1113,68,FALSE),VLOOKUP($BS23,'État & Plan d''action'!$B$6:$DB$1113,78,FALSE),VLOOKUP($BS23,'État & Plan d''action'!$B$6:$DB$1113,88,FALSE),VLOOKUP($BS23,'État & Plan d''action'!$B$6:$DB$1113,98,FALSE)),"") -> 8.758 | FS23: =IFERROR(SUM(VLOOKUP($BS23,'État & Plan d''action'!$B$6:$DB$1113,20,FALSE),VLOOKUP($BS23,'État & Plan d''action'!$B$6:$DB$1113,30,FALSE),VLOOKUP($BS23,'État & Plan d''action'!$B$6:$DB$1113,40,FALSE),VLOOKUP($BS23,'État & Plan d''action'!$B$6:$DB$1113,50,FALSE),VLOOKUP($BS23,'État & Plan d''action'!$B$6:$DB$1113,60,FALSE),VLOOKUP($BS23,'État & Plan d''action'!$B$6:$DB$1113,70,FALSE),VLOOKUP($BS23,'État & Plan d''action'!$B$6:$DB$1113,80,FALSE),VLOOKUP($BS23,'État & Plan d''action'!$B$6:$DB$1113,90,FALSE),VLOOKUP($BS23,'État & Plan d''action'!$B$6:$DB$1113,100,FALSE)),"") -> 0 | FT23: =IFERROR(SUM(VLOOKUP($BS23,'État & Plan d''action'!$B$6:$DB$1113,22,FALSE),VLOOKUP($BS23,'État & Plan d''action'!$B$6:$DB$1113,32,FALSE),VLOOKUP($BS23,'État & Plan d''action'!$B$6:$DB$1113,42,FALSE),VLOOKUP($BS23,'État & Plan d''action'!$B$6:$DB$1113,52,FALSE),VLOOKUP($BS23,'État & Plan d''action'!$B$6:$DB$1113,62,FALSE),VLOOKUP($BS23,'État & Plan d''action'!$B$6:$DB$1113,72,FALSE),VLOOKUP($BS23,'État & Plan d''action'!$B$6:$DB$1113,82,FALSE),VLOOKUP($BS23,'État & Plan d''action'!$B$6:$DB$1113,92,FALSE),VLOOKUP($BS23,'État & Plan d''action'!$B$6:$DB$1113,102,FALSE)),"") -> 8.758 | FU23: =IFERROR(SUM(VLOOKUP($BS23,'État & Plan d''action'!$B$6:$DB$1113,24,FALSE),VLOOKUP($BS23,'État & Plan d''action'!$B$6:$DB$1113,34,FALSE),VLOOKUP($BS23,'État & Plan d''action'!$B$6:$DB$1113,44,FALSE),VLOOKUP($BS23,'État & Plan d''action'!$B$6:$DB$1113,54,FALSE),VLOOKUP($BS23,'État & Plan d''action'!$B$6:$DB$1113,64,FALSE),VLOOKUP($BS23,'État & Plan d''action'!$B$6:$DB$1113,74,FALSE),VLOOKUP($BS23,'État & Plan d''action'!$B$6:$DB$1113,84,FALSE),VLOOKUP($BS23,'État & Plan d''action'!$B$6:$DB$1113,94,FALSE),VLOOKUP($BS23,'État & Plan d''action'!$B$6:$DB$1113,104,FALSE)),"") -> 0 | FV23: 58.1372549 | FW23: 56 | FX23: 60.32918845 | FY23: 56.8627451 | FZ23: 3286
W24: Quantité d'eau distribuée par personne (l/pers/d) | X24: =IF($W$23="",CR8,IF(X$27="non","Non disponible",IF(VLOOKUP($W$23,$BS$9:$DB$1116,26,FALSE)=0,"Non disponible",VLOOKUP($W$23,$BS$9:$DB$1116,26,FALSE)))) -> 620.2056373 | Y24: =IF($W$23="",CS8,IF(Y$27="non","Non disponible",IF(VLOOKUP($W$23,$BS$9:$DB$1116,27,FALSE)=0,"Non disponible",VLOOKUP($W$23,$BS$9:$DB$1116,27,FALSE)))) -> 612.340892 | Z24: =IF($W$23="",CT8,IF(Z$27="non","Non disponible",IF(VLOOKUP($W$23,$BS$9:$DB$1116,28,FALSE)=0,"Non disponible",VLOOKUP($W$23,$BS$9:$DB$1116,28,FALSE)))) -> 596.0865808 | AA24: =IF($W$23="",CU8,IF(AA$27="non","Non disponible",IF(VLOOKUP($W$23,$BS$9:$DB$1116,29,FALSE)=0,"Non disponible",VLOOKUP($W$23,$BS$9:$DB$1116,29,FALSE)))) -> 589.1008665 | AB24: =IF($W$23="",CV8,IF(AB$27="non","Non disponible",IF(VLOOKUP($W$23,$BS$9:$DB$1116,30,FALSE)=0,"Non disponible",VLOOKUP($W$23,$BS$9:$DB$1116,30,FALSE)))) -> 573.3776759 | AC24: =IF($W$23="",CW8,IF(AC$27="non","Non disponible",IF(VLOOKUP($W$23,$BS$9:$DB$1116,31,FALSE)=0,"Non disponible",VLOOKUP($W$23,$BS$9:$DB$1116,31,FALSE)))) -> 550.8217594 | AD24: =IF($W$23="",CX8,IF(AD$27="non","Non disponible",IF(VLOOKUP($W$23,$BS$9:$DB$1116,32,FALSE)=0,"Non disponible",VLOOKUP($W$23,$BS$9:$DB$1116,32,FALSE)))) -> 529.5924 | AE24: =IF($W$23="",CY8,IF(AE$27="non","Non disponible",IF(VLOOKUP($W$23,$BS$9:$DB$1116,33,FALSE)=0,"Non disponible",VLOOKUP($W$23,$BS$9:$DB$1116,33,FALSE)))) -> 536.3201867 | AF24: =IF($W$23="",CZ8,IF(AF$27="non","Non disponible",IF(VLOOKUP($W$23,$BS$9:$DB$1116,34,FALSE)=0,"Non disponible",VLOOKUP($W$23,$BS$9:$DB$1116,34,FALSE)))) -> 524.5080028 | AG24: =IF($W$23="",DA8,IF(AG$27="non","Non disponible",IF(VLOOKUP($W$23,$BS$9:$DB$1116,35,FALSE)=0,"Non disponible",VLOOKUP($W$23,$BS$9:$DB$1116,35,FALSE)))) -> 520.6271874 | AH24: =IF($W$23="",DB8,IF(AH$27="non","Non disponible",IF(VLOOKUP($W$23,$BS$9:$DB$1116,36,FALSE)=0,"Non disponible",VLOOKUP($W$23,$BS$9:$DB$1116,36,FALSE)))) -> 515.2730751 | AI24: =IF(NM="Choisir une municipalité","",458) -> 458 | BQ24: 0 | BR24: 0 | BS24: 50013 | BT24: ASTON-JONCTION | BU24: 17 | BV24: oui | BW24: oui | BX24: oui | BY24: oui | BZ24: oui | CA24: oui | CB24: oui | CC24: oui | CD24: oui | CE24: oui | CF24: oui | CG24: non | CH24: non | CI24: non | CJ24: non | CK24: non | CL24: non | CM24: non | CN24: non | CO24: non | CP24: non | CQ24: =IF(VLOOKUP(BS24,'Données par municipalité'!$B$6:$E$1113,4,FALSE)="","non","oui") -> non | DB24: =IF(VLOOKUP(BS24,'Données par municipalité'!$B$6:$F$1113,4,FALSE)="","",VLOOKUP(BS24,'Données par municipalité'!$B$6:$F$1113,4,FALSE)) ->  | DC24: Non disponible | DM24: =IFERROR(SUM(VLOOKUP($BS24,'État & Plan d''action'!$B$6:$DB$1113,18,FALSE),VLOOKUP($BS24,'État & Plan d''action'!$B$6:$DB$1113,20,FALSE),VLOOKUP($BS24,'État & Plan d''action'!$B$6:$DB$1113,28,FALSE),VLOOKUP($BS24,'État & Plan d''action'!$B$6:$DB$1113,30,FALSE),VLOOKUP($BS24,'État & Plan d''action'!$B$6:$DB$1113,38,FALSE),VLOOKUP($BS24,'État & Plan d''action'!$B$6:$DB$1113,40,FALSE),VLOOKUP($BS24,'État & Plan d''action'!$B$6:$DB$1113,48,FALSE),VLOOKUP($BS24,'État & Plan d''action'!$B$6:$DB$1113,50,FALSE),VLOOKUP($BS24,'État & Plan d''action'!$B$6:$DB$1113,58,FALSE),VLOOKUP($BS24,'État & Plan d''action'!$B$6:$DB$1113,60,FALSE),VLOOKUP($BS24,'État & Plan d''action'!$B$6:$DB$1113,68,FALSE),VLOOKUP($BS24,'État & Plan d''action'!$B$6:$DB$1113,70,FALSE),VLOOKUP($BS24,'État & Plan d''action'!$B$6:$DB$1113,78,FALSE),VLOOKUP($BS24,'État & Plan d''action'!$B$6:$DB$1113,80,FALSE),VLOOKUP($BS24,'État & Plan d''action'!$B$6:$DB$1113,88,FALSE),VLOOKUP($BS24,'État & Plan d''action'!$B$6:$DB$1113,90,FALSE),VLOOKUP($BS24,'État & Plan d''action'!$B$6:$DB$1113,98,FALSE),VLOOKUP($BS24,'État & Plan d''action'!$B$6:$DB$1113,100,FALSE))/(VLOOKUP($BS24,'Données par municipalité'!$B$4:$N$1113,13,FALSE)),"") ->  | DN24: =IFERROR(SUM(VLOOKUP($BS24,'État & Plan d''action'!$B$6:$DB$1113,19,FALSE),VLOOKUP($BS24,'État & Plan d''action'!$B$6:$DB$1113,21,FALSE),VLOOKUP($BS24,'État & Plan d''action'!$B$6:$DB$1113,29,FALSE),VLOOKUP($BS24,'État & Plan d''action'!$B$6:$DB$1113,31,FALSE),VLOOKUP($BS24,'État & Plan d''action'!$B$6:$DB$1113,39,FALSE),VLOOKUP($BS24,'État & Plan d''action'!$B$6:$DB$1113,41,FALSE),VLOOKUP($BS24,'État & Plan d''action'!$B$6:$DB$1113,49,FALSE),VLOOKUP($BS24,'État & Plan d''action'!$B$6:$DB$1113,51,FALSE),VLOOKUP($BS24,'État & Plan d''action'!$B$6:$DB$1113,59,FALSE),VLOOKUP($BS24,'État & Plan d''action'!$B$6:$DB$1113,61,FALSE),VLOOKUP($BS24,'État & Plan d''action'!$B$6:$DB$1113,69,FALSE),VLOOKUP($BS24,'État & Plan d''action'!$B$6:$DB$1113,71,FALSE),VLOOKUP($BS24,'État & Plan d''action'!$B$6:$DB$1113,79,FALSE),VLOOKUP($BS24,'État & Plan d''action'!$B$6:$DB$1113,81,FALSE),VLOOKUP($BS24,'État & Plan d''action'!$B$6:$DB$1113,89,FALSE),VLOOKUP($BS24,'État & Plan d''action'!$B$6:$DB$1113,91,FALSE),VLOOKUP($BS24,'État & Plan d''action'!$B$6:$DB$1113,99,FALSE),VLOOKUP($BS24,'État & Plan d''action'!$B$6:$DB$1113,101,FALSE))/(VLOOKUP($BS24,'Données par municipalité'!$B$4:$N$1113,13,FALSE)),"") ->  | DO24: Non disponible | DR24: 0 | DS24: 0 | EE24: =IF(VLOOKUP($BS24,'État & Plan d''action'!$B$6:$DM$1113,108,FALSE)="","",VLOOKUP($BS24,'État & Plan d''action'!$B$6:$DM$1113,108,FALSE)) ->  | EF24: =IF(VLOOKUP($BS24,'État & Plan d''action'!$B$6:$DM$1113,109,FALSE)="","",VLOOKUP($BS24,'État & Plan d''action'!$B$6:$DM$1113,109,FALSE)) ->  | EG24: =IF(VLOOKUP($BS24,'État & Plan d''action'!$B$6:$DM$1113,110,FALSE)="","",VLOOKUP($BS24,'État & Plan d''action'!$B$6:$DM$1113,110,FALSE)) ->  | EJ24: 0 | EK24: =VLOOKUP($BS24,'Données par municipalité'!$B$6:$F$1113,5,FALSE) -> 0 | EO24: =IF(VLOOKUP(BS24,'Données par municipalité'!$B$6:$U$1113,7,FALSE)="","",VLOOKUP(BS24,'Données par municipalité'!$B$6:$U$1113,7,FALSE)) ->  | EV24: 0 | EW24: 0 | EX24: 0 | EY24: =VLOOKUP($BS24,'État & Plan d''action'!$B$6:$DK$1113,112,FALSE) -> 0 | EZ24: =VLOOKUP($BS24,'État & Plan d''action'!$B$6:$DK$1113,113,FALSE) -> 0 | FA24: =VLOOKUP($BS24,'État & Plan d''action'!$B$6:$DK$1113,114,FALSE) -> 0 | FL24: 0 | FM24: 0 | FN24: 0 | FO24: 0 | FP24: 0 | FQ24: =IFERROR(SUM(VLOOKUP($BS24,'État & Plan d''action'!$B$6:$DB$1113,16,FALSE),VLOOKUP($BS24,'État & Plan d''action'!$B$6:$DB$1113,26,FALSE),VLOOKUP($BS24,'État & Plan d''action'!$B$6:$DB$1113,36,FALSE),VLOOKUP($BS24,'État & Plan d''action'!$B$6:$DB$1113,46,FALSE),VLOOKUP($BS24,'État & Plan d''action'!$B$6:$DB$1113,56,FALSE),VLOOKUP($BS24,'État & Plan d''action'!$B$6:$DB$1113,66,FALSE),VLOOKUP($BS24,'État & Plan d''action'!$B$6:$DB$1113,76,FALSE),VLOOKUP($BS24,'État & Plan d''action'!$B$6:$DB$1113,86,FALSE),VLOOKUP($BS24,'État & Plan d''action'!$B$6:$DB$1113,96,FALSE)),"") -> 0 | FR24: =IFERROR(SUM(VLOOKUP($BS24,'État & Plan d''action'!$B$6:$DB$1113,18,FALSE),VLOOKUP($BS24,'État & Plan d''action'!$B$6:$DB$1113,28,FALSE),VLOOKUP($BS24,'État & Plan d''action'!$B$6:$DB$1113,38,FALSE),VLOOKUP($BS24,'État & Plan d''action'!$B$6:$DB$1113,48,FALSE),VLOOKUP($BS24,'État & Plan d''action'!$B$6:$DB$1113,58,FALSE),VLOOKUP($BS24,'État & Plan d''action'!$B$6:$DB$1113,68,FALSE),VLOOKUP($BS24,'État & Plan d''action'!$B$6:$DB$1113,78,FALSE),VLOOKUP($BS24,'État & Plan d''action'!$B$6:$DB$1113,88,FALSE),VLOOKUP($BS24,'État & Plan d''action'!$B$6:$DB$1113,98,FALSE)),"") -> 0 | FS24: =IFERROR(SUM(VLOOKUP($BS24,'État & Plan d''action'!$B$6:$DB$1113,20,FALSE),VLOOKUP($BS24,'État & Plan d''action'!$B$6:$DB$1113,30,FALSE),VLOOKUP($BS24,'État & Plan d''action'!$B$6:$DB$1113,40,FALSE),VLOOKUP($BS24,'État & Plan d''action'!$B$6:$DB$1113,50,FALSE),VLOOKUP($BS24,'État & Plan d''action'!$B$6:$DB$1113,60,FALSE),VLOOKUP($BS24,'État & Plan d''action'!$B$6:$DB$1113,70,FALSE),VLOOKUP($BS24,'État & Plan d''action'!$B$6:$DB$1113,80,FALSE),VLOOKUP($BS24,'État & Plan d''action'!$B$6:$DB$1113,90,FALSE),VLOOKUP($BS24,'État & Plan d''action'!$B$6:$DB$1113,100,FALSE)),"") -> 0 | FT24: =IFERROR(SUM(VLOOKUP($BS24,'État & Plan d''action'!$B$6:$DB$1113,22,FALSE),VLOOKUP($BS24,'État & Plan d''action'!$B$6:$DB$1113,32,FALSE),VLOOKUP($BS24,'État & Plan d''action'!$B$6:$DB$1113,42,FALSE),VLOOKUP($BS24,'État & Plan d''action'!$B$6:$DB$1113,52,FALSE),VLOOKUP($BS24,'État & Plan d''action'!$B$6:$DB$1113,62,FALSE),VLOOKUP($BS24,'État & Plan d''action'!$B$6:$DB$1113,72,FALSE),VLOOKUP($BS24,'État & Plan d''action'!$B$6:$DB$1113,82,FALSE),VLOOKUP($BS24,'État & Plan d''action'!$B$6:$DB$1113,92,FALSE),VLOOKUP($BS24,'État & Plan d''action'!$B$6:$DB$1113,102,FALSE)),"") -> 0 | FU24: =IFERROR(SUM(VLOOKUP($BS24,'État & Plan d''action'!$B$6:$DB$1113,24,FALSE),VLOOKUP($BS24,'État & Plan d''action'!$B$6:$DB$1113,34,FALSE),VLOOKUP($BS24,'État & Plan d''action'!$B$6:$DB$1113,44,FALSE),VLOOKUP($BS24,'État & Plan d''action'!$B$6:$DB$1113,54,FALSE),VLOOKUP($BS24,'État & Plan d''action'!$B$6:$DB$1113,64,FALSE),VLOOKUP($BS24,'État & Plan d''action'!$B$6:$DB$1113,74,FALSE),VLOOKUP($BS24,'État & Plan d''action'!$B$6:$DB$1113,84,FALSE),VLOOKUP($BS24,'État & Plan d''action'!$B$6:$DB$1113,94,FALSE),VLOOKUP($BS24,'État & Plan d''action'!$B$6:$DB$1113,104,FALSE)),"") -> 0 | FZ24: 443
W25: =IF(NM="Tout le Québec","Objectif 2025 pour l'ensemble du Québec : 458","") -> Objectif 2025 pour l'ensemble du Québec : 458 | X25: =IF(NM="Tout le Québec",458,"") -> 458 | Y25: 458 | Z25: 458 | AA25: 458 | AB25: 458 | AC25: 458 | AD25: 458 | AE25: =IF(NM="Tout le Québec",458,"") -> 458 | AF25: =IF(NM="Tout le Québec",458,"") -> 458 | AG25: 458 | AH25: 458 | AI25: 458 | BQ25: 1 | BR25: 1 | BS25: 13045 | BT25: AUCLAIR | BU25: 1 | BV25: non | BW25: non | BX25: non | BY25: non | BZ25: non | CA25: non | CB25: non | CC25: non | CD25: non | CE25: non | CF25: non | CG25: oui | CH25: oui | CI25: oui | CJ25: oui | CK25: oui | CL25: oui | CM25: non | CN25: oui | CO25: oui | CP25: oui | CQ25: =IF(VLOOKUP(BS25,'Données par municipalité'!$B$6:$E$1113,4,FALSE)="","non","oui") -> oui | CR25: 334.7280335 | CS25: 333.2705631 | CT25: 462.7621587 | CU25: 452.2461213 | CV25: 437.2282417 | CW25: 416.3413999 | CY25: 296 | CZ25: 297 | DA25: 197 | DB25: =IF(VLOOKUP(BS25,'Données par municipalité'!$B$6:$F$1113,4,FALSE)="","",VLOOKUP(BS25,'Données par municipalité'!$B$6:$F$1113,4,FALSE)) -> 187 | DC25: Non disponible | DD25: 0.1 | DE25: 0.1 | DF25: 0.1 | DG25: 0.1 | DH25: 0.1 | DJ25: 0 | DK25: 0 | DL25: 0 | DM25: =IFERROR(SUM(VLOOKUP($BS25,'État & Plan d''action'!$B$6:$DB$1113,18,FALSE),VLOOKUP($BS25,'État & Plan d''action'!$B$6:$DB$1113,20,FALSE),VLOOKUP($BS25,'État & Plan d''action'!$B$6:$DB$1113,28,FALSE),VLOOKUP($BS25,'État & Plan d''action'!$B$6:$DB$1113,30,FALSE),VLOOKUP($BS25,'État & Plan d''action'!$B$6:$DB$1113,38,FALSE),VLOOKUP($BS25,'État & Plan d''action'!$B$6:$DB$1113,40,FALSE),VLOOKUP($BS25,'État & Plan d''action'!$B$6:$DB$1113,48,FALSE),VLOOKUP($BS25,'État & Plan d''action'!$B$6:$DB$1113,50,FALSE),VLOOKUP($BS25,'État & Plan d''action'!$B$6:$DB$1113,58,FALSE),VLOOKUP($BS25,'État & Plan d''action'!$B$6:$DB$1113,60,FALSE),VLOOKUP($BS25,'État & Plan d''action'!$B$6:$DB$1113,68,FALSE),VLOOKUP($BS25,'État & Plan d''action'!$B$6:$DB$1113,70,FALSE),VLOOKUP($BS25,'État & Plan d''action'!$B$6:$DB$1113,78,FALSE),VLOOKUP($BS25,'État & Plan d''action'!$B$6:$DB$1113,80,FALSE),VLOOKUP($BS25,'État & Plan d''action'!$B$6:$DB$1113,88,FALSE),VLOOKUP($BS25,'État & Plan d''action'!$B$6:$DB$1113,90,FALSE),VLOOKUP($BS25,'État & Plan d''action'!$B$6:$DB$1113,98,FALSE),VLOOKUP($BS25,'État & Plan d''action'!$B$6:$DB$1113,100,FALSE))/(VLOOKUP($BS25,'Données par municipalité'!$B$4:$N$1113,13,FALSE)),"") -> 0 | DN25: =IFERROR(SUM(VLOOKUP($BS25,'État & Plan d''action'!$B$6:$DB$1113,19,FALSE),VLOOKUP($BS25,'État & Plan d''action'!$B$6:$DB$1113,21,FALSE),VLOOKUP($BS25,'État & Plan d''action'!$B$6:$DB$1113,29,FALSE),VLOOKUP($BS25,'État & Plan d''action'!$B$6:$DB$1113,31,FALSE),VLOOKUP($BS25,'État & Plan d''action'!$B$6:$DB$1113,39,FALSE),VLOOKUP($BS25,'État & Plan d''action'!$B$6:$DB$1113,41,FALSE),VLOOKUP($BS25,'État & Plan d''action'!$B$6:$DB$1113,49,FALSE),VLOOKUP($BS25,'État & Plan d''action'!$B$6:$DB$1113,51,FALSE),VLOOKUP($BS25,'État & Plan d''action'!$B$6:$DB$1113,59,FALSE),VLOOKUP($BS25,'État & Plan d''action'!$B$6:$DB$1113,61,FALSE),VLOOKUP($BS25,'État & Plan d''action'!$B$6:$DB$1113,69,FALSE),VLOOKUP($BS25,'État & Plan d''action'!$B$6:$DB$1113,71,FALSE),VLOOKUP($BS25,'État & Plan d''action'!$B$6:$DB$1113,79,FALSE),VLOOKUP($BS25,'État & Plan d''action'!$B$6:$DB$1113,81,FALSE),VLOOKUP($BS25,'État & Plan d''action'!$B$6:$DB$1113,89,FALSE),VLOOKUP($BS25,'État & Plan d''action'!$B$6:$DB$1113,91,FALSE),VLOOKUP($BS25,'État & Plan d''action'!$B$6:$DB$1113,99,FALSE),VLOOKUP($BS25,'État & Plan d''action'!$B$6:$DB$1113,101,FALSE))/(VLOOKUP($BS25,'Données par municipalité'!$B$4:$N$1113,13,FALSE)),"") -> 0 | DO25: Non disponible | DP25: 1 | DQ25: 0 | DR25: 2 | DS25: 2 | DT25: 0 | DV25: 11 | DW25: 0 | DX25: 0 | DY25: 1 | DZ25: 0 | EA25: 0 | EB25: 0 | EC25: 0 | ED25: 0 | EE25: =IF(VLOOKUP($BS25,'État & Plan d''action'!$B$6:$DM$1113,108,FALSE)="","",VLOOKUP($BS25,'État & Plan d''action'!$B$6:$DM$1113,108,FALSE)) -> 0 | EF25: =IF(VLOOKUP($BS25,'État & Plan d''action'!$B$6:$DM$1113,109,FALSE)="","",VLOOKUP($BS25,'État & Plan d''action'!$B$6:$DM$1113,109,FALSE)) -> 0 | EG25: =IF(VLOOKUP($BS25,'État & Plan d''action'!$B$6:$DM$1113,110,FALSE)="","",VLOOKUP($BS25,'État & Plan d''action'!$B$6:$DM$1113,110,FALSE)) -> 0 | EH25: 182 | EI25: 233 | EJ25: 150 | EK25: =VLOOKUP($BS25,'Données par municipalité'!$B$6:$F$1113,5,FALSE) -> 152 | EL25: 2.927922939 | EM25: 1.274405553 | EN25: 1.182470137 | EO25: =IF(VLOOKUP(BS25,'Données par municipalité'!$B$6:$U$1113,7,FALSE)="","",VLOOKUP(BS25,'Données par municipalité'!$B$6:$U$1113,7,FALSE)) -> 0.6003652066 | EP25: 5 | EQ25: 0 | ER25: 0 | ES25: 2 | ET25: 0 | EU25: 0 | EV25: S.O. | EY25: =VLOOKUP($BS25,'État & Plan d''action'!$B$6:$DK$1113,112,FALSE) -> S.O. | EZ25: =VLOOKUP($BS25,'État & Plan d''action'!$B$6:$DK$1113,113,FALSE) ->  | FA25: =VLOOKUP($BS25,'État & Plan d''action'!$B$6:$DK$1113,114,FALSE) ->  | FB25: 0 | FC25: 0 | FD25: 0 | FE25: 0 | FF25: 0 | FG25: 0 | FH25: 0 | FI25: 0 | FJ25: 0 | FK25: 0 | FL25: 0 | FM25: 0 | FN25: 0 | FO25: 0 | FP25: 0 | FQ25: =IFERROR(SUM(VLOOKUP($BS25,'État & Plan d''action'!$B$6:$DB$1113,16,FALSE),VLOOKUP($BS25,'État & Plan d''action'!$B$6:$DB$1113,26,FALSE),VLOOKUP($BS25,'État & Plan d''action'!$B$6:$DB$1113,36,FALSE),VLOOKUP($BS25,'État & Plan d''action'!$B$6:$DB$1113,46,FALSE),VLOOKUP($BS25,'État & Plan d''action'!$B$6:$DB$1113,56,FALSE),VLOOKUP($BS25,'État & Plan d''action'!$B$6:$DB$1113,66,FALSE),VLOOKUP($BS25,'État & Plan d''action'!$B$6:$DB$1113,76,FALSE),VLOOKUP($BS25,'État & Plan d''action'!$B$6:$DB$1113,86,FALSE),VLOOKUP($BS25,'État & Plan d''action'!$B$6:$DB$1113,96,FALSE)),"") -> 0 | FR25: =IFERROR(SUM(VLOOKUP($BS25,'État & Plan d''action'!$B$6:$DB$1113,18,FALSE),VLOOKUP($BS25,'État & Plan d''action'!$B$6:$DB$1113,28,FALSE),VLOOKUP($BS25,'État & Plan d''action'!$B$6:$DB$1113,38,FALSE),VLOOKUP($BS25,'État & Plan d''action'!$B$6:$DB$1113,48,FALSE),VLOOKUP($BS25,'État & Plan d''action'!$B$6:$DB$1113,58,FALSE),VLOOKUP($BS25,'État & Plan d''action'!$B$6:$DB$1113,68,FALSE),VLOOKUP($BS25,'État & Plan d''action'!$B$6:$DB$1113,78,FALSE),VLOOKUP($BS25,'État & Plan d''action'!$B$6:$DB$1113,88,FALSE),VLOOKUP($BS25,'État & Plan d''action'!$B$6:$DB$1113,98,FALSE)),"") -> 0 | FS25: =IFERROR(SUM(VLOOKUP($BS25,'État & Plan d''action'!$B$6:$DB$1113,20,FALSE),VLOOKUP($BS25,'État & Plan d''action'!$B$6:$DB$1113,30,FALSE),VLOOKUP($BS25,'État & Plan d''action'!$B$6:$DB$1113,40,FALSE),VLOOKUP($BS25,'État & Plan d''action'!$B$6:$DB$1113,50,FALSE),VLOOKUP($BS25,'État & Plan d''action'!$B$6:$DB$1113,60,FALSE),VLOOKUP($BS25,'État & Plan d''action'!$B$6:$DB$1113,70,FALSE),VLOOKUP($BS25,'État & Plan d''action'!$B$6:$DB$1113,80,FALSE),VLOOKUP($BS25,'État & Plan d''action'!$B$6:$DB$1113,90,FALSE),VLOOKUP($BS25,'État & Plan d''action'!$B$6:$DB$1113,100,FALSE)),"") -> 0 | FT25: =IFERROR(SUM(VLOOKUP($BS25,'État & Plan d''action'!$B$6:$DB$1113,22,FALSE),VLOOKUP($BS25,'État & Plan d''action'!$B$6:$DB$1113,32,FALSE),VLOOKUP($BS25,'État & Plan d''action'!$B$6:$DB$1113,42,FALSE),VLOOKUP($BS25,'État & Plan d''action'!$B$6:$DB$1113,52,FALSE),VLOOKUP($BS25,'État & Plan d''action'!$B$6:$DB$1113,62,FALSE),VLOOKUP($BS25,'État & Plan d''action'!$B$6:$DB$1113,72,FALSE),VLOOKUP($BS25,'État & Plan d''action'!$B$6:$DB$1113,82,FALSE),VLOOKUP($BS25,'État & Plan d''action'!$B$6:$DB$1113,92,FALSE),VLOOKUP($BS25,'État & Plan d''action'!$B$6:$DB$1113,102,FALSE)),"") -> 0 | FU25: =IFERROR(SUM(VLOOKUP($BS25,'État & Plan d''action'!$B$6:$DB$1113,24,FALSE),VLOOKUP($BS25,'État & Plan d''action'!$B$6:$DB$1113,34,FALSE),VLOOKUP($BS25,'État & Plan d''action'!$B$6:$DB$1113,44,FALSE),VLOOKUP($BS25,'État & Plan d''action'!$B$6:$DB$1113,54,FALSE),VLOOKUP($BS25,'État & Plan d''action'!$B$6:$DB$1113,64,FALSE),VLOOKUP($BS25,'État & Plan d''action'!$B$6:$DB$1113,74,FALSE),VLOOKUP($BS25,'État & Plan d''action'!$B$6:$DB$1113,84,FALSE),VLOOKUP($BS25,'État & Plan d''action'!$B$6:$DB$1113,94,FALSE),VLOOKUP($BS25,'État & Plan d''action'!$B$6:$DB$1113,104,FALSE)),"") -> 0 | FV25: 45 | FW25: 58.72972973 | FX25: 58.72972973 | FY25: 58.72972973 | FZ25: 444
W26: Municipalité exemptée ? | X26: =IF($W$23="","non",VLOOKUP($W$23,$BS$9:$CE$1116,4,FALSE)) -> non | Y26: =IF($W$23="","non",VLOOKUP($W$23,$BS$9:$CE$1116,5,FALSE)) -> non | Z26: =IF($W$23="","non",VLOOKUP($W$23,$BS$9:$CE$1116,6,FALSE)) -> non | AA26: =IF($W$23="","non",VLOOKUP($W$23,$BS$9:$CE$1116,7,FALSE)) -> non | AB26: =IF($W$23="","non",VLOOKUP($W$23,$BS$9:$CE$1116,8,FALSE)) -> non | AC26: =IF($W$23="","non",VLOOKUP($W$23,$BS$9:$CE$1116,9,FALSE)) -> non | AD26: =IF($W$23="","non",VLOOKUP($W$23,$BS$9:$CE$1116,10,FALSE)) -> non | AE26: =IF($W$23="","non",VLOOKUP($W$23,$BS$9:$CE$1116,11,FALSE)) -> non | AF26: =IF($W$23="","non",VLOOKUP($W$23,$BS$9:$CE$1116,12,FALSE)) -> non | AG26: =IF($W$23="","non",VLOOKUP($W$23,$BS$9:$CF$1116,13,FALSE)) -> non | AH26: =IF($W$23="","non",VLOOKUP($W$23,$BS$9:$CF$1116,14,FALSE)) -> non | BQ26: 1 | BR26: 1 | BS26: 30055 | BT26: AUDET | BU26: 5 | BV26: non | BW26: non | BX26: non | BY26: non | BZ26: non | CA26: non | CB26: non | CC26: non | CD26: non | CE26: non | CF26: non | CG26: oui | CH26: oui | CI26: non | CJ26: oui | CK26: oui | CL26: oui | CM26: oui | CN26: oui | CO26: oui | CP26: oui | CQ26: =IF(VLOOKUP(BS26,'Données par municipalité'!$B$6:$E$1113,4,FALSE)="","non","oui") -> oui | CR26: 399.8785861 | CS26: 349.2192263 | CU26: 333.5423315 | CV26: 250.866376 | CW26: 212.6355245 | CX26: 169.9217069 | CY26: 191 | CZ26: 204 | DA26: 182 | DB26: =IF(VLOOKUP(BS26,'Données par municipalité'!$B$6:$F$1113,4,FALSE)="","",VLOOKUP(BS26,'Données par municipalité'!$B$6:$F$1113,4,FALSE)) -> 166 | DC26: Non disponible | DD26: 1 | DF26: 0 | DG26: 1 | DH26: 1 | DI26: 1 | DJ26: 2.80469738 | DK26: 2.076923077 | DL26: 2 | DM26: =IFERROR(SUM(VLOOKUP($BS26,'État & Plan d''action'!$B$6:$DB$1113,18,FALSE),VLOOKUP($BS26,'État & Plan d''action'!$B$6:$DB$1113,20,FALSE),VLOOKUP($BS26,'État & Plan d''action'!$B$6:$DB$1113,28,FALSE),VLOOKUP($BS26,'État & Plan d''action'!$B$6:$DB$1113,30,FALSE),VLOOKUP($BS26,'État & Plan d''action'!$B$6:$DB$1113,38,FALSE),VLOOKUP($BS26,'État & Plan d''action'!$B$6:$DB$1113,40,FALSE),VLOOKUP($BS26,'État & Plan d''action'!$B$6:$DB$1113,48,FALSE),VLOOKUP($BS26,'État & Plan d''action'!$B$6:$DB$1113,50,FALSE),VLOOKUP($BS26,'État & Plan d''action'!$B$6:$DB$1113,58,FALSE),VLOOKUP($BS26,'État & Plan d''action'!$B$6:$DB$1113,60,FALSE),VLOOKUP($BS26,'État & Plan d''action'!$B$6:$DB$1113,68,FALSE),VLOOKUP($BS26,'État & Plan d''action'!$B$6:$DB$1113,70,FALSE),VLOOKUP($BS26,'État & Plan d''action'!$B$6:$DB$1113,78,FALSE),VLOOKUP($BS26,'État & Plan d''action'!$B$6:$DB$1113,80,FALSE),VLOOKUP($BS26,'État & Plan d''action'!$B$6:$DB$1113,88,FALSE),VLOOKUP($BS26,'État & Plan d''action'!$B$6:$DB$1113,90,FALSE),VLOOKUP($BS26,'État & Plan d''action'!$B$6:$DB$1113,98,FALSE),VLOOKUP($BS26,'État & Plan d''action'!$B$6:$DB$1113,100,FALSE))/(VLOOKUP($BS26,'Données par municipalité'!$B$4:$N$1113,13,FALSE)),"") -> 2.187617261 | DN26: =IFERROR(SUM(VLOOKUP($BS26,'État & Plan d''action'!$B$6:$DB$1113,19,FALSE),VLOOKUP($BS26,'État & Plan d''action'!$B$6:$DB$1113,21,FALSE),VLOOKUP($BS26,'État & Plan d''action'!$B$6:$DB$1113,29,FALSE),VLOOKUP($BS26,'État & Plan d''action'!$B$6:$DB$1113,31,FALSE),VLOOKUP($BS26,'État & Plan d''action'!$B$6:$DB$1113,39,FALSE),VLOOKUP($BS26,'État & Plan d''action'!$B$6:$DB$1113,41,FALSE),VLOOKUP($BS26,'État & Plan d''action'!$B$6:$DB$1113,49,FALSE),VLOOKUP($BS26,'État & Plan d''action'!$B$6:$DB$1113,51,FALSE),VLOOKUP($BS26,'État & Plan d''action'!$B$6:$DB$1113,59,FALSE),VLOOKUP($BS26,'État & Plan d''action'!$B$6:$DB$1113,61,FALSE),VLOOKUP($BS26,'État & Plan d''action'!$B$6:$DB$1113,69,FALSE),VLOOKUP($BS26,'État & Plan d''action'!$B$6:$DB$1113,71,FALSE),VLOOKUP($BS26,'État & Plan d''action'!$B$6:$DB$1113,79,FALSE),VLOOKUP($BS26,'État & Plan d''action'!$B$6:$DB$1113,81,FALSE),VLOOKUP($BS26,'État & Plan d''action'!$B$6:$DB$1113,89,FALSE),VLOOKUP($BS26,'État & Plan d''action'!$B$6:$DB$1113,91,FALSE),VLOOKUP($BS26,'État & Plan d''action'!$B$6:$DB$1113,99,FALSE),VLOOKUP($BS26,'État & Plan d''action'!$B$6:$DB$1113,101,FALSE))/(VLOOKUP($BS26,'Données par municipalité'!$B$4:$N$1113,13,FALSE)),"") -> 2.187617261 | DO26: Non disponible | DP26: 0 | DR26: 3 | DS26: 8 | DT26: 2 | DU26: 2 | DV26: 0 | DW26: 0 | DX26: 0 | DY26: 0 | DZ26: 4 | EA26: 1 | EB26: 0 | EC26: 3 | ED26: 0 | EE26: =IF(VLOOKUP($BS26,'État & Plan d''action'!$B$6:$DM$1113,108,FALSE)="","",VLOOKUP($BS26,'État & Plan d''action'!$B$6:$DM$1113,108,FALSE)) -> 0 | EF26: =IF(VLOOKUP($BS26,'État & Plan d''action'!$B$6:$DM$1113,109,FALSE)="","",VLOOKUP($BS26,'État & Plan d''action'!$B$6:$DM$1113,109,FALSE)) -> 2 | EG26: =IF(VLOOKUP($BS26,'État & Plan d''action'!$B$6:$DM$1113,110,FALSE)="","",VLOOKUP($BS26,'État & Plan d''action'!$B$6:$DM$1113,110,FALSE)) -> 0 | EH26: 123 | EI26: 109 | EJ26: 108 | EK26: =VLOOKUP($BS26,'Données par municipalité'!$B$6:$F$1113,5,FALSE) -> 96 | EL26: 0.8425382238 | EM26: 2.38813061 | EN26: 2.00310302 | EO26: =IF(VLOOKUP(BS26,'Données par municipalité'!$B$6:$U$1113,7,FALSE)="","",VLOOKUP(BS26,'Données par municipalité'!$B$6:$U$1113,7,FALSE)) -> 1.62015177 | EP26: 0 | EQ26: 0 | ER26: 0 | ES26: 0 | ET26: 4 | EU26: 29 | EV26: S.O. | EW26: 7 | EY26: =VLOOKUP($BS26,'État & Plan d''action'!$B$6:$DK$1113,112,FALSE) -> S.O. | EZ26: =VLOOKUP($BS26,'État & Plan d''action'!$B$6:$DK$1113,113,FALSE) -> 4 | FA26: =VLOOKUP($BS26,'État & Plan d''action'!$B$6:$DK$1113,114,FALSE) ->  | FB26: 7.762 | FC26: 7.762 | FD26: 7.762 | FE26: 0 | FF26: 0 | FG26: 7.762 | FH26: 7.762 | FI26: 7.762 | FJ26: 0 | FK26: 0 | FL26: 5.33 | FM26: 10.66 | FN26: 0 | FO26: 0 | FP26: 0 | FQ26: =IFERROR(SUM(VLOOKUP($BS26,'État & Plan d''action'!$B$6:$DB$1113,16,FALSE),VLOOKUP($BS26,'État & Plan d''action'!$B$6:$DB$1113,26,FALSE),VLOOKUP($BS26,'État & Plan d''action'!$B$6:$DB$1113,36,FALSE),VLOOKUP($BS26,'État & Plan d''action'!$B$6:$DB$1113,46,FALSE),VLOOKUP($BS26,'État & Plan d''action'!$B$6:$DB$1113,56,FALSE),VLOOKUP($BS26,'État & Plan d''action'!$B$6:$DB$1113,66,FALSE),VLOOKUP($BS26,'État & Plan d''action'!$B$6:$DB$1113,76,FALSE),VLOOKUP($BS26,'État & Plan d''action'!$B$6:$DB$1113,86,FALSE),VLOOKUP($BS26,'État & Plan d''action'!$B$6:$DB$1113,96,FALSE)),"") -> 0 | FR26: =IFERROR(SUM(VLOOKUP($BS26,'État & Plan d''action'!$B$6:$DB$1113,18,FALSE),VLOOKUP($BS26,'État & Plan d''action'!$B$6:$DB$1113,28,FALSE),VLOOKUP($BS26,'État & Plan d''action'!$B$6:$DB$1113,38,FALSE),VLOOKUP($BS26,'État & Plan d''action'!$B$6:$DB$1113,48,FALSE),VLOOKUP($BS26,'État & Plan d''action'!$B$6:$DB$1113,58,FALSE),VLOOKUP($BS26,'État & Plan d''action'!$B$6:$DB$1113,68,FALSE),VLOOKUP($BS26,'État & Plan d''action'!$B$6:$DB$1113,78,FALSE),VLOOKUP($BS26,'État & Plan d''action'!$B$6:$DB$1113,88,FALSE),VLOOKUP($BS26,'État & Plan d''action'!$B$6:$DB$1113,98,FALSE)),"") -> 10.66 | FS26: =IFERROR(SUM(VLOOKUP($BS26,'État & Plan d''action'!$B$6:$DB$1113,20,FALSE),VLOOKUP($BS26,'État & Plan d''action'!$B$6:$DB$1113,30,FALSE),VLOOKUP($BS26,'État & Plan d''action'!$B$6:$DB$1113,40,FALSE),VLOOKUP($BS26,'État & Plan d''action'!$B$6:$DB$1113,50,FALSE),VLOOKUP($BS26,'État & Plan d''action'!$B$6:$DB$1113,60,FALSE),VLOOKUP($BS26,'État & Plan d''action'!$B$6:$DB$1113,70,FALSE),VLOOKUP($BS26,'État & Plan d''action'!$B$6:$DB$1113,80,FALSE),VLOOKUP($BS26,'État & Plan d''action'!$B$6:$DB$1113,90,FALSE),VLOOKUP($BS26,'État & Plan d''action'!$B$6:$DB$1113,100,FALSE)),"") -> 1 | FT26: =IFERROR(SUM(VLOOKUP($BS26,'État & Plan d''action'!$B$6:$DB$1113,22,FALSE),VLOOKUP($BS26,'État & Plan d''action'!$B$6:$DB$1113,32,FALSE),VLOOKUP($BS26,'État & Plan d''action'!$B$6:$DB$1113,42,FALSE),VLOOKUP($BS26,'État & Plan d''action'!$B$6:$DB$1113,52,FALSE),VLOOKUP($BS26,'État & Plan d''action'!$B$6:$DB$1113,62,FALSE),VLOOKUP($BS26,'État & Plan d''action'!$B$6:$DB$1113,72,FALSE),VLOOKUP($BS26,'État & Plan d''action'!$B$6:$DB$1113,82,FALSE),VLOOKUP($BS26,'État & Plan d''action'!$B$6:$DB$1113,92,FALSE),VLOOKUP($BS26,'État & Plan d''action'!$B$6:$DB$1113,102,FALSE)),"") -> 0 | FU26: =IFERROR(SUM(VLOOKUP($BS26,'État & Plan d''action'!$B$6:$DB$1113,24,FALSE),VLOOKUP($BS26,'État & Plan d''action'!$B$6:$DB$1113,34,FALSE),VLOOKUP($BS26,'État & Plan d''action'!$B$6:$DB$1113,44,FALSE),VLOOKUP($BS26,'État & Plan d''action'!$B$6:$DB$1113,54,FALSE),VLOOKUP($BS26,'État & Plan d''action'!$B$6:$DB$1113,64,FALSE),VLOOKUP($BS26,'État & Plan d''action'!$B$6:$DB$1113,74,FALSE),VLOOKUP($BS26,'État & Plan d''action'!$B$6:$DB$1113,84,FALSE),VLOOKUP($BS26,'État & Plan d''action'!$B$6:$DB$1113,94,FALSE),VLOOKUP($BS26,'État & Plan d''action'!$B$6:$DB$1113,104,FALSE)),"") -> 0 | FV26: 54 | FW26: 56 | FX26: 70 | FY26: 68.84313725 | FZ26: 765
W27: FM approuvé ? | X27: =VLOOKUP($W$23,$BS$9:$CQ$1116,15,FALSE) ->  | Y27: =VLOOKUP($W$23,$BS$9:$CQ$1116,16,FALSE) ->  | Z27: =VLOOKUP($W$23,$BS$9:$CQ$1116,17,FALSE) ->  | AA27: =VLOOKUP($W$23,$BS$9:$CQ$1116,18,FALSE) ->  | AB27: =VLOOKUP($W$23,$BS$9:$CQ$1116,19,FALSE) ->  | AC27: =VLOOKUP($W$23,$BS$9:$CQ$1116,20,FALSE) ->  | AD27: =VLOOKUP($W$23,$BS$9:$CQ$1116,21,FALSE) ->  | AE27: =VLOOKUP($W$23,$BS$9:$CQ$1116,22,FALSE) ->  | AF27: =VLOOKUP($W$23,$BS$9:$CQ$1116,23,FALSE) ->  | AG27: =VLOOKUP($W$23,$BS$9:$CQ$1116,24,FALSE) ->  | AH27: =VLOOKUP($W$23,$BS$9:$CQ$1116,25,FALSE) ->  | BQ27: 0 | BR27: 0 | BS27: 83090 | BT27: AUMOND | BU27: 7 | BV27: oui | BW27: oui | BX27: oui | BY27: oui | BZ27: oui | CA27: oui | CB27: oui | CC27: oui | CD27: oui | CE27: oui | CF27: oui | CG27: non | CH27: non | CI27: non | CJ27: non | CK27: non | CL27: non | CM27: non | CN27: non | CO27: non | CP27: non | CQ27: =IF(VLOOKUP(BS27,'Données par municipalité'!$B$6:$E$1113,4,FALSE)="","non","oui") -> non | DB27: =IF(VLOOKUP(BS27,'Données par municipalité'!$B$6:$F$1113,4,FALSE)="","",VLOOKUP(BS27,'Données par municipalité'!$B$6:$F$1113,4,FALSE)) ->  | DC27: Non disponible | DM27: =IFERROR(SUM(VLOOKUP($BS27,'État & Plan d''action'!$B$6:$DB$1113,18,FALSE),VLOOKUP($BS27,'État & Plan d''action'!$B$6:$DB$1113,20,FALSE),VLOOKUP($BS27,'État & Plan d''action'!$B$6:$DB$1113,28,FALSE),VLOOKUP($BS27,'État & Plan d''action'!$B$6:$DB$1113,30,FALSE),VLOOKUP($BS27,'État & Plan d''action'!$B$6:$DB$1113,38,FALSE),VLOOKUP($BS27,'État & Plan d''action'!$B$6:$DB$1113,40,FALSE),VLOOKUP($BS27,'État & Plan d''action'!$B$6:$DB$1113,48,FALSE),VLOOKUP($BS27,'État & Plan d''action'!$B$6:$DB$1113,50,FALSE),VLOOKUP($BS27,'État & Plan d''action'!$B$6:$DB$1113,58,FALSE),VLOOKUP($BS27,'État & Plan d''action'!$B$6:$DB$1113,60,FALSE),VLOOKUP($BS27,'État & Plan d''action'!$B$6:$DB$1113,68,FALSE),VLOOKUP($BS27,'État & Plan d''action'!$B$6:$DB$1113,70,FALSE),VLOOKUP($BS27,'État & Plan d''action'!$B$6:$DB$1113,78,FALSE),VLOOKUP($BS27,'État & Plan d''action'!$B$6:$DB$1113,80,FALSE),VLOOKUP($BS27,'État & Plan d''action'!$B$6:$DB$1113,88,FALSE),VLOOKUP($BS27,'État & Plan d''action'!$B$6:$DB$1113,90,FALSE),VLOOKUP($BS27,'État & Plan d''action'!$B$6:$DB$1113,98,FALSE),VLOOKUP($BS27,'État & Plan d''action'!$B$6:$DB$1113,100,FALSE))/(VLOOKUP($BS27,'Données par municipalité'!$B$4:$N$1113,13,FALSE)),"") ->  | DN27: =IFERROR(SUM(VLOOKUP($BS27,'État & Plan d''action'!$B$6:$DB$1113,19,FALSE),VLOOKUP($BS27,'État & Plan d''action'!$B$6:$DB$1113,21,FALSE),VLOOKUP($BS27,'État & Plan d''action'!$B$6:$DB$1113,29,FALSE),VLOOKUP($BS27,'État & Plan d''action'!$B$6:$DB$1113,31,FALSE),VLOOKUP($BS27,'État & Plan d''action'!$B$6:$DB$1113,39,FALSE),VLOOKUP($BS27,'État & Plan d''action'!$B$6:$DB$1113,41,FALSE),VLOOKUP($BS27,'État & Plan d''action'!$B$6:$DB$1113,49,FALSE),VLOOKUP($BS27,'État & Plan d''action'!$B$6:$DB$1113,51,FALSE),VLOOKUP($BS27,'État & Plan d''action'!$B$6:$DB$1113,59,FALSE),VLOOKUP($BS27,'État & Plan d''action'!$B$6:$DB$1113,61,FALSE),VLOOKUP($BS27,'État & Plan d''action'!$B$6:$DB$1113,69,FALSE),VLOOKUP($BS27,'État & Plan d''action'!$B$6:$DB$1113,71,FALSE),VLOOKUP($BS27,'État & Plan d''action'!$B$6:$DB$1113,79,FALSE),VLOOKUP($BS27,'État & Plan d''action'!$B$6:$DB$1113,81,FALSE),VLOOKUP($BS27,'État & Plan d''action'!$B$6:$DB$1113,89,FALSE),VLOOKUP($BS27,'État & Plan d''action'!$B$6:$DB$1113,91,FALSE),VLOOKUP($BS27,'État & Plan d''action'!$B$6:$DB$1113,99,FALSE),VLOOKUP($BS27,'État & Plan d''action'!$B$6:$DB$1113,101,FALSE))/(VLOOKUP($BS27,'Données par municipalité'!$B$4:$N$1113,13,FALSE)),"") ->  | DO27: Non disponible | DR27: 0 | DS27: 0 | EE27: =IF(VLOOKUP($BS27,'État & Plan d''action'!$B$6:$DM$1113,108,FALSE)="","",VLOOKUP($BS27,'État & Plan d''action'!$B$6:$DM$1113,108,FALSE)) ->  | EF27: =IF(VLOOKUP($BS27,'État & Plan d''action'!$B$6:$DM$1113,109,FALSE)="","",VLOOKUP($BS27,'État & Plan d''action'!$B$6:$DM$1113,109,FALSE)) ->  | EG27: =IF(VLOOKUP($BS27,'État & Plan d''action'!$B$6:$DM$1113,110,FALSE)="","",VLOOKUP($BS27,'État & Plan d''action'!$B$6:$DM$1113,110,FALSE)) ->  | EJ27: 0 | EK27: =VLOOKUP($BS27,'Données par municipalité'!$B$6:$F$1113,5,FALSE) -> 0 | EO27: =IF(VLOOKUP(BS27,'Données par municipalité'!$B$6:$U$1113,7,FALSE)="","",VLOOKUP(BS27,'Données par municipalité'!$B$6:$U$1113,7,FALSE)) ->  | EV27: 0 | EW27: 0 | EX27: 0 | EY27: =VLOOKUP($BS27,'État & Plan d''action'!$B$6:$DK$1113,112,FALSE) -> 0 | EZ27: =VLOOKUP($BS27,'État & Plan d''action'!$B$6:$DK$1113,113,FALSE) -> 0 | FA27: =VLOOKUP($BS27,'État & Plan d''action'!$B$6:$DK$1113,114,FALSE) -> 0 | FL27: 0 | FM27: 0 | FN27: 0 | FO27: 0 | FP27: 0 | FQ27: =IFERROR(SUM(VLOOKUP($BS27,'État & Plan d''action'!$B$6:$DB$1113,16,FALSE),VLOOKUP($BS27,'État & Plan d''action'!$B$6:$DB$1113,26,FALSE),VLOOKUP($BS27,'État & Plan d''action'!$B$6:$DB$1113,36,FALSE),VLOOKUP($BS27,'État & Plan d''action'!$B$6:$DB$1113,46,FALSE),VLOOKUP($BS27,'État & Plan d''action'!$B$6:$DB$1113,56,FALSE),VLOOKUP($BS27,'État & Plan d''action'!$B$6:$DB$1113,66,FALSE),VLOOKUP($BS27,'État & Plan d''action'!$B$6:$DB$1113,76,FALSE),VLOOKUP($BS27,'État & Plan d''action'!$B$6:$DB$1113,86,FALSE),VLOOKUP($BS27,'État & Plan d''action'!$B$6:$DB$1113,96,FALSE)),"") -> 0 | FR27: =IFERROR(SUM(VLOOKUP($BS27,'État & Plan d''action'!$B$6:$DB$1113,18,FALSE),VLOOKUP($BS27,'État & Plan d''action'!$B$6:$DB$1113,28,FALSE),VLOOKUP($BS27,'État & Plan d''action'!$B$6:$DB$1113,38,FALSE),VLOOKUP($BS27,'État & Plan d''action'!$B$6:$DB$1113,48,FALSE),VLOOKUP($BS27,'État & Plan d''action'!$B$6:$DB$1113,58,FALSE),VLOOKUP($BS27,'État & Plan d''action'!$B$6:$DB$1113,68,FALSE),VLOOKUP($BS27,'État & Plan d''action'!$B$6:$DB$1113,78,FALSE),VLOOKUP($BS27,'État & Plan d''action'!$B$6:$DB$1113,88,FALSE),VLOOKUP($BS27,'État & Plan d''action'!$B$6:$DB$1113,98,FALSE)),"") -> 0 | FS27: =IFERROR(SUM(VLOOKUP($BS27,'État & Plan d''action'!$B$6:$DB$1113,20,FALSE),VLOOKUP($BS27,'État & Plan d''action'!$B$6:$DB$1113,30,FALSE),VLOOKUP($BS27,'État & Plan d''action'!$B$6:$DB$1113,40,FALSE),VLOOKUP($BS27,'État & Plan d''action'!$B$6:$DB$1113,50,FALSE),VLOOKUP($BS27,'État & Plan d''action'!$B$6:$DB$1113,60,FALSE),VLOOKUP($BS27,'État & Plan d''action'!$B$6:$DB$1113,70,FALSE),VLOOKUP($BS27,'État & Plan d''action'!$B$6:$DB$1113,80,FALSE),VLOOKUP($BS27,'État & Plan d''action'!$B$6:$DB$1113,90,FALSE),VLOOKUP($BS27,'État & Plan d''action'!$B$6:$DB$1113,100,FALSE)),"") -> 0 | FT27: =IFERROR(SUM(VLOOKUP($BS27,'État & Plan d''action'!$B$6:$DB$1113,22,FALSE),VLOOKUP($BS27,'État & Plan d''action'!$B$6:$DB$1113,32,FALSE),VLOOKUP($BS27,'État & Plan d''action'!$B$6:$DB$1113,42,FALSE),VLOOKUP($BS27,'État & Plan d''action'!$B$6:$DB$1113,52,FALSE),VLOOKUP($BS27,'État & Plan d''action'!$B$6:$DB$1113,62,FALSE),VLOOKUP($BS27,'État & Plan d''action'!$B$6:$DB$1113,72,FALSE),VLOOKUP($BS27,'État & Plan d''action'!$B$6:$DB$1113,82,FALSE),VLOOKUP($BS27,'État & Plan d''action'!$B$6:$DB$1113,92,FALSE),VLOOKUP($BS27,'État & Plan d''action'!$B$6:$DB$1113,102,FALSE)),"") -> 0 | FU27: =IFERROR(SUM(VLOOKUP($BS27,'État & Plan d''action'!$B$6:$DB$1113,24,FALSE),VLOOKUP($BS27,'État & Plan d''action'!$B$6:$DB$1113,34,FALSE),VLOOKUP($BS27,'État & Plan d''action'!$B$6:$DB$1113,44,FALSE),VLOOKUP($BS27,'État & Plan d''action'!$B$6:$DB$1113,54,FALSE),VLOOKUP($BS27,'État & Plan d''action'!$B$6:$DB$1113,64,FALSE),VLOOKUP($BS27,'État & Plan d''action'!$B$6:$DB$1113,74,FALSE),VLOOKUP($BS27,'État & Plan d''action'!$B$6:$DB$1113,84,FALSE),VLOOKUP($BS27,'État & Plan d''action'!$B$6:$DB$1113,94,FALSE),VLOOKUP($BS27,'État & Plan d''action'!$B$6:$DB$1113,104,FALSE)),"") -> 0 | FZ27: 759
W28: Consommation résidentielle | X28: Non disponible | Y28: Non disponible | Z28: Non disponible | AA28: Non disponible | AB28: Non disponible | AC28: Non disponible | AD28: Non disponible | AE28: =IF($W$23="",EH8,IF(AE$27="non","Non disponible",IF(VLOOKUP($W$23,$BS$9:$EK$1116,68,FALSE)=0,"Non disponible",VLOOKUP($W$23,$BS$9:$EK$1116,68,FALSE)))) -> 268.2675218 | AF28: =IF($W$23="",EI8,IF(AF$27="non","Non disponible",IF(VLOOKUP($W$23,$BS$9:$EK$1116,69,FALSE)=0,"Non disponible",VLOOKUP($W$23,$BS$9:$EK$1116,69,FALSE)))) -> 262.0375957 | AG28: =IF($W$23="",EJ8,IF(AG$27="non","Non disponible",IF(VLOOKUP($W$23,$BS$9:$EK$1116,70,FALSE)=0,"Non disponible",VLOOKUP($W$23,$BS$9:$EK$1116,70,FALSE)))) -> 276.2706008 | AH28: =IF($W$23="",EK8,IF(AH$27="non","Non disponible",IF(VLOOKUP($W$23,$BS$9:$EK$1116,71,FALSE)=0,"Non disponible",VLOOKUP($W$23,$BS$9:$EK$1116,71,FALSE)))) -> 259.5527504 | BQ28: 0 | BR28: 0 | BS28: 45085 | BT28: AUSTIN | BU28: 5 | BV28: oui | BW28: oui | BX28: oui | BY28: oui | BZ28: oui | CA28: oui | CB28: oui | CC28: oui | CD28: oui | CE28: oui | CF28: oui | CG28: non | CH28: non | CI28: non | CJ28: non | CK28: non | CL28: non | CM28: non | CN28: non | CO28: non | CP28: non | CQ28: =IF(VLOOKUP(BS28,'Données par municipalité'!$B$6:$E$1113,4,FALSE)="","non","oui") -> non | DB28: =IF(VLOOKUP(BS28,'Données par municipalité'!$B$6:$F$1113,4,FALSE)="","",VLOOKUP(BS28,'Données par municipalité'!$B$6:$F$1113,4,FALSE)) ->  | DC28: Non disponible | DM28: =IFERROR(SUM(VLOOKUP($BS28,'État & Plan d''action'!$B$6:$DB$1113,18,FALSE),VLOOKUP($BS28,'État & Plan d''action'!$B$6:$DB$1113,20,FALSE),VLOOKUP($BS28,'État & Plan d''action'!$B$6:$DB$1113,28,FALSE),VLOOKUP($BS28,'État & Plan d''action'!$B$6:$DB$1113,30,FALSE),VLOOKUP($BS28,'État & Plan d''action'!$B$6:$DB$1113,38,FALSE),VLOOKUP($BS28,'État & Plan d''action'!$B$6:$DB$1113,40,FALSE),VLOOKUP($BS28,'État & Plan d''action'!$B$6:$DB$1113,48,FALSE),VLOOKUP($BS28,'État & Plan d''action'!$B$6:$DB$1113,50,FALSE),VLOOKUP($BS28,'État & Plan d''action'!$B$6:$DB$1113,58,FALSE),VLOOKUP($BS28,'État & Plan d''action'!$B$6:$DB$1113,60,FALSE),VLOOKUP($BS28,'État & Plan d''action'!$B$6:$DB$1113,68,FALSE),VLOOKUP($BS28,'État & Plan d''action'!$B$6:$DB$1113,70,FALSE),VLOOKUP($BS28,'État & Plan d''action'!$B$6:$DB$1113,78,FALSE),VLOOKUP($BS28,'État & Plan d''action'!$B$6:$DB$1113,80,FALSE),VLOOKUP($BS28,'État & Plan d''action'!$B$6:$DB$1113,88,FALSE),VLOOKUP($BS28,'État & Plan d''action'!$B$6:$DB$1113,90,FALSE),VLOOKUP($BS28,'État & Plan d''action'!$B$6:$DB$1113,98,FALSE),VLOOKUP($BS28,'État & Plan d''action'!$B$6:$DB$1113,100,FALSE))/(VLOOKUP($BS28,'Données par municipalité'!$B$4:$N$1113,13,FALSE)),"") ->  | DN28: =IFERROR(SUM(VLOOKUP($BS28,'État & Plan d''action'!$B$6:$DB$1113,19,FALSE),VLOOKUP($BS28,'État & Plan d''action'!$B$6:$DB$1113,21,FALSE),VLOOKUP($BS28,'État & Plan d''action'!$B$6:$DB$1113,29,FALSE),VLOOKUP($BS28,'État & Plan d''action'!$B$6:$DB$1113,31,FALSE),VLOOKUP($BS28,'État & Plan d''action'!$B$6:$DB$1113,39,FALSE),VLOOKUP($BS28,'État & Plan d''action'!$B$6:$DB$1113,41,FALSE),VLOOKUP($BS28,'État & Plan d''action'!$B$6:$DB$1113,49,FALSE),VLOOKUP($BS28,'État & Plan d''action'!$B$6:$DB$1113,51,FALSE),VLOOKUP($BS28,'État & Plan d''action'!$B$6:$DB$1113,59,FALSE),VLOOKUP($BS28,'État & Plan d''action'!$B$6:$DB$1113,61,FALSE),VLOOKUP($BS28,'État & Plan d''action'!$B$6:$DB$1113,69,FALSE),VLOOKUP($BS28,'État & Plan d''action'!$B$6:$DB$1113,71,FALSE),VLOOKUP($BS28,'État & Plan d''action'!$B$6:$DB$1113,79,FALSE),VLOOKUP($BS28,'État & Plan d''action'!$B$6:$DB$1113,81,FALSE),VLOOKUP($BS28,'État & Plan d''action'!$B$6:$DB$1113,89,FALSE),VLOOKUP($BS28,'État & Plan d''action'!$B$6:$DB$1113,91,FALSE),VLOOKUP($BS28,'État & Plan d''action'!$B$6:$DB$1113,99,FALSE),VLOOKUP($BS28,'État & Plan d''action'!$B$6:$DB$1113,101,FALSE))/(VLOOKUP($BS28,'Données par municipalité'!$B$4:$N$1113,13,FALSE)),"") ->  | DO28: Non disponible | DR28: 0 | DS28: 0 | EE28: =IF(VLOOKUP($BS28,'État & Plan d''action'!$B$6:$DM$1113,108,FALSE)="","",VLOOKUP($BS28,'État & Plan d''action'!$B$6:$DM$1113,108,FALSE)) ->  | EF28: =IF(VLOOKUP($BS28,'État & Plan d''action'!$B$6:$DM$1113,109,FALSE)="","",VLOOKUP($BS28,'État & Plan d''action'!$B$6:$DM$1113,109,FALSE)) ->  | EG28: =IF(VLOOKUP($BS28,'État & Plan d''action'!$B$6:$DM$1113,110,FALSE)="","",VLOOKUP($BS28,'État & Plan d''action'!$B$6:$DM$1113,110,FALSE)) ->  | EJ28: 0 | EK28: =VLOOKUP($BS28,'Données par municipalité'!$B$6:$F$1113,5,FALSE) -> 0 | EO28: =IF(VLOOKUP(BS28,'Données par municipalité'!$B$6:$U$1113,7,FALSE)="","",VLOOKUP(BS28,'Données par municipalité'!$B$6:$U$1113,7,FALSE)) ->  | EV28: 0 | EW28: 0 | EX28: 0 | EY28: =VLOOKUP($BS28,'État & Plan d''action'!$B$6:$DK$1113,112,FALSE) -> 0 | EZ28: =VLOOKUP($BS28,'État & Plan d''action'!$B$6:$DK$1113,113,FALSE) -> 0 | FA28: =VLOOKUP($BS28,'État & Plan d''action'!$B$6:$DK$1113,114,FALSE) -> 0 | FL28: 0 | FM28: 0 | FN28: 0 | FO28: 0 | FP28: 0 | FQ28: =IFERROR(SUM(VLOOKUP($BS28,'État & Plan d''action'!$B$6:$DB$1113,16,FALSE),VLOOKUP($BS28,'État & Plan d''action'!$B$6:$DB$1113,26,FALSE),VLOOKUP($BS28,'État & Plan d''action'!$B$6:$DB$1113,36,FALSE),VLOOKUP($BS28,'État & Plan d''action'!$B$6:$DB$1113,46,FALSE),VLOOKUP($BS28,'État & Plan d''action'!$B$6:$DB$1113,56,FALSE),VLOOKUP($BS28,'État & Plan d''action'!$B$6:$DB$1113,66,FALSE),VLOOKUP($BS28,'État & Plan d''action'!$B$6:$DB$1113,76,FALSE),VLOOKUP($BS28,'État & Plan d''action'!$B$6:$DB$1113,86,FALSE),VLOOKUP($BS28,'État & Plan d''action'!$B$6:$DB$1113,96,FALSE)),"") -> 0 | FR28: =IFERROR(SUM(VLOOKUP($BS28,'État & Plan d''action'!$B$6:$DB$1113,18,FALSE),VLOOKUP($BS28,'État & Plan d''action'!$B$6:$DB$1113,28,FALSE),VLOOKUP($BS28,'État & Plan d''action'!$B$6:$DB$1113,38,FALSE),VLOOKUP($BS28,'État & Plan d''action'!$B$6:$DB$1113,48,FALSE),VLOOKUP($BS28,'État & Plan d''action'!$B$6:$DB$1113,58,FALSE),VLOOKUP($BS28,'État & Plan d''action'!$B$6:$DB$1113,68,FALSE),VLOOKUP($BS28,'État & Plan d''action'!$B$6:$DB$1113,78,FALSE),VLOOKUP($BS28,'État & Plan d''action'!$B$6:$DB$1113,88,FALSE),VLOOKUP($BS28,'État & Plan d''action'!$B$6:$DB$1113,98,FALSE)),"") -> 0 | FS28: =IFERROR(SUM(VLOOKUP($BS28,'État & Plan d''action'!$B$6:$DB$1113,20,FALSE),VLOOKUP($BS28,'État & Plan d''action'!$B$6:$DB$1113,30,FALSE),VLOOKUP($BS28,'État & Plan d''action'!$B$6:$DB$1113,40,FALSE),VLOOKUP($BS28,'État & Plan d''action'!$B$6:$DB$1113,50,FALSE),VLOOKUP($BS28,'État & Plan d''action'!$B$6:$DB$1113,60,FALSE),VLOOKUP($BS28,'État & Plan d''action'!$B$6:$DB$1113,70,FALSE),VLOOKUP($BS28,'État & Plan d''action'!$B$6:$DB$1113,80,FALSE),VLOOKUP($BS28,'État & Plan d''action'!$B$6:$DB$1113,90,FALSE),VLOOKUP($BS28,'État & Plan d''action'!$B$6:$DB$1113,100,FALSE)),"") -> 0 | FT28: =IFERROR(SUM(VLOOKUP($BS28,'État & Plan d''action'!$B$6:$DB$1113,22,FALSE),VLOOKUP($BS28,'État & Plan d''action'!$B$6:$DB$1113,32,FALSE),VLOOKUP($BS28,'État & Plan d''action'!$B$6:$DB$1113,42,FALSE),VLOOKUP($BS28,'État & Plan d''action'!$B$6:$DB$1113,52,FALSE),VLOOKUP($BS28,'État & Plan d''action'!$B$6:$DB$1113,62,FALSE),VLOOKUP($BS28,'État & Plan d''action'!$B$6:$DB$1113,72,FALSE),VLOOKUP($BS28,'État & Plan d''action'!$B$6:$DB$1113,82,FALSE),VLOOKUP($BS28,'État & Plan d''action'!$B$6:$DB$1113,92,FALSE),VLOOKUP($BS28,'État & Plan d''action'!$B$6:$DB$1113,102,FALSE)),"") -> 0 | FU28: =IFERROR(SUM(VLOOKUP($BS28,'État & Plan d''action'!$B$6:$DB$1113,24,FALSE),VLOOKUP($BS28,'État & Plan d''action'!$B$6:$DB$1113,34,FALSE),VLOOKUP($BS28,'État & Plan d''action'!$B$6:$DB$1113,44,FALSE),VLOOKUP($BS28,'État & Plan d''action'!$B$6:$DB$1113,54,FALSE),VLOOKUP($BS28,'État & Plan d''action'!$B$6:$DB$1113,64,FALSE),VLOOKUP($BS28,'État & Plan d''action'!$B$6:$DB$1113,74,FALSE),VLOOKUP($BS28,'État & Plan d''action'!$B$6:$DB$1113,84,FALSE),VLOOKUP($BS28,'État & Plan d''action'!$B$6:$DB$1113,94,FALSE),VLOOKUP($BS28,'État & Plan d''action'!$B$6:$DB$1113,104,FALSE)),"") -> 0 | FZ28: 1576
W29: Indice de fuites dans les infrastructures | X29: Non disponible | Y29: Non disponible | Z29: Non disponible | AA29: Non disponible | AB29: Non disponible | AC29: Non disponible | AD29: Non disponible | AE29: =IF($W$23="",EL8,IF(AE$27="non","Non disponible",IF(VLOOKUP($W$23,$BS$9:$EO$1116,72,FALSE)=0,"Non disponible",VLOOKUP($W$23,$BS$9:$EO$1116,72,FALSE)))) -> 6.035062766 | AF29: =IF($W$23="",EM8,IF(AF$27="non","Non disponible",IF(VLOOKUP($W$23,$BS$9:$EO$1116,73,FALSE)=0,"Non disponible",VLOOKUP($W$23,$BS$9:$EO$1116,73,FALSE)))) -> 6.592263155 | AG29: =IF($W$23="",EN8,IF(AG$27="non","Non disponible",IF(VLOOKUP($W$23,$BS$9:$EO$1116,74,FALSE)=0,"Non disponible",VLOOKUP($W$23,$BS$9:$EO$1116,74,FALSE)))) -> 6.292197281 | AH29: =IF($W$23="",EO8,IF(AH$27="non","Non disponible",IF(VLOOKUP($W$23,$BS$9:$EO$1116,75,FALSE)=0,"Non disponible",VLOOKUP($W$23,$BS$9:$EO$1116,75,FALSE)))) -> 6.804760507 | BQ29: 0 | BR29: 0 | BS29: 87050 | BT29: AUTHIER | BU29: 8 | BV29: oui | BW29: oui | BX29: oui | BY29: oui | BZ29: oui | CA29: oui | CB29: oui | CC29: oui | CD29: oui | CE29: oui | CF29: oui | CG29: non | CH29: non | CI29: non | CJ29: non | CK29: non | CL29: non | CM29: non | CN29: non | CO29: non | CP29: non | CQ29: =IF(VLOOKUP(BS29,'Données par municipalité'!$B$6:$E$1113,4,FALSE)="","non","oui") -> non | DB29: =IF(VLOOKUP(BS29,'Données par municipalité'!$B$6:$F$1113,4,FALSE)="","",VLOOKUP(BS29,'Données par municipalité'!$B$6:$F$1113,4,FALSE)) ->  | DC29: Non disponible | DM29: =IFERROR(SUM(VLOOKUP($BS29,'État & Plan d''action'!$B$6:$DB$1113,18,FALSE),VLOOKUP($BS29,'État & Plan d''action'!$B$6:$DB$1113,20,FALSE),VLOOKUP($BS29,'État & Plan d''action'!$B$6:$DB$1113,28,FALSE),VLOOKUP($BS29,'État & Plan d''action'!$B$6:$DB$1113,30,FALSE),VLOOKUP($BS29,'État & Plan d''action'!$B$6:$DB$1113,38,FALSE),VLOOKUP($BS29,'État & Plan d''action'!$B$6:$DB$1113,40,FALSE),VLOOKUP($BS29,'État & Plan d''action'!$B$6:$DB$1113,48,FALSE),VLOOKUP($BS29,'État & Plan d''action'!$B$6:$DB$1113,50,FALSE),VLOOKUP($BS29,'État & Plan d''action'!$B$6:$DB$1113,58,FALSE),VLOOKUP($BS29,'État & Plan d''action'!$B$6:$DB$1113,60,FALSE),VLOOKUP($BS29,'État & Plan d''action'!$B$6:$DB$1113,68,FALSE),VLOOKUP($BS29,'État & Plan d''action'!$B$6:$DB$1113,70,FALSE),VLOOKUP($BS29,'État & Plan d''action'!$B$6:$DB$1113,78,FALSE),VLOOKUP($BS29,'État & Plan d''action'!$B$6:$DB$1113,80,FALSE),VLOOKUP($BS29,'État & Plan d''action'!$B$6:$DB$1113,88,FALSE),VLOOKUP($BS29,'État & Plan d''action'!$B$6:$DB$1113,90,FALSE),VLOOKUP($BS29,'État & Plan d''action'!$B$6:$DB$1113,98,FALSE),VLOOKUP($BS29,'État & Plan d''action'!$B$6:$DB$1113,100,FALSE))/(VLOOKUP($BS29,'Données par municipalité'!$B$4:$N$1113,13,FALSE)),"") ->  | DN29: =IFERROR(SUM(VLOOKUP($BS29,'État & Plan d''action'!$B$6:$DB$1113,19,FALSE),VLOOKUP($BS29,'État & Plan d''action'!$B$6:$DB$1113,21,FALSE),VLOOKUP($BS29,'État & Plan d''action'!$B$6:$DB$1113,29,FALSE),VLOOKUP($BS29,'État & Plan d''action'!$B$6:$DB$1113,31,FALSE),VLOOKUP($BS29,'État & Plan d''action'!$B$6:$DB$1113,39,FALSE),VLOOKUP($BS29,'État & Plan d''action'!$B$6:$DB$1113,41,FALSE),VLOOKUP($BS29,'État & Plan d''action'!$B$6:$DB$1113,49,FALSE),VLOOKUP($BS29,'État & Plan d''action'!$B$6:$DB$1113,51,FALSE),VLOOKUP($BS29,'État & Plan d''action'!$B$6:$DB$1113,59,FALSE),VLOOKUP($BS29,'État & Plan d''action'!$B$6:$DB$1113,61,FALSE),VLOOKUP($BS29,'État & Plan d''action'!$B$6:$DB$1113,69,FALSE),VLOOKUP($BS29,'État & Plan d''action'!$B$6:$DB$1113,71,FALSE),VLOOKUP($BS29,'État & Plan d''action'!$B$6:$DB$1113,79,FALSE),VLOOKUP($BS29,'État & Plan d''action'!$B$6:$DB$1113,81,FALSE),VLOOKUP($BS29,'État & Plan d''action'!$B$6:$DB$1113,89,FALSE),VLOOKUP($BS29,'État & Plan d''action'!$B$6:$DB$1113,91,FALSE),VLOOKUP($BS29,'État & Plan d''action'!$B$6:$DB$1113,99,FALSE),VLOOKUP($BS29,'État & Plan d''action'!$B$6:$DB$1113,101,FALSE))/(VLOOKUP($BS29,'Données par municipalité'!$B$4:$N$1113,13,FALSE)),"") ->  | DO29: Non disponible | DP29: 3 | DQ29: 4 | DR29: 4 | DS29: 1 | EE29: =IF(VLOOKUP($BS29,'État & Plan d''action'!$B$6:$DM$1113,108,FALSE)="","",VLOOKUP($BS29,'État & Plan d''action'!$B$6:$DM$1113,108,FALSE)) ->  | EF29: =IF(VLOOKUP($BS29,'État & Plan d''action'!$B$6:$DM$1113,109,FALSE)="","",VLOOKUP($BS29,'État & Plan d''action'!$B$6:$DM$1113,109,FALSE)) ->  | EG29: =IF(VLOOKUP($BS29,'État & Plan d''action'!$B$6:$DM$1113,110,FALSE)="","",VLOOKUP($BS29,'État & Plan d''action'!$B$6:$DM$1113,110,FALSE)) ->  | EJ29: 0 | EK29: =VLOOKUP($BS29,'Données par municipalité'!$B$6:$F$1113,5,FALSE) -> 0 | EO29: =IF(VLOOKUP(BS29,'Données par municipalité'!$B$6:$U$1113,7,FALSE)="","",VLOOKUP(BS29,'Données par municipalité'!$B$6:$U$1113,7,FALSE)) ->  | EV29: 0 | EW29: 0 | EX29: 0 | EY29: =VLOOKUP($BS29,'État & Plan d''action'!$B$6:$DK$1113,112,FALSE) -> 0 | EZ29: =VLOOKUP($BS29,'État & Plan d''action'!$B$6:$DK$1113,113,FALSE) -> 0 | FA29: =VLOOKUP($BS29,'État & Plan d''action'!$B$6:$DK$1113,114,FALSE) -> 0 | FL29: 0 | FM29: 0 | FN29: 0 | FO29: 0 | FP29: 0 | FQ29: =IFERROR(SUM(VLOOKUP($BS29,'État & Plan d''action'!$B$6:$DB$1113,16,FALSE),VLOOKUP($BS29,'État & Plan d''action'!$B$6:$DB$1113,26,FALSE),VLOOKUP($BS29,'État & Plan d''action'!$B$6:$DB$1113,36,FALSE),VLOOKUP($BS29,'État & Plan d''action'!$B$6:$DB$1113,46,FALSE),VLOOKUP($BS29,'État & Plan d''action'!$B$6:$DB$1113,56,FALSE),VLOOKUP($BS29,'État & Plan d''action'!$B$6:$DB$1113,66,FALSE),VLOOKUP($BS29,'État & Plan d''action'!$B$6:$DB$1113,76,FALSE),VLOOKUP($BS29,'État & Plan d''action'!$B$6:$DB$1113,86,FALSE),VLOOKUP($BS29,'État & Plan d''action'!$B$6:$DB$1113,96,FALSE)),"") -> 0 | FR29: =IFERROR(SUM(VLOOKUP($BS29,'État & Plan d''action'!$B$6:$DB$1113,18,FALSE),VLOOKUP($BS29,'État & Plan d''action'!$B$6:$DB$1113,28,FALSE),VLOOKUP($BS29,'État & Plan d''action'!$B$6:$DB$1113,38,FALSE),VLOOKUP($BS29,'État & Plan d''action'!$B$6:$DB$1113,48,FALSE),VLOOKUP($BS29,'État & Plan d''action'!$B$6:$DB$1113,58,FALSE),VLOOKUP($BS29,'État & Plan d''action'!$B$6:$DB$1113,68,FALSE),VLOOKUP($BS29,'État & Plan d''action'!$B$6:$DB$1113,78,FALSE),VLOOKUP($BS29,'État & Plan d''action'!$B$6:$DB$1113,88,FALSE),VLOOKUP($BS29,'État & Plan d''action'!$B$6:$DB$1113,98,FALSE)),"") -> 0 | FS29: =IFERROR(SUM(VLOOKUP($BS29,'État & Plan d''action'!$B$6:$DB$1113,20,FALSE),VLOOKUP($BS29,'État & Plan d''action'!$B$6:$DB$1113,30,FALSE),VLOOKUP($BS29,'État & Plan d''action'!$B$6:$DB$1113,40,FALSE),VLOOKUP($BS29,'État & Plan d''action'!$B$6:$DB$1113,50,FALSE),VLOOKUP($BS29,'État & Plan d''action'!$B$6:$DB$1113,60,FALSE),VLOOKUP($BS29,'État & Plan d''action'!$B$6:$DB$1113,70,FALSE),VLOOKUP($BS29,'État & Plan d''action'!$B$6:$DB$1113,80,FALSE),VLOOKUP($BS29,'État & Plan d''action'!$B$6:$DB$1113,90,FALSE),VLOOKUP($BS29,'État & Plan d''action'!$B$6:$DB$1113,100,FALSE)),"") -> 0 | FT29: =IFERROR(SUM(VLOOKUP($BS29,'État & Plan d''action'!$B$6:$DB$1113,22,FALSE),VLOOKUP($BS29,'État & Plan d''action'!$B$6:$DB$1113,32,FALSE),VLOOKUP($BS29,'État & Plan d''action'!$B$6:$DB$1113,42,FALSE),VLOOKUP($BS29,'État & Plan d''action'!$B$6:$DB$1113,52,FALSE),VLOOKUP($BS29,'État & Plan d''action'!$B$6:$DB$1113,62,FALSE),VLOOKUP($BS29,'État & Plan d''action'!$B$6:$DB$1113,72,FALSE),VLOOKUP($BS29,'État & Plan d''action'!$B$6:$DB$1113,82,FALSE),VLOOKUP($BS29,'État & Plan d''action'!$B$6:$DB$1113,92,FALSE),VLOOKUP($BS29,'État & Plan d''action'!$B$6:$DB$1113,102,FALSE)),"") -> 0 | FU29: =IFERROR(SUM(VLOOKUP($BS29,'État & Plan d''action'!$B$6:$DB$1113,24,FALSE),VLOOKUP($BS29,'État & Plan d''action'!$B$6:$DB$1113,34,FALSE),VLOOKUP($BS29,'État & Plan d''action'!$B$6:$DB$1113,44,FALSE),VLOOKUP($BS29,'État & Plan d''action'!$B$6:$DB$1113,54,FALSE),VLOOKUP($BS29,'État & Plan d''action'!$B$6:$DB$1113,64,FALSE),VLOOKUP($BS29,'État & Plan d''action'!$B$6:$DB$1113,74,FALSE),VLOOKUP($BS29,'État & Plan d''action'!$B$6:$DB$1113,84,FALSE),VLOOKUP($BS29,'État & Plan d''action'!$B$6:$DB$1113,94,FALSE),VLOOKUP($BS29,'État & Plan d''action'!$B$6:$DB$1113,104,FALSE)),"") -> 0 | FZ29: 271
W30: Résultat de validité des données | X30: Non disponible | Y30: Non disponible | Z30: Non disponible | AA30: Non disponible | AB30: Non disponible | AC30: Non disponible | AD30: Non disponible | AE30: =IF($W$23="",FV8,IF(AE$27="non","Non disponible",IF(VLOOKUP($W$23,$BS$9:$FY$1116,108,FALSE)=0,"Non disponible",VLOOKUP($W$23,$BS$9:$FY$1116,108,FALSE)))) -> 55.81464743 | AF30: =IF($W$23="",FW8,IF(AF$27="non","Non disponible",IF(VLOOKUP($W$23,$BS$9:$FY$1116,109,FALSE)=0,"Non disponible",VLOOKUP($W$23,$BS$9:$FY$1116,109,FALSE)))) -> 57.72349908 | AG30: =IF($W$23="",FX8,IF(AG$27="non","Non disponible",IF(VLOOKUP($W$23,$BS$9:$FY$1116,110,FALSE)=0,"Non disponible",VLOOKUP($W$23,$BS$9:$FY$1116,110,FALSE)))) -> 58.58576664 | AH30: =IF($W$23="",FY8,IF(AH$27="non","Non disponible",IF(VLOOKUP($W$23,$BS$9:$FY$1116,111,FALSE)=0,"Non disponible",VLOOKUP($W$23,$BS$9:$FY$1116,111,FALSE)))) -> 60.34695882 | BQ30: 0 | BR30: 0 | BS30: 87100 | BT30: AUTHIER-NORD | BU30: 8 | BV30: oui | BW30: oui | BX30: oui | BY30: oui | BZ30: oui | CA30: oui | CB30: oui | CC30: oui | CD30: oui | CE30: oui | CF30: oui | CG30: non | CH30: non | CI30: non | CJ30: non | CK30: non | CL30: non | CM30: non | CN30: non | CO30: non | CP30: non | CQ30: =IF(VLOOKUP(BS30,'Données par municipalité'!$B$6:$E$1113,4,FALSE)="","non","oui") -> non | DB30: =IF(VLOOKUP(BS30,'Données par municipalité'!$B$6:$F$1113,4,FALSE)="","",VLOOKUP(BS30,'Données par municipalité'!$B$6:$F$1113,4,FALSE)) ->  | DC30: Non disponible | DM30: =IFERROR(SUM(VLOOKUP($BS30,'État & Plan d''action'!$B$6:$DB$1113,18,FALSE),VLOOKUP($BS30,'État & Plan d''action'!$B$6:$DB$1113,20,FALSE),VLOOKUP($BS30,'État & Plan d''action'!$B$6:$DB$1113,28,FALSE),VLOOKUP($BS30,'État & Plan d''action'!$B$6:$DB$1113,30,FALSE),VLOOKUP($BS30,'État & Plan d''action'!$B$6:$DB$1113,38,FALSE),VLOOKUP($BS30,'État & Plan d''action'!$B$6:$DB$1113,40,FALSE),VLOOKUP($BS30,'État & Plan d''action'!$B$6:$DB$1113,48,FALSE),VLOOKUP($BS30,'État & Plan d''action'!$B$6:$DB$1113,50,FALSE),VLOOKUP($BS30,'État & Plan d''action'!$B$6:$DB$1113,58,FALSE),VLOOKUP($BS30,'État & Plan d''action'!$B$6:$DB$1113,60,FALSE),VLOOKUP($BS30,'État & Plan d''action'!$B$6:$DB$1113,68,FALSE),VLOOKUP($BS30,'État & Plan d''action'!$B$6:$DB$1113,70,FALSE),VLOOKUP($BS30,'État & Plan d''action'!$B$6:$DB$1113,78,FALSE),VLOOKUP($BS30,'État & Plan d''action'!$B$6:$DB$1113,80,FALSE),VLOOKUP($BS30,'État & Plan d''action'!$B$6:$DB$1113,88,FALSE),VLOOKUP($BS30,'État & Plan d''action'!$B$6:$DB$1113,90,FALSE),VLOOKUP($BS30,'État & Plan d''action'!$B$6:$DB$1113,98,FALSE),VLOOKUP($BS30,'État & Plan d''action'!$B$6:$DB$1113,100,FALSE))/(VLOOKUP($BS30,'Données par municipalité'!$B$4:$N$1113,13,FALSE)),"") ->  | DN30: =IFERROR(SUM(VLOOKUP($BS30,'État & Plan d''action'!$B$6:$DB$1113,19,FALSE),VLOOKUP($BS30,'État & Plan d''action'!$B$6:$DB$1113,21,FALSE),VLOOKUP($BS30,'État & Plan d''action'!$B$6:$DB$1113,29,FALSE),VLOOKUP($BS30,'État & Plan d''action'!$B$6:$DB$1113,31,FALSE),VLOOKUP($BS30,'État & Plan d''action'!$B$6:$DB$1113,39,FALSE),VLOOKUP($BS30,'État & Plan d''action'!$B$6:$DB$1113,41,FALSE),VLOOKUP($BS30,'État & Plan d''action'!$B$6:$DB$1113,49,FALSE),VLOOKUP($BS30,'État & Plan d''action'!$B$6:$DB$1113,51,FALSE),VLOOKUP($BS30,'État & Plan d''action'!$B$6:$DB$1113,59,FALSE),VLOOKUP($BS30,'État & Plan d''action'!$B$6:$DB$1113,61,FALSE),VLOOKUP($BS30,'État & Plan d''action'!$B$6:$DB$1113,69,FALSE),VLOOKUP($BS30,'État & Plan d''action'!$B$6:$DB$1113,71,FALSE),VLOOKUP($BS30,'État & Plan d''action'!$B$6:$DB$1113,79,FALSE),VLOOKUP($BS30,'État & Plan d''action'!$B$6:$DB$1113,81,FALSE),VLOOKUP($BS30,'État & Plan d''action'!$B$6:$DB$1113,89,FALSE),VLOOKUP($BS30,'État & Plan d''action'!$B$6:$DB$1113,91,FALSE),VLOOKUP($BS30,'État & Plan d''action'!$B$6:$DB$1113,99,FALSE),VLOOKUP($BS30,'État & Plan d''action'!$B$6:$DB$1113,101,FALSE))/(VLOOKUP($BS30,'Données par municipalité'!$B$4:$N$1113,13,FALSE)),"") ->  | DO30: Non disponible | DR30: 0 | DS30: 0 | EE30: =IF(VLOOKUP($BS30,'État & Plan d''action'!$B$6:$DM$1113,108,FALSE)="","",VLOOKUP($BS30,'État & Plan d''action'!$B$6:$DM$1113,108,FALSE)) ->  | EF30: =IF(VLOOKUP($BS30,'État & Plan d''action'!$B$6:$DM$1113,109,FALSE)="","",VLOOKUP($BS30,'État & Plan d''action'!$B$6:$DM$1113,109,FALSE)) ->  | EG30: =IF(VLOOKUP($BS30,'État & Plan d''action'!$B$6:$DM$1113,110,FALSE)="","",VLOOKUP($BS30,'État & Plan d''action'!$B$6:$DM$1113,110,FALSE)) ->  | EJ30: 0 | EK30: =VLOOKUP($BS30,'Données par municipalité'!$B$6:$F$1113,5,FALSE) -> 0 | EO30: =IF(VLOOKUP(BS30,'Données par municipalité'!$B$6:$U$1113,7,FALSE)="","",VLOOKUP(BS30,'Données par municipalité'!$B$6:$U$1113,7,FALSE)) ->  | EV30: 0 | EW30: 0 | EX30: 0 | EY30: =VLOOKUP($BS30,'État & Plan d''action'!$B$6:$DK$1113,112,FALSE) -> 0 | EZ30: =VLOOKUP($BS30,'État & Plan d''action'!$B$6:$DK$1113,113,FALSE) -> 0 | FA30: =VLOOKUP($BS30,'État & Plan d''action'!$B$6:$DK$1113,114,FALSE) -> 0 | FL30: 0 | FM30: 0 | FN30: 0 | FO30: 0 | FP30: 0 | FQ30: =IFERROR(SUM(VLOOKUP($BS30,'État & Plan d''action'!$B$6:$DB$1113,16,FALSE),VLOOKUP($BS30,'État & Plan d''action'!$B$6:$DB$1113,26,FALSE),VLOOKUP($BS30,'État & Plan d''action'!$B$6:$DB$1113,36,FALSE),VLOOKUP($BS30,'État & Plan d''action'!$B$6:$DB$1113,46,FALSE),VLOOKUP($BS30,'État & Plan d''action'!$B$6:$DB$1113,56,FALSE),VLOOKUP($BS30,'État & Plan d''action'!$B$6:$DB$1113,66,FALSE),VLOOKUP($BS30,'État & Plan d''action'!$B$6:$DB$1113,76,FALSE),VLOOKUP($BS30,'État & Plan d''action'!$B$6:$DB$1113,86,FALSE),VLOOKUP($BS30,'État & Plan d''action'!$B$6:$DB$1113,96,FALSE)),"") -> 0 | FR30: =IFERROR(SUM(VLOOKUP($BS30,'État & Plan d''action'!$B$6:$DB$1113,18,FALSE),VLOOKUP($BS30,'État & Plan d''action'!$B$6:$DB$1113,28,FALSE),VLOOKUP($BS30,'État & Plan d''action'!$B$6:$DB$1113,38,FALSE),VLOOKUP($BS30,'État & Plan d''action'!$B$6:$DB$1113,48,FALSE),VLOOKUP($BS30,'État & Plan d''action'!$B$6:$DB$1113,58,FALSE),VLOOKUP($BS30,'État & Plan d''action'!$B$6:$DB$1113,68,FALSE),VLOOKUP($BS30,'État & Plan d''action'!$B$6:$DB$1113,78,FALSE),VLOOKUP($BS30,'État & Plan d''action'!$B$6:$DB$1113,88,FALSE),VLOOKUP($BS30,'État & Plan d''action'!$B$6:$DB$1113,98,FALSE)),"") -> 0 | FS30: =IFERROR(SUM(VLOOKUP($BS30,'État & Plan d''action'!$B$6:$DB$1113,20,FALSE),VLOOKUP($BS30,'État & Plan d''action'!$B$6:$DB$1113,30,FALSE),VLOOKUP($BS30,'État & Plan d''action'!$B$6:$DB$1113,40,FALSE),VLOOKUP($BS30,'État & Plan d''action'!$B$6:$DB$1113,50,FALSE),VLOOKUP($BS30,'État & Plan d''action'!$B$6:$DB$1113,60,FALSE),VLOOKUP($BS30,'État & Plan d''action'!$B$6:$DB$1113,70,FALSE),VLOOKUP($BS30,'État & Plan d''action'!$B$6:$DB$1113,80,FALSE),VLOOKUP($BS30,'État & Plan d''action'!$B$6:$DB$1113,90,FALSE),VLOOKUP($BS30,'État & Plan d''action'!$B$6:$DB$1113,100,FALSE)),"") -> 0 | FT30: =IFERROR(SUM(VLOOKUP($BS30,'État & Plan d''action'!$B$6:$DB$1113,22,FALSE),VLOOKUP($BS30,'État & Plan d''action'!$B$6:$DB$1113,32,FALSE),VLOOKUP($BS30,'État & Plan d''action'!$B$6:$DB$1113,42,FALSE),VLOOKUP($BS30,'État & Plan d''action'!$B$6:$DB$1113,52,FALSE),VLOOKUP($BS30,'État & Plan d''action'!$B$6:$DB$1113,62,FALSE),VLOOKUP($BS30,'État & Plan d''action'!$B$6:$DB$1113,72,FALSE),VLOOKUP($BS30,'État & Plan d''action'!$B$6:$DB$1113,82,FALSE),VLOOKUP($BS30,'État & Plan d''action'!$B$6:$DB$1113,92,FALSE),VLOOKUP($BS30,'État & Plan d''action'!$B$6:$DB$1113,102,FALSE)),"") -> 0 | FU30: =IFERROR(SUM(VLOOKUP($BS30,'État & Plan d''action'!$B$6:$DB$1113,24,FALSE),VLOOKUP($BS30,'État & Plan d''action'!$B$6:$DB$1113,34,FALSE),VLOOKUP($BS30,'État & Plan d''action'!$B$6:$DB$1113,44,FALSE),VLOOKUP($BS30,'État & Plan d''action'!$B$6:$DB$1113,54,FALSE),VLOOKUP($BS30,'État & Plan d''action'!$B$6:$DB$1113,64,FALSE),VLOOKUP($BS30,'État & Plan d''action'!$B$6:$DB$1113,74,FALSE),VLOOKUP($BS30,'État & Plan d''action'!$B$6:$DB$1113,84,FALSE),VLOOKUP($BS30,'État & Plan d''action'!$B$6:$DB$1113,94,FALSE),VLOOKUP($BS30,'État & Plan d''action'!$B$6:$DB$1113,104,FALSE)),"") -> 0 | FZ30: 282
B31: Haut de la page ↑ | W31: Comparaison 2019 | AD31: =IFERROR(IF(AG27="non","",IF(NM="Tout le Québec","","Objectif 2020 pour la municipalité : "&AG31)),"") ->  | AE31: =AF31 ->  | AF31: =AG31 ->  | AG31: =IFERROR(RIGHT(IF(LEN(VLOOKUP(W23,'Données par municipalité'!B6:G1113,6,FALSE))=14,LEFT(VLOOKUP(W23,'Données par municipalité'!B6:G1113,6,FALSE),5),VLOOKUP(W23,'Données par municipalité'!B6:G1113,6,FALSE)),3)*1,"") ->  | AH31: =AG31 ->  | AI31: =AH31 ->  | BQ31: 1 | BR31: 1 | BS31: 45035 | BT31: AYER'S CLIFF | BU31: 5 | BV31: non | BW31: non | BX31: non | BY31: non | BZ31: non | CA31: non | CB31: non | CC31: non | CD31: non | CE31: non | CF31: non | CG31: oui | CH31: oui | CI31: non | CJ31: oui | CK31: non | CL31: oui | CM31: oui | CN31: non | CO31: non | CP31: oui | CQ31: =IF(VLOOKUP(BS31,'Données par municipalité'!$B$6:$E$1113,4,FALSE)="","non","oui") -> non | CR31: 758.431692 | CS31: 606.3585282 | CU31: 392.8628336 | CW31: 544.8057007 | CX31: 582.0422325 | DA31: 376 | DB31: =IF(VLOOKUP(BS31,'Données par municipalité'!$B$6:$F$1113,4,FALSE)="","",VLOOKUP(BS31,'Données par municipalité'!$B$6:$F$1113,4,FALSE)) ->  | DC31: Non disponible | DD31: 0 | DF31: 0.3 | DH31: 0.3 | DI31: 0.3 | DL31: 1 | DM31: =IFERROR(SUM(VLOOKUP($BS31,'État & Plan d''action'!$B$6:$DB$1113,18,FALSE),VLOOKUP($BS31,'État & Plan d''action'!$B$6:$DB$1113,20,FALSE),VLOOKUP($BS31,'État & Plan d''action'!$B$6:$DB$1113,28,FALSE),VLOOKUP($BS31,'État & Plan d''action'!$B$6:$DB$1113,30,FALSE),VLOOKUP($BS31,'État & Plan d''action'!$B$6:$DB$1113,38,FALSE),VLOOKUP($BS31,'État & Plan d''action'!$B$6:$DB$1113,40,FALSE),VLOOKUP($BS31,'État & Plan d''action'!$B$6:$DB$1113,48,FALSE),VLOOKUP($BS31,'État & Plan d''action'!$B$6:$DB$1113,50,FALSE),VLOOKUP($BS31,'État & Plan d''action'!$B$6:$DB$1113,58,FALSE),VLOOKUP($BS31,'État & Plan d''action'!$B$6:$DB$1113,60,FALSE),VLOOKUP($BS31,'État & Plan d''action'!$B$6:$DB$1113,68,FALSE),VLOOKUP($BS31,'État & Plan d''action'!$B$6:$DB$1113,70,FALSE),VLOOKUP($BS31,'État & Plan d''action'!$B$6:$DB$1113,78,FALSE),VLOOKUP($BS31,'État & Plan d''action'!$B$6:$DB$1113,80,FALSE),VLOOKUP($BS31,'État & Plan d''action'!$B$6:$DB$1113,88,FALSE),VLOOKUP($BS31,'État & Plan d''action'!$B$6:$DB$1113,90,FALSE),VLOOKUP($BS31,'État & Plan d''action'!$B$6:$DB$1113,98,FALSE),VLOOKUP($BS31,'État & Plan d''action'!$B$6:$DB$1113,100,FALSE))/(VLOOKUP($BS31,'Données par municipalité'!$B$4:$N$1113,13,FALSE)),"") ->  | DN31: =IFERROR(SUM(VLOOKUP($BS31,'État & Plan d''action'!$B$6:$DB$1113,19,FALSE),VLOOKUP($BS31,'État & Plan d''action'!$B$6:$DB$1113,21,FALSE),VLOOKUP($BS31,'État & Plan d''action'!$B$6:$DB$1113,29,FALSE),VLOOKUP($BS31,'État & Plan d''action'!$B$6:$DB$1113,31,FALSE),VLOOKUP($BS31,'État & Plan d''action'!$B$6:$DB$1113,39,FALSE),VLOOKUP($BS31,'État & Plan d''action'!$B$6:$DB$1113,41,FALSE),VLOOKUP($BS31,'État & Plan d''action'!$B$6:$DB$1113,49,FALSE),VLOOKUP($BS31,'État & Plan d''action'!$B$6:$DB$1113,51,FALSE),VLOOKUP($BS31,'État & Plan d''action'!$B$6:$DB$1113,59,FALSE),VLOOKUP($BS31,'État & Plan d''action'!$B$6:$DB$1113,61,FALSE),VLOOKUP($BS31,'État & Plan d''action'!$B$6:$DB$1113,69,FALSE),VLOOKUP($BS31,'État & Plan d''action'!$B$6:$DB$1113,71,FALSE),VLOOKUP($BS31,'État & Plan d''action'!$B$6:$DB$1113,79,FALSE),VLOOKUP($BS31,'État & Plan d''action'!$B$6:$DB$1113,81,FALSE),VLOOKUP($BS31,'État & Plan d''action'!$B$6:$DB$1113,89,FALSE),VLOOKUP($BS31,'État & Plan d''action'!$B$6:$DB$1113,91,FALSE),VLOOKUP($BS31,'État & Plan d''action'!$B$6:$DB$1113,99,FALSE),VLOOKUP($BS31,'État & Plan d''action'!$B$6:$DB$1113,101,FALSE))/(VLOOKUP($BS31,'Données par municipalité'!$B$4:$N$1113,13,FALSE)),"") ->  | DO31: Non disponible | DP31: 0 | DR31: 0 | DS31: 0 | DT31: 0 | DU31: 0 | EB31: 0 | EC31: 0 | ED31: 0 | EE31: =IF(VLOOKUP($BS31,'État & Plan d''action'!$B$6:$DM$1113,108,FALSE)="","",VLOOKUP($BS31,'État & Plan d''action'!$B$6:$DM$1113,108,FALSE)) ->  | EF31: =IF(VLOOKUP($BS31,'État & Plan d''action'!$B$6:$DM$1113,109,FALSE)="","",VLOOKUP($BS31,'État & Plan d''action'!$B$6:$DM$1113,109,FALSE)) ->  | EG31: =IF(VLOOKUP($BS31,'État & Plan d''action'!$B$6:$DM$1113,110,FALSE)="","",VLOOKUP($BS31,'État & Plan d''action'!$B$6:$DM$1113,110,FALSE)) ->  | EJ31: 316 | EK31: =VLOOKUP($BS31,'Données par municipalité'!$B$6:$F$1113,5,FALSE) -> 0 | EN31: 1.385204615 | EO31: =IF(VLOOKUP(BS31,'Données par municipalité'!$B$6:$U$1113,7,FALSE)="","",VLOOKUP(BS31,'Données par municipalité'!$B$6:$U$1113,7,FALSE)) ->  | EV31: S.O. | EY31: =VLOOKUP($BS31,'État & Plan d''action'!$B$6:$DK$1113,112,FALSE) -> 0 | EZ31: =VLOOKUP($BS31,'État & Plan d''action'!$B$6:$DK$1113,113,FALSE) -> 0 | FA31: =VLOOKUP($BS31,'État & Plan d''action'!$B$6:$DK$1113,114,FALSE) -> 0 | FL31: 0 | FM31: 19.892 | FN31: 0 | FO31: 0 | FP31: 0 | FQ31: =IFERROR(SUM(VLOOKUP($BS31,'État & Plan d''action'!$B$6:$DB$1113,16,FALSE),VLOOKUP($BS31,'État & Plan d''action'!$B$6:$DB$1113,26,FALSE),VLOOKUP($BS31,'État & Plan d''action'!$B$6:$DB$1113,36,FALSE),VLOOKUP($BS31,'État & Plan d''action'!$B$6:$DB$1113,46,FALSE),VLOOKUP($BS31,'État & Plan d''action'!$B$6:$DB$1113,56,FALSE),VLOOKUP($BS31,'État & Plan d''action'!$B$6:$DB$1113,66,FALSE),VLOOKUP($BS31,'État & Plan d''action'!$B$6:$DB$1113,76,FALSE),VLOOKUP($BS31,'État & Plan d''action'!$B$6:$DB$1113,86,FALSE),VLOOKUP($BS31,'État & Plan d''action'!$B$6:$DB$1113,96,FALSE)),"") -> 0 | FR31: =IFERROR(SUM(VLOOKUP($BS31,'État & Plan d''action'!$B$6:$DB$1113,18,FALSE),VLOOKUP($BS31,'État & Plan d''action'!$B$6:$DB$1113,28,FALSE),VLOOKUP($BS31,'État & Plan d''action'!$B$6:$DB$1113,38,FALSE),VLOOKUP($BS31,'État & Plan d''action'!$B$6:$DB$1113,48,FALSE),VLOOKUP($BS31,'État & Plan d''action'!$B$6:$DB$1113,58,FALSE),VLOOKUP($BS31,'État & Plan d''action'!$B$6:$DB$1113,68,FALSE),VLOOKUP($BS31,'État & Plan d''action'!$B$6:$DB$1113,78,FALSE),VLOOKUP($BS31,'État & Plan d''action'!$B$6:$DB$1113,88,FALSE),VLOOKUP($BS31,'État & Plan d''action'!$B$6:$DB$1113,98,FALSE)),"") -> 0 | FS31: =IFERROR(SUM(VLOOKUP($BS31,'État & Plan d''action'!$B$6:$DB$1113,20,FALSE),VLOOKUP($BS31,'État & Plan d''action'!$B$6:$DB$1113,30,FALSE),VLOOKUP($BS31,'État & Plan d''action'!$B$6:$DB$1113,40,FALSE),VLOOKUP($BS31,'État & Plan d''action'!$B$6:$DB$1113,50,FALSE),VLOOKUP($BS31,'État & Plan d''action'!$B$6:$DB$1113,60,FALSE),VLOOKUP($BS31,'État & Plan d''action'!$B$6:$DB$1113,70,FALSE),VLOOKUP($BS31,'État & Plan d''action'!$B$6:$DB$1113,80,FALSE),VLOOKUP($BS31,'État & Plan d''action'!$B$6:$DB$1113,90,FALSE),VLOOKUP($BS31,'État & Plan d''action'!$B$6:$DB$1113,100,FALSE)),"") -> 0 | FT31: =IFERROR(SUM(VLOOKUP($BS31,'État & Plan d''action'!$B$6:$DB$1113,22,FALSE),VLOOKUP($BS31,'État & Plan d''action'!$B$6:$DB$1113,32,FALSE),VLOOKUP($BS31,'État & Plan d''action'!$B$6:$DB$1113,42,FALSE),VLOOKUP($BS31,'État & Plan d''action'!$B$6:$DB$1113,52,FALSE),VLOOKUP($BS31,'État & Plan d''action'!$B$6:$DB$1113,62,FALSE),VLOOKUP($BS31,'État & Plan d''action'!$B$6:$DB$1113,72,FALSE),VLOOKUP($BS31,'État & Plan d''action'!$B$6:$DB$1113,82,FALSE),VLOOKUP($BS31,'État & Plan d''action'!$B$6:$DB$1113,92,FALSE),VLOOKUP($BS31,'État & Plan d''action'!$B$6:$DB$1113,102,FALSE)),"") -> 0 | FU31: =IFERROR(SUM(VLOOKUP($BS31,'État & Plan d''action'!$B$6:$DB$1113,24,FALSE),VLOOKUP($BS31,'État & Plan d''action'!$B$6:$DB$1113,34,FALSE),VLOOKUP($BS31,'État & Plan d''action'!$B$6:$DB$1113,44,FALSE),VLOOKUP($BS31,'État & Plan d''action'!$B$6:$DB$1113,54,FALSE),VLOOKUP($BS31,'État & Plan d''action'!$B$6:$DB$1113,64,FALSE),VLOOKUP($BS31,'État & Plan d''action'!$B$6:$DB$1113,74,FALSE),VLOOKUP($BS31,'État & Plan d''action'!$B$6:$DB$1113,84,FALSE),VLOOKUP($BS31,'État & Plan d''action'!$B$6:$DB$1113,94,FALSE),VLOOKUP($BS31,'État & Plan d''action'!$B$6:$DB$1113,104,FALSE)),"") -> 0 | FX31: 55 | FZ31: 1161
B32: CONSOMMATION RÉSIDENTIELLE | W32: =W22 -> TOUT LE QUÉBEC | X32: =IF(W22="tout le québec","",PROPER(W22)) ->  | Y32: =IF(W22="Tout le Québec","","Région : "&VLOOKUP(VLOOKUP($W$22,$BT$9:$BU$1116,2,FALSE),$T$173:$V$189,3,FALSE)) ->  | Z32: =IF(W22="TOUT LE QUÉBEC","","Classe de population : "&VLOOKUP($W$22,B201:N206,4,FALSE)) ->  | AA32: Tout le Québec | AB32: Objectif 2025 pour l'ensemble du Québec | AD32: =IF(NM="Tout le Québec","Objectif 2025 pour l'ensemble du Québec : 50",IF(AG27="non","","Objectif 2019 pour la municipalité : 50")) -> Objectif 2025 pour l'ensemble du Québec : 50 | AE32: =AF32 ->  | AF32: =AG32 ->  | AG32: =IF(AG27="non","",50) ->  | AH32: =IF(AH27="non","",50) ->  | BQ32: 1 | BR32: 1 | BS32: 96020 | BT32: BAIE-COMEAU | BU32: 9 | BV32: non | BW32: non | BX32: non | BY32: non | BZ32: non | CA32: non | CB32: non | CC32: non | CD32: non | CE32: non | CF32: non | CG32: oui | CH32: oui | CI32: oui | CJ32: non | CK32: oui | CL32: oui | CM32: oui | CN32: oui | CO32: oui | CP32: oui | CQ32: =IF(VLOOKUP(BS32,'Données par municipalité'!$B$6:$E$1113,4,FALSE)="","non","oui") -> oui | CR32: 620.2515619 | CS32: 606.4876072 | CT32: 450.9764134 | CV32: 487.8803568 | CW32: 484.4174111 | CX32: 533.0176912 | CY32: 472 | CZ32: 498 | DA32: 559 | DB32: =IF(VLOOKUP(BS32,'Données par municipalité'!$B$6:$F$1113,4,FALSE)="","",VLOOKUP(BS32,'Données par municipalité'!$B$6:$F$1113,4,FALSE)) -> 495 | DC32: Non disponible | DD32: 0.25 | DE32: 1 | DG32: 0.25 | DH32: 0.64 | DI32: 1 | DJ32: 1 | DK32: 2.027324606 | DL32: 2 | DM32: =IFERROR(SUM(VLOOKUP($BS32,'État & Plan d''action'!$B$6:$DB$1113,18,FALSE),VLOOKUP($BS32,'État & Plan d''action'!$B$6:$DB$1113,20,FALSE),VLOOKUP($BS32,'État & Plan d''action'!$B$6:$DB$1113,28,FALSE),VLOOKUP($BS32,'État & Plan d''action'!$B$6:$DB$1113,30,FALSE),VLOOKUP($BS32,'État & Plan d''action'!$B$6:$DB$1113,38,FALSE),VLOOKUP($BS32,'État & Plan d''action'!$B$6:$DB$1113,40,FALSE),VLOOKUP($BS32,'État & Plan d''action'!$B$6:$DB$1113,48,FALSE),VLOOKUP($BS32,'État & Plan d''action'!$B$6:$DB$1113,50,FALSE),VLOOKUP($BS32,'État & Plan d''action'!$B$6:$DB$1113,58,FALSE),VLOOKUP($BS32,'État & Plan d''action'!$B$6:$DB$1113,60,FALSE),VLOOKUP($BS32,'État & Plan d''action'!$B$6:$DB$1113,68,FALSE),VLOOKUP($BS32,'État & Plan d''action'!$B$6:$DB$1113,70,FALSE),VLOOKUP($BS32,'État & Plan d''action'!$B$6:$DB$1113,78,FALSE),VLOOKUP($BS32,'État & Plan d''action'!$B$6:$DB$1113,80,FALSE),VLOOKUP($BS32,'État & Plan d''action'!$B$6:$DB$1113,88,FALSE),VLOOKUP($BS32,'État & Plan d''action'!$B$6:$DB$1113,90,FALSE),VLOOKUP($BS32,'État & Plan d''action'!$B$6:$DB$1113,98,FALSE),VLOOKUP($BS32,'État & Plan d''action'!$B$6:$DB$1113,100,FALSE))/(VLOOKUP($BS32,'Données par municipalité'!$B$4:$N$1113,13,FALSE)),"") -> 1.000003259 | DN32: =IFERROR(SUM(VLOOKUP($BS32,'État & Plan d''action'!$B$6:$DB$1113,19,FALSE),VLOOKUP($BS32,'État & Plan d''action'!$B$6:$DB$1113,21,FALSE),VLOOKUP($BS32,'État & Plan d''action'!$B$6:$DB$1113,29,FALSE),VLOOKUP($BS32,'État & Plan d''action'!$B$6:$DB$1113,31,FALSE),VLOOKUP($BS32,'État & Plan d''action'!$B$6:$DB$1113,39,FALSE),VLOOKUP($BS32,'État & Plan d''action'!$B$6:$DB$1113,41,FALSE),VLOOKUP($BS32,'État & Plan d''action'!$B$6:$DB$1113,49,FALSE),VLOOKUP($BS32,'État & Plan d''action'!$B$6:$DB$1113,51,FALSE),VLOOKUP($BS32,'État & Plan d''action'!$B$6:$DB$1113,59,FALSE),VLOOKUP($BS32,'État & Plan d''action'!$B$6:$DB$1113,61,FALSE),VLOOKUP($BS32,'État & Plan d''action'!$B$6:$DB$1113,69,FALSE),VLOOKUP($BS32,'État & Plan d''action'!$B$6:$DB$1113,71,FALSE),VLOOKUP($BS32,'État & Plan d''action'!$B$6:$DB$1113,79,FALSE),VLOOKUP($BS32,'État & Plan d''action'!$B$6:$DB$1113,81,FALSE),VLOOKUP($BS32,'État & Plan d''action'!$B$6:$DB$1113,89,FALSE),VLOOKUP($BS32,'État & Plan d''action'!$B$6:$DB$1113,91,FALSE),VLOOKUP($BS32,'État & Plan d''action'!$B$6:$DB$1113,99,FALSE),VLOOKUP($BS32,'État & Plan d''action'!$B$6:$DB$1113,101,FALSE))/(VLOOKUP($BS32,'Données par municipalité'!$B$4:$N$1113,13,FALSE)),"") -> 1.000003259 | DO32: Non disponible | DP32: 0 | DR32: 0 | DS32: 0 | DT32: 19 | DU32: 14 | DV32: 12 | DW32: 28 | DX32: 5 | DY32: 13 | DZ32: 72 | EA32: 5 | EB32: 29 | EC32: 11 | ED32: 18 | EE32: =IF(VLOOKUP($BS32,'État & Plan d''action'!$B$6:$DM$1113,108,FALSE)="","",VLOOKUP($BS32,'État & Plan d''action'!$B$6:$DM$1113,108,FALSE)) -> 19 | EF32: =IF(VLOOKUP($BS32,'État & Plan d''action'!$B$6:$DM$1113,109,FALSE)="","",VLOOKUP($BS32,'État & Plan d''action'!$B$6:$DM$1113,109,FALSE)) -> 85 | EG32: =IF(VLOOKUP($BS32,'État & Plan d''action'!$B$6:$DM$1113,110,FALSE)="","",VLOOKUP($BS32,'État & Plan d''action'!$B$6:$DM$1113,110,FALSE)) -> 23 | EH32: 334 | EI32: 297 | EJ32: 336 | EK32: =VLOOKUP($BS32,'Données par municipalité'!$B$6:$F$1113,5,FALSE) -> 266 | EL32: 3.912316815 | EM32: 8.655640926 | EN32: 9.399155072 | EO32: =IF(VLOOKUP(BS32,'Données par municipalité'!$B$6:$U$1113,7,FALSE)="","",VLOOKUP(BS32,'Données par municipalité'!$B$6:$U$1113,7,FALSE)) -> 5.86253352 | EP32: 3 | EQ32: 5 | ER32: 15 | ES32: 2 | ET32: 3 | EU32: 5 | EV32: 2 | EW32: 3 | EX32: 5 | EY32: =VLOOKUP($BS32,'État & Plan d''action'!$B$6:$DK$1113,112,FALSE) -> 2 | EZ32: =VLOOKUP($BS32,'État & Plan d''action'!$B$6:$DK$1113,113,FALSE) -> 2 | FA32: =VLOOKUP($BS32,'État & Plan d''action'!$B$6:$DK$1113,114,FALSE) -> 3 | FB32: 0 | FC32: 150.985 | FD32: 0 | FE32: 0 | FF32: 0 | FG32: 0 | FH32: 150.985 | FI32: 0 | FJ32: 0 | FK32: 0 | FL32: 0 | FM32: 297.9 | FN32: 0 | FO32: 0 | FP32: 0 | FQ32: =IFERROR(SUM(VLOOKUP($BS32,'État & Plan d''action'!$B$6:$DB$1113,16,FALSE),VLOOKUP($BS32,'État & Plan d''action'!$B$6:$DB$1113,26,FALSE),VLOOKUP($BS32,'État & Plan d''action'!$B$6:$DB$1113,36,FALSE),VLOOKUP($BS32,'État & Plan d''action'!$B$6:$DB$1113,46,FALSE),VLOOKUP($BS32,'État & Plan d''action'!$B$6:$DB$1113,56,FALSE),VLOOKUP($BS32,'État & Plan d''action'!$B$6:$DB$1113,66,FALSE),VLOOKUP($BS32,'État & Plan d''action'!$B$6:$DB$1113,76,FALSE),VLOOKUP($BS32,'État & Plan d''action'!$B$6:$DB$1113,86,FALSE),VLOOKUP($BS32,'État & Plan d''action'!$B$6:$DB$1113,96,FALSE)),"") -> 0 | FR32: =IFERROR(SUM(VLOOKUP($BS32,'État & Plan d''action'!$B$6:$DB$1113,18,FALSE),VLOOKUP($BS32,'État & Plan d''action'!$B$6:$DB$1113,28,FALSE),VLOOKUP($BS32,'État & Plan d''action'!$B$6:$DB$1113,38,FALSE),VLOOKUP($BS32,'État & Plan d''action'!$B$6:$DB$1113,48,FALSE),VLOOKUP($BS32,'État & Plan d''action'!$B$6:$DB$1113,58,FALSE),VLOOKUP($BS32,'État & Plan d''action'!$B$6:$DB$1113,68,FALSE),VLOOKUP($BS32,'État & Plan d''action'!$B$6:$DB$1113,78,FALSE),VLOOKUP($BS32,'État & Plan d''action'!$B$6:$DB$1113,88,FALSE),VLOOKUP($BS32,'État & Plan d''action'!$B$6:$DB$1113,98,FALSE)),"") -> 0 | FS32: =IFERROR(SUM(VLOOKUP($BS32,'État & Plan d''action'!$B$6:$DB$1113,20,FALSE),VLOOKUP($BS32,'État & Plan d''action'!$B$6:$DB$1113,30,FALSE),VLOOKUP($BS32,'État & Plan d''action'!$B$6:$DB$1113,40,FALSE),VLOOKUP($BS32,'État & Plan d''action'!$B$6:$DB$1113,50,FALSE),VLOOKUP($BS32,'État & Plan d''action'!$B$6:$DB$1113,60,FALSE),VLOOKUP($BS32,'État & Plan d''action'!$B$6:$DB$1113,70,FALSE),VLOOKUP($BS32,'État & Plan d''action'!$B$6:$DB$1113,80,FALSE),VLOOKUP($BS32,'État & Plan d''action'!$B$6:$DB$1113,90,FALSE),VLOOKUP($BS32,'État & Plan d''action'!$B$6:$DB$1113,100,FALSE)),"") -> 153.408 | FT32: =IFERROR(SUM(VLOOKUP($BS32,'État & Plan d''action'!$B$6:$DB$1113,22,FALSE),VLOOKUP($BS32,'État & Plan d''action'!$B$6:$DB$1113,32,FALSE),VLOOKUP($BS32,'État & Plan d''action'!$B$6:$DB$1113,42,FALSE),VLOOKUP($BS32,'État & Plan d''action'!$B$6:$DB$1113,52,FALSE),VLOOKUP($BS32,'État & Plan d''action'!$B$6:$DB$1113,62,FALSE),VLOOKUP($BS32,'État & Plan d''action'!$B$6:$DB$1113,72,FALSE),VLOOKUP($BS32,'État & Plan d''action'!$B$6:$DB$1113,82,FALSE),VLOOKUP($BS32,'État & Plan d''action'!$B$6:$DB$1113,92,FALSE),VLOOKUP($BS32,'État & Plan d''action'!$B$6:$DB$1113,102,FALSE)),"") -> 0 | FU32: =IFERROR(SUM(VLOOKUP($BS32,'État & Plan d''action'!$B$6:$DB$1113,24,FALSE),VLOOKUP($BS32,'État & Plan d''action'!$B$6:$DB$1113,34,FALSE),VLOOKUP($BS32,'État & Plan d''action'!$B$6:$DB$1113,44,FALSE),VLOOKUP($BS32,'État & Plan d''action'!$B$6:$DB$1113,54,FALSE),VLOOKUP($BS32,'État & Plan d''action'!$B$6:$DB$1113,64,FALSE),VLOOKUP($BS32,'État & Plan d''action'!$B$6:$DB$1113,74,FALSE),VLOOKUP($BS32,'État & Plan d''action'!$B$6:$DB$1113,84,FALSE),VLOOKUP($BS32,'État & Plan d''action'!$B$6:$DB$1113,94,FALSE),VLOOKUP($BS32,'État & Plan d''action'!$B$6:$DB$1113,104,FALSE)),"") -> 0 | FV32: 32.55584666 | FW32: 59 | FX32: 59 | FY32: 60.80701754 | FZ32: 20951
W33: Quantité d'eau distribuée par personne (l/pers/d) | X33: =IF($W$23="","",IF($AG$27="non","Non disponible",IF(VLOOKUP($W$23,'Données par municipalité'!$B$6:$Q$1113,4,FALSE)=0,"Non disponible",VLOOKUP($W$23,'Données par municipalité'!$B$6:$Q$1113,4,FALSE)))) ->  | Y33: =IF($W$23="","",VLOOKUP(VLOOKUP($W$23,$BS$9:$BU$1116,3,FALSE),$T$173:$AM$189,20,FALSE)) ->  | Z33: =IF($W$23="","",IF(VLOOKUP($W$23,'Données par municipalité'!B6:$M$1113,12,FALSE)<1000,K201,IF(AND(VLOOKUP($W$23,'Données par municipalité'!B6:$M$1113,12,FALSE)<5000,VLOOKUP($W$23,'Données par municipalité'!B6:$M$1113,12,FALSE)>=1000),K202,IF(AND(VLOOKUP($W$23,'Données par municipalité'!B6:$M$1113,12,FALSE)<10000,VLOOKUP($W$23,'Données par municipalité'!B6:$M$1113,12,FALSE)>=5000),K203,IF(AND(VLOOKUP($W$23,'Données par municipalité'!B6:$M$1113,12,FALSE)<50000,VLOOKUP($W$23,'Données par municipalité'!B6:$M$1113,12,FALSE)>=10000),K204,IF(AND(VLOOKUP($W$23,'Données par municipalité'!B6:$M$1113,12,FALSE)<100000,VLOOKUP($W$23,'Données par municipalité'!B6:$M$1113,12,FALSE)>=50000),K205,IF(VLOOKUP($W$23,'Données par municipalité'!B6:$M$1113,12,FALSE)>=100000,K206))))))) ->  | AA33: =AM190 -> 515.2730751 | BQ33: 1 | BR33: 1 | BS33: 8080 | BT33: BAIE-DES-SABLES | BU33: 1 | BV33: non | BW33: non | BX33: non | BY33: non | BZ33: non | CA33: non | CB33: non | CC33: non | CD33: non | CE33: non | CF33: non | CG33: oui | CH33: oui | CI33: non | CJ33: oui | CK33: non | CL33: oui | CM33: oui | CN33: oui | CO33: oui | CP33: oui | CQ33: =IF(VLOOKUP(BS33,'Données par municipalité'!$B$6:$E$1113,4,FALSE)="","non","oui") -> oui | CR33: 312.3923584 | CS33: 380.6231556 | CU33: 256.6667557 | CW33: 165.4058899 | CX33: 159.3294889 | CY33: 186 | CZ33: 184 | DA33: 216 | DB33: =IF(VLOOKUP(BS33,'Données par municipalité'!$B$6:$F$1113,4,FALSE)="","",VLOOKUP(BS33,'Données par municipalité'!$B$6:$F$1113,4,FALSE)) -> 174 | DC33: Non disponible | DD33: 0 | DF33: 0 | DH33: 0 | DI33: 0 | DK33: 0 | DL33: 0 | DM33: =IFERROR(SUM(VLOOKUP($BS33,'État & Plan d''action'!$B$6:$DB$1113,18,FALSE),VLOOKUP($BS33,'État & Plan d''action'!$B$6:$DB$1113,20,FALSE),VLOOKUP($BS33,'État & Plan d''action'!$B$6:$DB$1113,28,FALSE),VLOOKUP($BS33,'État & Plan d''action'!$B$6:$DB$1113,30,FALSE),VLOOKUP($BS33,'État & Plan d''action'!$B$6:$DB$1113,38,FALSE),VLOOKUP($BS33,'État & Plan d''action'!$B$6:$DB$1113,40,FALSE),VLOOKUP($BS33,'État & Plan d''action'!$B$6:$DB$1113,48,FALSE),VLOOKUP($BS33,'État & Plan d''action'!$B$6:$DB$1113,50,FALSE),VLOOKUP($BS33,'État & Plan d''action'!$B$6:$DB$1113,58,FALSE),VLOOKUP($BS33,'État & Plan d''action'!$B$6:$DB$1113,60,FALSE),VLOOKUP($BS33,'État & Plan d''action'!$B$6:$DB$1113,68,FALSE),VLOOKUP($BS33,'État & Plan d''action'!$B$6:$DB$1113,70,FALSE),VLOOKUP($BS33,'État & Plan d''action'!$B$6:$DB$1113,78,FALSE),VLOOKUP($BS33,'État & Plan d''action'!$B$6:$DB$1113,80,FALSE),VLOOKUP($BS33,'État & Plan d''action'!$B$6:$DB$1113,88,FALSE),VLOOKUP($BS33,'État & Plan d''action'!$B$6:$DB$1113,90,FALSE),VLOOKUP($BS33,'État & Plan d''action'!$B$6:$DB$1113,98,FALSE),VLOOKUP($BS33,'État & Plan d''action'!$B$6:$DB$1113,100,FALSE))/(VLOOKUP($BS33,'Données par municipalité'!$B$4:$N$1113,13,FALSE)),"") -> 0 | DN33: =IFERROR(SUM(VLOOKUP($BS33,'État & Plan d''action'!$B$6:$DB$1113,19,FALSE),VLOOKUP($BS33,'État & Plan d''action'!$B$6:$DB$1113,21,FALSE),VLOOKUP($BS33,'État & Plan d''action'!$B$6:$DB$1113,29,FALSE),VLOOKUP($BS33,'État & Plan d''action'!$B$6:$DB$1113,31,FALSE),VLOOKUP($BS33,'État & Plan d''action'!$B$6:$DB$1113,39,FALSE),VLOOKUP($BS33,'État & Plan d''action'!$B$6:$DB$1113,41,FALSE),VLOOKUP($BS33,'État & Plan d''action'!$B$6:$DB$1113,49,FALSE),VLOOKUP($BS33,'État & Plan d''action'!$B$6:$DB$1113,51,FALSE),VLOOKUP($BS33,'État & Plan d''action'!$B$6:$DB$1113,59,FALSE),VLOOKUP($BS33,'État & Plan d''action'!$B$6:$DB$1113,61,FALSE),VLOOKUP($BS33,'État & Plan d''action'!$B$6:$DB$1113,69,FALSE),VLOOKUP($BS33,'État & Plan d''action'!$B$6:$DB$1113,71,FALSE),VLOOKUP($BS33,'État & Plan d''action'!$B$6:$DB$1113,79,FALSE),VLOOKUP($BS33,'État & Plan d''action'!$B$6:$DB$1113,81,FALSE),VLOOKUP($BS33,'État & Plan d''action'!$B$6:$DB$1113,89,FALSE),VLOOKUP($BS33,'État & Plan d''action'!$B$6:$DB$1113,91,FALSE),VLOOKUP($BS33,'État & Plan d''action'!$B$6:$DB$1113,99,FALSE),VLOOKUP($BS33,'État & Plan d''action'!$B$6:$DB$1113,101,FALSE))/(VLOOKUP($BS33,'Données par municipalité'!$B$4:$N$1113,13,FALSE)),"") -> 0 | DO33: Non disponible | DP33: 1 | DR33: 2 | DS33: 0 | DT33: 0 | DU33: 0 | DV33: 0 | DW33: 0 | DX33: 0 | DY33: 0 | DZ33: 0 | EA33: 0 | EB33: 0 | EC33: 0 | ED33: 1 | EE33: =IF(VLOOKUP($BS33,'État & Plan d''action'!$B$6:$DM$1113,108,FALSE)="","",VLOOKUP($BS33,'État & Plan d''action'!$B$6:$DM$1113,108,FALSE)) -> 0 | EF33: =IF(VLOOKUP($BS33,'État & Plan d''action'!$B$6:$DM$1113,109,FALSE)="","",VLOOKUP($BS33,'État & Plan d''action'!$B$6:$DM$1113,109,FALSE)) -> 0 | EG33: =IF(VLOOKUP($BS33,'État & Plan d''action'!$B$6:$DM$1113,110,FALSE)="","",VLOOKUP($BS33,'État & Plan d''action'!$B$6:$DM$1113,110,FALSE)) -> 0 | EH33: 150 | EI33: 142 | EJ33: 135 | EK33: =VLOOKUP($BS33,'Données par municipalité'!$B$6:$F$1113,5,FALSE) -> 139 | EL33: 0.5931752239 | EM33: 0.6744351751 | EN33: 1.476526138 | EO33: =IF(VLOOKUP(BS33,'Données par municipalité'!$B$6:$U$1113,7,FALSE)="","",VLOOKUP(BS33,'Données par municipalité'!$B$6:$U$1113,7,FALSE)) -> 0.6474312606 | EP33: 0 | EQ33: 0 | ER33: 0 | ES33: 0 | ET33: 0 | EU33: 0 | EV33: S.O. | EX33: 48 | EY33: =VLOOKUP($BS33,'État & Plan d''action'!$B$6:$DK$1113,112,FALSE) -> S.O. | EZ33: =VLOOKUP($BS33,'État & Plan d''action'!$B$6:$DK$1113,113,FALSE) ->  | FA33: =VLOOKUP($BS33,'État & Plan d''action'!$B$6:$DK$1113,114,FALSE) ->  | FB33: 0 | FC33: 0 | FD33: 0 | FE33: 0 | FF33: 0 | FG33: 0 | FH33: 0 | FI33: 0 | FJ33: 0 | FK33: 0 | FL33: 0 | FM33: 0 | FN33: 0 | FO33: 0 | FP33: 0 | FQ33: =IFERROR(SUM(VLOOKUP($BS33,'État & Plan d''action'!$B$6:$DB$1113,16,FALSE),VLOOKUP($BS33,'État & Plan d''action'!$B$6:$DB$1113,26,FALSE),VLOOKUP($BS33,'État & Plan d''action'!$B$6:$DB$1113,36,FALSE),VLOOKUP($BS33,'État & Plan d''action'!$B$6:$DB$1113,46,FALSE),VLOOKUP($BS33,'État & Plan d''action'!$B$6:$DB$1113,56,FALSE),VLOOKUP($BS33,'État & Plan d''action'!$B$6:$DB$1113,66,FALSE),VLOOKUP($BS33,'État & Plan d''action'!$B$6:$DB$1113,76,FALSE),VLOOKUP($BS33,'État & Plan d''action'!$B$6:$DB$1113,86,FALSE),VLOOKUP($BS33,'État & Plan d''action'!$B$6:$DB$1113,96,FALSE)),"") -> 0 | FR33: =IFERROR(SUM(VLOOKUP($BS33,'État & Plan d''action'!$B$6:$DB$1113,18,FALSE),VLOOKUP($BS33,'État & Plan d''action'!$B$6:$DB$1113,28,FALSE),VLOOKUP($BS33,'État & Plan d''action'!$B$6:$DB$1113,38,FALSE),VLOOKUP($BS33,'État & Plan d''action'!$B$6:$DB$1113,48,FALSE),VLOOKUP($BS33,'État & Plan d''action'!$B$6:$DB$1113,58,FALSE),VLOOKUP($BS33,'État & Plan d''action'!$B$6:$DB$1113,68,FALSE),VLOOKUP($BS33,'État & Plan d''action'!$B$6:$DB$1113,78,FALSE),VLOOKUP($BS33,'État & Plan d''action'!$B$6:$DB$1113,88,FALSE),VLOOKUP($BS33,'État & Plan d''action'!$B$6:$DB$1113,98,FALSE)),"") -> 0 | FS33: =IFERROR(SUM(VLOOKUP($BS33,'État & Plan d''action'!$B$6:$DB$1113,20,FALSE),VLOOKUP($BS33,'État & Plan d''action'!$B$6:$DB$1113,30,FALSE),VLOOKUP($BS33,'État & Plan d''action'!$B$6:$DB$1113,40,FALSE),VLOOKUP($BS33,'État & Plan d''action'!$B$6:$DB$1113,50,FALSE),VLOOKUP($BS33,'État & Plan d''action'!$B$6:$DB$1113,60,FALSE),VLOOKUP($BS33,'État & Plan d''action'!$B$6:$DB$1113,70,FALSE),VLOOKUP($BS33,'État & Plan d''action'!$B$6:$DB$1113,80,FALSE),VLOOKUP($BS33,'État & Plan d''action'!$B$6:$DB$1113,90,FALSE),VLOOKUP($BS33,'État & Plan d''action'!$B$6:$DB$1113,100,FALSE)),"") -> 0 | FT33: =IFERROR(SUM(VLOOKUP($BS33,'État & Plan d''action'!$B$6:$DB$1113,22,FALSE),VLOOKUP($BS33,'État & Plan d''action'!$B$6:$DB$1113,32,FALSE),VLOOKUP($BS33,'État & Plan d''action'!$B$6:$DB$1113,42,FALSE),VLOOKUP($BS33,'État & Plan d''action'!$B$6:$DB$1113,52,FALSE),VLOOKUP($BS33,'État & Plan d''action'!$B$6:$DB$1113,62,FALSE),VLOOKUP($BS33,'État & Plan d''action'!$B$6:$DB$1113,72,FALSE),VLOOKUP($BS33,'État & Plan d''action'!$B$6:$DB$1113,82,FALSE),VLOOKUP($BS33,'État & Plan d''action'!$B$6:$DB$1113,92,FALSE),VLOOKUP($BS33,'État & Plan d''action'!$B$6:$DB$1113,102,FALSE)),"") -> 0 | FU33: =IFERROR(SUM(VLOOKUP($BS33,'État & Plan d''action'!$B$6:$DB$1113,24,FALSE),VLOOKUP($BS33,'État & Plan d''action'!$B$6:$DB$1113,34,FALSE),VLOOKUP($BS33,'État & Plan d''action'!$B$6:$DB$1113,44,FALSE),VLOOKUP($BS33,'État & Plan d''action'!$B$6:$DB$1113,54,FALSE),VLOOKUP($BS33,'État & Plan d''action'!$B$6:$DB$1113,64,FALSE),VLOOKUP($BS33,'État & Plan d''action'!$B$6:$DB$1113,74,FALSE),VLOOKUP($BS33,'État & Plan d''action'!$B$6:$DB$1113,84,FALSE),VLOOKUP($BS33,'État & Plan d''action'!$B$6:$DB$1113,94,FALSE),VLOOKUP($BS33,'État & Plan d''action'!$B$6:$DB$1113,104,FALSE)),"") -> 0 | FV33: 55 | FW33: 59.08108108 | FX33: 59.08108108 | FY33: 59.08108108 | FZ33: 617
W34: =IF(NM="Tout le Québec","Objectif 2025 pour l'ensemble du Québec : 458","") -> Objectif 2025 pour l'ensemble du Québec : 458 | X34: =IF(NM="Tout le Québec",458,"") -> 458 | Y34: =IF(NM="Tout le Québec",458,"") -> 458 | Z34: =IF(NM="Tout le Québec",458,"") -> 458 | AA34: =IF(NM="Tout le Québec",458,"") -> 458 | AB34: =IF(NM="Tout le Québec",458,"") -> 458 | AG34: =RIGHT(AG35,3) ->  | BQ34: 1 | BR34: 1 | BS34: 50100 | BT34: BAIE-DU-FEBVRE | BU34: 17 | BV34: non | BW34: non | BX34: non | BY34: non | BZ34: non | CA34: non | CB34: non | CC34: non | CD34: non | CE34: non | CF34: non | CG34: oui | CH34: oui | CI34: oui | CJ34: oui | CK34: oui | CL34: oui | CM34: oui | CN34: oui | CO34: oui | CP34: oui | CQ34: =IF(VLOOKUP(BS34,'Données par municipalité'!$B$6:$E$1113,4,FALSE)="","non","oui") -> oui | CR34: 451.0851588 | CS34: 471.3284675 | CT34: 510.0954363 | CU34: 466.2590498 | CV34: 419.9611215 | CW34: 436.9630718 | CX34: 438.2966823 | CY34: 556 | CZ34: 581 | DA34: 542 | DB34: =IF(VLOOKUP(BS34,'Données par municipalité'!$B$6:$F$1113,4,FALSE)="","",VLOOKUP(BS34,'Données par municipalité'!$B$6:$F$1113,4,FALSE)) -> 623 | DC34: Non disponible | DD34: 0.5 | DE34: 0.5 | DF34: 0.5 | DG34: 0.5 | DH34: 1 | DI34: 1 | DJ34: 1 | DK34: 2.026453627 | DL34: 2 | DM34: =IFERROR(SUM(VLOOKUP($BS34,'État & Plan d''action'!$B$6:$DB$1113,18,FALSE),VLOOKUP($BS34,'État & Plan d''action'!$B$6:$DB$1113,20,FALSE),VLOOKUP($BS34,'État & Plan d''action'!$B$6:$DB$1113,28,FALSE),VLOOKUP($BS34,'État & Plan d''action'!$B$6:$DB$1113,30,FALSE),VLOOKUP($BS34,'État & Plan d''action'!$B$6:$DB$1113,38,FALSE),VLOOKUP($BS34,'État & Plan d''action'!$B$6:$DB$1113,40,FALSE),VLOOKUP($BS34,'État & Plan d''action'!$B$6:$DB$1113,48,FALSE),VLOOKUP($BS34,'État & Plan d''action'!$B$6:$DB$1113,50,FALSE),VLOOKUP($BS34,'État & Plan d''action'!$B$6:$DB$1113,58,FALSE),VLOOKUP($BS34,'État & Plan d''action'!$B$6:$DB$1113,60,FALSE),VLOOKUP($BS34,'État & Plan d''action'!$B$6:$DB$1113,68,FALSE),VLOOKUP($BS34,'État & Plan d''action'!$B$6:$DB$1113,70,FALSE),VLOOKUP($BS34,'État & Plan d''action'!$B$6:$DB$1113,78,FALSE),VLOOKUP($BS34,'État & Plan d''action'!$B$6:$DB$1113,80,FALSE),VLOOKUP($BS34,'État & Plan d''action'!$B$6:$DB$1113,88,FALSE),VLOOKUP($BS34,'État & Plan d''action'!$B$6:$DB$1113,90,FALSE),VLOOKUP($BS34,'État & Plan d''action'!$B$6:$DB$1113,98,FALSE),VLOOKUP($BS34,'État & Plan d''action'!$B$6:$DB$1113,100,FALSE))/(VLOOKUP($BS34,'Données par municipalité'!$B$4:$N$1113,13,FALSE)),"") -> 1 | DN34: =IFERROR(SUM(VLOOKUP($BS34,'État & Plan d''action'!$B$6:$DB$1113,19,FALSE),VLOOKUP($BS34,'État & Plan d''action'!$B$6:$DB$1113,21,FALSE),VLOOKUP($BS34,'État & Plan d''action'!$B$6:$DB$1113,29,FALSE),VLOOKUP($BS34,'État & Plan d''action'!$B$6:$DB$1113,31,FALSE),VLOOKUP($BS34,'État & Plan d''action'!$B$6:$DB$1113,39,FALSE),VLOOKUP($BS34,'État & Plan d''action'!$B$6:$DB$1113,41,FALSE),VLOOKUP($BS34,'État & Plan d''action'!$B$6:$DB$1113,49,FALSE),VLOOKUP($BS34,'État & Plan d''action'!$B$6:$DB$1113,51,FALSE),VLOOKUP($BS34,'État & Plan d''action'!$B$6:$DB$1113,59,FALSE),VLOOKUP($BS34,'État & Plan d''action'!$B$6:$DB$1113,61,FALSE),VLOOKUP($BS34,'État & Plan d''action'!$B$6:$DB$1113,69,FALSE),VLOOKUP($BS34,'État & Plan d''action'!$B$6:$DB$1113,71,FALSE),VLOOKUP($BS34,'État & Plan d''action'!$B$6:$DB$1113,79,FALSE),VLOOKUP($BS34,'État & Plan d''action'!$B$6:$DB$1113,81,FALSE),VLOOKUP($BS34,'État & Plan d''action'!$B$6:$DB$1113,89,FALSE),VLOOKUP($BS34,'État & Plan d''action'!$B$6:$DB$1113,91,FALSE),VLOOKUP($BS34,'État & Plan d''action'!$B$6:$DB$1113,99,FALSE),VLOOKUP($BS34,'État & Plan d''action'!$B$6:$DB$1113,101,FALSE))/(VLOOKUP($BS34,'Données par municipalité'!$B$4:$N$1113,13,FALSE)),"") -> 1 | DO34: Non disponible | DP34: 1 | DQ34: 1 | DR34: 0 | DS34: 0 | DT34: 0 | DU34: 1 | DV34: 2 | DW34: 1 | DX34: 0 | DY34: 0 | DZ34: 0 | EA34: 7 | EB34: 3 | EC34: 0 | ED34: 0 | EE34: =IF(VLOOKUP($BS34,'État & Plan d''action'!$B$6:$DM$1113,108,FALSE)="","",VLOOKUP($BS34,'État & Plan d''action'!$B$6:$DM$1113,108,FALSE)) -> 2 | EF34: =IF(VLOOKUP($BS34,'État & Plan d''action'!$B$6:$DM$1113,109,FALSE)="","",VLOOKUP($BS34,'État & Plan d''action'!$B$6:$DM$1113,109,FALSE)) -> 0 | EG34: =IF(VLOOKUP($BS34,'État & Plan d''action'!$B$6:$DM$1113,110,FALSE)="","",VLOOKUP($BS34,'État & Plan d''action'!$B$6:$DM$1113,110,FALSE)) -> 0 | EH34: 262 | EI34: 161 | EJ34: 165 | EK34: =VLOOKUP($BS34,'Données par municipalité'!$B$6:$F$1113,5,FALSE) -> 163 | EL34: 3.207401327 | EM34: 1.431825832 | EN34: 1.494637218 | EO34: =IF(VLOOKUP(BS34,'Données par municipalité'!$B$6:$U$1113,7,FALSE)="","",VLOOKUP(BS34,'Données par municipalité'!$B$6:$U$1113,7,FALSE)) -> 2.539747703 | EP34: 2 | EQ34: 2 | ER34: 0 | ES34: 0 | ET34: 0 | EU34: 2 | EV34: 1 | EY34: =VLOOKUP($BS34,'État & Plan d''action'!$B$6:$DK$1113,112,FALSE) -> 1 | EZ34: =VLOOKUP($BS34,'État & Plan d''action'!$B$6:$DK$1113,113,FALSE) ->  | FA34: =VLOOKUP($BS34,'État & Plan d''action'!$B$6:$DK$1113,114,FALSE) ->  | FB34: 0 | FC34: 0 | FD34: 37.802 | FE34: 0 | FF34: 0 | FG34: 0 | FH34: 0 | FI34: 37.802 | FJ34: 0 | FK34: 0 | FL34: 0 | FM34: 0 | FN34: 75.604 | FO34: 0 | FP34: 0 | FQ34: =IFERROR(SUM(VLOOKUP($BS34,'État & Plan d''action'!$B$6:$DB$1113,16,FALSE),VLOOKUP($BS34,'État & Plan d''action'!$B$6:$DB$1113,26,FALSE),VLOOKUP($BS34,'État & Plan d''action'!$B$6:$DB$1113,36,FALSE),VLOOKUP($BS34,'État & Plan d''action'!$B$6:$DB$1113,46,FALSE),VLOOKUP($BS34,'État & Plan d''action'!$B$6:$DB$1113,56,FALSE),VLOOKUP($BS34,'État & Plan d''action'!$B$6:$DB$1113,66,FALSE),VLOOKUP($BS34,'État & Plan d''action'!$B$6:$DB$1113,76,FALSE),VLOOKUP($BS34,'État & Plan d''action'!$B$6:$DB$1113,86,FALSE),VLOOKUP($BS34,'État & Plan d''action'!$B$6:$DB$1113,96,FALSE)),"") -> 0 | FR34: =IFERROR(SUM(VLOOKUP($BS34,'État & Plan d''action'!$B$6:$DB$1113,18,FALSE),VLOOKUP($BS34,'État & Plan d''action'!$B$6:$DB$1113,28,FALSE),VLOOKUP($BS34,'État & Plan d''action'!$B$6:$DB$1113,38,FALSE),VLOOKUP($BS34,'État & Plan d''action'!$B$6:$DB$1113,48,FALSE),VLOOKUP($BS34,'État & Plan d''action'!$B$6:$DB$1113,58,FALSE),VLOOKUP($BS34,'État & Plan d''action'!$B$6:$DB$1113,68,FALSE),VLOOKUP($BS34,'État & Plan d''action'!$B$6:$DB$1113,78,FALSE),VLOOKUP($BS34,'État & Plan d''action'!$B$6:$DB$1113,88,FALSE),VLOOKUP($BS34,'État & Plan d''action'!$B$6:$DB$1113,98,FALSE)),"") -> 0 | FS34: =IFERROR(SUM(VLOOKUP($BS34,'État & Plan d''action'!$B$6:$DB$1113,20,FALSE),VLOOKUP($BS34,'État & Plan d''action'!$B$6:$DB$1113,30,FALSE),VLOOKUP($BS34,'État & Plan d''action'!$B$6:$DB$1113,40,FALSE),VLOOKUP($BS34,'État & Plan d''action'!$B$6:$DB$1113,50,FALSE),VLOOKUP($BS34,'État & Plan d''action'!$B$6:$DB$1113,60,FALSE),VLOOKUP($BS34,'État & Plan d''action'!$B$6:$DB$1113,70,FALSE),VLOOKUP($BS34,'État & Plan d''action'!$B$6:$DB$1113,80,FALSE),VLOOKUP($BS34,'État & Plan d''action'!$B$6:$DB$1113,90,FALSE),VLOOKUP($BS34,'État & Plan d''action'!$B$6:$DB$1113,100,FALSE)),"") -> 37.802 | FT34: =IFERROR(SUM(VLOOKUP($BS34,'État & Plan d''action'!$B$6:$DB$1113,22,FALSE),VLOOKUP($BS34,'État & Plan d''action'!$B$6:$DB$1113,32,FALSE),VLOOKUP($BS34,'État & Plan d''action'!$B$6:$DB$1113,42,FALSE),VLOOKUP($BS34,'État & Plan d''action'!$B$6:$DB$1113,52,FALSE),VLOOKUP($BS34,'État & Plan d''action'!$B$6:$DB$1113,62,FALSE),VLOOKUP($BS34,'État & Plan d''action'!$B$6:$DB$1113,72,FALSE),VLOOKUP($BS34,'État & Plan d''action'!$B$6:$DB$1113,82,FALSE),VLOOKUP($BS34,'État & Plan d''action'!$B$6:$DB$1113,92,FALSE),VLOOKUP($BS34,'État & Plan d''action'!$B$6:$DB$1113,102,FALSE)),"") -> 0 | FU34: =IFERROR(SUM(VLOOKUP($BS34,'État & Plan d''action'!$B$6:$DB$1113,24,FALSE),VLOOKUP($BS34,'État & Plan d''action'!$B$6:$DB$1113,34,FALSE),VLOOKUP($BS34,'État & Plan d''action'!$B$6:$DB$1113,44,FALSE),VLOOKUP($BS34,'État & Plan d''action'!$B$6:$DB$1113,54,FALSE),VLOOKUP($BS34,'État & Plan d''action'!$B$6:$DB$1113,64,FALSE),VLOOKUP($BS34,'État & Plan d''action'!$B$6:$DB$1113,74,FALSE),VLOOKUP($BS34,'État & Plan d''action'!$B$6:$DB$1113,84,FALSE),VLOOKUP($BS34,'État & Plan d''action'!$B$6:$DB$1113,94,FALSE),VLOOKUP($BS34,'État & Plan d''action'!$B$6:$DB$1113,104,FALSE)),"") -> 0 | FV34: 61 | FW34: 74.45098039 | FX34: 74.70588235 | FY34: 74.70588235 | FZ34: 975
W35: Consommation résidentielle (l/pers/d) | X35: =IF($W$23="","",IF($AG$27="non","Non disponible",IF(VLOOKUP($W$23,'Données par municipalité'!$B$6:$Q$1113,5,FALSE)=0,"Non disponible",VLOOKUP($W$23,'Données par municipalité'!$B$6:$Q$1113,5,FALSE)))) ->  | Y35: =IF($W$23="","",VLOOKUP(VLOOKUP(VLOOKUP($W$22,$BT$9:$BU$1116,2,FALSE),$T$173:$V$189,3,FALSE),$E$173:$AH$190,30,FALSE)) ->  | Z35: =IF($W$23="","",IF(VLOOKUP($W$22,$B$201:$AH$207,33,FALSE)=0,"Non disponible",VLOOKUP($W$22,$B$201:$AH$207,33,FALSE))) ->  | AA35: =AH190 -> 259.5527504 | AG35: =IF(LEN(VLOOKUP(W23,'Données par municipalité'!B6:G1113,6,FALSE))=14,LEFT(VLOOKUP(W23,'Données par municipalité'!B6:G1113,6,FALSE),5),VLOOKUP(W23,'Données par municipalité'!B6:G1113,6,FALSE)) ->  | BQ35: 1 | BR35: 1 | BS35: 66112 | BT35: BAIE-D'URFÉ | BU35: 6 | BV35: non | BW35: non | BX35: non | BY35: non | BZ35: non | CA35: non | CB35: non | CC35: non | CD35: non | CE35: non | CF35: non | CG35: oui | CH35: oui | CI35: non | CJ35: oui | CK35: oui | CL35: oui | CM35: oui | CN35: oui | CO35: oui | CP35: oui | CQ35: =IF(VLOOKUP(BS35,'Données par municipalité'!$B$6:$E$1113,4,FALSE)="","non","oui") -> oui | CR35: 838.7058484 | CS35: 806.6106545 | CU35: 892 | CV35: 532.1600702 | CW35: 572 | CX35: 600.3350024 | CY35: 1042 | CZ35: 941 | DA35: 974 | DB35: =IF(VLOOKUP(BS35,'Données par municipalité'!$B$6:$F$1113,4,FALSE)="","",VLOOKUP(BS35,'Données par municipalité'!$B$6:$F$1113,4,FALSE)) -> 1063 | DC35: Non disponible | DD35: 0 | DF35: 2 | DG35: 2 | DH35: 2 | DI35: 1 | DJ35: 0 | DK35: 1 | DL35: 1 | DM35: =IFERROR(SUM(VLOOKUP($BS35,'État & Plan d''action'!$B$6:$DB$1113,18,FALSE),VLOOKUP($BS35,'État & Plan d''action'!$B$6:$DB$1113,20,FALSE),VLOOKUP($BS35,'État & Plan d''action'!$B$6:$DB$1113,28,FALSE),VLOOKUP($BS35,'État & Plan d''action'!$B$6:$DB$1113,30,FALSE),VLOOKUP($BS35,'État & Plan d''action'!$B$6:$DB$1113,38,FALSE),VLOOKUP($BS35,'État & Plan d''action'!$B$6:$DB$1113,40,FALSE),VLOOKUP($BS35,'État & Plan d''action'!$B$6:$DB$1113,48,FALSE),VLOOKUP($BS35,'État & Plan d''action'!$B$6:$DB$1113,50,FALSE),VLOOKUP($BS35,'État & Plan d''action'!$B$6:$DB$1113,58,FALSE),VLOOKUP($BS35,'État & Plan d''action'!$B$6:$DB$1113,60,FALSE),VLOOKUP($BS35,'État & Plan d''action'!$B$6:$DB$1113,68,FALSE),VLOOKUP($BS35,'État & Plan d''action'!$B$6:$DB$1113,70,FALSE),VLOOKUP($BS35,'État & Plan d''action'!$B$6:$DB$1113,78,FALSE),VLOOKUP($BS35,'État & Plan d''action'!$B$6:$DB$1113,80,FALSE),VLOOKUP($BS35,'État & Plan d''action'!$B$6:$DB$1113,88,FALSE),VLOOKUP($BS35,'État & Plan d''action'!$B$6:$DB$1113,90,FALSE),VLOOKUP($BS35,'État & Plan d''action'!$B$6:$DB$1113,98,FALSE),VLOOKUP($BS35,'État & Plan d''action'!$B$6:$DB$1113,100,FALSE))/(VLOOKUP($BS35,'Données par municipalité'!$B$4:$N$1113,13,FALSE)),"") -> 1 | DN35: =IFERROR(SUM(VLOOKUP($BS35,'État & Plan d''action'!$B$6:$DB$1113,19,FALSE),VLOOKUP($BS35,'État & Plan d''action'!$B$6:$DB$1113,21,FALSE),VLOOKUP($BS35,'État & Plan d''action'!$B$6:$DB$1113,29,FALSE),VLOOKUP($BS35,'État & Plan d''action'!$B$6:$DB$1113,31,FALSE),VLOOKUP($BS35,'État & Plan d''action'!$B$6:$DB$1113,39,FALSE),VLOOKUP($BS35,'État & Plan d''action'!$B$6:$DB$1113,41,FALSE),VLOOKUP($BS35,'État & Plan d''action'!$B$6:$DB$1113,49,FALSE),VLOOKUP($BS35,'État & Plan d''action'!$B$6:$DB$1113,51,FALSE),VLOOKUP($BS35,'État & Plan d''action'!$B$6:$DB$1113,59,FALSE),VLOOKUP($BS35,'État & Plan d''action'!$B$6:$DB$1113,61,FALSE),VLOOKUP($BS35,'État & Plan d''action'!$B$6:$DB$1113,69,FALSE),VLOOKUP($BS35,'État & Plan d''action'!$B$6:$DB$1113,71,FALSE),VLOOKUP($BS35,'État & Plan d''action'!$B$6:$DB$1113,79,FALSE),VLOOKUP($BS35,'État & Plan d''action'!$B$6:$DB$1113,81,FALSE),VLOOKUP($BS35,'État & Plan d''action'!$B$6:$DB$1113,89,FALSE),VLOOKUP($BS35,'État & Plan d''action'!$B$6:$DB$1113,91,FALSE),VLOOKUP($BS35,'État & Plan d''action'!$B$6:$DB$1113,99,FALSE),VLOOKUP($BS35,'État & Plan d''action'!$B$6:$DB$1113,101,FALSE))/(VLOOKUP($BS35,'Données par municipalité'!$B$4:$N$1113,13,FALSE)),"") -> 2 | DO35: Non disponible | DR35: 2 | DS35: 2 | DT35: 3 | DU35: 0 | DV35: 0 | DW35: 0 | DX35: 0 | DY35: 1 | DZ35: 0 | EA35: 0 | EB35: 2 | EC35: 1 | ED35: 0 | EE35: =IF(VLOOKUP($BS35,'État & Plan d''action'!$B$6:$DM$1113,108,FALSE)="","",VLOOKUP($BS35,'État & Plan d''action'!$B$6:$DM$1113,108,FALSE)) -> 2 | EF35: =IF(VLOOKUP($BS35,'État & Plan d''action'!$B$6:$DM$1113,109,FALSE)="","",VLOOKUP($BS35,'État & Plan d''action'!$B$6:$DM$1113,109,FALSE)) -> 1 | EG35: =IF(VLOOKUP($BS35,'État & Plan d''action'!$B$6:$DM$1113,110,FALSE)="","",VLOOKUP($BS35,'État & Plan d''action'!$B$6:$DM$1113,110,FALSE)) -> 2 | EH35: 286 | EI35: 299 | EJ35: 335 | EK35: =VLOOKUP($BS35,'Données par municipalité'!$B$6:$F$1113,5,FALSE) -> 359 | EL35: 0.8051574931 | EM35: 4.257213101 | EN35: 5.331797275 | EO35: =IF(VLOOKUP(BS35,'Données par municipalité'!$B$6:$U$1113,7,FALSE)="","",VLOOKUP(BS35,'Données par municipalité'!$B$6:$U$1113,7,FALSE)) -> 3.435071876 | EP35: 0 | EQ35: 0 | ER35: 0 | ES35: 1 | ET35: 0 | EU35: 0 | EV35: 1 | EW35: 1 | EY35: =VLOOKUP($BS35,'État & Plan d''action'!$B$6:$DK$1113,112,FALSE) -> 2 | EZ35: =VLOOKUP($BS35,'État & Plan d''action'!$B$6:$DK$1113,113,FALSE) -> 1 | FA35: =VLOOKUP($BS35,'État & Plan d''action'!$B$6:$DK$1113,114,FALSE) -> 1 | FB35: 47.136 | FC35: 0 | FD35: 0 | FE35: 0 | FF35: 0 | FG35: 47.136 | FH35: 0 | FI35: 0 | FJ35: 0 | FK35: 0 | FL35: 0 | FM35: 47.136 | FN35: 0 | FO35: 0 | FP35: 0 | FQ35: =IFERROR(SUM(VLOOKUP($BS35,'État & Plan d''action'!$B$6:$DB$1113,16,FALSE),VLOOKUP($BS35,'État & Plan d''action'!$B$6:$DB$1113,26,FALSE),VLOOKUP($BS35,'État & Plan d''action'!$B$6:$DB$1113,36,FALSE),VLOOKUP($BS35,'État & Plan d''action'!$B$6:$DB$1113,46,FALSE),VLOOKUP($BS35,'État & Plan d''action'!$B$6:$DB$1113,56,FALSE),VLOOKUP($BS35,'État & Plan d''action'!$B$6:$DB$1113,66,FALSE),VLOOKUP($BS35,'État & Plan d''action'!$B$6:$DB$1113,76,FALSE),VLOOKUP($BS35,'État & Plan d''action'!$B$6:$DB$1113,86,FALSE),VLOOKUP($BS35,'État & Plan d''action'!$B$6:$DB$1113,96,FALSE)),"") -> 0 | FR35: =IFERROR(SUM(VLOOKUP($BS35,'État & Plan d''action'!$B$6:$DB$1113,18,FALSE),VLOOKUP($BS35,'État & Plan d''action'!$B$6:$DB$1113,28,FALSE),VLOOKUP($BS35,'État & Plan d''action'!$B$6:$DB$1113,38,FALSE),VLOOKUP($BS35,'État & Plan d''action'!$B$6:$DB$1113,48,FALSE),VLOOKUP($BS35,'État & Plan d''action'!$B$6:$DB$1113,58,FALSE),VLOOKUP($BS35,'État & Plan d''action'!$B$6:$DB$1113,68,FALSE),VLOOKUP($BS35,'État & Plan d''action'!$B$6:$DB$1113,78,FALSE),VLOOKUP($BS35,'État & Plan d''action'!$B$6:$DB$1113,88,FALSE),VLOOKUP($BS35,'État & Plan d''action'!$B$6:$DB$1113,98,FALSE)),"") -> 47.016 | FS35: =IFERROR(SUM(VLOOKUP($BS35,'État & Plan d''action'!$B$6:$DB$1113,20,FALSE),VLOOKUP($BS35,'État & Plan d''action'!$B$6:$DB$1113,30,FALSE),VLOOKUP($BS35,'État & Plan d''action'!$B$6:$DB$1113,40,FALSE),VLOOKUP($BS35,'État & Plan d''action'!$B$6:$DB$1113,50,FALSE),VLOOKUP($BS35,'État & Plan d''action'!$B$6:$DB$1113,60,FALSE),VLOOKUP($BS35,'État & Plan d''action'!$B$6:$DB$1113,70,FALSE),VLOOKUP($BS35,'État & Plan d''action'!$B$6:$DB$1113,80,FALSE),VLOOKUP($BS35,'État & Plan d''action'!$B$6:$DB$1113,90,FALSE),VLOOKUP($BS35,'État & Plan d''action'!$B$6:$DB$1113,100,FALSE)),"") -> 0 | FT35: =IFERROR(SUM(VLOOKUP($BS35,'État & Plan d''action'!$B$6:$DB$1113,22,FALSE),VLOOKUP($BS35,'État & Plan d''action'!$B$6:$DB$1113,32,FALSE),VLOOKUP($BS35,'État & Plan d''action'!$B$6:$DB$1113,42,FALSE),VLOOKUP($BS35,'État & Plan d''action'!$B$6:$DB$1113,52,FALSE),VLOOKUP($BS35,'État & Plan d''action'!$B$6:$DB$1113,62,FALSE),VLOOKUP($BS35,'État & Plan d''action'!$B$6:$DB$1113,72,FALSE),VLOOKUP($BS35,'État & Plan d''action'!$B$6:$DB$1113,82,FALSE),VLOOKUP($BS35,'État & Plan d''action'!$B$6:$DB$1113,92,FALSE),VLOOKUP($BS35,'État & Plan d''action'!$B$6:$DB$1113,102,FALSE)),"") -> 0 | FU35: =IFERROR(SUM(VLOOKUP($BS35,'État & Plan d''action'!$B$6:$DB$1113,24,FALSE),VLOOKUP($BS35,'État & Plan d''action'!$B$6:$DB$1113,34,FALSE),VLOOKUP($BS35,'État & Plan d''action'!$B$6:$DB$1113,44,FALSE),VLOOKUP($BS35,'État & Plan d''action'!$B$6:$DB$1113,54,FALSE),VLOOKUP($BS35,'État & Plan d''action'!$B$6:$DB$1113,64,FALSE),VLOOKUP($BS35,'État & Plan d''action'!$B$6:$DB$1113,74,FALSE),VLOOKUP($BS35,'État & Plan d''action'!$B$6:$DB$1113,84,FALSE),VLOOKUP($BS35,'État & Plan d''action'!$B$6:$DB$1113,94,FALSE),VLOOKUP($BS35,'État & Plan d''action'!$B$6:$DB$1113,104,FALSE)),"") -> 0 | FV35: 57 | FW35: 56.75490196 | FX35: 56.75490196 | FY35: 54 | FZ35: 3944
W36: Indice de fuites dans les infrastructures moyen | X36: =IF($W$23="","",IF($AG$27="non","Non disponible",IF(VLOOKUP($W$23,$BS$9:$EO$1116,75,FALSE)=0,"Non disponible",VLOOKUP($W$23,$BS$9:$EO$1116,75,FALSE)))) ->  | Y36: =IF($W$23="","",VLOOKUP(VLOOKUP(VLOOKUP($W$22,$BT$9:$BU$1116,2,FALSE),$T$173:$V$189,3,FALSE),$E$173:$AI$190,31,FALSE)) ->  | Z36: =IF($W$23="","",IF(VLOOKUP($W$22,$B$201:$AI$207,34,FALSE)=0,"Non disponible",VLOOKUP($W$22,$B$201:$AI$207,34,FALSE))) ->  | AA36: =AI190 -> 6.804760507 | BQ36: 1 | BR36: 1 | BS36: 98035 | BT36: BAIE-JOHAN-BEETZ | BU36: 9 | BV36: non | BW36: non | BX36: non | BY36: non | BZ36: non | CA36: non | CB36: non | CC36: non | CD36: non | CE36: non | CF36: non | CG36: oui | CH36: oui | CI36: non | CJ36: non | CK36: oui | CL36: non | CM36: oui | CN36: oui | CO36: oui | CP36: oui | CQ36: =IF(VLOOKUP(BS36,'Données par municipalité'!$B$6:$E$1113,4,FALSE)="","non","oui") -> oui | CR36: 1431.288418 | CS36: 1346.824203 | CV36: 923.6099919 | CX36: 827.3781014 | CY36: 957 | CZ36: 721 | DA36: 738 | DB36: =IF(VLOOKUP(BS36,'Données par municipalité'!$B$6:$F$1113,4,FALSE)="","",VLOOKUP(BS36,'Données par municipalité'!$B$6:$F$1113,4,FALSE)) -> 755 | DC36: Non disponible | DD36: 0 | DG36: 1 | DI36: 0 | DJ36: 0 | DK36: 0 | DL36: 0 | DM36: =IFERROR(SUM(VLOOKUP($BS36,'État & Plan d''action'!$B$6:$DB$1113,18,FALSE),VLOOKUP($BS36,'État & Plan d''action'!$B$6:$DB$1113,20,FALSE),VLOOKUP($BS36,'État & Plan d''action'!$B$6:$DB$1113,28,FALSE),VLOOKUP($BS36,'État & Plan d''action'!$B$6:$DB$1113,30,FALSE),VLOOKUP($BS36,'État & Plan d''action'!$B$6:$DB$1113,38,FALSE),VLOOKUP($BS36,'État & Plan d''action'!$B$6:$DB$1113,40,FALSE),VLOOKUP($BS36,'État & Plan d''action'!$B$6:$DB$1113,48,FALSE),VLOOKUP($BS36,'État & Plan d''action'!$B$6:$DB$1113,50,FALSE),VLOOKUP($BS36,'État & Plan d''action'!$B$6:$DB$1113,58,FALSE),VLOOKUP($BS36,'État & Plan d''action'!$B$6:$DB$1113,60,FALSE),VLOOKUP($BS36,'État & Plan d''action'!$B$6:$DB$1113,68,FALSE),VLOOKUP($BS36,'État & Plan d''action'!$B$6:$DB$1113,70,FALSE),VLOOKUP($BS36,'État & Plan d''action'!$B$6:$DB$1113,78,FALSE),VLOOKUP($BS36,'État & Plan d''action'!$B$6:$DB$1113,80,FALSE),VLOOKUP($BS36,'État & Plan d''action'!$B$6:$DB$1113,88,FALSE),VLOOKUP($BS36,'État & Plan d''action'!$B$6:$DB$1113,90,FALSE),VLOOKUP($BS36,'État & Plan d''action'!$B$6:$DB$1113,98,FALSE),VLOOKUP($BS36,'État & Plan d''action'!$B$6:$DB$1113,100,FALSE))/(VLOOKUP($BS36,'Données par municipalité'!$B$4:$N$1113,13,FALSE)),"") -> 0 | DN36: =IFERROR(SUM(VLOOKUP($BS36,'État & Plan d''action'!$B$6:$DB$1113,19,FALSE),VLOOKUP($BS36,'État & Plan d''action'!$B$6:$DB$1113,21,FALSE),VLOOKUP($BS36,'État & Plan d''action'!$B$6:$DB$1113,29,FALSE),VLOOKUP($BS36,'État & Plan d''action'!$B$6:$DB$1113,31,FALSE),VLOOKUP($BS36,'État & Plan d''action'!$B$6:$DB$1113,39,FALSE),VLOOKUP($BS36,'État & Plan d''action'!$B$6:$DB$1113,41,FALSE),VLOOKUP($BS36,'État & Plan d''action'!$B$6:$DB$1113,49,FALSE),VLOOKUP($BS36,'État & Plan d''action'!$B$6:$DB$1113,51,FALSE),VLOOKUP($BS36,'État & Plan d''action'!$B$6:$DB$1113,59,FALSE),VLOOKUP($BS36,'État & Plan d''action'!$B$6:$DB$1113,61,FALSE),VLOOKUP($BS36,'État & Plan d''action'!$B$6:$DB$1113,69,FALSE),VLOOKUP($BS36,'État & Plan d''action'!$B$6:$DB$1113,71,FALSE),VLOOKUP($BS36,'État & Plan d''action'!$B$6:$DB$1113,79,FALSE),VLOOKUP($BS36,'État & Plan d''action'!$B$6:$DB$1113,81,FALSE),VLOOKUP($BS36,'État & Plan d''action'!$B$6:$DB$1113,89,FALSE),VLOOKUP($BS36,'État & Plan d''action'!$B$6:$DB$1113,91,FALSE),VLOOKUP($BS36,'État & Plan d''action'!$B$6:$DB$1113,99,FALSE),VLOOKUP($BS36,'État & Plan d''action'!$B$6:$DB$1113,101,FALSE))/(VLOOKUP($BS36,'Données par municipalité'!$B$4:$N$1113,13,FALSE)),"") -> 0 | DO36: Non disponible | DP36: 1 | DR36: 0 | DS36: 0 | DU36: 1 | DV36: 2 | DW36: 0 | DX36: 0 | DY36: 1 | DZ36: 0 | EA36: 0 | EB36: 0 | EC36: 0 | ED36: 0 | EE36: =IF(VLOOKUP($BS36,'État & Plan d''action'!$B$6:$DM$1113,108,FALSE)="","",VLOOKUP($BS36,'État & Plan d''action'!$B$6:$DM$1113,108,FALSE)) -> 0 | EF36: =IF(VLOOKUP($BS36,'État & Plan d''action'!$B$6:$DM$1113,109,FALSE)="","",VLOOKUP($BS36,'État & Plan d''action'!$B$6:$DM$1113,109,FALSE)) -> 0 | EG36: =IF(VLOOKUP($BS36,'État & Plan d''action'!$B$6:$DM$1113,110,FALSE)="","",VLOOKUP($BS36,'État & Plan d''action'!$B$6:$DM$1113,110,FALSE)) -> 0 | EH36: 293 | EI36: 163 | EJ36: 336 | EK36: =VLOOKUP($BS36,'Données par municipalité'!$B$6:$F$1113,5,FALSE) -> 393 | EL36: 1.478126504 | EM36: 1.251260155 | EN36: 1.493988145 | EO36: =IF(VLOOKUP(BS36,'Données par municipalité'!$B$6:$U$1113,7,FALSE)="","",VLOOKUP(BS36,'Données par municipalité'!$B$6:$U$1113,7,FALSE)) -> 0.9838979841 | EP36: 2 | EQ36: 0 | ER36: 0 | ES36: 2 | ET36: 0 | EU36: 0 | EV36: S.O. | EY36: =VLOOKUP($BS36,'État & Plan d''action'!$B$6:$DK$1113,112,FALSE) -> S.O. | EZ36: =VLOOKUP($BS36,'État & Plan d''action'!$B$6:$DK$1113,113,FALSE) ->  | FA36: =VLOOKUP($BS36,'État & Plan d''action'!$B$6:$DK$1113,114,FALSE) ->  | FB36: 0 | FC36: 0 | FD36: 0 | FE36: 0 | FF36: 0 | FG36: 0 | FH36: 0 | FI36: 0 | FJ36: 0 | FK36: 0 | FL36: 0 | FM36: 0 | FN36: 0 | FO36: 0 | FP36: 0 | FQ36: =IFERROR(SUM(VLOOKUP($BS36,'État & Plan d''action'!$B$6:$DB$1113,16,FALSE),VLOOKUP($BS36,'État & Plan d''action'!$B$6:$DB$1113,26,FALSE),VLOOKUP($BS36,'État & Plan d''action'!$B$6:$DB$1113,36,FALSE),VLOOKUP($BS36,'État & Plan d''action'!$B$6:$DB$1113,46,FALSE),VLOOKUP($BS36,'État & Plan d''action'!$B$6:$DB$1113,56,FALSE),VLOOKUP($BS36,'État & Plan d''action'!$B$6:$DB$1113,66,FALSE),VLOOKUP($BS36,'État & Plan d''action'!$B$6:$DB$1113,76,FALSE),VLOOKUP($BS36,'État & Plan d''action'!$B$6:$DB$1113,86,FALSE),VLOOKUP($BS36,'État & Plan d''action'!$B$6:$DB$1113,96,FALSE)),"") -> 0 | FR36: =IFERROR(SUM(VLOOKUP($BS36,'État & Plan d''action'!$B$6:$DB$1113,18,FALSE),VLOOKUP($BS36,'État & Plan d''action'!$B$6:$DB$1113,28,FALSE),VLOOKUP($BS36,'État & Plan d''action'!$B$6:$DB$1113,38,FALSE),VLOOKUP($BS36,'État & Plan d''action'!$B$6:$DB$1113,48,FALSE),VLOOKUP($BS36,'État & Plan d''action'!$B$6:$DB$1113,58,FALSE),VLOOKUP($BS36,'État & Plan d''action'!$B$6:$DB$1113,68,FALSE),VLOOKUP($BS36,'État & Plan d''action'!$B$6:$DB$1113,78,FALSE),VLOOKUP($BS36,'État & Plan d''action'!$B$6:$DB$1113,88,FALSE),VLOOKUP($BS36,'État & Plan d''action'!$B$6:$DB$1113,98,FALSE)),"") -> 0 | FS36: =IFERROR(SUM(VLOOKUP($BS36,'État & Plan d''action'!$B$6:$DB$1113,20,FALSE),VLOOKUP($BS36,'État & Plan d''action'!$B$6:$DB$1113,30,FALSE),VLOOKUP($BS36,'État & Plan d''action'!$B$6:$DB$1113,40,FALSE),VLOOKUP($BS36,'État & Plan d''action'!$B$6:$DB$1113,50,FALSE),VLOOKUP($BS36,'État & Plan d''action'!$B$6:$DB$1113,60,FALSE),VLOOKUP($BS36,'État & Plan d''action'!$B$6:$DB$1113,70,FALSE),VLOOKUP($BS36,'État & Plan d''action'!$B$6:$DB$1113,80,FALSE),VLOOKUP($BS36,'État & Plan d''action'!$B$6:$DB$1113,90,FALSE),VLOOKUP($BS36,'État & Plan d''action'!$B$6:$DB$1113,100,FALSE)),"") -> 0 | FT36: =IFERROR(SUM(VLOOKUP($BS36,'État & Plan d''action'!$B$6:$DB$1113,22,FALSE),VLOOKUP($BS36,'État & Plan d''action'!$B$6:$DB$1113,32,FALSE),VLOOKUP($BS36,'État & Plan d''action'!$B$6:$DB$1113,42,FALSE),VLOOKUP($BS36,'État & Plan d''action'!$B$6:$DB$1113,52,FALSE),VLOOKUP($BS36,'État & Plan d''action'!$B$6:$DB$1113,62,FALSE),VLOOKUP($BS36,'État & Plan d''action'!$B$6:$DB$1113,72,FALSE),VLOOKUP($BS36,'État & Plan d''action'!$B$6:$DB$1113,82,FALSE),VLOOKUP($BS36,'État & Plan d''action'!$B$6:$DB$1113,92,FALSE),VLOOKUP($BS36,'État & Plan d''action'!$B$6:$DB$1113,102,FALSE)),"") -> 0 | FU36: =IFERROR(SUM(VLOOKUP($BS36,'État & Plan d''action'!$B$6:$DB$1113,24,FALSE),VLOOKUP($BS36,'État & Plan d''action'!$B$6:$DB$1113,34,FALSE),VLOOKUP($BS36,'État & Plan d''action'!$B$6:$DB$1113,44,FALSE),VLOOKUP($BS36,'État & Plan d''action'!$B$6:$DB$1113,54,FALSE),VLOOKUP($BS36,'État & Plan d''action'!$B$6:$DB$1113,64,FALSE),VLOOKUP($BS36,'État & Plan d''action'!$B$6:$DB$1113,74,FALSE),VLOOKUP($BS36,'État & Plan d''action'!$B$6:$DB$1113,84,FALSE),VLOOKUP($BS36,'État & Plan d''action'!$B$6:$DB$1113,94,FALSE),VLOOKUP($BS36,'État & Plan d''action'!$B$6:$DB$1113,104,FALSE)),"") -> 0 | FV36: 45 | FW36: 59.43243243 | FX36: 59 | FY36: 58.55405405 | FZ36: 83
W37: Résultat de validité des données | X37: =IF($W$23="","",IF($AG$27="non","Non disponible",IF(VLOOKUP($W$23,'Données par municipalité'!$B$6:$U$1113,20,FALSE)=0,"Non disponible",VLOOKUP($W$23,'Données par municipalité'!$B$6:$U$1113,20,FALSE)))) ->  | Y37: =IF($W$23="","",VLOOKUP(VLOOKUP(VLOOKUP($W$22,$BT$9:$BU$1116,2,FALSE),$T$173:$V$189,3,FALSE),$E$173:$AK$190,33,FALSE)) ->  | Z37: =IF($W$23="","",IF(VLOOKUP($W$22,$B$201:$AK$207,36,FALSE)=0,"Non disponible",VLOOKUP($W$22,$B$201:$AK$207,36,FALSE))) ->  | AA37: =AK190 -> 60.27703559 | BQ37: 1 | BR37: 1 | BS37: 15065 | BT37: BAIE-SAINTE-CATHERINE | BU37: 3 | BV37: non | BW37: non | BX37: non | BY37: non | BZ37: non | CA37: non | CB37: non | CC37: non | CD37: non | CE37: non | CF37: non | CG37: oui | CH37: oui | CI37: non | CJ37: non | CK37: oui | CL37: oui | CM37: oui | CN37: oui | CO37: oui | CP37: oui | CQ37: =IF(VLOOKUP(BS37,'Données par municipalité'!$B$6:$E$1113,4,FALSE)="","non","oui") -> oui | CR37: 1653.440122 | CS37: 1383.356575 | CV37: 854.2441919 | CW37: 653.142109 | CX37: 574.0933505 | CY37: 622 | CZ37: 589 | DA37: 446 | DB37: =IF(VLOOKUP(BS37,'Données par municipalité'!$B$6:$F$1113,4,FALSE)="","",VLOOKUP(BS37,'Données par municipalité'!$B$6:$F$1113,4,FALSE)) -> 492 | DC37: Non disponible | DD37: 1 | DG37: 0 | DH37: 0 | DI37: 0 | DJ37: 0 | DK37: 0 | DL37: 0 | DM37: =IFERROR(SUM(VLOOKUP($BS37,'État & Plan d''action'!$B$6:$DB$1113,18,FALSE),VLOOKUP($BS37,'État & Plan d''action'!$B$6:$DB$1113,20,FALSE),VLOOKUP($BS37,'État & Plan d''action'!$B$6:$DB$1113,28,FALSE),VLOOKUP($BS37,'État & Plan d''action'!$B$6:$DB$1113,30,FALSE),VLOOKUP($BS37,'État & Plan d''action'!$B$6:$DB$1113,38,FALSE),VLOOKUP($BS37,'État & Plan d''action'!$B$6:$DB$1113,40,FALSE),VLOOKUP($BS37,'État & Plan d''action'!$B$6:$DB$1113,48,FALSE),VLOOKUP($BS37,'État & Plan d''action'!$B$6:$DB$1113,50,FALSE),VLOOKUP($BS37,'État & Plan d''action'!$B$6:$DB$1113,58,FALSE),VLOOKUP($BS37,'État & Plan d''action'!$B$6:$DB$1113,60,FALSE),VLOOKUP($BS37,'État & Plan d''action'!$B$6:$DB$1113,68,FALSE),VLOOKUP($BS37,'État & Plan d''action'!$B$6:$DB$1113,70,FALSE),VLOOKUP($BS37,'État & Plan d''action'!$B$6:$DB$1113,78,FALSE),VLOOKUP($BS37,'État & Plan d''action'!$B$6:$DB$1113,80,FALSE),VLOOKUP($BS37,'État & Plan d''action'!$B$6:$DB$1113,88,FALSE),VLOOKUP($BS37,'État & Plan d''action'!$B$6:$DB$1113,90,FALSE),VLOOKUP($BS37,'État & Plan d''action'!$B$6:$DB$1113,98,FALSE),VLOOKUP($BS37,'État & Plan d''action'!$B$6:$DB$1113,100,FALSE))/(VLOOKUP($BS37,'Données par municipalité'!$B$4:$N$1113,13,FALSE)),"") -> 0 | DN37: =IFERROR(SUM(VLOOKUP($BS37,'État & Plan d''action'!$B$6:$DB$1113,19,FALSE),VLOOKUP($BS37,'État & Plan d''action'!$B$6:$DB$1113,21,FALSE),VLOOKUP($BS37,'État & Plan d''action'!$B$6:$DB$1113,29,FALSE),VLOOKUP($BS37,'État & Plan d''action'!$B$6:$DB$1113,31,FALSE),VLOOKUP($BS37,'État & Plan d''action'!$B$6:$DB$1113,39,FALSE),VLOOKUP($BS37,'État & Plan d''action'!$B$6:$DB$1113,41,FALSE),VLOOKUP($BS37,'État & Plan d''action'!$B$6:$DB$1113,49,FALSE),VLOOKUP($BS37,'État & Plan d''action'!$B$6:$DB$1113,51,FALSE),VLOOKUP($BS37,'État & Plan d''action'!$B$6:$DB$1113,59,FALSE),VLOOKUP($BS37,'État & Plan d''action'!$B$6:$DB$1113,61,FALSE),VLOOKUP($BS37,'État & Plan d''action'!$B$6:$DB$1113,69,FALSE),VLOOKUP($BS37,'État & Plan d''action'!$B$6:$DB$1113,71,FALSE),VLOOKUP($BS37,'État & Plan d''action'!$B$6:$DB$1113,79,FALSE),VLOOKUP($BS37,'État & Plan d''action'!$B$6:$DB$1113,81,FALSE),VLOOKUP($BS37,'État & Plan d''action'!$B$6:$DB$1113,89,FALSE),VLOOKUP($BS37,'État & Plan d''action'!$B$6:$DB$1113,91,FALSE),VLOOKUP($BS37,'État & Plan d''action'!$B$6:$DB$1113,99,FALSE),VLOOKUP($BS37,'État & Plan d''action'!$B$6:$DB$1113,101,FALSE))/(VLOOKUP($BS37,'Données par municipalité'!$B$4:$N$1113,13,FALSE)),"") -> 0 | DO37: Non disponible | DP37: 4 | DR37: 0 | DS37: 1 | DT37: 0 | DU37: 0 | DV37: 3 | DW37: 0 | DX37: 0 | DY37: 1 | DZ37: 0 | EA37: 0 | EB37: 1 | EC37: 0 | ED37: 0 | EE37: =IF(VLOOKUP($BS37,'État & Plan d''action'!$B$6:$DM$1113,108,FALSE)="","",VLOOKUP($BS37,'État & Plan d''action'!$B$6:$DM$1113,108,FALSE)) -> 0 | EF37: =IF(VLOOKUP($BS37,'État & Plan d''action'!$B$6:$DM$1113,109,FALSE)="","",VLOOKUP($BS37,'État & Plan d''action'!$B$6:$DM$1113,109,FALSE)) -> 0 | EG37: =IF(VLOOKUP($BS37,'État & Plan d''action'!$B$6:$DM$1113,110,FALSE)="","",VLOOKUP($BS37,'État & Plan d''action'!$B$6:$DM$1113,110,FALSE)) -> 0 | EH37: 235 | EI37: 260 | EJ37: 251 | EK37: =VLOOKUP($BS37,'Données par municipalité'!$B$6:$F$1113,5,FALSE) -> 201 | EL37: 1.278380058 | EM37: 2.558365363 | EN37: 1.649275857 | EO37: =IF(VLOOKUP(BS37,'Données par municipalité'!$B$6:$U$1113,7,FALSE)="","",VLOOKUP(BS37,'Données par municipalité'!$B$6:$U$1113,7,FALSE)) -> 1.433924357 | EP37: 2 | EQ37: 0 | ER37: 0 | ES37: 1 | ET37: 0 | EU37: 0 | EV37: 1 | EY37: =VLOOKUP($BS37,'État & Plan d''action'!$B$6:$DK$1113,112,FALSE) -> S.O. | EZ37: =VLOOKUP($BS37,'État & Plan d''action'!$B$6:$DK$1113,113,FALSE) ->  | FA37: =VLOOKUP($BS37,'État & Plan d''action'!$B$6:$DK$1113,114,FALSE) ->  | FB37: 6.596 | FC37: 0 | FD37: 0 | FE37: 0 | FF37: 0 | FG37: 6.596 | FH37: 0 | FI37: 0 | FJ37: 0 | FK37: 0 | FL37: 0 | FM37: 0 | FN37: 0 | FO37: 0 | FP37: 0 | FQ37: =IFERROR(SUM(VLOOKUP($BS37,'État & Plan d''action'!$B$6:$DB$1113,16,FALSE),VLOOKUP($BS37,'État & Plan d''action'!$B$6:$DB$1113,26,FALSE),VLOOKUP($BS37,'État & Plan d''action'!$B$6:$DB$1113,36,FALSE),VLOOKUP($BS37,'État & Plan d''action'!$B$6:$DB$1113,46,FALSE),VLOOKUP($BS37,'État & Plan d''action'!$B$6:$DB$1113,56,FALSE),VLOOKUP($BS37,'État & Plan d''action'!$B$6:$DB$1113,66,FALSE),VLOOKUP($BS37,'État & Plan d''action'!$B$6:$DB$1113,76,FALSE),VLOOKUP($BS37,'État & Plan d''action'!$B$6:$DB$1113,86,FALSE),VLOOKUP($BS37,'État & Plan d''action'!$B$6:$DB$1113,96,FALSE)),"") -> 0 | FR37: =IFERROR(SUM(VLOOKUP($BS37,'État & Plan d''action'!$B$6:$DB$1113,18,FALSE),VLOOKUP($BS37,'État & Plan d''action'!$B$6:$DB$1113,28,FALSE),VLOOKUP($BS37,'État & Plan d''action'!$B$6:$DB$1113,38,FALSE),VLOOKUP($BS37,'État & Plan d''action'!$B$6:$DB$1113,48,FALSE),VLOOKUP($BS37,'État & Plan d''action'!$B$6:$DB$1113,58,FALSE),VLOOKUP($BS37,'État & Plan d''action'!$B$6:$DB$1113,68,FALSE),VLOOKUP($BS37,'État & Plan d''action'!$B$6:$DB$1113,78,FALSE),VLOOKUP($BS37,'État & Plan d''action'!$B$6:$DB$1113,88,FALSE),VLOOKUP($BS37,'État & Plan d''action'!$B$6:$DB$1113,98,FALSE)),"") -> 0 | FS37: =IFERROR(SUM(VLOOKUP($BS37,'État & Plan d''action'!$B$6:$DB$1113,20,FALSE),VLOOKUP($BS37,'État & Plan d''action'!$B$6:$DB$1113,30,FALSE),VLOOKUP($BS37,'État & Plan d''action'!$B$6:$DB$1113,40,FALSE),VLOOKUP($BS37,'État & Plan d''action'!$B$6:$DB$1113,50,FALSE),VLOOKUP($BS37,'État & Plan d''action'!$B$6:$DB$1113,60,FALSE),VLOOKUP($BS37,'État & Plan d''action'!$B$6:$DB$1113,70,FALSE),VLOOKUP($BS37,'État & Plan d''action'!$B$6:$DB$1113,80,FALSE),VLOOKUP($BS37,'État & Plan d''action'!$B$6:$DB$1113,90,FALSE),VLOOKUP($BS37,'État & Plan d''action'!$B$6:$DB$1113,100,FALSE)),"") -> 0 | FT37: =IFERROR(SUM(VLOOKUP($BS37,'État & Plan d''action'!$B$6:$DB$1113,22,FALSE),VLOOKUP($BS37,'État & Plan d''action'!$B$6:$DB$1113,32,FALSE),VLOOKUP($BS37,'État & Plan d''action'!$B$6:$DB$1113,42,FALSE),VLOOKUP($BS37,'État & Plan d''action'!$B$6:$DB$1113,52,FALSE),VLOOKUP($BS37,'État & Plan d''action'!$B$6:$DB$1113,62,FALSE),VLOOKUP($BS37,'État & Plan d''action'!$B$6:$DB$1113,72,FALSE),VLOOKUP($BS37,'État & Plan d''action'!$B$6:$DB$1113,82,FALSE),VLOOKUP($BS37,'État & Plan d''action'!$B$6:$DB$1113,92,FALSE),VLOOKUP($BS37,'État & Plan d''action'!$B$6:$DB$1113,102,FALSE)),"") -> 0 | FU37: =IFERROR(SUM(VLOOKUP($BS37,'État & Plan d''action'!$B$6:$DB$1113,24,FALSE),VLOOKUP($BS37,'État & Plan d''action'!$B$6:$DB$1113,34,FALSE),VLOOKUP($BS37,'État & Plan d''action'!$B$6:$DB$1113,44,FALSE),VLOOKUP($BS37,'État & Plan d''action'!$B$6:$DB$1113,54,FALSE),VLOOKUP($BS37,'État & Plan d''action'!$B$6:$DB$1113,64,FALSE),VLOOKUP($BS37,'État & Plan d''action'!$B$6:$DB$1113,74,FALSE),VLOOKUP($BS37,'État & Plan d''action'!$B$6:$DB$1113,84,FALSE),VLOOKUP($BS37,'État & Plan d''action'!$B$6:$DB$1113,94,FALSE),VLOOKUP($BS37,'État & Plan d''action'!$B$6:$DB$1113,104,FALSE)),"") -> 0 | FV37: 44 | FW37: 53.67647059 | FX37: 55.20588235 | FY37: 55.20588235 | FZ37: 191
X38: =IF($W$23="","ND",IF($AE$27="non","ND",IF(VLOOKUP($W$23,$BS$9:$ED$1116,35,FALSE)="","ND",VLOOKUP($W$23,$BS$9:$ED$1116,35,FALSE)))) -> ND | Y38: =IF($W$23="","ND",VLOOKUP(VLOOKUP($W$23,$BS$9:$BU$1116,3,FALSE),$T$173:$AM$189,14,FALSE)) -> ND | Z38: =IF($W$23="","ND",IF(VLOOKUP($W$22,$B$201:$AH$207,32,FALSE)=0,"ND",VLOOKUP($W$22,$B$201:$AH$207,32,FALSE))) -> ND | AA38: =DJ8 -> 0.8807061573 | BQ38: 1 | BR38: 1 | BS38: 16013 | BT38: BAIE-SAINT-PAUL | BU38: 3 | BV38: non | BW38: non | BX38: non | BY38: non | BZ38: non | CA38: non | CB38: non | CC38: non | CD38: non | CE38: non | CF38: non | CG38: oui | CH38: oui | CI38: non | CJ38: oui | CK38: oui | CL38: oui | CM38: oui | CN38: oui | CO38: oui | CP38: oui | CQ38: =IF(VLOOKUP(BS38,'Données par municipalité'!$B$6:$E$1113,4,FALSE)="","non","oui") -> oui | CR38: 509.6433487 | CS38: 473.1811475 | CU38: 477.5163952 | CV38: 527.8365419 | CW38: 569.239067 | CX38: 572.8375103 | CY38: 598 | CZ38: 567 | DA38: 525 | DB38: =IF(VLOOKUP(BS38,'Données par municipalité'!$B$6:$F$1113,4,FALSE)="","",VLOOKUP(BS38,'Données par municipalité'!$B$6:$F$1113,4,FALSE)) -> 486 | DC38: Non disponible | DD38: 0 | DF38: 0.05 | DG38: 1 | DH38: 0.75 | DI38: 0.25 | DJ38: 0 | DK38: 0.2239129305 | DL38: 1 | DM38: =IFERROR(SUM(VLOOKUP($BS38,'État & Plan d''action'!$B$6:$DB$1113,18,FALSE),VLOOKUP($BS38,'État & Plan d''action'!$B$6:$DB$1113,20,FALSE),VLOOKUP($BS38,'État & Plan d''action'!$B$6:$DB$1113,28,FALSE),VLOOKUP($BS38,'État & Plan d''action'!$B$6:$DB$1113,30,FALSE),VLOOKUP($BS38,'État & Plan d''action'!$B$6:$DB$1113,38,FALSE),VLOOKUP($BS38,'État & Plan d''action'!$B$6:$DB$1113,40,FALSE),VLOOKUP($BS38,'État & Plan d''action'!$B$6:$DB$1113,48,FALSE),VLOOKUP($BS38,'État & Plan d''action'!$B$6:$DB$1113,50,FALSE),VLOOKUP($BS38,'État & Plan d''action'!$B$6:$DB$1113,58,FALSE),VLOOKUP($BS38,'État & Plan d''action'!$B$6:$DB$1113,60,FALSE),VLOOKUP($BS38,'État & Plan d''action'!$B$6:$DB$1113,68,FALSE),VLOOKUP($BS38,'État & Plan d''action'!$B$6:$DB$1113,70,FALSE),VLOOKUP($BS38,'État & Plan d''action'!$B$6:$DB$1113,78,FALSE),VLOOKUP($BS38,'État & Plan d''action'!$B$6:$DB$1113,80,FALSE),VLOOKUP($BS38,'État & Plan d''action'!$B$6:$DB$1113,88,FALSE),VLOOKUP($BS38,'État & Plan d''action'!$B$6:$DB$1113,90,FALSE),VLOOKUP($BS38,'État & Plan d''action'!$B$6:$DB$1113,98,FALSE),VLOOKUP($BS38,'État & Plan d''action'!$B$6:$DB$1113,100,FALSE))/(VLOOKUP($BS38,'Données par municipalité'!$B$4:$N$1113,13,FALSE)),"") -> 0.7972132199 | DN38: =IFERROR(SUM(VLOOKUP($BS38,'État & Plan d''action'!$B$6:$DB$1113,19,FALSE),VLOOKUP($BS38,'État & Plan d''action'!$B$6:$DB$1113,21,FALSE),VLOOKUP($BS38,'État & Plan d''action'!$B$6:$DB$1113,29,FALSE),VLOOKUP($BS38,'État & Plan d''action'!$B$6:$DB$1113,31,FALSE),VLOOKUP($BS38,'État & Plan d''action'!$B$6:$DB$1113,39,FALSE),VLOOKUP($BS38,'État & Plan d''action'!$B$6:$DB$1113,41,FALSE),VLOOKUP($BS38,'État & Plan d''action'!$B$6:$DB$1113,49,FALSE),VLOOKUP($BS38,'État & Plan d''action'!$B$6:$DB$1113,51,FALSE),VLOOKUP($BS38,'État & Plan d''action'!$B$6:$DB$1113,59,FALSE),VLOOKUP($BS38,'État & Plan d''action'!$B$6:$DB$1113,61,FALSE),VLOOKUP($BS38,'État & Plan d''action'!$B$6:$DB$1113,69,FALSE),VLOOKUP($BS38,'État & Plan d''action'!$B$6:$DB$1113,71,FALSE),VLOOKUP($BS38,'État & Plan d''action'!$B$6:$DB$1113,79,FALSE),VLOOKUP($BS38,'État & Plan d''action'!$B$6:$DB$1113,81,FALSE),VLOOKUP($BS38,'État & Plan d''action'!$B$6:$DB$1113,89,FALSE),VLOOKUP($BS38,'État & Plan d''action'!$B$6:$DB$1113,91,FALSE),VLOOKUP($BS38,'État & Plan d''action'!$B$6:$DB$1113,99,FALSE),VLOOKUP($BS38,'État & Plan d''action'!$B$6:$DB$1113,101,FALSE))/(VLOOKUP($BS38,'Données par municipalité'!$B$4:$N$1113,13,FALSE)),"") -> 0.8318746642 | DO38: Non disponible | DP38: 6 | DR38: 2 | DS38: 2 | DT38: 1 | DU38: 2 | DV38: 5 | DW38: 0 | DX38: 0 | DY38: 2 | DZ38: 5 | EA38: 1 | EB38: 2 | EC38: 0 | ED38: 0 | EE38: =IF(VLOOKUP($BS38,'État & Plan d''action'!$B$6:$DM$1113,108,FALSE)="","",VLOOKUP($BS38,'État & Plan d''action'!$B$6:$DM$1113,108,FALSE)) -> 4 | EF38: =IF(VLOOKUP($BS38,'État & Plan d''action'!$B$6:$DM$1113,109,FALSE)="","",VLOOKUP($BS38,'État & Plan d''action'!$B$6:$DM$1113,109,FALSE)) -> 4 | EG38: =IF(VLOOKUP($BS38,'État & Plan d''action'!$B$6:$DM$1113,110,FALSE)="","",VLOOKUP($BS38,'État & Plan d''action'!$B$6:$DM$1113,110,FALSE)) -> 2 | EH38: 411 | EI38: 271 | EJ38: 260 | EK38: =VLOOKUP($BS38,'Données par municipalité'!$B$6:$F$1113,5,FALSE) -> 254 | EL38: 1.233263378 | EM38: 3.951386716 | EN38: 4.550818556 | EO38: =IF(VLOOKUP(BS38,'Données par municipalité'!$B$6:$U$1113,7,FALSE)="","",VLOOKUP(BS38,'Données par municipalité'!$B$6:$U$1113,7,FALSE)) -> 3.290443664 | EP38: 1 | EQ38: 0 | ER38: 0 | ES38: 1 | ET38: 1 | EU38: 1 | EV38: 5 | EY38: =VLOOKUP($BS38,'État & Plan d''action'!$B$6:$DK$1113,112,FALSE) -> 5 | EZ38: =VLOOKUP($BS38,'État & Plan d''action'!$B$6:$DK$1113,113,FALSE) -> 5 | FA38: =VLOOKUP($BS38,'État & Plan d''action'!$B$6:$DK$1113,114,FALSE) -> 5 | FB38: 1.678 | FC38: 0 | FD38: 0 | FE38: 0 | FF38: 0 | FG38: 1.678 | FH38: 0 | FI38: 0 | FJ38: 0 | FK38: 0 | FL38: 12.655 | FM38: 0 | FN38: 57.701 | FO38: 0 | FP38: 0 | FQ38: =IFERROR(SUM(VLOOKUP($BS38,'État & Plan d''action'!$B$6:$DB$1113,16,FALSE),VLOOKUP($BS38,'État & Plan d''action'!$B$6:$DB$1113,26,FALSE),VLOOKUP($BS38,'État & Plan d''action'!$B$6:$DB$1113,36,FALSE),VLOOKUP($BS38,'État & Plan d''action'!$B$6:$DB$1113,46,FALSE),VLOOKUP($BS38,'État & Plan d''action'!$B$6:$DB$1113,56,FALSE),VLOOKUP($BS38,'État & Plan d''action'!$B$6:$DB$1113,66,FALSE),VLOOKUP($BS38,'État & Plan d''action'!$B$6:$DB$1113,76,FALSE),VLOOKUP($BS38,'État & Plan d''action'!$B$6:$DB$1113,86,FALSE),VLOOKUP($BS38,'État & Plan d''action'!$B$6:$DB$1113,96,FALSE)),"") -> 12.655 | FR38: =IFERROR(SUM(VLOOKUP($BS38,'État & Plan d''action'!$B$6:$DB$1113,18,FALSE),VLOOKUP($BS38,'État & Plan d''action'!$B$6:$DB$1113,28,FALSE),VLOOKUP($BS38,'État & Plan d''action'!$B$6:$DB$1113,38,FALSE),VLOOKUP($BS38,'État & Plan d''action'!$B$6:$DB$1113,48,FALSE),VLOOKUP($BS38,'État & Plan d''action'!$B$6:$DB$1113,58,FALSE),VLOOKUP($BS38,'État & Plan d''action'!$B$6:$DB$1113,68,FALSE),VLOOKUP($BS38,'État & Plan d''action'!$B$6:$DB$1113,78,FALSE),VLOOKUP($BS38,'État & Plan d''action'!$B$6:$DB$1113,88,FALSE),VLOOKUP($BS38,'État & Plan d''action'!$B$6:$DB$1113,98,FALSE)),"") -> 0 | FS38: =IFERROR(SUM(VLOOKUP($BS38,'État & Plan d''action'!$B$6:$DB$1113,20,FALSE),VLOOKUP($BS38,'État & Plan d''action'!$B$6:$DB$1113,30,FALSE),VLOOKUP($BS38,'État & Plan d''action'!$B$6:$DB$1113,40,FALSE),VLOOKUP($BS38,'État & Plan d''action'!$B$6:$DB$1113,50,FALSE),VLOOKUP($BS38,'État & Plan d''action'!$B$6:$DB$1113,60,FALSE),VLOOKUP($BS38,'État & Plan d''action'!$B$6:$DB$1113,70,FALSE),VLOOKUP($BS38,'État & Plan d''action'!$B$6:$DB$1113,80,FALSE),VLOOKUP($BS38,'État & Plan d''action'!$B$6:$DB$1113,90,FALSE),VLOOKUP($BS38,'État & Plan d''action'!$B$6:$DB$1113,100,FALSE)),"") -> 46 | FT38: =IFERROR(SUM(VLOOKUP($BS38,'État & Plan d''action'!$B$6:$DB$1113,22,FALSE),VLOOKUP($BS38,'État & Plan d''action'!$B$6:$DB$1113,32,FALSE),VLOOKUP($BS38,'État & Plan d''action'!$B$6:$DB$1113,42,FALSE),VLOOKUP($BS38,'État & Plan d''action'!$B$6:$DB$1113,52,FALSE),VLOOKUP($BS38,'État & Plan d''action'!$B$6:$DB$1113,62,FALSE),VLOOKUP($BS38,'État & Plan d''action'!$B$6:$DB$1113,72,FALSE),VLOOKUP($BS38,'État & Plan d''action'!$B$6:$DB$1113,82,FALSE),VLOOKUP($BS38,'État & Plan d''action'!$B$6:$DB$1113,92,FALSE),VLOOKUP($BS38,'État & Plan d''action'!$B$6:$DB$1113,102,FALSE)),"") -> 0 | FU38: =IFERROR(SUM(VLOOKUP($BS38,'État & Plan d''action'!$B$6:$DB$1113,24,FALSE),VLOOKUP($BS38,'État & Plan d''action'!$B$6:$DB$1113,34,FALSE),VLOOKUP($BS38,'État & Plan d''action'!$B$6:$DB$1113,44,FALSE),VLOOKUP($BS38,'État & Plan d''action'!$B$6:$DB$1113,54,FALSE),VLOOKUP($BS38,'État & Plan d''action'!$B$6:$DB$1113,64,FALSE),VLOOKUP($BS38,'État & Plan d''action'!$B$6:$DB$1113,74,FALSE),VLOOKUP($BS38,'État & Plan d''action'!$B$6:$DB$1113,84,FALSE),VLOOKUP($BS38,'État & Plan d''action'!$B$6:$DB$1113,94,FALSE),VLOOKUP($BS38,'État & Plan d''action'!$B$6:$DB$1113,104,FALSE)),"") -> 0 | FV38: 56.69298246 | FW38: 55.21929825 | FX38: 62.12848297 | FY38: 58.6127451 | FZ38: 7217
X39: =IF($W$23="","ND",IF($AE$27="non","ND",IF(SUM(VLOOKUP($W$23,$BS$9:$ED$1116,44,FALSE),VLOOKUP($W$23,$BS$9:$ED$1116,45,FALSE),VLOOKUP($W$23,$BS$9:$ED$1116,46,FALSE))="","ND",SUM(VLOOKUP($W$23,$BS$9:$ED$1116,44,FALSE),VLOOKUP($W$23,$BS$9:$ED$1116,45,FALSE),VLOOKUP($W$23,$BS$9:$ED$1116,46,FALSE))))) -> ND | Y39: =IF($W$23="","ND",VLOOKUP(VLOOKUP($W$23,$BS$9:$BU$1116,3,FALSE),$T$173:$AM$189,13,FALSE)) -> ND | Z39: =IF($W$23="","ND",IF(VLOOKUP($W$22,$B$201:$AH$207,31,FALSE)=0,"ND",VLOOKUP($W$22,$B$201:$AH$207,31,FALSE))) -> ND | AA39: =AF190 -> 8581 | BQ39: 1 | BR39: 1 | BS39: 96005 | BT39: BAIE-TRINITÉ | BU39: 9 | BV39: non | BW39: non | BX39: non | BY39: non | BZ39: non | CA39: non | CB39: non | CC39: non | CD39: non | CE39: non | CF39: non | CG39: oui | CH39: oui | CI39: non | CJ39: non | CK39: non | CL39: non | CM39: non | CN39: oui | CO39: oui | CP39: oui | CQ39: =IF(VLOOKUP(BS39,'Données par municipalité'!$B$6:$E$1113,4,FALSE)="","non","oui") -> non | CR39: 917.0550137 | CS39: 832.2838306 | CY39: 1351 | CZ39: 1157 | DA39: 1045 | DB39: =IF(VLOOKUP(BS39,'Données par municipalité'!$B$6:$F$1113,4,FALSE)="","",VLOOKUP(BS39,'Données par municipalité'!$B$6:$F$1113,4,FALSE)) ->  | DC39: Non disponible | DD39: 0 | DJ39: 0 | DK39: 0 | DL39: 0.5555555556 | DM39: =IFERROR(SUM(VLOOKUP($BS39,'État & Plan d''action'!$B$6:$DB$1113,18,FALSE),VLOOKUP($BS39,'État & Plan d''action'!$B$6:$DB$1113,20,FALSE),VLOOKUP($BS39,'État & Plan d''action'!$B$6:$DB$1113,28,FALSE),VLOOKUP($BS39,'État & Plan d''action'!$B$6:$DB$1113,30,FALSE),VLOOKUP($BS39,'État & Plan d''action'!$B$6:$DB$1113,38,FALSE),VLOOKUP($BS39,'État & Plan d''action'!$B$6:$DB$1113,40,FALSE),VLOOKUP($BS39,'État & Plan d''action'!$B$6:$DB$1113,48,FALSE),VLOOKUP($BS39,'État & Plan d''action'!$B$6:$DB$1113,50,FALSE),VLOOKUP($BS39,'État & Plan d''action'!$B$6:$DB$1113,58,FALSE),VLOOKUP($BS39,'État & Plan d''action'!$B$6:$DB$1113,60,FALSE),VLOOKUP($BS39,'État & Plan d''action'!$B$6:$DB$1113,68,FALSE),VLOOKUP($BS39,'État & Plan d''action'!$B$6:$DB$1113,70,FALSE),VLOOKUP($BS39,'État & Plan d''action'!$B$6:$DB$1113,78,FALSE),VLOOKUP($BS39,'État & Plan d''action'!$B$6:$DB$1113,80,FALSE),VLOOKUP($BS39,'État & Plan d''action'!$B$6:$DB$1113,88,FALSE),VLOOKUP($BS39,'État & Plan d''action'!$B$6:$DB$1113,90,FALSE),VLOOKUP($BS39,'État & Plan d''action'!$B$6:$DB$1113,98,FALSE),VLOOKUP($BS39,'État & Plan d''action'!$B$6:$DB$1113,100,FALSE))/(VLOOKUP($BS39,'Données par municipalité'!$B$4:$N$1113,13,FALSE)),"") ->  | DN39: =IFERROR(SUM(VLOOKUP($BS39,'État & Plan d''action'!$B$6:$DB$1113,19,FALSE),VLOOKUP($BS39,'État & Plan d''action'!$B$6:$DB$1113,21,FALSE),VLOOKUP($BS39,'État & Plan d''action'!$B$6:$DB$1113,29,FALSE),VLOOKUP($BS39,'État & Plan d''action'!$B$6:$DB$1113,31,FALSE),VLOOKUP($BS39,'État & Plan d''action'!$B$6:$DB$1113,39,FALSE),VLOOKUP($BS39,'État & Plan d''action'!$B$6:$DB$1113,41,FALSE),VLOOKUP($BS39,'État & Plan d''action'!$B$6:$DB$1113,49,FALSE),VLOOKUP($BS39,'État & Plan d''action'!$B$6:$DB$1113,51,FALSE),VLOOKUP($BS39,'État & Plan d''action'!$B$6:$DB$1113,59,FALSE),VLOOKUP($BS39,'État & Plan d''action'!$B$6:$DB$1113,61,FALSE),VLOOKUP($BS39,'État & Plan d''action'!$B$6:$DB$1113,69,FALSE),VLOOKUP($BS39,'État & Plan d''action'!$B$6:$DB$1113,71,FALSE),VLOOKUP($BS39,'État & Plan d''action'!$B$6:$DB$1113,79,FALSE),VLOOKUP($BS39,'État & Plan d''action'!$B$6:$DB$1113,81,FALSE),VLOOKUP($BS39,'État & Plan d''action'!$B$6:$DB$1113,89,FALSE),VLOOKUP($BS39,'État & Plan d''action'!$B$6:$DB$1113,91,FALSE),VLOOKUP($BS39,'État & Plan d''action'!$B$6:$DB$1113,99,FALSE),VLOOKUP($BS39,'État & Plan d''action'!$B$6:$DB$1113,101,FALSE))/(VLOOKUP($BS39,'Données par municipalité'!$B$4:$N$1113,13,FALSE)),"") ->  | DO39: Non disponible | DP39: 0 | DR39: 0 | DS39: 0 | DV39: 2 | DW39: 0 | DX39: 0 | DY39: 0 | DZ39: 0 | EA39: 1 | EB39: 0 | EC39: 2 | ED39: 1 | EE39: =IF(VLOOKUP($BS39,'État & Plan d''action'!$B$6:$DM$1113,108,FALSE)="","",VLOOKUP($BS39,'État & Plan d''action'!$B$6:$DM$1113,108,FALSE)) ->  | EF39: =IF(VLOOKUP($BS39,'État & Plan d''action'!$B$6:$DM$1113,109,FALSE)="","",VLOOKUP($BS39,'État & Plan d''action'!$B$6:$DM$1113,109,FALSE)) ->  | EG39: =IF(VLOOKUP($BS39,'État & Plan d''action'!$B$6:$DM$1113,110,FALSE)="","",VLOOKUP($BS39,'État & Plan d''action'!$B$6:$DM$1113,110,FALSE)) ->  | EH39: 1040 | EI39: 308 | EJ39: 369 | EK39: =VLOOKUP($BS39,'Données par municipalité'!$B$6:$F$1113,5,FALSE) -> 0 | EL39: 0.9505413745 | EM39: 2.513917515 | EN39: 2.319000512 | EO39: =IF(VLOOKUP(BS39,'Données par municipalité'!$B$6:$U$1113,7,FALSE)="","",VLOOKUP(BS39,'Données par municipalité'!$B$6:$U$1113,7,FALSE)) ->  | EP39: 3 | EQ39: 0 | ER39: 0 | ES39: 0 | ET39: 0 | EU39: 2 | EV39: S.O. | EW39: 1 | EX39: 2 | EY39: =VLOOKUP($BS39,'État & Plan d''action'!$B$6:$DK$1113,112,FALSE) -> 0 | EZ39: =VLOOKUP($BS39,'État & Plan d''action'!$B$6:$DK$1113,113,FALSE) -> 0 | FA39: =VLOOKUP($BS39,'État & Plan d''action'!$B$6:$DK$1113,114,FALSE) -> 0 | FB39: 0 | FC39: 0 | FD39: 0 | FE39: 0 | FF39: 0 | FG39: 0 | FH39: 0 | FI39: 0 | FJ39: 0 | FK39: 0 | FL39: 0 | FM39: 10 | FN39: 1 | FO39: 0 | FP39: 0 | FQ39: =IFERROR(SUM(VLOOKUP($BS39,'État & Plan d''action'!$B$6:$DB$1113,16,FALSE),VLOOKUP($BS39,'État & Plan d''action'!$B$6:$DB$1113,26,FALSE),VLOOKUP($BS39,'État & Plan d''action'!$B$6:$DB$1113,36,FALSE),VLOOKUP($BS39,'État & Plan d''action'!$B$6:$DB$1113,46,FALSE),VLOOKUP($BS39,'État & Plan d''action'!$B$6:$DB$1113,56,FALSE),VLOOKUP($BS39,'État & Plan d''action'!$B$6:$DB$1113,66,FALSE),VLOOKUP($BS39,'État & Plan d''action'!$B$6:$DB$1113,76,FALSE),VLOOKUP($BS39,'État & Plan d''action'!$B$6:$DB$1113,86,FALSE),VLOOKUP($BS39,'État & Plan d''action'!$B$6:$DB$1113,96,FALSE)),"") -> 0 | FR39: =IFERROR(SUM(VLOOKUP($BS39,'État & Plan d''action'!$B$6:$DB$1113,18,FALSE),VLOOKUP($BS39,'État & Plan d''action'!$B$6:$DB$1113,28,FALSE),VLOOKUP($BS39,'État & Plan d''action'!$B$6:$DB$1113,38,FALSE),VLOOKUP($BS39,'État & Plan d''action'!$B$6:$DB$1113,48,FALSE),VLOOKUP($BS39,'État & Plan d''action'!$B$6:$DB$1113,58,FALSE),VLOOKUP($BS39,'État & Plan d''action'!$B$6:$DB$1113,68,FALSE),VLOOKUP($BS39,'État & Plan d''action'!$B$6:$DB$1113,78,FALSE),VLOOKUP($BS39,'État & Plan d''action'!$B$6:$DB$1113,88,FALSE),VLOOKUP($BS39,'État & Plan d''action'!$B$6:$DB$1113,98,FALSE)),"") -> 0 | FS39: =IFERROR(SUM(VLOOKUP($BS39,'État & Plan d''action'!$B$6:$DB$1113,20,FALSE),VLOOKUP($BS39,'État & Plan d''action'!$B$6:$DB$1113,30,FALSE),VLOOKUP($BS39,'État & Plan d''action'!$B$6:$DB$1113,40,FALSE),VLOOKUP($BS39,'État & Plan d''action'!$B$6:$DB$1113,50,FALSE),VLOOKUP($BS39,'État & Plan d''action'!$B$6:$DB$1113,60,FALSE),VLOOKUP($BS39,'État & Plan d''action'!$B$6:$DB$1113,70,FALSE),VLOOKUP($BS39,'État & Plan d''action'!$B$6:$DB$1113,80,FALSE),VLOOKUP($BS39,'État & Plan d''action'!$B$6:$DB$1113,90,FALSE),VLOOKUP($BS39,'État & Plan d''action'!$B$6:$DB$1113,100,FALSE)),"") -> 0 | FT39: =IFERROR(SUM(VLOOKUP($BS39,'État & Plan d''action'!$B$6:$DB$1113,22,FALSE),VLOOKUP($BS39,'État & Plan d''action'!$B$6:$DB$1113,32,FALSE),VLOOKUP($BS39,'État & Plan d''action'!$B$6:$DB$1113,42,FALSE),VLOOKUP($BS39,'État & Plan d''action'!$B$6:$DB$1113,52,FALSE),VLOOKUP($BS39,'État & Plan d''action'!$B$6:$DB$1113,62,FALSE),VLOOKUP($BS39,'État & Plan d''action'!$B$6:$DB$1113,72,FALSE),VLOOKUP($BS39,'État & Plan d''action'!$B$6:$DB$1113,82,FALSE),VLOOKUP($BS39,'État & Plan d''action'!$B$6:$DB$1113,92,FALSE),VLOOKUP($BS39,'État & Plan d''action'!$B$6:$DB$1113,102,FALSE)),"") -> 0 | FU39: =IFERROR(SUM(VLOOKUP($BS39,'État & Plan d''action'!$B$6:$DB$1113,24,FALSE),VLOOKUP($BS39,'État & Plan d''action'!$B$6:$DB$1113,34,FALSE),VLOOKUP($BS39,'État & Plan d''action'!$B$6:$DB$1113,44,FALSE),VLOOKUP($BS39,'État & Plan d''action'!$B$6:$DB$1113,54,FALSE),VLOOKUP($BS39,'État & Plan d''action'!$B$6:$DB$1113,64,FALSE),VLOOKUP($BS39,'État & Plan d''action'!$B$6:$DB$1113,74,FALSE),VLOOKUP($BS39,'État & Plan d''action'!$B$6:$DB$1113,84,FALSE),VLOOKUP($BS39,'État & Plan d''action'!$B$6:$DB$1113,94,FALSE),VLOOKUP($BS39,'État & Plan d''action'!$B$6:$DB$1113,104,FALSE)),"") -> 0 | FV39: 58.72972973 | FW39: 58 | FX39: 59 | FZ39: 380
W40: dummy 1 | X40: 0 | Y40: 0 | Z40: 0 | AA40: 0 | BQ40: 0 | BR40: 0 | BS40: 78050 | BT40: BARKMERE | BU40: 15 | BV40: oui | BW40: oui | BX40: oui | BY40: oui | BZ40: oui | CA40: oui | CB40: oui | CC40: oui | CD40: oui | CE40: oui | CF40: oui | CG40: non | CH40: non | CI40: non | CJ40: non | CK40: non | CL40: non | CM40: non | CN40: non | CO40: non | CP40: non | CQ40: =IF(VLOOKUP(BS40,'Données par municipalité'!$B$6:$E$1113,4,FALSE)="","non","oui") -> non | DB40: =IF(VLOOKUP(BS40,'Données par municipalité'!$B$6:$F$1113,4,FALSE)="","",VLOOKUP(BS40,'Données par municipalité'!$B$6:$F$1113,4,FALSE)) ->  | DC40: Non disponible | DM40: =IFERROR(SUM(VLOOKUP($BS40,'État & Plan d''action'!$B$6:$DB$1113,18,FALSE),VLOOKUP($BS40,'État & Plan d''action'!$B$6:$DB$1113,20,FALSE),VLOOKUP($BS40,'État & Plan d''action'!$B$6:$DB$1113,28,FALSE),VLOOKUP($BS40,'État & Plan d''action'!$B$6:$DB$1113,30,FALSE),VLOOKUP($BS40,'État & Plan d''action'!$B$6:$DB$1113,38,FALSE),VLOOKUP($BS40,'État & Plan d''action'!$B$6:$DB$1113,40,FALSE),VLOOKUP($BS40,'État & Plan d''action'!$B$6:$DB$1113,48,FALSE),VLOOKUP($BS40,'État & Plan d''action'!$B$6:$DB$1113,50,FALSE),VLOOKUP($BS40,'État & Plan d''action'!$B$6:$DB$1113,58,FALSE),VLOOKUP($BS40,'État & Plan d''action'!$B$6:$DB$1113,60,FALSE),VLOOKUP($BS40,'État & Plan d''action'!$B$6:$DB$1113,68,FALSE),VLOOKUP($BS40,'État & Plan d''action'!$B$6:$DB$1113,70,FALSE),VLOOKUP($BS40,'État & Plan d''action'!$B$6:$DB$1113,78,FALSE),VLOOKUP($BS40,'État & Plan d''action'!$B$6:$DB$1113,80,FALSE),VLOOKUP($BS40,'État & Plan d''action'!$B$6:$DB$1113,88,FALSE),VLOOKUP($BS40,'État & Plan d''action'!$B$6:$DB$1113,90,FALSE),VLOOKUP($BS40,'État & Plan d''action'!$B$6:$DB$1113,98,FALSE),VLOOKUP($BS40,'État & Plan d''action'!$B$6:$DB$1113,100,FALSE))/(VLOOKUP($BS40,'Données par municipalité'!$B$4:$N$1113,13,FALSE)),"") ->  | DN40: =IFERROR(SUM(VLOOKUP($BS40,'État & Plan d''action'!$B$6:$DB$1113,19,FALSE),VLOOKUP($BS40,'État & Plan d''action'!$B$6:$DB$1113,21,FALSE),VLOOKUP($BS40,'État & Plan d''action'!$B$6:$DB$1113,29,FALSE),VLOOKUP($BS40,'État & Plan d''action'!$B$6:$DB$1113,31,FALSE),VLOOKUP($BS40,'État & Plan d''action'!$B$6:$DB$1113,39,FALSE),VLOOKUP($BS40,'État & Plan d''action'!$B$6:$DB$1113,41,FALSE),VLOOKUP($BS40,'État & Plan d''action'!$B$6:$DB$1113,49,FALSE),VLOOKUP($BS40,'État & Plan d''action'!$B$6:$DB$1113,51,FALSE),VLOOKUP($BS40,'État & Plan d''action'!$B$6:$DB$1113,59,FALSE),VLOOKUP($BS40,'État & Plan d''action'!$B$6:$DB$1113,61,FALSE),VLOOKUP($BS40,'État & Plan d''action'!$B$6:$DB$1113,69,FALSE),VLOOKUP($BS40,'État & Plan d''action'!$B$6:$DB$1113,71,FALSE),VLOOKUP($BS40,'État & Plan d''action'!$B$6:$DB$1113,79,FALSE),VLOOKUP($BS40,'État & Plan d''action'!$B$6:$DB$1113,81,FALSE),VLOOKUP($BS40,'État & Plan d''action'!$B$6:$DB$1113,89,FALSE),VLOOKUP($BS40,'État & Plan d''action'!$B$6:$DB$1113,91,FALSE),VLOOKUP($BS40,'État & Plan d''action'!$B$6:$DB$1113,99,FALSE),VLOOKUP($BS40,'État & Plan d''action'!$B$6:$DB$1113,101,FALSE))/(VLOOKUP($BS40,'Données par municipalité'!$B$4:$N$1113,13,FALSE)),"") ->  | DO40: Non disponible | DR40: 0 | DS40: 0 | EE40: =IF(VLOOKUP($BS40,'État & Plan d''action'!$B$6:$DM$1113,108,FALSE)="","",VLOOKUP($BS40,'État & Plan d''action'!$B$6:$DM$1113,108,FALSE)) ->  | EF40: =IF(VLOOKUP($BS40,'État & Plan d''action'!$B$6:$DM$1113,109,FALSE)="","",VLOOKUP($BS40,'État & Plan d''action'!$B$6:$DM$1113,109,FALSE)) ->  | EG40: =IF(VLOOKUP($BS40,'État & Plan d''action'!$B$6:$DM$1113,110,FALSE)="","",VLOOKUP($BS40,'État & Plan d''action'!$B$6:$DM$1113,110,FALSE)) ->  | EJ40: 0 | EK40: =VLOOKUP($BS40,'Données par municipalité'!$B$6:$F$1113,5,FALSE) -> 0 | EO40: =IF(VLOOKUP(BS40,'Données par municipalité'!$B$6:$U$1113,7,FALSE)="","",VLOOKUP(BS40,'Données par municipalité'!$B$6:$U$1113,7,FALSE)) ->  | EV40: 0 | EW40: 0 | EX40: 0 | EY40: =VLOOKUP($BS40,'État & Plan d''action'!$B$6:$DK$1113,112,FALSE) -> 0 | EZ40: =VLOOKUP($BS40,'État & Plan d''action'!$B$6:$DK$1113,113,FALSE) -> 0 | FA40: =VLOOKUP($BS40,'État & Plan d''action'!$B$6:$DK$1113,114,FALSE) -> 0 | FL40: 0 | FM40: 0 | FN40: 0 | FO40: 0 | FP40: 0 | FQ40: =IFERROR(SUM(VLOOKUP($BS40,'État & Plan d''action'!$B$6:$DB$1113,16,FALSE),VLOOKUP($BS40,'État & Plan d''action'!$B$6:$DB$1113,26,FALSE),VLOOKUP($BS40,'État & Plan d''action'!$B$6:$DB$1113,36,FALSE),VLOOKUP($BS40,'État & Plan d''action'!$B$6:$DB$1113,46,FALSE),VLOOKUP($BS40,'État & Plan d''action'!$B$6:$DB$1113,56,FALSE),VLOOKUP($BS40,'État & Plan d''action'!$B$6:$DB$1113,66,FALSE),VLOOKUP($BS40,'État & Plan d''action'!$B$6:$DB$1113,76,FALSE),VLOOKUP($BS40,'État & Plan d''action'!$B$6:$DB$1113,86,FALSE),VLOOKUP($BS40,'État & Plan d''action'!$B$6:$DB$1113,96,FALSE)),"") -> 0 | FR40: =IFERROR(SUM(VLOOKUP($BS40,'État & Plan d''action'!$B$6:$DB$1113,18,FALSE),VLOOKUP($BS40,'État & Plan d''action'!$B$6:$DB$1113,28,FALSE),VLOOKUP($BS40,'État & Plan d''action'!$B$6:$DB$1113,38,FALSE),VLOOKUP($BS40,'État & Plan d''action'!$B$6:$DB$1113,48,FALSE),VLOOKUP($BS40,'État & Plan d''action'!$B$6:$DB$1113,58,FALSE),VLOOKUP($BS40,'État & Plan d''action'!$B$6:$DB$1113,68,FALSE),VLOOKUP($BS40,'État & Plan d''action'!$B$6:$DB$1113,78,FALSE),VLOOKUP($BS40,'État & Plan d''action'!$B$6:$DB$1113,88,FALSE),VLOOKUP($BS40,'État & Plan d''action'!$B$6:$DB$1113,98,FALSE)),"") -> 0 | FS40: =IFERROR(SUM(VLOOKUP($BS40,'État & Plan d''action'!$B$6:$DB$1113,20,FALSE),VLOOKUP($BS40,'État & Plan d''action'!$B$6:$DB$1113,30,FALSE),VLOOKUP($BS40,'État & Plan d''action'!$B$6:$DB$1113,40,FALSE),VLOOKUP($BS40,'État & Plan d''action'!$B$6:$DB$1113,50,FALSE),VLOOKUP($BS40,'État & Plan d''action'!$B$6:$DB$1113,60,FALSE),VLOOKUP($BS40,'État & Plan d''action'!$B$6:$DB$1113,70,FALSE),VLOOKUP($BS40,'État & Plan d''action'!$B$6:$DB$1113,80,FALSE),VLOOKUP($BS40,'État & Plan d''action'!$B$6:$DB$1113,90,FALSE),VLOOKUP($BS40,'État & Plan d''action'!$B$6:$DB$1113,100,FALSE)),"") -> 0 | FT40: =IFERROR(SUM(VLOOKUP($BS40,'État & Plan d''action'!$B$6:$DB$1113,22,FALSE),VLOOKUP($BS40,'État & Plan d''action'!$B$6:$DB$1113,32,FALSE),VLOOKUP($BS40,'État & Plan d''action'!$B$6:$DB$1113,42,FALSE),VLOOKUP($BS40,'État & Plan d''action'!$B$6:$DB$1113,52,FALSE),VLOOKUP($BS40,'État & Plan d''action'!$B$6:$DB$1113,62,FALSE),VLOOKUP($BS40,'État & Plan d''action'!$B$6:$DB$1113,72,FALSE),VLOOKUP($BS40,'État & Plan d''action'!$B$6:$DB$1113,82,FALSE),VLOOKUP($BS40,'État & Plan d''action'!$B$6:$DB$1113,92,FALSE),VLOOKUP($BS40,'État & Plan d''action'!$B$6:$DB$1113,102,FALSE)),"") -> 0 | FU40: =IFERROR(SUM(VLOOKUP($BS40,'État & Plan d''action'!$B$6:$DB$1113,24,FALSE),VLOOKUP($BS40,'État & Plan d''action'!$B$6:$DB$1113,34,FALSE),VLOOKUP($BS40,'État & Plan d''action'!$B$6:$DB$1113,44,FALSE),VLOOKUP($BS40,'État & Plan d''action'!$B$6:$DB$1113,54,FALSE),VLOOKUP($BS40,'État & Plan d''action'!$B$6:$DB$1113,64,FALSE),VLOOKUP($BS40,'État & Plan d''action'!$B$6:$DB$1113,74,FALSE),VLOOKUP($BS40,'État & Plan d''action'!$B$6:$DB$1113,84,FALSE),VLOOKUP($BS40,'État & Plan d''action'!$B$6:$DB$1113,94,FALSE),VLOOKUP($BS40,'État & Plan d''action'!$B$6:$DB$1113,104,FALSE)),"") -> 0 | FZ40: 59
W41: dummy 2 | X41: 0 | Y41: 0 | Z41: 0 | AA41: 0 | BQ41: 0 | BR41: 0 | BS41: 44045 | BT41: BARNSTON-OUEST | BU41: 5 | BV41: oui | BW41: oui | BX41: oui | BY41: oui | BZ41: oui | CA41: oui | CB41: oui | CC41: oui | CD41: oui | CE41: oui | CF41: oui | CG41: non | CH41: non | CI41: non | CJ41: non | CK41: non | CL41: non | CM41: non | CN41: non | CO41: non | CP41: non | CQ41: =IF(VLOOKUP(BS41,'Données par municipalité'!$B$6:$E$1113,4,FALSE)="","non","oui") -> non | DB41: =IF(VLOOKUP(BS41,'Données par municipalité'!$B$6:$F$1113,4,FALSE)="","",VLOOKUP(BS41,'Données par municipalité'!$B$6:$F$1113,4,FALSE)) ->  | DC41: Non disponible | DM41: =IFERROR(SUM(VLOOKUP($BS41,'État & Plan d''action'!$B$6:$DB$1113,18,FALSE),VLOOKUP($BS41,'État & Plan d''action'!$B$6:$DB$1113,20,FALSE),VLOOKUP($BS41,'État & Plan d''action'!$B$6:$DB$1113,28,FALSE),VLOOKUP($BS41,'État & Plan d''action'!$B$6:$DB$1113,30,FALSE),VLOOKUP($BS41,'État & Plan d''action'!$B$6:$DB$1113,38,FALSE),VLOOKUP($BS41,'État & Plan d''action'!$B$6:$DB$1113,40,FALSE),VLOOKUP($BS41,'État & Plan d''action'!$B$6:$DB$1113,48,FALSE),VLOOKUP($BS41,'État & Plan d''action'!$B$6:$DB$1113,50,FALSE),VLOOKUP($BS41,'État & Plan d''action'!$B$6:$DB$1113,58,FALSE),VLOOKUP($BS41,'État & Plan d''action'!$B$6:$DB$1113,60,FALSE),VLOOKUP($BS41,'État & Plan d''action'!$B$6:$DB$1113,68,FALSE),VLOOKUP($BS41,'État & Plan d''action'!$B$6:$DB$1113,70,FALSE),VLOOKUP($BS41,'État & Plan d''action'!$B$6:$DB$1113,78,FALSE),VLOOKUP($BS41,'État & Plan d''action'!$B$6:$DB$1113,80,FALSE),VLOOKUP($BS41,'État & Plan d''action'!$B$6:$DB$1113,88,FALSE),VLOOKUP($BS41,'État & Plan d''action'!$B$6:$DB$1113,90,FALSE),VLOOKUP($BS41,'État & Plan d''action'!$B$6:$DB$1113,98,FALSE),VLOOKUP($BS41,'État & Plan d''action'!$B$6:$DB$1113,100,FALSE))/(VLOOKUP($BS41,'Données par municipalité'!$B$4:$N$1113,13,FALSE)),"") ->  | DN41: =IFERROR(SUM(VLOOKUP($BS41,'État & Plan d''action'!$B$6:$DB$1113,19,FALSE),VLOOKUP($BS41,'État & Plan d''action'!$B$6:$DB$1113,21,FALSE),VLOOKUP($BS41,'État & Plan d''action'!$B$6:$DB$1113,29,FALSE),VLOOKUP($BS41,'État & Plan d''action'!$B$6:$DB$1113,31,FALSE),VLOOKUP($BS41,'État & Plan d''action'!$B$6:$DB$1113,39,FALSE),VLOOKUP($BS41,'État & Plan d''action'!$B$6:$DB$1113,41,FALSE),VLOOKUP($BS41,'État & Plan d''action'!$B$6:$DB$1113,49,FALSE),VLOOKUP($BS41,'État & Plan d''action'!$B$6:$DB$1113,51,FALSE),VLOOKUP($BS41,'État & Plan d''action'!$B$6:$DB$1113,59,FALSE),VLOOKUP($BS41,'État & Plan d''action'!$B$6:$DB$1113,61,FALSE),VLOOKUP($BS41,'État & Plan d''action'!$B$6:$DB$1113,69,FALSE),VLOOKUP($BS41,'État & Plan d''action'!$B$6:$DB$1113,71,FALSE),VLOOKUP($BS41,'État & Plan d''action'!$B$6:$DB$1113,79,FALSE),VLOOKUP($BS41,'État & Plan d''action'!$B$6:$DB$1113,81,FALSE),VLOOKUP($BS41,'État & Plan d''action'!$B$6:$DB$1113,89,FALSE),VLOOKUP($BS41,'État & Plan d''action'!$B$6:$DB$1113,91,FALSE),VLOOKUP($BS41,'État & Plan d''action'!$B$6:$DB$1113,99,FALSE),VLOOKUP($BS41,'État & Plan d''action'!$B$6:$DB$1113,101,FALSE))/(VLOOKUP($BS41,'Données par municipalité'!$B$4:$N$1113,13,FALSE)),"") ->  | DO41: Non disponible | DR41: 0 | DS41: 0 | EE41: =IF(VLOOKUP($BS41,'État & Plan d''action'!$B$6:$DM$1113,108,FALSE)="","",VLOOKUP($BS41,'État & Plan d''action'!$B$6:$DM$1113,108,FALSE)) ->  | EF41: =IF(VLOOKUP($BS41,'État & Plan d''action'!$B$6:$DM$1113,109,FALSE)="","",VLOOKUP($BS41,'État & Plan d''action'!$B$6:$DM$1113,109,FALSE)) ->  | EG41: =IF(VLOOKUP($BS41,'État & Plan d''action'!$B$6:$DM$1113,110,FALSE)="","",VLOOKUP($BS41,'État & Plan d''action'!$B$6:$DM$1113,110,FALSE)) ->  | EJ41: 0 | EK41: =VLOOKUP($BS41,'Données par municipalité'!$B$6:$F$1113,5,FALSE) -> 0 | EO41: =IF(VLOOKUP(BS41,'Données par municipalité'!$B$6:$U$1113,7,FALSE)="","",VLOOKUP(BS41,'Données par municipalité'!$B$6:$U$1113,7,FALSE)) ->  | EV41: 0 | EW41: 0 | EX41: 0 | EY41: =VLOOKUP($BS41,'État & Plan d''action'!$B$6:$DK$1113,112,FALSE) -> 0 | EZ41: =VLOOKUP($BS41,'État & Plan d''action'!$B$6:$DK$1113,113,FALSE) -> 0 | FA41: =VLOOKUP($BS41,'État & Plan d''action'!$B$6:$DK$1113,114,FALSE) -> 0 | FL41: 0 | FM41: 0 | FN41: 0 | FO41: 0 | FP41: 0 | FQ41: =IFERROR(SUM(VLOOKUP($BS41,'État & Plan d''action'!$B$6:$DB$1113,16,FALSE),VLOOKUP($BS41,'État & Plan d''action'!$B$6:$DB$1113,26,FALSE),VLOOKUP($BS41,'État & Plan d''action'!$B$6:$DB$1113,36,FALSE),VLOOKUP($BS41,'État & Plan d''action'!$B$6:$DB$1113,46,FALSE),VLOOKUP($BS41,'État & Plan d''action'!$B$6:$DB$1113,56,FALSE),VLOOKUP($BS41,'État & Plan d''action'!$B$6:$DB$1113,66,FALSE),VLOOKUP($BS41,'État & Plan d''action'!$B$6:$DB$1113,76,FALSE),VLOOKUP($BS41,'État & Plan d''action'!$B$6:$DB$1113,86,FALSE),VLOOKUP($BS41,'État & Plan d''action'!$B$6:$DB$1113,96,FALSE)),"") -> 0 | FR41: =IFERROR(SUM(VLOOKUP($BS41,'État & Plan d''action'!$B$6:$DB$1113,18,FALSE),VLOOKUP($BS41,'État & Plan d''action'!$B$6:$DB$1113,28,FALSE),VLOOKUP($BS41,'État & Plan d''action'!$B$6:$DB$1113,38,FALSE),VLOOKUP($BS41,'État & Plan d''action'!$B$6:$DB$1113,48,FALSE),VLOOKUP($BS41,'État & Plan d''action'!$B$6:$DB$1113,58,FALSE),VLOOKUP($BS41,'État & Plan d''action'!$B$6:$DB$1113,68,FALSE),VLOOKUP($BS41,'État & Plan d''action'!$B$6:$DB$1113,78,FALSE),VLOOKUP($BS41,'État & Plan d''action'!$B$6:$DB$1113,88,FALSE),VLOOKUP($BS41,'État & Plan d''action'!$B$6:$DB$1113,98,FALSE)),"") -> 0 | FS41: =IFERROR(SUM(VLOOKUP($BS41,'État & Plan d''action'!$B$6:$DB$1113,20,FALSE),VLOOKUP($BS41,'État & Plan d''action'!$B$6:$DB$1113,30,FALSE),VLOOKUP($BS41,'État & Plan d''action'!$B$6:$DB$1113,40,FALSE),VLOOKUP($BS41,'État & Plan d''action'!$B$6:$DB$1113,50,FALSE),VLOOKUP($BS41,'État & Plan d''action'!$B$6:$DB$1113,60,FALSE),VLOOKUP($BS41,'État & Plan d''action'!$B$6:$DB$1113,70,FALSE),VLOOKUP($BS41,'État & Plan d''action'!$B$6:$DB$1113,80,FALSE),VLOOKUP($BS41,'État & Plan d''action'!$B$6:$DB$1113,90,FALSE),VLOOKUP($BS41,'État & Plan d''action'!$B$6:$DB$1113,100,FALSE)),"") -> 0 | FT41: =IFERROR(SUM(VLOOKUP($BS41,'État & Plan d''action'!$B$6:$DB$1113,22,FALSE),VLOOKUP($BS41,'État & Plan d''action'!$B$6:$DB$1113,32,FALSE),VLOOKUP($BS41,'État & Plan d''action'!$B$6:$DB$1113,42,FALSE),VLOOKUP($BS41,'État & Plan d''action'!$B$6:$DB$1113,52,FALSE),VLOOKUP($BS41,'État & Plan d''action'!$B$6:$DB$1113,62,FALSE),VLOOKUP($BS41,'État & Plan d''action'!$B$6:$DB$1113,72,FALSE),VLOOKUP($BS41,'État & Plan d''action'!$B$6:$DB$1113,82,FALSE),VLOOKUP($BS41,'État & Plan d''action'!$B$6:$DB$1113,92,FALSE),VLOOKUP($BS41,'État & Plan d''action'!$B$6:$DB$1113,102,FALSE)),"") -> 0 | FU41: =IFERROR(SUM(VLOOKUP($BS41,'État & Plan d''action'!$B$6:$DB$1113,24,FALSE),VLOOKUP($BS41,'État & Plan d''action'!$B$6:$DB$1113,34,FALSE),VLOOKUP($BS41,'État & Plan d''action'!$B$6:$DB$1113,44,FALSE),VLOOKUP($BS41,'État & Plan d''action'!$B$6:$DB$1113,54,FALSE),VLOOKUP($BS41,'État & Plan d''action'!$B$6:$DB$1113,64,FALSE),VLOOKUP($BS41,'État & Plan d''action'!$B$6:$DB$1113,74,FALSE),VLOOKUP($BS41,'État & Plan d''action'!$B$6:$DB$1113,84,FALSE),VLOOKUP($BS41,'État & Plan d''action'!$B$6:$DB$1113,94,FALSE),VLOOKUP($BS41,'État & Plan d''action'!$B$6:$DB$1113,104,FALSE)),"") -> 0 | FZ41: 570
X42: =IF(X39=0,"ND",TEXT(X39,"# ##0")&IF(X39>1," fuites"," fuite")) -> ND fuites | Y42: =IF(Y39=0,"ND",TEXT(Y39,"# ##0")&IF(Y39>1," fuites"," fuite")) -> ND fuites | Z42: ND fuites | AA42: 8 581 fuites | BQ42: 1 | BR42: 1 | BS42: 88022 | BT42: BARRAUTE | BU42: 8 | BV42: non | BW42: non | BX42: non | BY42: non | BZ42: non | CA42: non | CB42: non | CC42: non | CD42: non | CE42: non | CF42: non | CG42: oui | CH42: oui | CI42: oui | CJ42: oui | CK42: oui | CL42: oui | CM42: oui | CN42: oui | CO42: non | CP42: non | CQ42: =IF(VLOOKUP(BS42,'Données par municipalité'!$B$6:$E$1113,4,FALSE)="","non","oui") -> oui | CR42: 267.0096512 | CS42: 339.087999 | CT42: 324.4582491 | CU42: 287.3105524 | CV42: 336.2958323 | CW42: 341.1102352 | CX42: 362.6599286 | CY42: 342 | DB42: =IF(VLOOKUP(BS42,'Données par municipalité'!$B$6:$F$1113,4,FALSE)="","",VLOOKUP(BS42,'Données par municipalité'!$B$6:$F$1113,4,FALSE)) -> 379 | DC42: Non disponible | DD42: 0.8 | DE42: 0.2 | DF42: 0.2 | DG42: 0.2 | DH42: 0.1 | DI42: 0.1 | DJ42: 1 | DM42: =IFERROR(SUM(VLOOKUP($BS42,'État & Plan d''action'!$B$6:$DB$1113,18,FALSE),VLOOKUP($BS42,'État & Plan d''action'!$B$6:$DB$1113,20,FALSE),VLOOKUP($BS42,'État & Plan d''action'!$B$6:$DB$1113,28,FALSE),VLOOKUP($BS42,'État & Plan d''action'!$B$6:$DB$1113,30,FALSE),VLOOKUP($BS42,'État & Plan d''action'!$B$6:$DB$1113,38,FALSE),VLOOKUP($BS42,'État & Plan d''action'!$B$6:$DB$1113,40,FALSE),VLOOKUP($BS42,'État & Plan d''action'!$B$6:$DB$1113,48,FALSE),VLOOKUP($BS42,'État & Plan d''action'!$B$6:$DB$1113,50,FALSE),VLOOKUP($BS42,'État & Plan d''action'!$B$6:$DB$1113,58,FALSE),VLOOKUP($BS42,'État & Plan d''action'!$B$6:$DB$1113,60,FALSE),VLOOKUP($BS42,'État & Plan d''action'!$B$6:$DB$1113,68,FALSE),VLOOKUP($BS42,'État & Plan d''action'!$B$6:$DB$1113,70,FALSE),VLOOKUP($BS42,'État & Plan d''action'!$B$6:$DB$1113,78,FALSE),VLOOKUP($BS42,'État & Plan d''action'!$B$6:$DB$1113,80,FALSE),VLOOKUP($BS42,'État & Plan d''action'!$B$6:$DB$1113,88,FALSE),VLOOKUP($BS42,'État & Plan d''action'!$B$6:$DB$1113,90,FALSE),VLOOKUP($BS42,'État & Plan d''action'!$B$6:$DB$1113,98,FALSE),VLOOKUP($BS42,'État & Plan d''action'!$B$6:$DB$1113,100,FALSE))/(VLOOKUP($BS42,'Données par municipalité'!$B$4:$N$1113,13,FALSE)),"") -> 0 | DN42: =IFERROR(SUM(VLOOKUP($BS42,'État & Plan d''action'!$B$6:$DB$1113,19,FALSE),VLOOKUP($BS42,'État & Plan d''action'!$B$6:$DB$1113,21,FALSE),VLOOKUP($BS42,'État & Plan d''action'!$B$6:$DB$1113,29,FALSE),VLOOKUP($BS42,'État & Plan d''action'!$B$6:$DB$1113,31,FALSE),VLOOKUP($BS42,'État & Plan d''action'!$B$6:$DB$1113,39,FALSE),VLOOKUP($BS42,'État & Plan d''action'!$B$6:$DB$1113,41,FALSE),VLOOKUP($BS42,'État & Plan d''action'!$B$6:$DB$1113,49,FALSE),VLOOKUP($BS42,'État & Plan d''action'!$B$6:$DB$1113,51,FALSE),VLOOKUP($BS42,'État & Plan d''action'!$B$6:$DB$1113,59,FALSE),VLOOKUP($BS42,'État & Plan d''action'!$B$6:$DB$1113,61,FALSE),VLOOKUP($BS42,'État & Plan d''action'!$B$6:$DB$1113,69,FALSE),VLOOKUP($BS42,'État & Plan d''action'!$B$6:$DB$1113,71,FALSE),VLOOKUP($BS42,'État & Plan d''action'!$B$6:$DB$1113,79,FALSE),VLOOKUP($BS42,'État & Plan d''action'!$B$6:$DB$1113,81,FALSE),VLOOKUP($BS42,'État & Plan d''action'!$B$6:$DB$1113,89,FALSE),VLOOKUP($BS42,'État & Plan d''action'!$B$6:$DB$1113,91,FALSE),VLOOKUP($BS42,'État & Plan d''action'!$B$6:$DB$1113,99,FALSE),VLOOKUP($BS42,'État & Plan d''action'!$B$6:$DB$1113,101,FALSE))/(VLOOKUP($BS42,'Données par municipalité'!$B$4:$N$1113,13,FALSE)),"") -> 0 | DO42: Non disponible | DR42: 0 | DS42: 0 | DT42: 2 | DU42: 1 | DV42: 1 | DW42: 0 | DX42: 3 | EE42: =IF(VLOOKUP($BS42,'État & Plan d''action'!$B$6:$DM$1113,108,FALSE)="","",VLOOKUP($BS42,'État & Plan d''action'!$B$6:$DM$1113,108,FALSE)) -> 0 | EF42: =IF(VLOOKUP($BS42,'État & Plan d''action'!$B$6:$DM$1113,109,FALSE)="","",VLOOKUP($BS42,'État & Plan d''action'!$B$6:$DM$1113,109,FALSE)) -> 0 | EG42: =IF(VLOOKUP($BS42,'État & Plan d''action'!$B$6:$DM$1113,110,FALSE)="","",VLOOKUP($BS42,'État & Plan d''action'!$B$6:$DM$1113,110,FALSE)) -> 0 | EH42: 239 | EJ42: 0 | EK42: =VLOOKUP($BS42,'Données par municipalité'!$B$6:$F$1113,5,FALSE) -> 251 | EL42: 1.196445465 | EO42: =IF(VLOOKUP(BS42,'Données par municipalité'!$B$6:$U$1113,7,FALSE)="","",VLOOKUP(BS42,'Données par municipalité'!$B$6:$U$1113,7,FALSE)) -> 2.682741366 | EP42: 1 | EQ42: 0 | ER42: 1 | EV42: 0 | EW42: 0 | EX42: 0 | EY42: =VLOOKUP($BS42,'État & Plan d''action'!$B$6:$DK$1113,112,FALSE) -> S.O. | EZ42: =VLOOKUP($BS42,'État & Plan d''action'!$B$6:$DK$1113,113,FALSE) ->  | FA42: =VLOOKUP($BS42,'État & Plan d''action'!$B$6:$DK$1113,114,FALSE) ->  | FB42: 15.724 | FC42: 15.724 | FD42: 0 | FE42: 0 | FF42: 0 | FG42: 15.724 | FH42: 15.724 | FI42: 0 | FJ42: 0 | FK42: 0 | FL42: 0 | FM42: 0 | FN42: 0 | FO42: 0 | FP42: 0 | FQ42: =IFERROR(SUM(VLOOKUP($BS42,'État & Plan d''action'!$B$6:$DB$1113,16,FALSE),VLOOKUP($BS42,'État & Plan d''action'!$B$6:$DB$1113,26,FALSE),VLOOKUP($BS42,'État & Plan d''action'!$B$6:$DB$1113,36,FALSE),VLOOKUP($BS42,'État & Plan d''action'!$B$6:$DB$1113,46,FALSE),VLOOKUP($BS42,'État & Plan d''action'!$B$6:$DB$1113,56,FALSE),VLOOKUP($BS42,'État & Plan d''action'!$B$6:$DB$1113,66,FALSE),VLOOKUP($BS42,'État & Plan d''action'!$B$6:$DB$1113,76,FALSE),VLOOKUP($BS42,'État & Plan d''action'!$B$6:$DB$1113,86,FALSE),VLOOKUP($BS42,'État & Plan d''action'!$B$6:$DB$1113,96,FALSE)),"") -> 0 | FR42: =IFERROR(SUM(VLOOKUP($BS42,'État & Plan d''action'!$B$6:$DB$1113,18,FALSE),VLOOKUP($BS42,'État & Plan d''action'!$B$6:$DB$1113,28,FALSE),VLOOKUP($BS42,'État & Plan d''action'!$B$6:$DB$1113,38,FALSE),VLOOKUP($BS42,'État & Plan d''action'!$B$6:$DB$1113,48,FALSE),VLOOKUP($BS42,'État & Plan d''action'!$B$6:$DB$1113,58,FALSE),VLOOKUP($BS42,'État & Plan d''action'!$B$6:$DB$1113,68,FALSE),VLOOKUP($BS42,'État & Plan d''action'!$B$6:$DB$1113,78,FALSE),VLOOKUP($BS42,'État & Plan d''action'!$B$6:$DB$1113,88,FALSE),VLOOKUP($BS42,'État & Plan d''action'!$B$6:$DB$1113,98,FALSE)),"") -> 0 | FS42: =IFERROR(SUM(VLOOKUP($BS42,'État & Plan d''action'!$B$6:$DB$1113,20,FALSE),VLOOKUP($BS42,'État & Plan d''action'!$B$6:$DB$1113,30,FALSE),VLOOKUP($BS42,'État & Plan d''action'!$B$6:$DB$1113,40,FALSE),VLOOKUP($BS42,'État & Plan d''action'!$B$6:$DB$1113,50,FALSE),VLOOKUP($BS42,'État & Plan d''action'!$B$6:$DB$1113,60,FALSE),VLOOKUP($BS42,'État & Plan d''action'!$B$6:$DB$1113,70,FALSE),VLOOKUP($BS42,'État & Plan d''action'!$B$6:$DB$1113,80,FALSE),VLOOKUP($BS42,'État & Plan d''action'!$B$6:$DB$1113,90,FALSE),VLOOKUP($BS42,'État & Plan d''action'!$B$6:$DB$1113,100,FALSE)),"") -> 0 | FT42: =IFERROR(SUM(VLOOKUP($BS42,'État & Plan d''action'!$B$6:$DB$1113,22,FALSE),VLOOKUP($BS42,'État & Plan d''action'!$B$6:$DB$1113,32,FALSE),VLOOKUP($BS42,'État & Plan d''action'!$B$6:$DB$1113,42,FALSE),VLOOKUP($BS42,'État & Plan d''action'!$B$6:$DB$1113,52,FALSE),VLOOKUP($BS42,'État & Plan d''action'!$B$6:$DB$1113,62,FALSE),VLOOKUP($BS42,'État & Plan d''action'!$B$6:$DB$1113,72,FALSE),VLOOKUP($BS42,'État & Plan d''action'!$B$6:$DB$1113,82,FALSE),VLOOKUP($BS42,'État & Plan d''action'!$B$6:$DB$1113,92,FALSE),VLOOKUP($BS42,'État & Plan d''action'!$B$6:$DB$1113,102,FALSE)),"") -> 0 | FU42: =IFERROR(SUM(VLOOKUP($BS42,'État & Plan d''action'!$B$6:$DB$1113,24,FALSE),VLOOKUP($BS42,'État & Plan d''action'!$B$6:$DB$1113,34,FALSE),VLOOKUP($BS42,'État & Plan d''action'!$B$6:$DB$1113,44,FALSE),VLOOKUP($BS42,'État & Plan d''action'!$B$6:$DB$1113,54,FALSE),VLOOKUP($BS42,'État & Plan d''action'!$B$6:$DB$1113,64,FALSE),VLOOKUP($BS42,'État & Plan d''action'!$B$6:$DB$1113,74,FALSE),VLOOKUP($BS42,'État & Plan d''action'!$B$6:$DB$1113,84,FALSE),VLOOKUP($BS42,'État & Plan d''action'!$B$6:$DB$1113,94,FALSE),VLOOKUP($BS42,'État & Plan d''action'!$B$6:$DB$1113,104,FALSE)),"") -> 0 | FV42: 59.52222222 | FY42: 57.41860465 | FZ42: 2008
X43: =IF(X38=0,"ND",X38) -> ND | Y43: =IF(Y38=0,"ND",Y38) -> ND | Z43: ND | AA43: 0.8807061573 | BQ43: 1 | BR43: 1 | BS43: 37210 | BT43: BATISCAN | BU43: 4 | BV43: non | BW43: non | BX43: non | BY43: non | BZ43: non | CA43: non | CB43: non | CC43: non | CD43: non | CE43: non | CF43: non | CG43: oui | CH43: oui | CI43: oui | CJ43: oui | CK43: oui | CL43: non | CM43: oui | CN43: oui | CO43: non | CP43: non | CQ43: =IF(VLOOKUP(BS43,'Données par municipalité'!$B$6:$E$1113,4,FALSE)="","non","oui") -> non | CR43: 603.0435629 | CS43: 652.8668744 | CT43: 468.0277442 | CU43: 435.7914819 | CV43: 453.6860642 | CX43: 778.3411616 | CY43: 496 | DB43: =IF(VLOOKUP(BS43,'Données par municipalité'!$B$6:$F$1113,4,FALSE)="","",VLOOKUP(BS43,'Données par municipalité'!$B$6:$F$1113,4,FALSE)) ->  | DC43: Non disponible | DD43: 0 | DE43: 0 | DF43: 0 | DG43: 0 | DI43: 0 | DJ43: 0.3752345216 | DM43: =IFERROR(SUM(VLOOKUP($BS43,'État & Plan d''action'!$B$6:$DB$1113,18,FALSE),VLOOKUP($BS43,'État & Plan d''action'!$B$6:$DB$1113,20,FALSE),VLOOKUP($BS43,'État & Plan d''action'!$B$6:$DB$1113,28,FALSE),VLOOKUP($BS43,'État & Plan d''action'!$B$6:$DB$1113,30,FALSE),VLOOKUP($BS43,'État & Plan d''action'!$B$6:$DB$1113,38,FALSE),VLOOKUP($BS43,'État & Plan d''action'!$B$6:$DB$1113,40,FALSE),VLOOKUP($BS43,'État & Plan d''action'!$B$6:$DB$1113,48,FALSE),VLOOKUP($BS43,'État & Plan d''action'!$B$6:$DB$1113,50,FALSE),VLOOKUP($BS43,'État & Plan d''action'!$B$6:$DB$1113,58,FALSE),VLOOKUP($BS43,'État & Plan d''action'!$B$6:$DB$1113,60,FALSE),VLOOKUP($BS43,'État & Plan d''action'!$B$6:$DB$1113,68,FALSE),VLOOKUP($BS43,'État & Plan d''action'!$B$6:$DB$1113,70,FALSE),VLOOKUP($BS43,'État & Plan d''action'!$B$6:$DB$1113,78,FALSE),VLOOKUP($BS43,'État & Plan d''action'!$B$6:$DB$1113,80,FALSE),VLOOKUP($BS43,'État & Plan d''action'!$B$6:$DB$1113,88,FALSE),VLOOKUP($BS43,'État & Plan d''action'!$B$6:$DB$1113,90,FALSE),VLOOKUP($BS43,'État & Plan d''action'!$B$6:$DB$1113,98,FALSE),VLOOKUP($BS43,'État & Plan d''action'!$B$6:$DB$1113,100,FALSE))/(VLOOKUP($BS43,'Données par municipalité'!$B$4:$N$1113,13,FALSE)),"") ->  | DN43: =IFERROR(SUM(VLOOKUP($BS43,'État & Plan d''action'!$B$6:$DB$1113,19,FALSE),VLOOKUP($BS43,'État & Plan d''action'!$B$6:$DB$1113,21,FALSE),VLOOKUP($BS43,'État & Plan d''action'!$B$6:$DB$1113,29,FALSE),VLOOKUP($BS43,'État & Plan d''action'!$B$6:$DB$1113,31,FALSE),VLOOKUP($BS43,'État & Plan d''action'!$B$6:$DB$1113,39,FALSE),VLOOKUP($BS43,'État & Plan d''action'!$B$6:$DB$1113,41,FALSE),VLOOKUP($BS43,'État & Plan d''action'!$B$6:$DB$1113,49,FALSE),VLOOKUP($BS43,'État & Plan d''action'!$B$6:$DB$1113,51,FALSE),VLOOKUP($BS43,'État & Plan d''action'!$B$6:$DB$1113,59,FALSE),VLOOKUP($BS43,'État & Plan d''action'!$B$6:$DB$1113,61,FALSE),VLOOKUP($BS43,'État & Plan d''action'!$B$6:$DB$1113,69,FALSE),VLOOKUP($BS43,'État & Plan d''action'!$B$6:$DB$1113,71,FALSE),VLOOKUP($BS43,'État & Plan d''action'!$B$6:$DB$1113,79,FALSE),VLOOKUP($BS43,'État & Plan d''action'!$B$6:$DB$1113,81,FALSE),VLOOKUP($BS43,'État & Plan d''action'!$B$6:$DB$1113,89,FALSE),VLOOKUP($BS43,'État & Plan d''action'!$B$6:$DB$1113,91,FALSE),VLOOKUP($BS43,'État & Plan d''action'!$B$6:$DB$1113,99,FALSE),VLOOKUP($BS43,'État & Plan d''action'!$B$6:$DB$1113,101,FALSE))/(VLOOKUP($BS43,'Données par municipalité'!$B$4:$N$1113,13,FALSE)),"") ->  | DO43: Non disponible | DP43: 3 | DQ43: 4 | DR43: 2 | DS43: 2 | DU43: 4 | DV43: 0 | DW43: 2 | DX43: 4 | EE43: =IF(VLOOKUP($BS43,'État & Plan d''action'!$B$6:$DM$1113,108,FALSE)="","",VLOOKUP($BS43,'État & Plan d''action'!$B$6:$DM$1113,108,FALSE)) ->  | EF43: =IF(VLOOKUP($BS43,'État & Plan d''action'!$B$6:$DM$1113,109,FALSE)="","",VLOOKUP($BS43,'État & Plan d''action'!$B$6:$DM$1113,109,FALSE)) ->  | EG43: =IF(VLOOKUP($BS43,'État & Plan d''action'!$B$6:$DM$1113,110,FALSE)="","",VLOOKUP($BS43,'État & Plan d''action'!$B$6:$DM$1113,110,FALSE)) ->  | EH43: 403 | EJ43: 0 | EK43: =VLOOKUP($BS43,'Données par municipalité'!$B$6:$F$1113,5,FALSE) -> 0 | EL43: 1.598020517 | EO43: =IF(VLOOKUP(BS43,'Données par municipalité'!$B$6:$U$1113,7,FALSE)="","",VLOOKUP(BS43,'Données par municipalité'!$B$6:$U$1113,7,FALSE)) ->  | EP43: 0 | EQ43: 3 | ER43: 3 | EV43: 0 | EW43: 0 | EX43: 0 | EY43: =VLOOKUP($BS43,'État & Plan d''action'!$B$6:$DK$1113,112,FALSE) -> 0 | EZ43: =VLOOKUP($BS43,'État & Plan d''action'!$B$6:$DK$1113,113,FALSE) -> 0 | FA43: =VLOOKUP($BS43,'État & Plan d''action'!$B$6:$DK$1113,114,FALSE) -> 0 | FB43: 0 | FC43: 0 | FD43: 10 | FE43: 0 | FF43: 3.5 | FG43: 0 | FH43: 0 | FI43: 10 | FJ43: 0 | FK43: 3.5 | FL43: 0 | FM43: 0 | FN43: 0 | FO43: 0 | FP43: 0 | FQ43: =IFERROR(SUM(VLOOKUP($BS43,'État & Plan d''action'!$B$6:$DB$1113,16,FALSE),VLOOKUP($BS43,'État & Plan d''action'!$B$6:$DB$1113,26,FALSE),VLOOKUP($BS43,'État & Plan d''action'!$B$6:$DB$1113,36,FALSE),VLOOKUP($BS43,'État & Plan d''action'!$B$6:$DB$1113,46,FALSE),VLOOKUP($BS43,'État & Plan d''action'!$B$6:$DB$1113,56,FALSE),VLOOKUP($BS43,'État & Plan d''action'!$B$6:$DB$1113,66,FALSE),VLOOKUP($BS43,'État & Plan d''action'!$B$6:$DB$1113,76,FALSE),VLOOKUP($BS43,'État & Plan d''action'!$B$6:$DB$1113,86,FALSE),VLOOKUP($BS43,'État & Plan d''action'!$B$6:$DB$1113,96,FALSE)),"") -> 0 | FR43: =IFERROR(SUM(VLOOKUP($BS43,'État & Plan d''action'!$B$6:$DB$1113,18,FALSE),VLOOKUP($BS43,'État & Plan d''action'!$B$6:$DB$1113,28,FALSE),VLOOKUP($BS43,'État & Plan d''action'!$B$6:$DB$1113,38,FALSE),VLOOKUP($BS43,'État & Plan d''action'!$B$6:$DB$1113,48,FALSE),VLOOKUP($BS43,'État & Plan d''action'!$B$6:$DB$1113,58,FALSE),VLOOKUP($BS43,'État & Plan d''action'!$B$6:$DB$1113,68,FALSE),VLOOKUP($BS43,'État & Plan d''action'!$B$6:$DB$1113,78,FALSE),VLOOKUP($BS43,'État & Plan d''action'!$B$6:$DB$1113,88,FALSE),VLOOKUP($BS43,'État & Plan d''action'!$B$6:$DB$1113,98,FALSE)),"") -> 0 | FS43: =IFERROR(SUM(VLOOKUP($BS43,'État & Plan d''action'!$B$6:$DB$1113,20,FALSE),VLOOKUP($BS43,'État & Plan d''action'!$B$6:$DB$1113,30,FALSE),VLOOKUP($BS43,'État & Plan d''action'!$B$6:$DB$1113,40,FALSE),VLOOKUP($BS43,'État & Plan d''action'!$B$6:$DB$1113,50,FALSE),VLOOKUP($BS43,'État & Plan d''action'!$B$6:$DB$1113,60,FALSE),VLOOKUP($BS43,'État & Plan d''action'!$B$6:$DB$1113,70,FALSE),VLOOKUP($BS43,'État & Plan d''action'!$B$6:$DB$1113,80,FALSE),VLOOKUP($BS43,'État & Plan d''action'!$B$6:$DB$1113,90,FALSE),VLOOKUP($BS43,'État & Plan d''action'!$B$6:$DB$1113,100,FALSE)),"") -> 0 | FT43: =IFERROR(SUM(VLOOKUP($BS43,'État & Plan d''action'!$B$6:$DB$1113,22,FALSE),VLOOKUP($BS43,'État & Plan d''action'!$B$6:$DB$1113,32,FALSE),VLOOKUP($BS43,'État & Plan d''action'!$B$6:$DB$1113,42,FALSE),VLOOKUP($BS43,'État & Plan d''action'!$B$6:$DB$1113,52,FALSE),VLOOKUP($BS43,'État & Plan d''action'!$B$6:$DB$1113,62,FALSE),VLOOKUP($BS43,'État & Plan d''action'!$B$6:$DB$1113,72,FALSE),VLOOKUP($BS43,'État & Plan d''action'!$B$6:$DB$1113,82,FALSE),VLOOKUP($BS43,'État & Plan d''action'!$B$6:$DB$1113,92,FALSE),VLOOKUP($BS43,'État & Plan d''action'!$B$6:$DB$1113,102,FALSE)),"") -> 0 | FU43: =IFERROR(SUM(VLOOKUP($BS43,'État & Plan d''action'!$B$6:$DB$1113,24,FALSE),VLOOKUP($BS43,'État & Plan d''action'!$B$6:$DB$1113,34,FALSE),VLOOKUP($BS43,'État & Plan d''action'!$B$6:$DB$1113,44,FALSE),VLOOKUP($BS43,'État & Plan d''action'!$B$6:$DB$1113,54,FALSE),VLOOKUP($BS43,'État & Plan d''action'!$B$6:$DB$1113,64,FALSE),VLOOKUP($BS43,'État & Plan d''action'!$B$6:$DB$1113,74,FALSE),VLOOKUP($BS43,'État & Plan d''action'!$B$6:$DB$1113,84,FALSE),VLOOKUP($BS43,'État & Plan d''action'!$B$6:$DB$1113,94,FALSE),VLOOKUP($BS43,'État & Plan d''action'!$B$6:$DB$1113,104,FALSE)),"") -> 0 | FV43: 38 | FZ43: 905
BQ44: 1 | BR44: 1 | BS44: 66107 | BT44: BEACONSFIELD | BU44: 6 | BV44: non | BW44: non | BX44: non | BY44: non | BZ44: non | CA44: non | CB44: non | CC44: non | CD44: non | CE44: non | CF44: non | CG44: oui | CH44: non | CI44: non | CJ44: oui | CK44: oui | CL44: oui | CM44: oui | CN44: oui | CO44: non | CP44: non | CQ44: =IF(VLOOKUP(BS44,'Données par municipalité'!$B$6:$E$1113,4,FALSE)="","non","oui") -> oui | CR44: 1077.821637 | CU44: 1143.00881 | CV44: 548.4040133 | CW44: 572 | CX44: 600.3350024 | CY44: 388 | DB44: =IF(VLOOKUP(BS44,'Données par municipalité'!$B$6:$F$1113,4,FALSE)="","",VLOOKUP(BS44,'Données par municipalité'!$B$6:$F$1113,4,FALSE)) -> 659 | DC44: Non disponible | DF44: 3 | DG44: 3 | DH44: 3 | DI44: 3 | DJ44: 3 | DM44: =IFERROR(SUM(VLOOKUP($BS44,'État & Plan d''action'!$B$6:$DB$1113,18,FALSE),VLOOKUP($BS44,'État & Plan d''action'!$B$6:$DB$1113,20,FALSE),VLOOKUP($BS44,'État & Plan d''action'!$B$6:$DB$1113,28,FALSE),VLOOKUP($BS44,'État & Plan d''action'!$B$6:$DB$1113,30,FALSE),VLOOKUP($BS44,'État & Plan d''action'!$B$6:$DB$1113,38,FALSE),VLOOKUP($BS44,'État & Plan d''action'!$B$6:$DB$1113,40,FALSE),VLOOKUP($BS44,'État & Plan d''action'!$B$6:$DB$1113,48,FALSE),VLOOKUP($BS44,'État & Plan d''action'!$B$6:$DB$1113,50,FALSE),VLOOKUP($BS44,'État & Plan d''action'!$B$6:$DB$1113,58,FALSE),VLOOKUP($BS44,'État & Plan d''action'!$B$6:$DB$1113,60,FALSE),VLOOKUP($BS44,'État & Plan d''action'!$B$6:$DB$1113,68,FALSE),VLOOKUP($BS44,'État & Plan d''action'!$B$6:$DB$1113,70,FALSE),VLOOKUP($BS44,'État & Plan d''action'!$B$6:$DB$1113,78,FALSE),VLOOKUP($BS44,'État & Plan d''action'!$B$6:$DB$1113,80,FALSE),VLOOKUP($BS44,'État & Plan d''action'!$B$6:$DB$1113,88,FALSE),VLOOKUP($BS44,'État & Plan d''action'!$B$6:$DB$1113,90,FALSE),VLOOKUP($BS44,'État & Plan d''action'!$B$6:$DB$1113,98,FALSE),VLOOKUP($BS44,'État & Plan d''action'!$B$6:$DB$1113,100,FALSE))/(VLOOKUP($BS44,'Données par municipalité'!$B$4:$N$1113,13,FALSE)),"") -> 3 | DN44: =IFERROR(SUM(VLOOKUP($BS44,'État & Plan d''action'!$B$6:$DB$1113,19,FALSE),VLOOKUP($BS44,'État & Plan d''action'!$B$6:$DB$1113,21,FALSE),VLOOKUP($BS44,'État & Plan d''action'!$B$6:$DB$1113,29,FALSE),VLOOKUP($BS44,'État & Plan d''action'!$B$6:$DB$1113,31,FALSE),VLOOKUP($BS44,'État & Plan d''action'!$B$6:$DB$1113,39,FALSE),VLOOKUP($BS44,'État & Plan d''action'!$B$6:$DB$1113,41,FALSE),VLOOKUP($BS44,'État & Plan d''action'!$B$6:$DB$1113,49,FALSE),VLOOKUP($BS44,'État & Plan d''action'!$B$6:$DB$1113,51,FALSE),VLOOKUP($BS44,'État & Plan d''action'!$B$6:$DB$1113,59,FALSE),VLOOKUP($BS44,'État & Plan d''action'!$B$6:$DB$1113,61,FALSE),VLOOKUP($BS44,'État & Plan d''action'!$B$6:$DB$1113,69,FALSE),VLOOKUP($BS44,'État & Plan d''action'!$B$6:$DB$1113,71,FALSE),VLOOKUP($BS44,'État & Plan d''action'!$B$6:$DB$1113,79,FALSE),VLOOKUP($BS44,'État & Plan d''action'!$B$6:$DB$1113,81,FALSE),VLOOKUP($BS44,'État & Plan d''action'!$B$6:$DB$1113,89,FALSE),VLOOKUP($BS44,'État & Plan d''action'!$B$6:$DB$1113,91,FALSE),VLOOKUP($BS44,'État & Plan d''action'!$B$6:$DB$1113,99,FALSE),VLOOKUP($BS44,'État & Plan d''action'!$B$6:$DB$1113,101,FALSE))/(VLOOKUP($BS44,'Données par municipalité'!$B$4:$N$1113,13,FALSE)),"") -> 3 | DO44: Non disponible | DP44: 52 | DR44: 44 | DS44: 41 | DT44: 40 | DU44: 30 | DV44: 32 | DW44: 4 | DX44: 3 | EE44: =IF(VLOOKUP($BS44,'État & Plan d''action'!$B$6:$DM$1113,108,FALSE)="","",VLOOKUP($BS44,'État & Plan d''action'!$B$6:$DM$1113,108,FALSE)) -> 20 | EF44: =IF(VLOOKUP($BS44,'État & Plan d''action'!$B$6:$DM$1113,109,FALSE)="","",VLOOKUP($BS44,'État & Plan d''action'!$B$6:$DM$1113,109,FALSE)) -> 0 | EG44: =IF(VLOOKUP($BS44,'État & Plan d''action'!$B$6:$DM$1113,110,FALSE)="","",VLOOKUP($BS44,'État & Plan d''action'!$B$6:$DM$1113,110,FALSE)) -> 1 | EH44: 266 | EJ44: 0 | EK44: =VLOOKUP($BS44,'Données par municipalité'!$B$6:$F$1113,5,FALSE) -> 275 | EL44: 4.310250388 | EO44: =IF(VLOOKUP(BS44,'Données par municipalité'!$B$6:$U$1113,7,FALSE)="","",VLOOKUP(BS44,'Données par municipalité'!$B$6:$U$1113,7,FALSE)) -> 17.0762309 | EP44: 2 | EQ44: 2 | ER44: 7 | EV44: 0 | EW44: 0 | EX44: 0 | EY44: =VLOOKUP($BS44,'État & Plan d''action'!$B$6:$DK$1113,112,FALSE) -> 2 | EZ44: =VLOOKUP($BS44,'État & Plan d''action'!$B$6:$DK$1113,113,FALSE) ->  | FA44: =VLOOKUP($BS44,'État & Plan d''action'!$B$6:$DK$1113,114,FALSE) -> 7 | FB44: 0 | FC44: 379.866 | FD44: 0 | FE44: 0 | FF44: 0 | FG44: 0 | FH44: 379.866 | FI44: 0 | FJ44: 0 | FK44: 0 | FL44: 0 | FM44: 0 | FN44: 0 | FO44: 0 | FP44: 0 | FQ44: =IFERROR(SUM(VLOOKUP($BS44,'État & Plan d''action'!$B$6:$DB$1113,16,FALSE),VLOOKUP($BS44,'État & Plan d''action'!$B$6:$DB$1113,26,FALSE),VLOOKUP($BS44,'État & Plan d''action'!$B$6:$DB$1113,36,FALSE),VLOOKUP($BS44,'État & Plan d''action'!$B$6:$DB$1113,46,FALSE),VLOOKUP($BS44,'État & Plan d''action'!$B$6:$DB$1113,56,FALSE),VLOOKUP($BS44,'État & Plan d''action'!$B$6:$DB$1113,66,FALSE),VLOOKUP($BS44,'État & Plan d''action'!$B$6:$DB$1113,76,FALSE),VLOOKUP($BS44,'État & Plan d''action'!$B$6:$DB$1113,86,FALSE),VLOOKUP($BS44,'État & Plan d''action'!$B$6:$DB$1113,96,FALSE)),"") -> 0 | FR44: =IFERROR(SUM(VLOOKUP($BS44,'État & Plan d''action'!$B$6:$DB$1113,18,FALSE),VLOOKUP($BS44,'État & Plan d''action'!$B$6:$DB$1113,28,FALSE),VLOOKUP($BS44,'État & Plan d''action'!$B$6:$DB$1113,38,FALSE),VLOOKUP($BS44,'État & Plan d''action'!$B$6:$DB$1113,48,FALSE),VLOOKUP($BS44,'État & Plan d''action'!$B$6:$DB$1113,58,FALSE),VLOOKUP($BS44,'État & Plan d''action'!$B$6:$DB$1113,68,FALSE),VLOOKUP($BS44,'État & Plan d''action'!$B$6:$DB$1113,78,FALSE),VLOOKUP($BS44,'État & Plan d''action'!$B$6:$DB$1113,88,FALSE),VLOOKUP($BS44,'État & Plan d''action'!$B$6:$DB$1113,98,FALSE)),"") -> 379.866 | FS44: =IFERROR(SUM(VLOOKUP($BS44,'État & Plan d''action'!$B$6:$DB$1113,20,FALSE),VLOOKUP($BS44,'État & Plan d''action'!$B$6:$DB$1113,30,FALSE),VLOOKUP($BS44,'État & Plan d''action'!$B$6:$DB$1113,40,FALSE),VLOOKUP($BS44,'État & Plan d''action'!$B$6:$DB$1113,50,FALSE),VLOOKUP($BS44,'État & Plan d''action'!$B$6:$DB$1113,60,FALSE),VLOOKUP($BS44,'État & Plan d''action'!$B$6:$DB$1113,70,FALSE),VLOOKUP($BS44,'État & Plan d''action'!$B$6:$DB$1113,80,FALSE),VLOOKUP($BS44,'État & Plan d''action'!$B$6:$DB$1113,90,FALSE),VLOOKUP($BS44,'État & Plan d''action'!$B$6:$DB$1113,100,FALSE)),"") -> 0 | FT44: =IFERROR(SUM(VLOOKUP($BS44,'État & Plan d''action'!$B$6:$DB$1113,22,FALSE),VLOOKUP($BS44,'État & Plan d''action'!$B$6:$DB$1113,32,FALSE),VLOOKUP($BS44,'État & Plan d''action'!$B$6:$DB$1113,42,FALSE),VLOOKUP($BS44,'État & Plan d''action'!$B$6:$DB$1113,52,FALSE),VLOOKUP($BS44,'État & Plan d''action'!$B$6:$DB$1113,62,FALSE),VLOOKUP($BS44,'État & Plan d''action'!$B$6:$DB$1113,72,FALSE),VLOOKUP($BS44,'État & Plan d''action'!$B$6:$DB$1113,82,FALSE),VLOOKUP($BS44,'État & Plan d''action'!$B$6:$DB$1113,92,FALSE),VLOOKUP($BS44,'État & Plan d''action'!$B$6:$DB$1113,102,FALSE)),"") -> 0 | FU44: =IFERROR(SUM(VLOOKUP($BS44,'État & Plan d''action'!$B$6:$DB$1113,24,FALSE),VLOOKUP($BS44,'État & Plan d''action'!$B$6:$DB$1113,34,FALSE),VLOOKUP($BS44,'État & Plan d''action'!$B$6:$DB$1113,44,FALSE),VLOOKUP($BS44,'État & Plan d''action'!$B$6:$DB$1113,54,FALSE),VLOOKUP($BS44,'État & Plan d''action'!$B$6:$DB$1113,64,FALSE),VLOOKUP($BS44,'État & Plan d''action'!$B$6:$DB$1113,74,FALSE),VLOOKUP($BS44,'État & Plan d''action'!$B$6:$DB$1113,84,FALSE),VLOOKUP($BS44,'État & Plan d''action'!$B$6:$DB$1113,94,FALSE),VLOOKUP($BS44,'État & Plan d''action'!$B$6:$DB$1113,104,FALSE)),"") -> 0 | FV44: 62.74509804 | FY44: 59 | FZ44: 19942
